Workbook

Sheet WB! Status
A1: What'sBest!® 13.0.2.0 (Mar 18, 2016) - Lib. 9.0.2217.270 - 64-bit - Status Report -
A3: DATE GENERATED: | B3: 2022-12-06T15:33:20 | C3: 44901.64815
A6: MODEL INFORMATION:
A8: CLASSIFICATION DATA Current Capacity Limits
A9: --------------------------------------------------------
A10: Total Cells 2891884
A11: Numerics 2874927
A12: Adjustables 13955 Unlimited
A13: Continuous 7196
A14: Free 0
A15: Integers/Binaries 69/6690 Unlimited
A16: Constants 1191476
A17: Formulas 1669496
A18: Strings 0
A19: Constraints 16957 Unlimited
A20: Nonlinears 0 Unlimited
A21: Coefficients 4888837
A23: Minimum coefficient value: 2.2096051199624e-020 on EE_Selection!I2435
A24: Minimum coefficient in formula: EE_Selection!FP2435
A25: Maximum coefficient value: 1566651.6323301 on Selection!Z103
A26: Maximum coefficient in formula: New_Resource_Annual_Cost!Z19
A28: MODEL TYPE: | B28: Mixed Integer / Linear (Mixed Integer Linear Program)
A30: SOLUTION STATUS: | B30: GLOBALLY OPTIMAL TO TOLERANCES
... 27 more rows

Sheet README
B2: Notice
B3: This Model is Provided “As Is”
B4: For Informational Purposes Only
B5: Inputs are Subject to Change at Any Time and May Impact Results
B8: Version
B9: PRiSM version 8.0
B11: Model Design Date
B12: 2022-11-29
B14: Scenario
B15: All information is draft and subject to change
B16: PRS

Sheet CBI
A2: CBI # | B2: CBI Name | C2: Item | D2: Unit | E2: 2016 | F2: 2017 | G2: 2018 | H2: 2019 | I2: 2020 | J2: 2021 | K2: 2022 | L2: 2023 | M2: 2024 | N2: 2025 | O2: 2026 | P2: 2027 | Q2: 2028 | R2: 2029 | S2: 2030 | T2: 2031 | U2: 2032 | V2: 2033 | W2: 2034 | X2: 2035 | Y2: 2036 | Z2: 2037 | AA2: 2038 | AB2: 2039 | AC2: 2040 | AD2: 2041 | AE2: 2042 | AF2: 2043 | AG2: 2044 | AH2: 2045
A3: 2a | B3: Energy Burden | C3: Number of Customers with Energy Burden | D3: # | L3: ='Energy Burden'!FE$4 -> 45347.9511 | M3: ='Energy Burden'!FF$4 -> 45685.60139 | N3: ='Energy Burden'!FG$4 -> 46135.82246 | O3: ='Energy Burden'!FH$4 -> 45360.69116 | P3: ='Energy Burden'!FI$4 -> 46714.99086 | Q3: ='Energy Burden'!FJ$4 -> 47052.35713 | R3: ='Energy Burden'!FK$4 -> 47385.40672 | S3: ='Energy Burden'!FL$4 -> 47710.88506 | T3: ='Energy Burden'!FM$4 -> 48042.50856 | U3: ='Energy Burden'!FN$4 -> 48382.92997 | V3: ='Energy Burden'!FO$4 -> 48697.85949 | W3: ='Energy Burden'!FP$4 -> 47617.2384 | X3: ='Energy Burden'!FQ$4 -> 47923.33872 | Y3: ='Energy Burden'!FR$4 -> 48224.19857 | Z3: ='Energy Burden'!FS$4 -> 48520.12507 | AA3: ='Energy Burden'!FT$4 -> 48809.93647 | AB3: ='Energy Burden'!FU$4 -> 49094.72296 | AC3: ='Energy Burden'!FV$4 -> 49375.4593 | AD3: ='Energy Burden'!FW$4 -> 49650.89649 | AE3: ='Energy Burden'!FX$4 -> 49922.49645 | AF3: ='Energy Burden'!FY$4 -> 51281.14459 | AG3: ='Energy Burden'!FZ$4 -> 50454.3685 | AH3: ='Energy Burden'!GA$4 -> 52254.94385
A4: 2b | B4: Energy Burden | C4: Percent of Customer with Excess Energy Burden | D4: Percent | L4: ='Energy Burden'!FE$6 -> 0.2047844528 | M4: ='Energy Burden'!FF$6 -> 0.2041284255 | N4: ='Energy Burden'!FG$6 -> 0.2041284255 | O4: ='Energy Burden'!FH$6 -> 0.1988931975 | P4: ='Energy Burden'!FI$6 -> 0.2032190807 | Q4: ='Energy Burden'!FJ$6 -> 0.2032190807 | R4: ='Energy Burden'!FK$6 -> 0.2032190807 | S4: ='Energy Burden'!FL$6 -> 0.2031866041 | T4: ='Energy Burden'!FM$6 -> 0.2031866041 | U4: ='Energy Burden'!FN$6 -> 0.2032320713 | V4: ='Energy Burden'!FO$6 -> 0.2031866041 | W4: ='Energy Burden'!FP$6 -> 0.1973797879 | X4: ='Energy Burden'!FQ$6 -> 0.1973797879 | Y4: ='Energy Burden'!FR$6 -> 0.1973797879 | Z4: ='Energy Burden'!FS$6 -> 0.1973797879 | AA4: ='Energy Burden'!FT$6 -> 0.1973797879 | AB4: ='Energy Burden'!FU$6 -> 0.1973797879 | AC4: ='Energy Burden'!FV$6 -> 0.1973797879 | AD4: ='Energy Burden'!FW$6 -> 0.1973797879 | AE4: ='Energy Burden'!FX$6 -> 0.1973797879 | AF4: ='Energy Burden'!FY$6 -> 0.2016731945 | AG4: ='Energy Burden'!FZ$6 -> 0.1973797879 | AH4: ='Energy Burden'!GA$6 -> 0.2033619777
A5: 2c | B5: Energy Burden | C5: Average excess burden per household | D5: $ | L5: ='Energy Burden'!FE$5 -> 916.8555733 | M5: ='Energy Burden'!FF$5 -> 928.4939313 | N5: ='Energy Burden'!FG$5 -> 913.9716276 | O5: ='Energy Burden'!FH$5 -> 897.3028955 | P5: ='Energy Burden'!FI$5 -> 947.2182339 | Q5: ='Energy Burden'!FJ$5 -> 985.9616456 | R5: ='Energy Burden'!FK$5 -> 1002.689254 | S5: ='Energy Burden'!FL$5 -> 1026.047385 | T5: ='Energy Burden'!FM$5 -> 1073.772141 | U5: ='Energy Burden'!FN$5 -> 1157.657245 | V5: ='Energy Burden'!FO$5 -> 1163.275445 | W5: ='Energy Burden'!FP$5 -> 1176.143136 | X5: ='Energy Burden'!FQ$5 -> 1213.730673 | Y5: ='Energy Burden'!FR$5 -> 1283.938399 | Z5: ='Energy Burden'!FS$5 -> 1301.059636 | AA5: ='Energy Burden'!FT$5 -> 1360.793732 | AB5: ='Energy Burden'!FU$5 -> 1411.349448 | AC5: ='Energy Burden'!FV$5 -> 1426.218705 | AD5: ='Energy Burden'!FW$5 -> 1459.794925 | AE5: ='Energy Burden'!FX$5 -> 1506.573215 | AF5: ='Energy Burden'!FY$5 -> 1583.895984 | AG5: ='Energy Burden'!FZ$5 -> 1641.417796 | AH5: ='Energy Burden'!GA$5 -> 2034.33507
B7: DER Gen | C7: Great Northern | D7: MWh | E7: 0 | F7: 0 | G7: 0 | H7: 0 | I7: 0 | J7: 100.569 | L7: =J7 -> 100.569 | M7: =L7*0.995 -> 100.066155 | N7: 99.56582423 | O7: 99.0679951 | P7: 98.57265513 | Q7: 98.07979185 | R7: 97.58939289 | S7: 97.10144593 | T7: 96.6159387 | U7: 96.13285901 | V7: 95.65219471 | W7: 95.17393374 | X7: 94.69806407 | Y7: 94.22457375 | Z7: 93.75345088 | AA7: 93.28468363 | AB7: 92.81826021 | AC7: 92.35416891 | AD7: 91.89239806 | AE7: 91.43293607 | AF7: 90.97577139 | AG7: 90.52089253 | AH7: 90.06828807
B8: DER Gen | C8: Boulder Park Solar | D8: MWh | E8: 196.17152 | F8: 521.87004 | G8: 539.32164 | H8: 556.20931 | I8: 540.31473 | J8: 535.65707 | L8: =AVERAGE(F8:J8) -> 538.674558 | M8: =L8*0.995 -> 535.9811852 | N8: 533.3012793 | O8: 530.6347729 | P8: 527.981599 | Q8: 525.341691 | R8: 522.7149826 | S8: 520.1014077 | T8: 517.5009006 | U8: 514.9133961 | V8: 512.3388291 | W8: 509.777135 | X8: 507.2282493 | Y8: 504.6921081 | Z8: 502.1686475 | AA8: 499.6578043 | AB8: 497.1595153 | AC8: 494.6737177 | AD8: 492.2003491 | AE8: 489.7393474 | AF8: 487.2906506 | AG8: 484.8541974 | AH8: 482.4299264
B9: DER Gen | C9: PURPA | D9: MWh | E9: 20683.74834 | F9: 18428.68819 | G9: 16644.39831 | H9: 16383.29287 | I9: 20149.58491 | J9: 14413.20254 | L9: =AVERAGE(E9:J9) -> 17783.81919 | M9: =L9 -> 17783.81919 | N9: 17783.81919 | O9: 17783.81919 | P9: 17783.81919 | Q9: 17783.81919 | R9: 17783.81919 | S9: 17783.81919 | T9: 17783.81919 | U9: 17783.81919 | V9: 17783.81919 | W9: 17783.81919 | X9: 17783.81919 | Y9: 17783.81919 | Z9: 17783.81919 | AA9: 17783.81919 | AB9: 17783.81919 | AC9: 17783.81919 | AD9: 17783.81919 | AE9: 17783.81919 | AF9: 17783.81919 | AG9: 17783.81919 | AH9: 17783.81919
B10: DER Gen | C10: Spokane County Digester | D10: MWh | E10: 991.76 | F10: 1190.48 | G10: 1271.44 | H10: 1239.81104 | I10: 1132.35992 | J10: 1123 | L10: =AVERAGE(E10:J10) -> 1158.141827 | M10: =L10 -> 1158.141827 | N10: 1158.141827 | O10: 1158.141827 | P10: 1158.141827 | Q10: 1158.141827 | R10: 1158.141827 | S10: 1158.141827 | T10: 1158.141827 | U10: 1158.141827 | V10: 1158.141827 | W10: 1158.141827 | X10: 1158.141827 | Y10: 1158.141827 | Z10: 1158.141827 | AA10: 1158.141827 | AB10: 1158.141827 | AC10: 1158.141827 | AD10: 1158.141827 | AE10: 1158.141827 | AF10: 1158.141827 | AG10: 1158.141827 | AH10: 1158.141827
B11: DER Gen | C11: Customer Net Meter | D11: MWh | E11: 0 | F11: 0 | G11: 0 | H11: 0 | I11: 0 | J11: 0
B12: DER Gen | C12: Selected Resources | D12: MWh | E12: 0 | F12: 0 | G12: 0 | H12: 0 | I12: 0 | J12: 0 | L12: =Res_MWh!JU$141+Res_MWh!JU$104+Res_MWh!JU$106+Res_MWh!JU$108+Res_MWh!JU$110 -> 0 | M12: =Res_MWh!JV$141+Res_MWh!JV$104+Res_MWh!JV$106+Res_MWh!JV$108+Res_MWh!JV$110 -> 984.3678824 | N12: =Res_MWh!JW$141+Res_MWh!JW$104+Res_MWh!JW$106+Res_MWh!JW$108+Res_MWh!JW$110 -> 1962.513251 | O12: =Res_MWh!JX$141+Res_MWh!JX$104+Res_MWh!JX$106+Res_MWh!JX$108+Res_MWh!JX$110 -> 2940.674595 | P12: =Res_MWh!JY$141+Res_MWh!JY$104+Res_MWh!JY$106+Res_MWh!JY$108+Res_MWh!JY$110 -> 3937.197057 | Q12: =Res_MWh!JZ$141+Res_MWh!JZ$104+Res_MWh!JZ$106+Res_MWh!JZ$108+Res_MWh!JZ$110 -> 4886.902131 | R12: =Res_MWh!KA$141+Res_MWh!KA$104+Res_MWh!KA$106+Res_MWh!KA$108+Res_MWh!KA$110 -> 5871.00602 | S12: =Res_MWh!KB$141+Res_MWh!KB$104+Res_MWh!KB$106+Res_MWh!KB$108+Res_MWh!KB$110 -> 7229.65087 | T12: =Res_MWh!KC$141+Res_MWh!KC$104+Res_MWh!KC$106+Res_MWh!KC$108+Res_MWh!KC$110 -> 8315.986073 | U12: =Res_MWh!KD$141+Res_MWh!KD$104+Res_MWh!KD$106+Res_MWh!KD$108+Res_MWh!KD$110 -> 9395.823455 | V12: =Res_MWh!KE$141+Res_MWh!KE$104+Res_MWh!KE$106+Res_MWh!KE$108+Res_MWh!KE$110 -> 10534.81242 | W12: =Res_MWh!KF$141+Res_MWh!KF$104+Res_MWh!KF$106+Res_MWh!KF$108+Res_MWh!KF$110 -> 10641.24721 | X12: =Res_MWh!KG$141+Res_MWh!KG$104+Res_MWh!KG$106+Res_MWh!KG$108+Res_MWh!KG$110 -> 10903.9793 | Y12: =Res_MWh!KH$141+Res_MWh!KH$104+Res_MWh!KH$106+Res_MWh!KH$108+Res_MWh!KH$110 -> 11068.03539 | Z12: =Res_MWh!KI$141+Res_MWh!KI$104+Res_MWh!KI$106+Res_MWh!KI$108+Res_MWh!KI$110 -> 11220.39385 | AA12: =Res_MWh!KJ$141+Res_MWh!KJ$104+Res_MWh!KJ$106+Res_MWh!KJ$108+Res_MWh!KJ$110 -> 11351.71971 | AB12: =Res_MWh!KK$141+Res_MWh!KK$104+Res_MWh!KK$106+Res_MWh!KK$108+Res_MWh!KK$110 -> 11526.91546 | AC12: =Res_MWh!KL$141+Res_MWh!KL$104+Res_MWh!KL$106+Res_MWh!KL$108+Res_MWh!KL$110 -> 11684.46443 | AD12: =Res_MWh!KM$141+Res_MWh!KM$104+Res_MWh!KM$106+Res_MWh!KM$108+Res_MWh!KM$110 -> 11821.74352 | AE12: =Res_MWh!KN$141+Res_MWh!KN$104+Res_MWh!KN$106+Res_MWh!KN$108+Res_MWh!KN$110 -> 11896.02858 | AF12: =Res_MWh!KO$141+Res_MWh!KO$104+Res_MWh!KO$106+Res_MWh!KO$108+Res_MWh!KO$110 -> 12147.70021 | AG12: =Res_MWh!KP$141+Res_MWh!KP$104+Res_MWh!KP$106+Res_MWh!KP$108+Res_MWh!KP$110 -> 12441.19694 | AH12: =Res_MWh!KQ$141+Res_MWh!KQ$104+Res_MWh!KQ$106+Res_MWh!KQ$108+Res_MWh!KQ$110 -> 12586.697
A13: 5a | B13: DER Gen | C13: Total MWh of DER <5 MW | D13: MWh | E13: =SUM(E7:E12) -> 21871.67986 | F13: =SUM(F7:F12) -> 20141.03823 | G13: 18455.15995 | H13: 18179.31322 | I13: 21822.25956 | J13: 16172.42861 | L13: 19581.20458 | M13: 20562.37624 | N13: 21537.34137 | O13: 22512.33838 | P13: 23505.71233 | Q13: 24452.28463 | R13: 25433.27142 | S13: 26788.81474 | T13: 27872.06393 | U13: 28948.83073 | V13: 30084.76446 | W13: 30188.1593 | X13: 30447.86663 | Y13: 30608.91309 | Z13: 30758.27696 | AA13: 30886.62322 | AB13: 31058.85425 | AC13: 31213.45334 | AD13: 31347.79728 | AE13: 31419.16188 | AF13: 31667.92766 | AG13: 31958.53305 | AH13: 32101.15624
B15: DER Storage | C15: Existing storage/EAG | L15: 1.328 | M15: 1.328 | N15: 1.328 | O15: 1.328 | P15: 1.328 | Q15: 1.328 | R15: 1.328 | S15: 1.328 | T15: 1.328 | U15: 1.328 | V15: 1.328 | W15: 1.328 | X15: 1.328 | Y15: 1.328 | Z15: 1.328 | AA15: 1.328 | AB15: 1.328 | AC15: 1.328 | AD15: 1.328 | AE15: 1.328 | AF15: 1.328 | AG15: 1.328 | AH15: 1.328
B16: DER Storage | C16: Selected Resources | L16: =((Selection!D$213+Selection!D$209+Selection!D$211+Selection!D$221+Selection!D$207)*4)+(Selection!D$222*8) -> 0 | M16: =((Selection!E$213+Selection!E$209+Selection!E$211+Selection!E$221+Selection!E$207)*4)+(Selection!E$222*8) -> 0 | N16: =((Selection!F$213+Selection!F$209+Selection!F$211+Selection!F$221+Selection!F$207)*4)+(Selection!F$222*8) -> 0 | O16: =((Selection!G$213+Selection!G$209+Selection!G$211+Selection!G$221+Selection!G$207)*4)+(Selection!G$222*8) -> 0 | P16: =((Selection!H$213+Selection!H$209+Selection!H$211+Selection!H$221+Selection!H$207)*4)+(Selection!H$222*8) -> 0 | Q16: =((Selection!I$213+Selection!I$209+Selection!I$211+Selection!I$221+Selection!I$207)*4)+(Selection!I$222*8) -> 0 | R16: =((Selection!J$213+Selection!J$209+Selection!J$211+Selection!J$221+Selection!J$207)*4)+(Selection!J$222*8) -> 0 | S16: =((Selection!K$213+Selection!K$209+Selection!K$211+Selection!K$221+Selection!K$207)*4)+(Selection!K$222*8) -> 0 | T16: =((Selection!L$213+Selection!L$209+Selection!L$211+Selection!L$221+Selection!L$207)*4)+(Selection!L$222*8) -> 0 | U16: =((Selection!M$213+Selection!M$209+Selection!M$211+Selection!M$221+Selection!M$207)*4)+(Selection!M$222*8) -> 0 | V16: =((Selection!N$213+Selection!N$209+Selection!N$211+Selection!N$221+Selection!N$207)*4)+(Selection!N$222*8) -> 0 | W16: =((Selection!O$213+Selection!O$209+Selection!O$211+Selection!O$221+Selection!O$207)*4)+(Selection!O$222*8) -> 0.4 | X16: =((Selection!P$213+Selection!P$209+Selection!P$211+Selection!P$221+Selection!P$207)*4)+(Selection!P$222*8) -> 0.8 | Y16: =((Selection!Q$213+Selection!Q$209+Selection!Q$211+Selection!Q$221+Selection!Q$207)*4)+(Selection!Q$222*8) -> 1.2 | Z16: =((Selection!R$213+Selection!R$209+Selection!R$211+Selection!R$221+Selection!R$207)*4)+(Selection!R$222*8) -> 1.6 | AA16: =((Selection!S$213+Selection!S$209+Selection!S$211+Selection!S$221+Selection!S$207)*4)+(Selection!S$222*8) -> 2 | AB16: =((Selection!T$213+Selection!T$209+Selection!T$211+Selection!T$221+Selection!T$207)*4)+(Selection!T$222*8) -> 2.4 | AC16: =((Selection!U$213+Selection!U$209+Selection!U$211+Selection!U$221+Selection!U$207)*4)+(Selection!U$222*8) -> 2.8 | AD16: =((Selection!V$213+Selection!V$209+Selection!V$211+Selection!V$221+Selection!V$207)*4)+(Selection!V$222*8) -> 2.8 | AE16: =((Selection!W$213+Selection!W$209+Selection!W$211+Selection!W$221+Selection!W$207)*4)+(Selection!W$222*8) -> 3.2 | AF16: =((Selection!X$213+Selection!X$209+Selection!X$211+Selection!X$221+Selection!X$207)*4)+(Selection!X$222*8) -> 3.2 | AG16: =((Selection!Y$213+Selection!Y$209+Selection!Y$211+Selection!Y$221+Selection!Y$207)*4)+(Selection!Y$222*8) -> 3.611057393 | AH16: =((Selection!Z$213+Selection!Z$209+Selection!Z$211+Selection!Z$221+Selection!Z$207)*4)+(Selection!Z$222*8) -> 4.058644489
A17: 5b | B17: DER Storage | C17: Total of MWh of DER energy storage < 5 MW | D17: MWh Capability | E17: =SUM(E15:E16) -> 0 | F17: =SUM(F15:F16) -> 0 | G17: 0 | H17: 0 | I17: 0 | J17: 0 | L17: 1.328 | M17: 1.328 | N17: 1.328 | O17: 1.328 | P17: 1.328 | Q17: 1.328 | R17: 1.328 | S17: 1.328 | T17: 1.328 | U17: 1.328 | V17: 1.328 | W17: 1.728 | X17: 2.128 | Y17: 2.528 | Z17: 2.928 | AA17: 3.328 | AB17: 3.728 | AC17: 4.128 | AD17: 4.128 | AE17: 4.528 | AF17: 4.528 | AG17: 4.939057393 | AH17: 5.386644489
C19: Low Income EE Values
C20: Low Income EE from target | D20: GWH | L20: 4.92642213 | M20: 10.80493036 | N20: 17.80099337 | O20: 25.62454735 | P20: 34.26046392 | Q20: 44.10424687 | R20: 54.63996834 | S20: 65.2268486 | T20: 75.05290381 | U20: 83.74506491 | V20: 90.90348437 | W20: 96.27805291 | X20: 100.2976212 | Y20: 103.235781 | Z20: 105.3836057 | AA20: 106.7751897 | AB20: 107.8444138 | AC20: 108.5678865 | AD20: 109.2153681 | AE20: 109.8630175 | AF20: 110.4276343 | AG20: 110.9855379 | AH20: 111.4525155
C21: Low Income EE from simulation | D21: GWH | L21: =EE_Selection!K19 -> 5.114878638 | M21: =EE_Selection!L19 -> 11.21208018 | N21: =EE_Selection!M19 -> 18.45824232 | O21: =EE_Selection!N19 -> 26.54897746 | P21: =EE_Selection!O19 -> 35.4611799 | Q21: =EE_Selection!P19 -> 45.59235375 | R21: =EE_Selection!Q19 -> 56.4022235 | S21: =EE_Selection!R19 -> 67.22800387 | T21: =EE_Selection!S19 -> 77.24351952 | U21: =EE_Selection!T19 -> 86.07143241 | V21: =EE_Selection!U19 -> 93.31627343 | W21: =EE_Selection!V19 -> 98.73460425 | X21: =EE_Selection!W19 -> 102.7700909 | Y21: =EE_Selection!X19 -> 105.7074356 | Z21: =EE_Selection!Y19 -> 107.8481331 | AA21: =EE_Selection!Z19 -> 109.2285524 | AB21: =EE_Selection!AA19 -> 110.2910088 | AC21: =EE_Selection!AB19 -> 111.0111577 | AD21: =EE_Selection!AC19 -> 111.6565613 | AE21: =EE_Selection!AD19 -> 112.3030082 | AF21: =EE_Selection!AE19 -> 112.8669679 | AG21: =EE_Selection!AF19 -> 113.4245943 | AH21: =EE_Selection!AG19 -> 113.8917228
C22: Incremental EE from Named Community Fund | D22: GWH | L22: =L21-L20 -> 0.1884565083 | M22: =M21-M20 -> 0.407149821 | N22: 0.6572489483 | O22: 0.9244301084 | P22: 1.200715986 | Q22: 1.488106876 | R22: 1.762255159 | S22: 2.001155271 | T22: 2.19061571 | U22: 2.326367504 | V22: 2.412789062 | W22: 2.456551343 | X22: 2.472469755 | Y22: 2.471654559 | Z22: 2.464527393 | AA22: 2.453362705 | AB22: 2.446595048 | AC22: 2.443271247 | AD22: 2.441193186 | AE22: 2.439990671 | AF22: 2.43933361 | AG22: 2.439056383 | AH22: 2.439207263
V23: =EE_Selection!U4/(EE_Selection!U4-V22) -> 1.007068545
C24: Low Income EE Investment | D24: Millions $ | L24: =EE_Selection!CE12 -> 7.977586384 | M24: =EE_Selection!CF12 -> 10.454123 | N24: =EE_Selection!CG12 -> 12.78835367 | O24: =EE_Selection!CH12 -> 16.88646417 | P24: =EE_Selection!CI12 -> 20.78738113 | Q24: =EE_Selection!CJ12 -> 25.14162191 | R24: =EE_Selection!CK12 -> 28.00768202 | S24: =EE_Selection!CL12 -> 28.94135802 | T24: =EE_Selection!CM12 -> 28.08650853 | U24: =EE_Selection!CN12 -> 25.99203744 | V24: =EE_Selection!CO12 -> 23.42448754 | W24: =EE_Selection!CP12 -> 20.97566707 | X24: =EE_Selection!CQ12 -> 19.22180382 | Y24: =EE_Selection!CR12 -> 17.73403658 | Z24: =EE_Selection!CS12 -> 16.47996836 | AA24: =EE_Selection!CT12 -> 14.82653553 | AB24: =EE_Selection!CU12 -> 13.78830748 | AC24: =EE_Selection!CV12 -> 13.10569952 | AD24: =EE_Selection!CW12 -> 13.79296205 | AE24: =EE_Selection!CX12 -> 14.49529711 | AF24: =EE_Selection!CY12 -> 15.0817007 | AG24: =EE_Selection!CZ12 -> 15.71060348 | AH24: =EE_Selection!DA12 -> 16.35663508
C25: Low Income EE Investment (Cost Effectiveness Test) | D25: Millions $ | L25: 5.637861974 | M25: 7.46568191 | N25: 9.124973745 | O25: 12.62725104 | P25: 15.93022297 | Q25: 19.61330628 | R25: 22.1602638 | S25: 23.13231654 | T25: 22.56513486 | U25: 20.80667506 | V25: 18.42221247 | W25: 15.88897374 | X25: 13.72181324 | Y25: 11.82311134 | Z25: 10.06994836 | AA25: 7.954774388 | AB25: 6.396762258 | AC25: 5.181421546 | AD25: 5.365690815 | AE25: 5.545327587 | AF25: 5.598199897 | AG25: 5.682085918 | AH25: 5.744984237
C26: Incremental EE Investment | D26: Millions $ | L26: =L24-L25 -> 2.33972441 | M26: =M24-M25 -> 2.988441089 | N26: 3.663379923 | O26: 4.259213134 | P26: 4.857158164 | Q26: 5.52831563 | R26: 5.847418219 | S26: 5.809041475 | T26: 5.52137367 | U26: 5.185362382 | V26: 5.002275074 | W26: 5.086693334 | X26: 5.499990581 | Y26: 5.910925246 | Z26: 6.410019995 | AA26: 6.871761146 | AB26: 7.391545223 | AC26: 7.924277973 | AD26: 8.427271239 | AE26: 8.949969523 | AF26: 9.483500807 | AG26: 10.02851757 | AH26: 10.61165085
A27: 1 | B27: on/off | C27: NCF Investment | D27: Millions $ | L27: 2 | M27: =L27*1.03 -> 2.06 | N27: =M27*1.03 -> 2.1218 | O27: 2.185454 | P27: 2.25101762 | Q27: 2.318548149 | R27: 2.388104593 | S27: 2.459747731 | T27: 2.533540163 | U27: 2.609546368 | V27: 2.687832759 | W27: 2.768467741 | X27: 2.851521774 | Y27: 2.937067427 | Z27: 3.02517945 | AA27: 3.115934833 | AB27: 3.209412878 | AC27: 3.305695265 | AD27: 3.404866122 | AE27: 3.507012106 | AF27: 3.612222469 | AG27: 3.720589143 | AH27: 3.832206818
L28: =[1]!WB(L24,">=",(L25+L27)*$A$27) ->  | M28: =[1]!WB(M24,">=",(M25+M27)*$A$27) ->  | N28: >= | O28: >= | P28: >= | Q28: >= | R28: >= | S28: >= | T28: >= | U28: >= | V28: >= | W28: >= | X28: >= | Y28: >= | Z28: >= | AA28: >= | AB28: >= | AC28: >= | AD28: >= | AE28: >= | AF28: >= | AG28: >= | AH28: >=
C31: Low Income (EE NEI) | D31: Millions $ | L31: =EE_Selection!K$2726 -> 0.6681521124 | M31: =EE_Selection!L$2726 -> 1.501633015 | N31: =EE_Selection!M$2726 -> 2.509416335 | O31: =EE_Selection!N$2726 -> 3.655685989 | P31: =EE_Selection!O$2726 -> 4.935883952 | Q31: =EE_Selection!P$2726 -> 6.395814851 | R31: =EE_Selection!Q$2726 -> 7.947113315 | S31: =EE_Selection!R$2726 -> 9.490481442 | T31: =EE_Selection!S$2726 -> 10.91895165 | U31: =EE_Selection!T$2726 -> 12.16706945 | V31: =EE_Selection!U$2726 -> 13.20060272 | W31: =EE_Selection!V$2726 -> 14.01165039 | X31: =EE_Selection!W$2726 -> 14.65412699 | Y31: =EE_Selection!X$2726 -> 15.17595643 | Z31: =EE_Selection!Y$2726 -> 15.63160556 | AA31: =EE_Selection!Z$2726 -> 16.05148501 | AB31: =EE_Selection!AA$2726 -> 16.4603705 | AC31: =EE_Selection!AB$2726 -> 16.87360394 | AD31: =EE_Selection!AC$2726 -> 17.29952625 | AE31: =EE_Selection!AD$2726 -> 17.73868152 | AF31: =EE_Selection!AE$2726 -> 18.18450829 | AG31: =EE_Selection!AF$2726 -> 18.64141918 | AH31: =EE_Selection!AG$2726 -> 19.10650157
C32: Low Income EE Market Value | D32: Millions $ | L32: =EE_Mrkt_Value!BZ$4 -> 11.12966881 | M32: =EE_Mrkt_Value!CA$4 -> 10.90636835 | N32: =EE_Mrkt_Value!CB$4 -> 9.564054938 | O32: =EE_Mrkt_Value!CC$4 -> 9.231359999 | P32: =EE_Mrkt_Value!CD$4 -> 8.541004914 | Q32: =EE_Mrkt_Value!CE$4 -> 8.809846376 | R32: =EE_Mrkt_Value!CF$4 -> 9.081948067 | S32: =EE_Mrkt_Value!CG$4 -> 10.58080795 | T32: =EE_Mrkt_Value!CH$4 -> 10.41175373 | U32: =EE_Mrkt_Value!CI$4 -> 10.60486254 | V32: =EE_Mrkt_Value!CJ$4 -> 11.23555314 | W32: =EE_Mrkt_Value!CK$4 -> 11.7032923 | X32: =EE_Mrkt_Value!CL$4 -> 12.65709945 | Y32: =EE_Mrkt_Value!CM$4 -> 13.24939819 | Z32: =EE_Mrkt_Value!CN$4 -> 14.41456951 | AA32: =EE_Mrkt_Value!CO$4 -> 14.8235424 | AB32: =EE_Mrkt_Value!CP$4 -> 15.62805233 | AC32: =EE_Mrkt_Value!CQ$4 -> 17.28080348 | AD32: =EE_Mrkt_Value!CR$4 -> 17.86215297 | AE32: =EE_Mrkt_Value!CS$4 -> 19.42722009 | AF32: =EE_Mrkt_Value!CT$4 -> 20.51818399 | AG32: =EE_Mrkt_Value!CU$4 -> 23.82550914 | AH32: =EE_Mrkt_Value!CV$4 -> 24.34380075
C33: Low Income Capacity Value | D33: Millions $ | L33: =(EE_Selection!DC$12*1000*G_A!Q$20)/1000000 -> 0 | M33: =(EE_Selection!DD$12*1000*G_A!R$20)/1000000 -> 0 | N33: =(EE_Selection!DE$12*1000*G_A!S$20)/1000000 -> 0 | O33: =(EE_Selection!DF$12*1000*G_A!T$20)/1000000 -> 0 | P33: =(EE_Selection!DG$12*1000*G_A!U$20)/1000000 -> 0.05324492893 | Q33: =(EE_Selection!DH$12*1000*G_A!V$20)/1000000 -> 0.07154403112 | R33: =(EE_Selection!DI$12*1000*G_A!W$20)/1000000 -> 0.09417247684 | S33: =(EE_Selection!DJ$12*1000*G_A!X$20)/1000000 -> 0.1220701177 | T33: =(EE_Selection!DK$12*1000*G_A!Y$20)/1000000 -> 0.1548072584 | U33: =(EE_Selection!DL$12*1000*G_A!Z$20)/1000000 -> 0.193476537 | V33: =(EE_Selection!DM$12*1000*G_A!AA$20)/1000000 -> 0.2375802527 | W33: =(EE_Selection!DN$12*1000*G_A!AB$20)/1000000 -> 0.2857417541 | X33: =(EE_Selection!DO$12*1000*G_A!AC$20)/1000000 -> 0.3373664078 | Y33: =(EE_Selection!DP$12*1000*G_A!AD$20)/1000000 -> 0.3912516459 | Z33: =(EE_Selection!DQ$12*1000*G_A!AE$20)/1000000 -> 0.4449875331 | AA33: =(EE_Selection!DR$12*1000*G_A!AF$20)/1000000 -> 0.4976971524 | AB33: =(EE_Selection!DS$12*1000*G_A!AG$20)/1000000 -> 0.5515945396 | AC33: =(EE_Selection!DT$12*1000*G_A!AH$20)/1000000 -> 0.6049656586 | AD33: =(EE_Selection!DU$12*1000*G_A!AI$20)/1000000 -> 0.6580391451 | AE33: =(EE_Selection!DV$12*1000*G_A!AJ$20)/1000000 -> 0.7125987043 | AF33: =(EE_Selection!DW$12*1000*G_A!AK$20)/1000000 -> 0.766969795 | AG33: =(EE_Selection!DX$12*1000*G_A!AL$20)/1000000 -> 0.8231440092 | AH33: =(EE_Selection!DY$12*1000*G_A!AM$20)/1000000 -> 0.8771998792
C34: T&D | D34: Millions $ | L34: =(EE_Selection!DC$12*1000*G_A!$Q$18)/1000000 -> 0.001926456019 | M34: =(EE_Selection!DD$12*1000*G_A!$Q$18)/1000000 -> 0.004841280927 | N34: =(EE_Selection!DE$12*1000*G_A!$Q$18)/1000000 -> 0.00872514708 | O34: =(EE_Selection!DF$12*1000*G_A!$Q$18)/1000000 -> 0.01261031498 | P34: =(EE_Selection!DG$12*1000*G_A!$Q$18)/1000000 -> 0.01705477901 | Q34: =(EE_Selection!DH$12*1000*G_A!$Q$18)/1000000 -> 0.02246679277 | R34: =(EE_Selection!DI$12*1000*G_A!$Q$18)/1000000 -> 0.02899288908 | S34: =(EE_Selection!DJ$12*1000*G_A!$Q$18)/1000000 -> 0.0368448415 | T34: =(EE_Selection!DK$12*1000*G_A!$Q$18)/1000000 -> 0.04580980858 | U34: =(EE_Selection!DL$12*1000*G_A!$Q$18)/1000000 -> 0.0561300322 | V34: =(EE_Selection!DM$12*1000*G_A!$Q$18)/1000000 -> 0.06757361513 | W34: =(EE_Selection!DN$12*1000*G_A!$Q$18)/1000000 -> 0.07967835306 | X34: =(EE_Selection!DO$12*1000*G_A!$Q$18)/1000000 -> 0.09222917151 | Y34: =(EE_Selection!DP$12*1000*G_A!$Q$18)/1000000 -> 0.1048630478 | Z34: =(EE_Selection!DQ$12*1000*G_A!$Q$18)/1000000 -> 0.1169267748 | AA34: =(EE_Selection!DR$12*1000*G_A!$Q$18)/1000000 -> 0.1282127192 | AB34: =(EE_Selection!DS$12*1000*G_A!$Q$18)/1000000 -> 0.1393111065 | AC34: =(EE_Selection!DT$12*1000*G_A!$Q$18)/1000000 -> 0.1497946608 | AD34: =(EE_Selection!DU$12*1000*G_A!$Q$18)/1000000 -> 0.1597412834 | AE34: =(EE_Selection!DV$12*1000*G_A!$Q$18)/1000000 -> 0.169593927 | AF34: =(EE_Selection!DW$12*1000*G_A!$Q$18)/1000000 -> 0.1789548023 | AG34: =(EE_Selection!DX$12*1000*G_A!$Q$18)/1000000 -> 0.1882958491 | AH34: =(EE_Selection!DY$12*1000*G_A!$Q$18)/1000000 -> 0.1967267041
C35: Likely Named Community Resource Utility Values
C36: Resource Value | D36: Millions $ | L36: =Aurora_Res_Results!AC$477/1000 -> 0 | M36: =Aurora_Res_Results!AD$477/1000 -> 0.03119132175 | N36: =Aurora_Res_Results!AE$477/1000 -> 0.04795851469 | O36: =Aurora_Res_Results!AF$477/1000 -> 0.06185055406 | P36: =Aurora_Res_Results!AG$477/1000 -> 0.06368549705 | Q36: =Aurora_Res_Results!AH$477/1000 -> 0.07120312992 | R36: =Aurora_Res_Results!AI$477/1000 -> 0.08027599059 | S36: =Aurora_Res_Results!AJ$477/1000 -> 0.1064646785 | T36: =Aurora_Res_Results!AK$477/1000 -> 0.09671894864 | U36: =Aurora_Res_Results!AL$477/1000 -> 0.09990355281 | V36: =Aurora_Res_Results!AM$477/1000 -> 0.1058566972 | W36: =Aurora_Res_Results!AN$477/1000 -> 0.1093121876 | X36: =Aurora_Res_Results!AO$477/1000 -> 0.1104167786 | Y36: =Aurora_Res_Results!AP$477/1000 -> 0.1082781972 | Z36: =Aurora_Res_Results!AQ$477/1000 -> 0.1141192156 | AA36: =Aurora_Res_Results!AR$477/1000 -> 0.1064251236 | AB36: =Aurora_Res_Results!AS$477/1000 -> 0.1051260835 | AC36: =Aurora_Res_Results!AT$477/1000 -> 0.1050647591 | AD36: =Aurora_Res_Results!AU$477/1000 -> 0.1049068906 | AE36: =Aurora_Res_Results!AV$477/1000 -> 0.1162211469 | AF36: =Aurora_Res_Results!AW$477/1000 -> 0.122313676 | AG36: =Aurora_Res_Results!AX$477/1000 -> 0.1561392089 | AH36: =Aurora_Res_Results!AY$477/1000 -> 0.1592651565
C37: Capacity Value | D37: Millions $ | L37: =Selection!D$265 -> 0 | M37: =Selection!E$265 -> 0 | N37: =Selection!F$265 -> 0 | O37: =Selection!G$265 -> 0 | P37: =Selection!H$265 -> 0.003280197304 | Q37: =Selection!I$265 -> 0.004176511676 | R37: =Selection!J$265 -> 0.00510175451 | S37: =Selection!K$265 -> 0.006054635067 | T37: =Selection!L$265 -> 0.007043360453 | U37: =Selection!M$265 -> 0.008066600171 | V37: =Selection!N$265 -> 0.009119188026 | W37: =Selection!O$265 -> 0.01288356698 | X37: =Selection!P$265 -> 0.01630378738 | Y37: =Selection!Q$265 -> 0.01940675968 | Z37: =Selection!R$265 -> 0.02221756833 | AA37: =Selection!S$265 -> 0.02475958848 | AB37: =Selection!T$265 -> 0.02705459547 | AC37: =Selection!U$265 -> 0.02912286767 | AD37: =Selection!V$265 -> 0.02858570499 | AE37: =Selection!W$265 -> 0.03037685232 | AF37: =Selection!X$265 -> 0.03007208444 | AG37: =Selection!Y$265 -> 0.03169347045 | AH37: =Selection!Z$265 -> 0.03335433246
C38: NEI | D38: Millions $ | L38: =NEI!F$84 -> 0 | M38: =NEI!G$84 -> 0.003819183843 | N38: =NEI!H$84 -> 0.007775107485 | O38: =NEI!I$84 -> 0.01187903457 | P38: =NEI!J$84 -> 0.01615588818 | Q38: =NEI!K$84 -> 0.02058469572 | R38: =NEI!L$84 -> 0.0251916713 | S38: =NEI!M$84 -> 0.03016778511 | T38: =NEI!N$84 -> 0.03519102763 | U38: =NEI!O$84 -> 0.04040555806 | V38: =NEI!P$84 -> 0.04582905855 | W38: =NEI!Q$84 -> 0.0472676674 | X38: =NEI!R$84 -> 0.0488385416 | Y38: =NEI!S$84 -> 0.05038366022 | Z38: =NEI!T$84 -> 0.05195736002 | AA38: =NEI!U$84 -> 0.05355365813 | AB38: =NEI!V$84 -> 0.05521739592 | AC38: =NEI!W$84 -> 0.05690792081 | AD38: =NEI!X$84 -> 0.05843761756 | AE38: =NEI!Y$84 -> 0.06014651401 | AF38: =NEI!Z$84 -> 0.06190509111 | AG38: =NEI!AA$84 -> 0.0639069163 | AH38: =NEI!AB$84 -> 0.06598395407
C39: Likely Named Community Demand Response
C40: Energy Value ($) | D40: Millions $ | L40: =DR!C$122/1000000 -> 0 | M40: =DR!D$122/1000000 -> 0 | N40: =DR!E$122/1000000 -> 0.01319260642 | O40: =DR!F$122/1000000 -> 0.04289187826 | P40: =DR!G$122/1000000 -> 0.0969778179 | Q40: =DR!H$122/1000000 -> 0.1194742735 | R40: =DR!I$122/1000000 -> 0.1368888209 | S40: =DR!J$122/1000000 -> 0.1629836242 | T40: =DR!K$122/1000000 -> 0.1533232108 | U40: =DR!L$122/1000000 -> 0.1463120357 | V40: =DR!M$122/1000000 -> 0.155453209 | W40: =DR!N$122/1000000 -> 0.1557205986 | X40: =DR!O$122/1000000 -> 0.171135565 | Y40: =DR!P$122/1000000 -> 0.1770074936 | Z40: =DR!Q$122/1000000 -> 0.1806867596 | AA40: =DR!R$122/1000000 -> 0.194464348 | AB40: =DR!S$122/1000000 -> 0.1663851398 | AC40: =DR!T$122/1000000 -> 0.1800481208 | AD40: =DR!U$122/1000000 -> 0.1828647113 | AE40: =DR!V$122/1000000 -> 0.1969055843 | AF40: =DR!W$122/1000000 -> 0.2007705306 | AG40: =DR!X$122/1000000 -> 0.2284249451 | AH40: =DR!Y$122/1000000 -> 0.1823485247
C41: Capacity Value ($) | D41: Millions $ | L41: =DR!C$126/1000000 -> 0 | M41: =DR!D$126/1000000 -> 0 | N41: =DR!E$126/1000000 -> 0 | O41: =DR!F$126/1000000 -> 0 | P41: =DR!G$126/1000000 -> 0.1442003928 | Q41: =DR!H$126/1000000 -> 0.1904126664 | R41: =DR!I$126/1000000 -> 0.2174122428 | S41: =DR!J$126/1000000 -> 0.223581053 | T41: =DR!K$126/1000000 -> 0.2301109918 | U41: =DR!L$126/1000000 -> 0.2374055792 | V41: =DR!M$126/1000000 -> 0.2450398592 | W41: =DR!N$126/1000000 -> 0.2530398726 | X41: =DR!O$126/1000000 -> 0.2614348835 | Y41: =DR!P$126/1000000 -> 0.270257948 | Z41: =DR!Q$126/1000000 -> 0.2795465902 | AA41: =DR!R$126/1000000 -> 0.2893435944 | AB41: =DR!S$126/1000000 -> 0.2996979151 | AC41: =DR!T$126/1000000 -> 0.3106656927 | AD41: =DR!U$126/1000000 -> 0.3223113446 | AE41: =DR!V$126/1000000 -> 0.3347086689 | AF41: =DR!W$126/1000000 -> 0.3479418685 | AG41: =DR!X$126/1000000 -> 0.3621063572 | AH41: =DR!Y$126/1000000 -> 0.3773091806
C42: Investment ($) | D42: Millions $ | L42: =DR!C$127 -> 0 | M42: =DR!D$127 -> 0 | N42: =DR!E$127 -> 2.700979302 | O42: =DR!F$127 -> 0 | P42: =DR!G$127 -> 0 | Q42: =DR!H$127 -> 0 | R42: =DR!I$127 -> 0 | S42: =DR!J$127 -> 0 | T42: =DR!K$127 -> 0 | U42: =DR!L$127 -> 0 | V42: =DR!M$127 -> 0 | W42: =DR!N$127 -> 0 | X42: =DR!O$127 -> 0 | Y42: =DR!P$127 -> 0 | Z42: =DR!Q$127 -> 0 | AA42: =DR!R$127 -> 0 | AB42: =DR!S$127 -> 0 | AC42: =DR!T$127 -> 0 | AD42: =DR!U$127 -> 0 | AE42: =DR!V$127 -> 0 | AF42: =DR!W$127 -> 0 | AG42: =DR!X$127 -> 0 | AH42: =DR!Y$127 -> 0
A44: 6 | B44: NC Investments/Benefits | C44: Annual Investment | D44: Millions $ | L44: =((New_Resource_Annual_Cost!D$9+(L24*1000000)+L42))/1000000 -> 7.977586384 | M44: =((New_Resource_Annual_Cost!E$9+(M24*1000000)+M42))/1000000 -> 10.854123 | N44: =((New_Resource_Annual_Cost!F$9+(N24*1000000)+N42))/1000000 -> 13.20035637 | O44: =((New_Resource_Annual_Cost!G$9+(O24*1000000)+O42))/1000000 -> 17.31082417 | P44: =((New_Resource_Annual_Cost!H$9+(P24*1000000)+P42))/1000000 -> 21.22447193 | Q44: =((New_Resource_Annual_Cost!I$9+(Q24*1000000)+Q42))/1000000 -> 25.59182543 | R44: =((New_Resource_Annual_Cost!J$9+(R24*1000000)+R42))/1000000 -> 28.47139165 | S44: =((New_Resource_Annual_Cost!K$9+(S24*1000000)+S42))/1000000 -> 29.41897893 | T44: =((New_Resource_Annual_Cost!L$9+(T24*1000000)+T42))/1000000 -> 28.57845808 | U44: =((New_Resource_Annual_Cost!M$9+(U24*1000000)+U42))/1000000 -> 26.49874547 | V44: =((New_Resource_Annual_Cost!N$9+(V24*1000000)+V42))/1000000 -> 23.94639681 | W44: =((New_Resource_Annual_Cost!O$9+(W24*1000000)+W42))/1000000 -> 21.56616093 | X44: =((New_Resource_Annual_Cost!P$9+(X24*1000000)+X42))/1000000 -> 19.86157063 | Y44: =((New_Resource_Annual_Cost!Q$9+(Y24*1000000)+Y42))/1000000 -> 18.38242933 | Z44: =((New_Resource_Annual_Cost!R$9+(Z24*1000000)+Z42))/1000000 -> 17.17565775 | AA44: =((New_Resource_Annual_Cost!S$9+(AA24*1000000)+AA42))/1000000 -> 15.52856284 | AB44: =((New_Resource_Annual_Cost!T$9+(AB24*1000000)+AB42))/1000000 -> 14.49762402 | AC44: =((New_Resource_Annual_Cost!U$9+(AC24*1000000)+AC42))/1000000 -> 13.8263554 | AD44: =((New_Resource_Annual_Cost!V$9+(AD24*1000000)+AD42))/1000000 -> 14.45410111 | AE44: =((New_Resource_Annual_Cost!W$9+(AE24*1000000)+AE42))/1000000 -> 15.17807709 | AF44: =((New_Resource_Annual_Cost!X$9+(AF24*1000000)+AF42))/1000000 -> 15.78310312 | AG44: =((New_Resource_Annual_Cost!Y$9+(AG24*1000000)+AG42))/1000000 -> 16.43304798 | AH44: =((New_Resource_Annual_Cost!Z$9+(AH24*1000000)+AH42))/1000000 -> 17.10075291
A45: 6 | B45: NC Investments/Benefits | C45: Annual Utility Benefits | D45: Millions $ | L45: =SUM(L32:L34,L40:L41,L36:L37) -> 11.13159527 | M45: =SUM(M32:M34,M40:M41,M36:M37) -> 10.94240095 | N45: 9.633931206 | O45: 9.348712747 | P45: 8.919448527 | Q45: 9.289123781 | R45: 9.644792242 | S45: 11.2388069 | T45: 11.09956731 | U45: 11.34615688 | V45: 12.05617596 | W45: 12.59966863 | X45: 13.64598604 | Y45: 14.32046328 | Z45: 15.57305395 | AA45: 16.06444492 | AB45: 16.91722171 | AC45: 18.66046524 | AD45: 19.31860205 | AE45: 20.98762497 | AF45: 22.16520675 | AG45: 25.61531298 | AH45: 26.17000453
A46: 6 | B46: NC Investments/Benefits | C46: Annual NEI Benefits | D46: Millions $ | L46: =L38+L31 -> 0.6681521124 | M46: =M38+M31 -> 1.505452199 | N46: 2.517191442 | O46: 3.667565024 | P46: 4.95203984 | Q46: 6.416399546 | R46: 7.972304986 | S46: 9.520649228 | T46: 10.95414268 | U46: 12.20747501 | V46: 13.24643178 | W46: 14.05891805 | X46: 14.70296553 | Y46: 15.22634009 | Z46: 15.68356292 | AA46: 16.10503867 | AB46: 16.5155879 | AC46: 16.93051186 | AD46: 17.35796386 | AE46: 17.79882804 | AF46: 18.24641338 | AG46: 18.7053261 | AH46: 19.17248553
A48: 7 | B48: Implied PRM | C48: Winter | D48: Percent | E48: 0.2835649547 | F48: 0.3277810827 | G48: 0.4495176849 | H48: 0.4163545568 | I48: 0.4618722877 | J48: 0.31 | L48: =(SUM(System_LR!$C$19:$C$40,System_LR!$C$50:$C$99)-(System_LR!$C$13-SUM(System_LR!$C$100:$C$115)))/(System_LR!$C$13-SUM(System_LR!$C$100:$C$115)) -> 0.3358356671 | M48: =(SUM(System_LR!$O$19:$O$40,System_LR!$O$50:$O$99)-(System_LR!$O$13-SUM(System_LR!$O$100:$O$115)))/(System_LR!$O$13-SUM(System_LR!$O$100:$O$115)) -> 0.3879115358 | N48: =(SUM(System_LR!$AA$19:$AA$40,System_LR!$AA$50:$AA$99)-(System_LR!$AA$13-SUM(System_LR!$AA$100:$AA$115)))/(System_LR!$AA$13-SUM(System_LR!$AA$100:$AA$115)) -> 0.3837227528 | O48: =(SUM(System_LR!$AM$19:$AM$40,System_LR!$AM$50:$AM$99)-(System_LR!$AM$13-SUM(System_LR!$AM$100:$AM$115)))/(System_LR!$AM$13-SUM(System_LR!$AM$100:$AM$115)) -> 0.3281631608 | P48: =(SUM(System_LR!$AY$19:$AY$40,System_LR!$AY$50:$AY$99)-(System_LR!$AY$13-SUM(System_LR!$AY$100:$AY$115)))/(System_LR!$AY$13-SUM(System_LR!$AY$100:$AY$115)) -> 0.293951731 | Q48: =(SUM(System_LR!$BK$19:$BK$40,System_LR!$BK$50:$BK$99)-(System_LR!$BK$13-SUM(System_LR!$BK$100:$BK$115)))/(System_LR!$BK$13-SUM(System_LR!$BK$100:$BK$115)) -> 0.2891974296 | R48: =(SUM(System_LR!$BW$19:$BW$40,System_LR!$BW$50:$BW$99)-(System_LR!$BW$13-SUM(System_LR!$BW$100:$BW$115)))/(System_LR!$BW$13-SUM(System_LR!$BW$100:$BW$115)) -> 0.2806797184 | S48: =(SUM(System_LR!$CI$19:$CI$40,System_LR!$CI$50:$CI$99)-(System_LR!$CI$13-SUM(System_LR!$CI$100:$CI$115)))/(System_LR!$CI$13-SUM(System_LR!$CI$100:$CI$115)) -> 0.2777274293 | T48: =(SUM(System_LR!$CU$19:$CU$40,System_LR!$CU$50:$CU$99)-(System_LR!$CU$13-SUM(System_LR!$CU$100:$CU$115)))/(System_LR!$CU$13-SUM(System_LR!$CU$100:$CU$115)) -> 0.2741609937 | U48: =(SUM(System_LR!$DG$19:$DG$40,System_LR!$DG$50:$DG$99)-(System_LR!$DG$13-SUM(System_LR!$DG$100:$DG$115)))/(System_LR!$DG$13-SUM(System_LR!$DG$100:$DG$115)) -> 0.3660239836 | V48: =(SUM(System_LR!$DS$19:$DS$40,System_LR!$DS$50:$DS$99)-(System_LR!$DS$13-SUM(System_LR!$DS$100:$DS$115)))/(System_LR!$DS$13-SUM(System_LR!$DS$100:$DS$115)) -> 0.3543932398 | W48: =(SUM(System_LR!$EE$19:$EE$40,System_LR!$EE$50:$EE$99)-(System_LR!$EE$13-SUM(System_LR!$EE$100:$EE$115)))/(System_LR!$EE$13-SUM(System_LR!$EE$100:$EE$115)) -> 0.301699123 | X48: =(SUM(System_LR!$EQ$19:$EQ$40,System_LR!$EQ$50:$EQ$99)-(System_LR!$EQ$13-SUM(System_LR!$EQ$100:$EQ$115)))/(System_LR!$EQ$13-SUM(System_LR!$EQ$100:$EQ$115)) -> 0.2879603159 | Y48: =(SUM(System_LR!$FC$19:$FC$40,System_LR!$FC$50:$FC$99)-(System_LR!$FC$13-SUM(System_LR!$FC$100:$FC$115)))/(System_LR!$FC$13-SUM(System_LR!$FC$100:$FC$115)) -> 0.2410826605 | Z48: =(SUM(System_LR!$FO$19:$FO$40,System_LR!$FO$50:$FO$99)-(System_LR!$FO$13-SUM(System_LR!$FO$100:$FO$115)))/(System_LR!$FO$13-SUM(System_LR!$FO$100:$FO$115)) -> 0.2248679127 | AA48: =(SUM(System_LR!$GA$19:$GA$40,System_LR!$GA$50:$GA$99)-(System_LR!$GA$13-SUM(System_LR!$GA$100:$GA$115)))/(System_LR!$GA$13-SUM(System_LR!$GA$100:$GA$115)) -> 0.2552542526 | AB48: =(SUM(System_LR!$GM$19:$GM$40,System_LR!$GM$50:$GM$99)-(System_LR!$GM$13-SUM(System_LR!$GM$100:$GM$115)))/(System_LR!$GM$13-SUM(System_LR!$GM$100:$GM$115)) -> 0.2377401005 | AC48: =(SUM(System_LR!$GY$19:$GY$40,System_LR!$GY$50:$GY$99)-(System_LR!$GY$13-SUM(System_LR!$GY$100:$GY$115)))/(System_LR!$GY$13-SUM(System_LR!$GY$100:$GY$115)) -> 0.2252595222 | AD48: =(SUM(System_LR!$HK$19:$HK$40,System_LR!$HK$50:$HK$99)-(System_LR!$HK$13-SUM(System_LR!$HK$100:$HK$115)))/(System_LR!$HK$13-SUM(System_LR!$HK$100:$HK$115)) -> 0.2385304535 | AE48: =(SUM(System_LR!$HW$19:$HW$40,System_LR!$HW$50:$HW$99)-(System_LR!$HW$13-SUM(System_LR!$HW$100:$HW$115)))/(System_LR!$HW$13-SUM(System_LR!$HW$100:$HW$115)) -> 0.2244739566 | AF48: =(SUM(System_LR!$II$19:$II$40,System_LR!$II$50:$II$99)-(System_LR!$II$13-SUM(System_LR!$II$100:$II$115)))/(System_LR!$II$13-SUM(System_LR!$II$100:$II$115)) -> 0.2437284299 | AG48: =(SUM(System_LR!$IU$19:$IU$40,System_LR!$IU$50:$IU$99)-(System_LR!$IU$13-SUM(System_LR!$IU$100:$IU$115)))/(System_LR!$IU$13-SUM(System_LR!$IU$100:$IU$115)) -> 0.2243198395 | AH48: =(SUM(System_LR!$JG$19:$JG$40,System_LR!$JG$50:$JG$99)-(System_LR!$JG$13-SUM(System_LR!$JG$100:$JG$115)))/(System_LR!$JG$13-SUM(System_LR!$JG$100:$JG$115)) -> 0.2242018192
A49: 7 | B49: Implied PRM | C49: Summer | D49: Percent | E49: 0.1751732829 | F49: 0.2337092732 | G49: 0.1730769231 | H49: 0.2699275362 | I49: 0.2504357931 | J49: 0.1 | L49: =(SUM(System_LR!$J$19:$J$40,System_LR!$J$50:$J$99)-(System_LR!$J$13-SUM(System_LR!$J$100:$J$115)))/(System_LR!$J$13-SUM(System_LR!$J$100:$J$115)) -> 0.2621093385 | M49: =(SUM(System_LR!$V$19:$V$40,System_LR!$V$50:$V$99)-(System_LR!$V$13-SUM(System_LR!$V$100:$V$115)))/(System_LR!$V$13-SUM(System_LR!$V$100:$V$115)) -> 0.3052970113 | N49: =(SUM(System_LR!$AH$19:$AH$40,System_LR!$AH$50:$AH$99)-(System_LR!$AH$13-SUM(System_LR!$AH$100:$AH$115)))/(System_LR!$AH$13-SUM(System_LR!$AH$100:$AH$115)) -> 0.3511034374 | O49: =(SUM(System_LR!$AT$19:$AT$40,System_LR!$AT$50:$AT$99)-(System_LR!$AT$13-SUM(System_LR!$AT$100:$AT$115)))/(System_LR!$AT$13-SUM(System_LR!$AT$100:$AT$115)) -> 0.2910262531 | P49: =(SUM(System_LR!$BF$19:$BF$40,System_LR!$BF$50:$BF$99)-(System_LR!$BF$13-SUM(System_LR!$BF$100:$BF$115)))/(System_LR!$BF$13-SUM(System_LR!$BF$100:$BF$115)) -> 0.2646564717 | Q49: =(SUM(System_LR!$BR$19:$BR$40,System_LR!$BR$50:$BR$99)-(System_LR!$BR$13-SUM(System_LR!$BR$100:$BR$115)))/(System_LR!$BR$13-SUM(System_LR!$BR$100:$BR$115)) -> 0.2589187036 | R49: =(SUM(System_LR!$CD$19:$CD$40,System_LR!$CD$50:$CD$99)-(System_LR!$CD$13-SUM(System_LR!$CD$100:$CD$115)))/(System_LR!$CD$13-SUM(System_LR!$CD$100:$CD$115)) -> 0.2487054078 | S49: =(SUM(System_LR!$CP$19:$CP$40,System_LR!$CP$50:$CP$99)-(System_LR!$CP$13-SUM(System_LR!$CP$100:$CP$115)))/(System_LR!$CP$13-SUM(System_LR!$CP$100:$CP$115)) -> 0.2519947609 | T49: =(SUM(System_LR!$DB$19:$DB$40,System_LR!$DB$50:$DB$99)-(System_LR!$DB$13-SUM(System_LR!$DB$100:$DB$115)))/(System_LR!$DB$13-SUM(System_LR!$DB$100:$DB$115)) -> 0.2442214585 | U49: =(SUM(System_LR!$DN$19:$DN$40,System_LR!$DN$50:$DN$99)-(System_LR!$DN$13-SUM(System_LR!$DN$100:$DN$115)))/(System_LR!$DN$13-SUM(System_LR!$DN$100:$DN$115)) -> 0.3196787263 | V49: =(SUM(System_LR!$DZ$19:$DZ$40,System_LR!$DZ$50:$DZ$99)-(System_LR!$DZ$13-SUM(System_LR!$DZ$100:$DZ$115)))/(System_LR!$DZ$13-SUM(System_LR!$DZ$100:$DZ$115)) -> 0.2990584067 | W49: =(SUM(System_LR!$EL$19:$EL$40,System_LR!$EL$50:$EL$99)-(System_LR!$EL$13-SUM(System_LR!$EL$100:$EL$115)))/(System_LR!$EL$13-SUM(System_LR!$EL$100:$EL$115)) -> 0.2486134977 | X49: =(SUM(System_LR!$EX$19:$EX$40,System_LR!$EX$50:$EX$99)-(System_LR!$EX$13-SUM(System_LR!$EX$100:$EX$115)))/(System_LR!$EX$13-SUM(System_LR!$EX$100:$EX$115)) -> 0.2334558871 | Y49: =(SUM(System_LR!$FJ$19:$FJ$40,System_LR!$FJ$50:$FJ$99)-(System_LR!$FJ$13-SUM(System_LR!$FJ$100:$FJ$115)))/(System_LR!$FJ$13-SUM(System_LR!$FJ$100:$FJ$115)) -> 0.1985222326 | Z49: =(SUM(System_LR!$FW$19:$FW$40,System_LR!$FW$50:$FW$99)-(System_LR!$FW$13-SUM(System_LR!$FW$100:$FW$115)))/(System_LR!$FW$13-SUM(System_LR!$FW$100:$FW$115)) -> 0.2107870729 | AA49: =(SUM(System_LR!$GH$19:$GH$40,System_LR!$GH$50:$GH$99)-(System_LR!$GH$13-SUM(System_LR!$GH$100:$GH$115)))/(System_LR!$GH$13-SUM(System_LR!$GH$100:$GH$115)) -> 0.2007565592 | AB49: =(SUM(System_LR!$GT$19:$GT$40,System_LR!$GT$50:$GT$99)-(System_LR!$GT$13-SUM(System_LR!$GT$100:$GT$115)))/(System_LR!$GT$13-SUM(System_LR!$GT$100:$GT$115)) -> 0.1804083984 | AC49: =(SUM(System_LR!HF$19:$HF$40,System_LR!$HF$50:$HF$99)-(System_LR!$HF$13-SUM(System_LR!$HF$100:$HF$115)))/(System_LR!$HF$13-SUM(System_LR!$HF$100:$HF$115)) -> 0.1690861263 | AD49: =(SUM(System_LR!$HR$19:$HR$40,System_LR!$HR$50:$HR$99)-(System_LR!$HR$13-SUM(System_LR!$HR$100:$HR$115)))/(System_LR!$HR$13-SUM(System_LR!$HR$100:$HR$115)) -> 0.1852636736 | AE49: =(SUM(System_LR!$ID$19:$ID$40,System_LR!$ID$50:$ID$99)-(System_LR!$ID$13-SUM(System_LR!$ID$100:$ID$115)))/(System_LR!$ID$13-SUM(System_LR!$ID$100:$ID$115)) -> 0.1704872487 | AF49: =(SUM(System_LR!$IP$19:$IP$40,System_LR!$IP$50:$IP$99)-(System_LR!$IP$13-SUM(System_LR!$IP$100:$IP$115)))/(System_LR!$IP$13-SUM(System_LR!$IP$100:$IP$115)) -> 0.1860376995 | AG49: =(SUM(System_LR!$JB$19:$JB$40,System_LR!$JB$50:$JB$99)-(System_LR!$JB$13-SUM(System_LR!$JB$100:$JB$115)))/(System_LR!$JB$13-SUM(System_LR!$JB$100:$JB$115)) -> 0.171648209 | AH49: =(SUM(System_LR!$JN$19:$JN$40,System_LR!$JN$50:$JN$99)-(System_LR!$JN$13-SUM(System_LR!$JN$100:$JN$115)))/(System_LR!$JN$13-SUM(System_LR!$JN$100:$JN$115)) -> 0.199809458
A51: 8 | B51: Gen vs Load | C51: Washington & Connected Generation | D51: Percent | E51: 0.7779313029 | F51: 0.7884532261 | G51: 0.8368033031 | H51: 0.8012220055 | I51: 0.7822590958 | J51: 0.826 | L51: =Res_MWh!JU$75 -> 0.8847956287 | M51: =Res_MWh!JV$75 -> 0.9163125333 | N51: =Res_MWh!JW$75 -> 0.9456222156 | O51: =Res_MWh!JX$75 -> 1.01133269 | P51: =Res_MWh!JY$75 -> 0.9046319137 | Q51: =Res_MWh!JZ$75 -> 0.8980672535 | R51: =Res_MWh!KA$75 -> 0.8846349106 | S51: =Res_MWh!KB$75 -> 0.9435365582 | T51: =Res_MWh!KC$75 -> 0.9255572995 | U51: =Res_MWh!KD$75 -> 0.8543385596 | V51: =Res_MWh!KE$75 -> 0.8522743946 | W51: =Res_MWh!KF$75 -> 0.802501193 | X51: =Res_MWh!KG$75 -> 0.8019876098 | Y51: =Res_MWh!KH$75 -> 0.7949544595 | Z51: =Res_MWh!KI$75 -> 0.7886648511 | AA51: =Res_MWh!KJ$75 -> 0.7734934214 | AB51: =Res_MWh!KK$75 -> 0.7638488105 | AC51: =Res_MWh!KL$75 -> 0.7546985596 | AD51: =Res_MWh!KM$75 -> 0.6822190465 | AE51: =Res_MWh!KN$75 -> 0.7025987114 | AF51: =Res_MWh!KO$75 -> 0.6184904953 | AG51: =Res_MWh!KP$75 -> 0.6310147038 | AH51: =Res_MWh!KQ$75 -> 0.6031216681
A53: 9a | B53: WA In-State Emissions | C53: SO2 | D53: Metric Tonnes | E53: 4.071924087 | F53: 1.459642251 | G53: 1.661862259 | H53: 1.600498807 | I53: 1.4 | J53: 0.1937321 | L53: =SUM(Air_Emissions!AY$72:AY$74,Air_Emissions!AY$77)+(Air_Emissions!AY$119) -> 0.1138363192 | M53: =SUM(Air_Emissions!AZ$72:AZ$74,Air_Emissions!AZ$77)+(Air_Emissions!AZ$119) -> 0.1318722726 | N53: =SUM(Air_Emissions!BA$72:BA$74,Air_Emissions!BA$77)+(Air_Emissions!BA$119) -> 0.1367271449 | O53: =SUM(Air_Emissions!BB$72:BB$74,Air_Emissions!BB$77)+(Air_Emissions!BB$119) -> 0.1423748069 | P53: =SUM(Air_Emissions!BC$72:BC$74,Air_Emissions!BC$77)+(Air_Emissions!BC$119) -> 0.1344097671 | Q53: =SUM(Air_Emissions!BD$72:BD$74,Air_Emissions!BD$77)+(Air_Emissions!BD$119) -> 0.1407179827 | R53: =SUM(Air_Emissions!BE$72:BE$74,Air_Emissions!BE$77)+(Air_Emissions!BE$119) -> 0.131344347 | S53: =SUM(Air_Emissions!BF$72:BF$74,Air_Emissions!BF$77)+(Air_Emissions!BF$119) -> 0.1674715658 | T53: =SUM(Air_Emissions!BG$72:BG$74,Air_Emissions!BG$77)+(Air_Emissions!BG$119) -> 0.1525946322 | U53: =SUM(Air_Emissions!BH$72:BH$74,Air_Emissions!BH$77)+(Air_Emissions!BH$119) -> 0.1398900061 | V53: =SUM(Air_Emissions!BI$72:BI$74,Air_Emissions!BI$77)+(Air_Emissions!BI$119) -> 0.1408306217 | W53: =SUM(Air_Emissions!BJ$72:BJ$74,Air_Emissions!BJ$77)+(Air_Emissions!BJ$119) -> 0.1398885007 | X53: =SUM(Air_Emissions!BK$72:BK$74,Air_Emissions!BK$77)+(Air_Emissions!BK$119) -> 0.1451423406 | Y53: =SUM(Air_Emissions!BL$72:BL$74,Air_Emissions!BL$77)+(Air_Emissions!BL$119) -> 0.1260666786 | Z53: =SUM(Air_Emissions!BM$72:BM$74,Air_Emissions!BM$77)+(Air_Emissions!BM$119) -> 0.1270722586 | AA53: =SUM(Air_Emissions!BN$72:BN$74,Air_Emissions!BN$77)+(Air_Emissions!BN$119) -> 0.1251684196 | AB53: =SUM(Air_Emissions!BO$72:BO$74,Air_Emissions!BO$77)+(Air_Emissions!BO$119) -> 0.125703097 | AC53: =SUM(Air_Emissions!BP$72:BP$74,Air_Emissions!BP$77)+(Air_Emissions!BP$119) -> 0.13214054 | AD53: =SUM(Air_Emissions!BQ$72:BQ$74,Air_Emissions!BQ$77)+(Air_Emissions!BQ$119) -> 0 | AE53: =SUM(Air_Emissions!BR$72:BR$74,Air_Emissions!BR$77)+(Air_Emissions!BR$119) -> 0 | AF53: =SUM(Air_Emissions!BS$72:BS$74,Air_Emissions!BS$77)+(Air_Emissions!BS$119) -> 0 | AG53: =SUM(Air_Emissions!BT$72:BT$74,Air_Emissions!BT$77)+(Air_Emissions!BT$119) -> 0 | AH53: =SUM(Air_Emissions!BU$72:BU$74,Air_Emissions!BU$77)+(Air_Emissions!BU$119) -> 0
A54: 9b | B54: WA In-State Emissions | C54: HG | D54: Metric Tonnes | E54: 0.007386968711 | F54: 0.006860890544 | G54: 0.007549319523 | H54: 0.006822701466 | I54: 0.0066 | J54: 0.007192 | L54: =SUM(Air_Emissions!AY$136:AY$138,Air_Emissions!AY$141,Air_Emissions!AY$183) -> 0.007297383878 | M54: =SUM(Air_Emissions!AZ$136:AZ$138,Air_Emissions!AZ$141,Air_Emissions!AZ$183) -> 0.007321635813 | N54: =SUM(Air_Emissions!BA$136:BA$138,Air_Emissions!BA$141,Air_Emissions!BA$183) -> 0.006773747395 | O54: =SUM(Air_Emissions!BB$136:BB$138,Air_Emissions!BB$141,Air_Emissions!BB$183) -> 0.008473540348 | P54: =SUM(Air_Emissions!BC$136:BC$138,Air_Emissions!BC$141,Air_Emissions!BC$183) -> 0.007590098718 | Q54: =SUM(Air_Emissions!BD$136:BD$138,Air_Emissions!BD$141,Air_Emissions!BD$183) -> 0.007086531145 | R54: =SUM(Air_Emissions!BE$136:BE$138,Air_Emissions!BE$141,Air_Emissions!BE$183) -> 0.006812273955 | S54: =SUM(Air_Emissions!BF$136:BF$138,Air_Emissions!BF$141,Air_Emissions!BF$183) -> 0.007576197094 | T54: =SUM(Air_Emissions!BG$136:BG$138,Air_Emissions!BG$141,Air_Emissions!BG$183) -> 0.007048011933 | U54: =SUM(Air_Emissions!BH$136:BH$138,Air_Emissions!BH$141,Air_Emissions!BH$183) -> 0.006697111398 | V54: =SUM(Air_Emissions!BI$136:BI$138,Air_Emissions!BI$141,Air_Emissions!BI$183) -> 0.006662534749 | W54: =SUM(Air_Emissions!BJ$136:BJ$138,Air_Emissions!BJ$141,Air_Emissions!BJ$183) -> 0.006466361978 | X54: =SUM(Air_Emissions!BK$136:BK$138,Air_Emissions!BK$141,Air_Emissions!BK$183) -> 0.006477093333 | Y54: =SUM(Air_Emissions!BL$136:BL$138,Air_Emissions!BL$141,Air_Emissions!BL$183) -> 0.006374863926 | Z54: =SUM(Air_Emissions!BM$136:BM$138,Air_Emissions!BM$141,Air_Emissions!BM$183) -> 0.006398423026 | AA54: =SUM(Air_Emissions!BN$136:BN$138,Air_Emissions!BN$141,Air_Emissions!BN$183) -> 0.006026839566 | AB54: =SUM(Air_Emissions!BO$136:BO$138,Air_Emissions!BO$141,Air_Emissions!BO$183) -> 0.005997707365 | AC54: =SUM(Air_Emissions!BP$136:BP$138,Air_Emissions!BP$141,Air_Emissions!BP$183) -> 0.00593511596 | AD54: =SUM(Air_Emissions!BQ$136:BQ$138,Air_Emissions!BQ$141,Air_Emissions!BQ$183) -> 0.005828940354 | AE54: =SUM(Air_Emissions!BR$136:BR$138,Air_Emissions!BR$141,Air_Emissions!BR$183) -> 0.005873656473 | AF54: =SUM(Air_Emissions!BS$136:BS$138,Air_Emissions!BS$141,Air_Emissions!BS$183) -> 0.005804715645 | AG54: =SUM(Air_Emissions!BT$136:BT$138,Air_Emissions!BT$141,Air_Emissions!BT$183) -> 0.006166425951 | AH54: =SUM(Air_Emissions!BU$136:BU$138,Air_Emissions!BU$141,Air_Emissions!BU$183) -> 0.005973439512
A55: 9c | B55: WA In-State Emissions | C55: NOX | D55: Metric Tonnes | E55: 425.5538832 | F55: 379.2364612 | G55: 423.252971 | H55: 396.2186406 | I55: 365.1 | J55: 417.910368 | L55: =SUM(Air_Emissions!AY$8:AY$10,Air_Emissions!AY$10)+Air_Emissions!AY$50*0.5+Air_Emissions!AY$55 -> 419.2896399 | M55: =SUM(Air_Emissions!AZ$8:AZ$10,Air_Emissions!AZ$10)+Air_Emissions!AZ$50*0.5+Air_Emissions!AZ$55 -> 422.385062 | N55: =SUM(Air_Emissions!BA$8:BA$10,Air_Emissions!BA$10)+Air_Emissions!BA$50*0.5+Air_Emissions!BA$55 -> 392.1215057 | O55: =SUM(Air_Emissions!BB$8:BB$10,Air_Emissions!BB$10)+Air_Emissions!BB$50*0.5+Air_Emissions!BB$55 -> 345.4928415 | P55: =SUM(Air_Emissions!BC$8:BC$10,Air_Emissions!BC$10)+Air_Emissions!BC$50*0.5+Air_Emissions!BC$55 -> 310.0478997 | Q55: =SUM(Air_Emissions!BD$8:BD$10,Air_Emissions!BD$10)+Air_Emissions!BD$50*0.5+Air_Emissions!BD$55 -> 290.9348569 | R55: =SUM(Air_Emissions!BE$8:BE$10,Air_Emissions!BE$10)+Air_Emissions!BE$50*0.5+Air_Emissions!BE$55 -> 279.2447504 | S55: =SUM(Air_Emissions!BF$8:BF$10,Air_Emissions!BF$10)+Air_Emissions!BF$50*0.5+Air_Emissions!BF$55 -> 312.9986805 | T55: =SUM(Air_Emissions!BG$8:BG$10,Air_Emissions!BG$10)+Air_Emissions!BG$50*0.5+Air_Emissions!BG$55 -> 290.7016738 | U55: =SUM(Air_Emissions!BH$8:BH$10,Air_Emissions!BH$10)+Air_Emissions!BH$50*0.5+Air_Emissions!BH$55 -> 275.7187718 | V55: =SUM(Air_Emissions!BI$8:BI$10,Air_Emissions!BI$10)+Air_Emissions!BI$50*0.5+Air_Emissions!BI$55 -> 274.4288243 | W55: =SUM(Air_Emissions!BJ$8:BJ$10,Air_Emissions!BJ$10)+Air_Emissions!BJ$50*0.5+Air_Emissions!BJ$55 -> 266.6627802 | X55: =SUM(Air_Emissions!BK$8:BK$10,Air_Emissions!BK$10)+Air_Emissions!BK$50*0.5+Air_Emissions!BK$55 -> 267.6577763 | Y55: =SUM(Air_Emissions!BL$8:BL$10,Air_Emissions!BL$10)+Air_Emissions!BL$50*0.5+Air_Emissions!BL$55 -> 263.4781558 | Z55: =SUM(Air_Emissions!BM$8:BM$10,Air_Emissions!BM$10)+Air_Emissions!BM$50*0.5+Air_Emissions!BM$55 -> 264.5162815 | AA55: =SUM(Air_Emissions!BN$8:BN$10,Air_Emissions!BN$10)+Air_Emissions!BN$50*0.5+Air_Emissions!BN$55 -> 249.7466069 | AB55: =SUM(Air_Emissions!BO$8:BO$10,Air_Emissions!BO$10)+Air_Emissions!BO$50*0.5+Air_Emissions!BO$55 -> 248.6626883 | AC55: =SUM(Air_Emissions!BP$8:BP$10,Air_Emissions!BP$10)+Air_Emissions!BP$50*0.5+Air_Emissions!BP$55 -> 246.9145629 | AD55: =SUM(Air_Emissions!BQ$8:BQ$10,Air_Emissions!BQ$10)+Air_Emissions!BQ$50*0.5+Air_Emissions!BQ$55 -> 228.4944619 | AE55: =SUM(Air_Emissions!BR$8:BR$10,Air_Emissions!BR$10)+Air_Emissions!BR$50*0.5+Air_Emissions!BR$55 -> 230.2473337 | AF55: =SUM(Air_Emissions!BS$8:BS$10,Air_Emissions!BS$10)+Air_Emissions!BS$50*0.5+Air_Emissions!BS$55 -> 227.5448533 | AG55: =SUM(Air_Emissions!BT$8:BT$10,Air_Emissions!BT$10)+Air_Emissions!BT$50*0.5+Air_Emissions!BT$55 -> 241.7238973 | AH55: =SUM(Air_Emissions!BU$8:BU$10,Air_Emissions!BU$10)+Air_Emissions!BU$50*0.5+Air_Emissions!BU$55 -> 234.1588289
A56: 9d | B56: WA In-State Emissions | C56: VOC | D56: Metric Tonnes | E56: 20.74909436 | F56: 33.14384554 | G56: 43.131884 | H56: 47.72872756 | I56: 39.54 | J56: 25.71929 | L56: =SUM(Air_Emissions!AY$200:AY$202,Air_Emissions!AY$205,Air_Emissions!AY$247) -> 25.83502235 | M56: =SUM(Air_Emissions!AZ$200:AZ$202,Air_Emissions!AZ$205,Air_Emissions!AZ$247) -> 25.9826835 | N56: =SUM(Air_Emissions!BA$200:BA$202,Air_Emissions!BA$205,Air_Emissions!BA$247) -> 24.08989307 | O56: =SUM(Air_Emissions!BB$200:BB$202,Air_Emissions!BB$205,Air_Emissions!BB$247) -> 21.17375027 | P56: =SUM(Air_Emissions!BC$200:BC$202,Air_Emissions!BC$205,Air_Emissions!BC$247) -> 18.99027506 | Q56: =SUM(Air_Emissions!BD$200:BD$202,Air_Emissions!BD$205,Air_Emissions!BD$247) -> 17.78364893 | R56: =SUM(Air_Emissions!BE$200:BE$202,Air_Emissions!BE$205,Air_Emissions!BE$247) -> 17.08165366 | S56: =SUM(Air_Emissions!BF$200:BF$202,Air_Emissions!BF$205,Air_Emissions!BF$247) -> 19.07207139 | T56: =SUM(Air_Emissions!BG$200:BG$202,Air_Emissions!BG$205,Air_Emissions!BG$247) -> 17.73123033 | U56: =SUM(Air_Emissions!BH$200:BH$202,Air_Emissions!BH$205,Air_Emissions!BH$247) -> 16.83056683 | V56: =SUM(Air_Emissions!BI$200:BI$202,Air_Emissions!BI$205,Air_Emissions!BI$247) -> 16.74949196 | W56: =SUM(Air_Emissions!BJ$200:BJ$202,Air_Emissions!BJ$205,Air_Emissions!BJ$247) -> 16.26753298 | X56: =SUM(Air_Emissions!BK$200:BK$202,Air_Emissions!BK$205,Air_Emissions!BK$247) -> 16.31210592 | Y56: =SUM(Air_Emissions!BL$200:BL$202,Air_Emissions!BL$205,Air_Emissions!BL$247) -> 15.99590135 | Z56: =SUM(Air_Emissions!BM$200:BM$202,Air_Emissions!BM$205,Air_Emissions!BM$247) -> 16.05690509 | AA56: =SUM(Air_Emissions!BN$200:BN$202,Air_Emissions!BN$205,Air_Emissions!BN$247) -> 15.14357801 | AB56: =SUM(Air_Emissions!BO$200:BO$202,Air_Emissions!BO$205,Air_Emissions!BO$247) -> 15.07436681 | AC56: =SUM(Air_Emissions!BP$200:BP$202,Air_Emissions!BP$205,Air_Emissions!BP$247) -> 14.94417483 | AD56: =SUM(Air_Emissions!BQ$200:BQ$202,Air_Emissions!BQ$205,Air_Emissions!BQ$247) -> 14.22261446 | AE56: =SUM(Air_Emissions!BR$200:BR$202,Air_Emissions!BR$205,Air_Emissions!BR$247) -> 14.33172179 | AF56: =SUM(Air_Emissions!BS$200:BS$202,Air_Emissions!BS$205,Air_Emissions!BS$247) -> 14.16350617 | AG56: =SUM(Air_Emissions!BT$200:BT$202,Air_Emissions!BT$205,Air_Emissions!BT$247) -> 15.04607932 | AH56: =SUM(Air_Emissions!BU$200:BU$202,Air_Emissions!BU$205,Air_Emissions!BU$247) -> 14.57519241
A58: 10a | B58: Avista GHG Emissions | C58: Direct Emissions | D58: Metric Tonnes | E58: 1.743807066 | F58: 1.711898434 | G58: 1.750764854 | H58: 1.99711764 | I58: 1.718986562 | J58: 1.902659934 | L58: ='Financial Summary'!E$106+'Financial Summary'!E$107+'Financial Summary'!E$108 -> 1.89035713 | M58: ='Financial Summary'!F$106+'Financial Summary'!F$107+'Financial Summary'!F$108 -> 1.945400492 | N58: ='Financial Summary'!G$106+'Financial Summary'!G$107+'Financial Summary'!G$108 -> 1.773937394 | O58: ='Financial Summary'!H$106+'Financial Summary'!H$107+'Financial Summary'!H$108 -> 0.9729646727 | P58: ='Financial Summary'!I$106+'Financial Summary'!I$107+'Financial Summary'!I$108 -> 0.5752573206 | Q58: ='Financial Summary'!J$106+'Financial Summary'!J$107+'Financial Summary'!J$108 -> 0.579801525 | R58: ='Financial Summary'!K$106+'Financial Summary'!K$107+'Financial Summary'!K$108 -> 0.5658166194 | S58: ='Financial Summary'!L$106+'Financial Summary'!L$107+'Financial Summary'!L$108 -> 0.5904602765 | T58: ='Financial Summary'!M$106+'Financial Summary'!M$107+'Financial Summary'!M$108 -> 0.5338280648 | U58: ='Financial Summary'!N$106+'Financial Summary'!N$107+'Financial Summary'!N$108 -> 0.5011004215 | V58: ='Financial Summary'!O$106+'Financial Summary'!O$107+'Financial Summary'!O$108 -> 0.4918469199 | W58: ='Financial Summary'!P$106+'Financial Summary'!P$107+'Financial Summary'!P$108 -> 0.4808392064 | X58: ='Financial Summary'!Q$106+'Financial Summary'!Q$107+'Financial Summary'!Q$108 -> 0.481486596 | Y58: ='Financial Summary'!R$106+'Financial Summary'!R$107+'Financial Summary'!R$108 -> 0.4758710868 | Z58: ='Financial Summary'!S$106+'Financial Summary'!S$107+'Financial Summary'!S$108 -> 0.464488428 | AA58: ='Financial Summary'!T$106+'Financial Summary'!T$107+'Financial Summary'!T$108 -> 0.4478942868 | AB58: ='Financial Summary'!U$106+'Financial Summary'!U$107+'Financial Summary'!U$108 -> 0.4421717842 | AC58: ='Financial Summary'!V$106+'Financial Summary'!V$107+'Financial Summary'!V$108 -> 0.4391243666 | AD58: ='Financial Summary'!W$106+'Financial Summary'!W$107+'Financial Summary'!W$108 -> 0.4148067849 | AE58: ='Financial Summary'!X$106+'Financial Summary'!X$107+'Financial Summary'!X$108 -> 0.4127469799 | AF58: ='Financial Summary'!Y$106+'Financial Summary'!Y$107+'Financial Summary'!Y$108 -> 0.413841578 | AG58: ='Financial Summary'!Z$106+'Financial Summary'!Z$107+'Financial Summary'!Z$108 -> 0.4561868593 | AH58: ='Financial Summary'!AA$106+'Financial Summary'!AA$107+'Financial Summary'!AA$108 -> 0
A59: 10a | B59: Avista GHG Emissions | C59: Net Emissions | D59: Metric Tonnes | E59: 1.778389544 | F59: 1.763175152 | G59: 1.731798133 | H59: 1.843452005 | I59: 1.556387854 | J59: 1.752892668 | L59: ='Financial Summary'!E$111 -> 1.507327833 | M59: ='Financial Summary'!F$111 -> 1.426785242 | N59: ='Financial Summary'!G$111 -> 1.375083109 | O59: ='Financial Summary'!H$111 -> 0.9091441777 | P59: ='Financial Summary'!I$111 -> 0.6442545816 | Q59: ='Financial Summary'!J$111 -> 0.6749867911 | R59: ='Financial Summary'!K$111 -> 0.6736696138 | S59: ='Financial Summary'!L$111 -> 0.6162447584 | T59: ='Financial Summary'!M$111 -> 0.5701320886 | U59: ='Financial Summary'!N$111 -> 0.5499083679 | V59: ='Financial Summary'!O$111 -> 0.5491904867 | W59: ='Financial Summary'!P$111 -> 0.6083604823 | X59: ='Financial Summary'!Q$111 -> 0.6214663426 | Y59: ='Financial Summary'!R$111 -> 0.6329813122 | Z59: ='Financial Summary'!S$111 -> 0.6184245691 | AA59: ='Financial Summary'!T$111 -> 0.6328822572 | AB59: ='Financial Summary'!U$111 -> 0.6417939379 | AC59: ='Financial Summary'!V$111 -> 0.642490776 | AD59: ='Financial Summary'!W$111 -> 0.6686754913 | AE59: ='Financial Summary'!X$111 -> 0.6111220285 | AF59: ='Financial Summary'!Y$111 -> 0.6788192186 | AG59: ='Financial Summary'!Z$111 -> 0.6639107759 | AH59: ='Financial Summary'!AA$111 -> 0.10409725
A61: 10b | B61: Regional GHG Emissions | C61: Large Sources | D61: Metric Tonnes | E61: 0.732788 | F61: 0.738091 | G61: 0.733167 | H61: 0.749901 | I61: =H61 -> 0.749901 | J61: 0.7307136 | L61: 0.7307136 | M61: 0.7307136 | N61: 0.7307136 | O61: 0.7307136 | P61: 0.7307136 | Q61: 0.7307136 | R61: 0.7307136 | S61: 0.7307136 | T61: 0.7307136 | U61: 0.7307136 | V61: 0.7307136 | W61: 0.7307136 | X61: 0.7307136 | Y61: 0.7307136 | Z61: 0.7307136 | AA61: 0.7307136 | AB61: 0.7307136 | AC61: 0.7307136 | AD61: 0.7307136 | AE61: 0.7307136 | AF61: 0.7307136 | AG61: 0.7307136 | AH61: 0.7307136 | AI61: 0.7307136
A62: 10b | B62: Regional GHG Emissions | C62: Electric Power Serving Washington | D62: Metric Tonnes | E62: =E59 -> 1.778389544 | F62: =F59 -> 1.763175152 | G62: =G59 -> 1.731798133 | H62: =H59 -> 1.843452005 | I62: =I59 -> 1.556387854 | J62: 1.752892668 | L62: =L59 -> 1.507327833 | M62: 1.426785242 | N62: 1.375083109 | O62: 0.9091441777 | P62: 0.6442545816 | Q62: 0.6749867911 | R62: 0.6736696138 | S62: 0.6162447584 | T62: 0.5701320886 | U62: 0.5499083679 | V62: 0.5491904867 | W62: 0.6083604823 | X62: 0.6214663426 | Y62: 0.6329813122 | Z62: 0.6184245691 | AA62: 0.6328822572 | AB62: 0.6417939379 | AC62: 0.642490776 | AD62: 0.6686754913 | AE62: 0.6111220285 | AF62: 0.6788192186 | AG62: 0.6639107759 | AH62: 0.10409725
A63: 10b | B63: Regional GHG Emissions | C63: Electric Power Serving Idaho | D63: Metric Tonnes | E63: 0.005029767506 | F63: 0.005154426859 | G63: 0.0060262103 | H63: 0.009026228782 | I63: 0.00332256 | J63: 0.004267113225 | L63: =SUM(Aurora_Res_Results!$BA$355:$BA$356,Aurora_Res_Results!$BA$359)/1000000 -> 0.007755396435 | M63: =SUM(Aurora_Res_Results!$BB$355:$BB$356,Aurora_Res_Results!$BB$359)/1000000 -> 0.008984142838 | N63: =SUM(Aurora_Res_Results!$BC$355:$BC$356,Aurora_Res_Results!$BC$359)/1000000 -> 0.009314893711 | O63: =SUM(Aurora_Res_Results!$BD$355:$BD$356,Aurora_Res_Results!$BD$359)/1000000 -> 0.009699655412 | P63: =SUM(Aurora_Res_Results!$BE$355:$BE$356,Aurora_Res_Results!$BE$359)/1000000 -> 0.009157016292 | Q63: =SUM(Aurora_Res_Results!$BF$355:$BF$356,Aurora_Res_Results!$BF$359)/1000000 -> 0.009586779931 | R63: =SUM(Aurora_Res_Results!$BG$355:$BG$356,Aurora_Res_Results!$BG$359)/1000000 -> 0.008948176531 | S63: =SUM(Aurora_Res_Results!$BH$355:$BH$356,Aurora_Res_Results!$BH$359)/1000000 -> 0.01140943767 | T63: =SUM(Aurora_Res_Results!$BI$355:$BI$356,Aurora_Res_Results!$BI$359)/1000000 -> 0.01039590769 | U63: =SUM(Aurora_Res_Results!$BJ$355:$BJ$356,Aurora_Res_Results!$BJ$359)/1000000 -> 0.009530371877 | V63: =SUM(Aurora_Res_Results!$BK$355:$BK$356,Aurora_Res_Results!$BK$359)/1000000 -> 0.009594453789 | W63: =SUM(Aurora_Res_Results!$BL$355:$BL$356,Aurora_Res_Results!$BL$359)/1000000 -> 0.009530269339 | X63: =SUM(Aurora_Res_Results!$BM$355:$BM$356,Aurora_Res_Results!$BM$359)/1000000 -> 0.009888200857 | Y63: =SUM(Aurora_Res_Results!$BN$355:$BN$356,Aurora_Res_Results!$BN$359)/1000000 -> 0.008588621567 | Z63: =SUM(Aurora_Res_Results!$BO$355:$BO$356,Aurora_Res_Results!$BO$359)/1000000 -> 0.008657129316 | AA63: =SUM(Aurora_Res_Results!$BP$355:$BP$356,Aurora_Res_Results!$BP$359)/1000000 -> 0.008527425339 | AB63: =SUM(Aurora_Res_Results!$BQ$355:$BQ$356,Aurora_Res_Results!$BQ$359)/1000000 -> 0.008563851661 | AC63: =SUM(Aurora_Res_Results!$BR$355:$BR$356,Aurora_Res_Results!$BR$359)/1000000 -> 0.009002419254 | AD63: =SUM(Aurora_Res_Results!$BS$355:$BS$356,Aurora_Res_Results!$BS$359)/1000000 -> 0 | AE63: =SUM(Aurora_Res_Results!$BT$355:$BT$356,Aurora_Res_Results!$BT$359)/1000000 -> 0 | AF63: =SUM(Aurora_Res_Results!$BU$355:$BU$356,Aurora_Res_Results!$BU$359)/1000000 -> 0 | AG63: =SUM(Aurora_Res_Results!$BV$355:$BV$356,Aurora_Res_Results!$BV$359)/1000000 -> 0 | AH63: =SUM(Aurora_Res_Results!$BW$355:$BW$356,Aurora_Res_Results!$BW$359)/1000000 -> 0
A64: 10b | B64: Regional GHG Emissions | C64: Waste Management | D64: Metric Tonnes | E64: 0.3253312286 | F64: 0.321752766 | G64: 0.3213853946 | H64: 0.3242199922 | I64: 0.3231361709 | J64: 0.3242292428 | L64: 0.3254232351 | M64: 0.3260267043 | N64: 0.3265853971 | O64: 0.3272936269 | P64: 0.3279572594 | Q64: 0.3286082519 | R64: 0.3292501647 | S64: 0.3298882451 | T64: 0.3304080678 | U64: 0.3309506507 | V64: 0.3314759165 | W64: 0.331972976 | X64: 0.3324429444 | Y64: 0.3329126377 | Z64: 0.3333610687 | AA64: 0.3337892487 | AB64: 0.334201888 | AC64: 0.3346054352 | AD64: 0.3346054291 | AE64: 0.3346054409 | AF64: 0.3346054425 | AG64: 0.3346054369 | AH64: 0.3346054373
A65: 10b | B65: Regional GHG Emissions | C65: Residential & Commerical Fuels | D65: Metric Tonnes | E65: 1.890978132 | F65: 2.026008888 | G65: 2.036057524 | H65: 2.174254307 | I65: 2.254440498 | J65: 2.25874598 | L65: 2.198625748 | M65: 2.208438115 | N65: 2.206780412 | O65: 2.210319244 | P65: 2.21354685 | Q65: 2.223193722 | R65: 2.217128468 | S65: 2.216736676 | T65: 2.220981867 | U65: 2.226147088 | V65: 2.224347905 | W65: 2.223695531 | X65: 2.227428496 | Y65: 2.240767269 | Z65: 2.240823203 | AA65: 2.23783953 | AB65: 2.23999256 | AC65: 2.244315002 | AD65: 2.241926839 | AE65: 2.242882104 | AF65: 2.243094385 | AG65: 2.254133007 | AH65: 2.252593968
A66: 10b | B66: Regional GHG Emissions | C66: Transportation | D66: Metric Tonnes | E66: 3.759390167 | F66: 3.711330166 | G66: 3.886804121 | H66: 3.950456799 | I66: 3.952453538 | J66: 4.021316018 | L66: 4.115596326 | M66: 4.162264967 | N66: 4.208039717 | O66: 4.254140002 | P66: 4.297213268 | Q66: 4.336924658 | R66: 4.371938148 | S66: 4.401685671 | T66: 4.412803565 | U66: 4.422055837 | V66: 4.428757865 | W66: 4.432580098 | X66: 4.433347553 | Y66: 4.431184035 | Z66: 4.425603075 | AA66: 4.416374218 | AB66: 4.403296621 | AC66: 4.386169369 | AD66: 4.359875521 | AE66: 4.329019832 | AF66: 4.293261401 | AG66: 4.252243416 | AH66: 4.205598963
A67: 10b | B67: Regional GHG Emissions | C67: Agriculture | D67: Metric Tonnes | E67: 2.015650455 | F67: 2.015650455 | G67: 1.896400796 | H67: 2.014335388 | I67: 2.107186495 | J67: 2.044679143 | L67: 2.015650455 | M67: 2.015650455 | N67: 2.015650455 | O67: 2.015650455 | P67: 2.015650455 | Q67: 2.015650455 | R67: 2.015650455 | S67: 2.015650455 | T67: 2.015650455 | U67: 2.015650455 | V67: 2.015650455 | W67: 2.015650455 | X67: 2.015650455 | Y67: 2.015650455 | Z67: 2.015650455 | AA67: 2.015650455 | AB67: 2.015650455 | AC67: 2.015650455 | AD67: 2.015650455 | AE67: 2.015650455 | AF67: 2.015650455 | AG67: 2.015650455 | AH67: 2.015650455
A68: 10b | B68: Regional GHG Emissions | C68: Total | D68: Metric Tonnes | E68: =SUM(E61:E67) -> 10.50755729 | F68: =SUM(F61:F67) -> 10.58116285 | G68: =SUM(G61:G67) -> 10.61163918 | H68: =SUM(H61:H67) -> 11.06564572 | I68: =SUM(I61:I67) -> 10.94682812 | J68: 11.13684377 | L68: =SUM(L61:L67) -> 10.90109259 | M68: =SUM(M61:M67) -> 10.87886323 | N68: 10.87216758 | O68: 10.45696076 | P68: 10.23849303 | Q68: 10.31966426 | R68: 10.34729863 | S68: 10.32232884 | T68: 10.29108555 | U68: 10.28495637 | V68: 10.28973068 | W68: 10.35250341 | X68: 10.37093759 | Y68: 10.39279793 | Z68: 10.3732331 | AA68: 10.37577673 | AB68: 10.37421291 | AC68: 10.36294706 | AD68: 10.35144734 | AE68: 10.26399346 | AF68: 10.2961445 | AG68: 10.25125669 | AH68: 9.643259674

Sheet Selection_Summary
A2: Nameplate MW | C2: 2023 | D2: 2024 | E2: 2025 | F2: 2026 | G2: 2027 | H2: 2028 | I2: 2029 | J2: 2030 | K2: 2031 | L2: 2032 | M2: 2033 | N2: 2034 | O2: 2035 | P2: 2036 | Q2: 2037 | R2: 2038 | S2: 2039 | T2: 2040 | U2: 2041 | V2: 2042 | W2: 2043 | X2: 2044 | Y2: 2045 | AA2: 2022 | AB2: 2023 | AC2: 2024 | AD2: 2025 | AE2: 2026 | AF2: 2027 | AG2: 2028 | AH2: 2029 | AI2: 2030 | AJ2: 2031 | AK2: 2032 | AL2: 2033 | AM2: 2034 | AN2: 2035 | AO2: 2036 | AP2: 2037 | AQ2: 2038 | AR2: 2039 | AS2: 2040 | AT2: 2041 | AU2: 2042 | AV2: 2043 | AW2: 2044 | AX2: 2045
A3: Coyote Springs 2 | C3: =Selection!AZ4 -> 1 | D3: =Selection!BA4 -> 1 | E3: =Selection!BB4 -> 1 | F3: =Selection!BC4 -> 1 | G3: =Selection!BD4 -> 1 | H3: =Selection!BE4 -> 1 | I3: =Selection!BF4 -> 1 | J3: =Selection!BG4 -> 1 | K3: =Selection!BH4 -> 1 | L3: =Selection!BI4 -> 1 | M3: =Selection!BJ4 -> 1 | N3: =Selection!BK4 -> 1 | O3: =Selection!BL4 -> 1 | P3: =Selection!BM4 -> 1 | Q3: =Selection!BN4 -> 1 | R3: =Selection!BO4 -> 1 | S3: =Selection!BP4 -> 1 | T3: =Selection!BQ4 -> 1 | U3: =Selection!BR4 -> 1 | V3: =Selection!BS4 -> 1 | W3: =Selection!BT4 -> 1 | X3: =Selection!BU4 -> 1 | Y3: =Selection!BV4 -> 1
A4: Lancaster | C4: =Selection!AZ5 -> 1 | D4: =Selection!BA5 -> 1 | E4: =Selection!BB5 -> 1 | F4: =Selection!BC5 -> 1 | G4: =Selection!BD5 -> 0 | H4: =Selection!BE5 -> 0 | I4: =Selection!BF5 -> 0 | J4: =Selection!BG5 -> 0 | K4: =Selection!BH5 -> 0 | L4: =Selection!BI5 -> 0 | M4: =Selection!BJ5 -> 0 | N4: =Selection!BK5 -> 0 | O4: =Selection!BL5 -> 0 | P4: =Selection!BM5 -> 0 | Q4: =Selection!BN5 -> 0 | R4: =Selection!BO5 -> 0 | S4: =Selection!BP5 -> 0 | T4: =Selection!BQ5 -> 0 | U4: =Selection!BR5 -> 0 | V4: =Selection!BS5 -> 0 | W4: =Selection!BT5 -> 0 | X4: =Selection!BU5 -> 0 | Y4: =Selection!BV5 -> 0
A5: Colstrip (3) | C5: =Selection!AZ6 -> 1 | D5: =Selection!BA6 -> 1 | E5: =Selection!BB6 -> 1 | F5: =Selection!BC6 -> 0 | G5: =Selection!BD6 -> 0 | H5: =Selection!BE6 -> 0 | I5: =Selection!BF6 -> 0 | J5: =Selection!BG6 -> 0 | K5: =Selection!BH6 -> 0 | L5: =Selection!BI6 -> 0 | M5: =Selection!BJ6 -> 0 | N5: =Selection!BK6 -> 0 | O5: =Selection!BL6 -> 0 | P5: =Selection!BM6 -> 0 | Q5: =Selection!BN6 -> 0 | R5: =Selection!BO6 -> 0 | S5: =Selection!BP6 -> 0 | T5: =Selection!BQ6 -> 0 | U5: =Selection!BR6 -> 0 | V5: =Selection!BS6 -> 0 | W5: =Selection!BT6 -> 0 | X5: =Selection!BU6 -> 0 | Y5: =Selection!BV6 -> 0
A6: Colstrip (4) | C6: =Selection!AZ7 -> 1 | D6: =Selection!BA7 -> 1 | E6: =Selection!BB7 -> 1 | F6: =Selection!BC7 -> 0 | G6: =Selection!BD7 -> 0 | H6: =Selection!BE7 -> 0 | I6: =Selection!BF7 -> 0 | J6: =Selection!BG7 -> 0 | K6: =Selection!BH7 -> 0 | L6: =Selection!BI7 -> 0 | M6: =Selection!BJ7 -> 0 | N6: =Selection!BK7 -> 0 | O6: =Selection!BL7 -> 0 | P6: =Selection!BM7 -> 0 | Q6: =Selection!BN7 -> 0 | R6: =Selection!BO7 -> 0 | S6: =Selection!BP7 -> 0 | T6: =Selection!BQ7 -> 0 | U6: =Selection!BR7 -> 0 | V6: =Selection!BS7 -> 0 | W6: =Selection!BT7 -> 0 | X6: =Selection!BU7 -> 0 | Y6: =Selection!BV7 -> 0
A7: Kettle Falls | C7: =Selection!AZ8 -> 1 | D7: =Selection!BA8 -> 1 | E7: =Selection!BB8 -> 1 | F7: =Selection!BC8 -> 1 | G7: =Selection!BD8 -> 1 | H7: =Selection!BE8 -> 1 | I7: =Selection!BF8 -> 1 | J7: =Selection!BG8 -> 1 | K7: =Selection!BH8 -> 1 | L7: =Selection!BI8 -> 1 | M7: =Selection!BJ8 -> 1 | N7: =Selection!BK8 -> 1 | O7: =Selection!BL8 -> 1 | P7: =Selection!BM8 -> 1 | Q7: =Selection!BN8 -> 1 | R7: =Selection!BO8 -> 1 | S7: =Selection!BP8 -> 1 | T7: =Selection!BQ8 -> 1 | U7: =Selection!BR8 -> 1 | V7: =Selection!BS8 -> 1 | W7: =Selection!BT8 -> 1 | X7: =Selection!BU8 -> 1 | Y7: =Selection!BV8 -> 1
A8: Kettle Falls CT | C8: =Selection!AZ9 -> 1 | D8: =Selection!BA9 -> 1 | E8: =Selection!BB9 -> 1 | F8: =Selection!BC9 -> 1 | G8: =Selection!BD9 -> 1 | H8: =Selection!BE9 -> 1 | I8: =Selection!BF9 -> 1 | J8: =Selection!BG9 -> 1 | K8: =Selection!BH9 -> 1 | L8: =Selection!BI9 -> 1 | M8: =Selection!BJ9 -> 1 | N8: =Selection!BK9 -> 1 | O8: =Selection!BL9 -> 1 | P8: =Selection!BM9 -> 1 | Q8: =Selection!BN9 -> 1 | R8: =Selection!BO9 -> 1 | S8: =Selection!BP9 -> 1 | T8: =Selection!BQ9 -> 1 | U8: =Selection!BR9 -> 0 | V8: =Selection!BS9 -> 0 | W8: =Selection!BT9 -> 0 | X8: =Selection!BU9 -> 0 | Y8: =Selection!BV9 -> 0
A9: Boulder Park 1-6 | C9: =Selection!AZ10 -> 1 | D9: =Selection!BA10 -> 1 | E9: =Selection!BB10 -> 1 | F9: =Selection!BC10 -> 1 | G9: =Selection!BD10 -> 1 | H9: =Selection!BE10 -> 1 | I9: =Selection!BF10 -> 1 | J9: =Selection!BG10 -> 1 | K9: =Selection!BH10 -> 1 | L9: =Selection!BI10 -> 1 | M9: =Selection!BJ10 -> 1 | N9: =Selection!BK10 -> 1 | O9: =Selection!BL10 -> 1 | P9: =Selection!BM10 -> 1 | Q9: =Selection!BN10 -> 1 | R9: =Selection!BO10 -> 1 | S9: =Selection!BP10 -> 1 | T9: =Selection!BQ10 -> 1 | U9: =Selection!BR10 -> 0 | V9: =Selection!BS10 -> 0 | W9: =Selection!BT10 -> 0 | X9: =Selection!BU10 -> 0 | Y9: =Selection!BV10 -> 0
A10: Rathdrum 1 | C10: =Selection!AZ11 -> 1 | D10: =Selection!BA11 -> 1 | E10: =Selection!BB11 -> 1 | F10: =Selection!BC11 -> 1 | G10: =Selection!BD11 -> 1 | H10: =Selection!BE11 -> 1 | I10: =Selection!BF11 -> 1 | J10: =Selection!BG11 -> 1 | K10: =Selection!BH11 -> 1 | L10: =Selection!BI11 -> 1 | M10: =Selection!BJ11 -> 1 | N10: =Selection!BK11 -> 1 | O10: =Selection!BL11 -> 1 | P10: =Selection!BM11 -> 1 | Q10: =Selection!BN11 -> 1 | R10: =Selection!BO11 -> 1 | S10: =Selection!BP11 -> 1 | T10: =Selection!BQ11 -> 1 | U10: =Selection!BR11 -> 1 | V10: =Selection!BS11 -> 1 | W10: =Selection!BT11 -> 1 | X10: =Selection!BU11 -> 1 | Y10: =Selection!BV11 -> 0
A11: Rathdrum 2 | C11: =Selection!AZ12 -> 1 | D11: =Selection!BA12 -> 1 | E11: =Selection!BB12 -> 1 | F11: =Selection!BC12 -> 1 | G11: =Selection!BD12 -> 1 | H11: =Selection!BE12 -> 1 | I11: =Selection!BF12 -> 1 | J11: =Selection!BG12 -> 1 | K11: =Selection!BH12 -> 1 | L11: =Selection!BI12 -> 1 | M11: =Selection!BJ12 -> 1 | N11: =Selection!BK12 -> 1 | O11: =Selection!BL12 -> 1 | P11: =Selection!BM12 -> 1 | Q11: =Selection!BN12 -> 1 | R11: =Selection!BO12 -> 1 | S11: =Selection!BP12 -> 1 | T11: =Selection!BQ12 -> 1 | U11: =Selection!BR12 -> 1 | V11: =Selection!BS12 -> 1 | W11: =Selection!BT12 -> 1 | X11: =Selection!BU12 -> 1 | Y11: =Selection!BV12 -> 0
A12: Northeast A&B | C12: =Selection!AZ13 -> 1 | D12: =Selection!BA13 -> 1 | E12: =Selection!BB13 -> 1 | F12: =Selection!BC13 -> 1 | G12: =Selection!BD13 -> 1 | H12: =Selection!BE13 -> 1 | I12: =Selection!BF13 -> 1 | J12: =Selection!BG13 -> 1 | K12: =Selection!BH13 -> 1 | L12: =Selection!BI13 -> 1 | M12: =Selection!BJ13 -> 1 | N12: =Selection!BK13 -> 1 | O12: =Selection!BL13 -> 1 | P12: =Selection!BM13 -> 0 | Q12: =Selection!BN13 -> 0 | R12: =Selection!BO13 -> 0 | S12: =Selection!BP13 -> 0 | T12: =Selection!BQ13 -> 0 | U12: =Selection!BR13 -> 0 | V12: =Selection!BS13 -> 0 | W12: =Selection!BT13 -> 0 | X12: =Selection!BU13 -> 0 | Y12: =Selection!BV13 -> 0
A14: Shared System Resource
A15: NG CT | C15: =SUM(Selection!AZ100:AZ102) -> 0 | D15: =SUM(Selection!BA100:BA102) -> 0 | E15: =SUM(Selection!BB100:BB102) -> 0 | F15: =SUM(Selection!BC100:BC102) -> 0 | G15: =SUM(Selection!BD100:BD102) -> 0 | H15: =SUM(Selection!BE100:BE102) -> 0 | I15: =SUM(Selection!BF100:BF102) -> 0 | J15: =SUM(Selection!BG100:BG102) -> 0 | K15: =SUM(Selection!BH100:BH102) -> 0 | L15: =SUM(Selection!BI100:BI102) -> 0 | M15: =SUM(Selection!BJ100:BJ102) -> 0 | N15: =SUM(Selection!BK100:BK102) -> 0 | O15: =SUM(Selection!BL100:BL102) -> 0 | P15: =SUM(Selection!BM100:BM102) -> 0 | Q15: =SUM(Selection!BN100:BN102) -> 0 | R15: =SUM(Selection!BO100:BO102) -> 0 | S15: =SUM(Selection!BP100:BP102) -> 0 | T15: =SUM(Selection!BQ100:BQ102) -> 0 | U15: =SUM(Selection!BR100:BR102) -> 0 | V15: =SUM(Selection!BS100:BS102) -> 0 | W15: =SUM(Selection!BT100:BT102) -> 0 | X15: =SUM(Selection!BU100:BU102) -> 0 | Y15: =SUM(Selection!BV100:BV102) -> 0
A16: Solar | C16: =SUM(Selection!AZ108,Selection!AZ110,Selection!AZ112,Selection!AZ114,Selection!AZ116:AZ119,Selection!AZ144) -> 0 | D16: =SUM(Selection!BA108,Selection!BA110,Selection!BA112,Selection!BA114,Selection!BA116:BA119,Selection!BA144) -> 0 | E16: =SUM(Selection!BB108,Selection!BB110,Selection!BB112,Selection!BB114,Selection!BB116:BB119,Selection!BB144) -> 0 | F16: =SUM(Selection!BC108,Selection!BC110,Selection!BC112,Selection!BC114,Selection!BC116:BC119,Selection!BC144) -> 0 | G16: =SUM(Selection!BD108,Selection!BD110,Selection!BD112,Selection!BD114,Selection!BD116:BD119,Selection!BD144) -> 0 | H16: =SUM(Selection!BE108,Selection!BE110,Selection!BE112,Selection!BE114,Selection!BE116:BE119,Selection!BE144) -> 0 | I16: =SUM(Selection!BF108,Selection!BF110,Selection!BF112,Selection!BF114,Selection!BF116:BF119,Selection!BF144) -> 0 | J16: =SUM(Selection!BG108,Selection!BG110,Selection!BG112,Selection!BG114,Selection!BG116:BG119,Selection!BG144) -> 0 | K16: =SUM(Selection!BH108,Selection!BH110,Selection!BH112,Selection!BH114,Selection!BH116:BH119,Selection!BH144) -> 0 | L16: =SUM(Selection!BI108,Selection!BI110,Selection!BI112,Selection!BI114,Selection!BI116:BI119,Selection!BI144) -> 0 | M16: =SUM(Selection!BJ108,Selection!BJ110,Selection!BJ112,Selection!BJ114,Selection!BJ116:BJ119,Selection!BJ144) -> 0 | N16: =SUM(Selection!BK108,Selection!BK110,Selection!BK112,Selection!BK114,Selection!BK116:BK119,Selection!BK144) -> 0 | O16: =SUM(Selection!BL108,Selection!BL110,Selection!BL112,Selection!BL114,Selection!BL116:BL119,Selection!BL144) -> 0 | P16: =SUM(Selection!BM108,Selection!BM110,Selection!BM112,Selection!BM114,Selection!BM116:BM119,Selection!BM144) -> 0 | Q16: =SUM(Selection!BN108,Selection!BN110,Selection!BN112,Selection!BN114,Selection!BN116:BN119,Selection!BN144) -> 0 | R16: =SUM(Selection!BO108,Selection!BO110,Selection!BO112,Selection!BO114,Selection!BO116:BO119,Selection!BO144) -> 0 | S16: =SUM(Selection!BP108,Selection!BP110,Selection!BP112,Selection!BP114,Selection!BP116:BP119,Selection!BP144) -> 0 | T16: =SUM(Selection!BQ108,Selection!BQ110,Selection!BQ112,Selection!BQ114,Selection!BQ116:BQ119,Selection!BQ144) -> 0 | U16: =SUM(Selection!BR108,Selection!BR110,Selection!BR112,Selection!BR114,Selection!BR116:BR119,Selection!BR144) -> 0 | V16: =SUM(Selection!BS108,Selection!BS110,Selection!BS112,Selection!BS114,Selection!BS116:BS119,Selection!BS144) -> 0 | W16: =SUM(Selection!BT108,Selection!BT110,Selection!BT112,Selection!BT114,Selection!BT116:BT119,Selection!BT144) -> 0 | X16: =SUM(Selection!BU108,Selection!BU110,Selection!BU112,Selection!BU114,Selection!BU116:BU119,Selection!BU144) -> 0 | Y16: =SUM(Selection!BV108,Selection!BV110,Selection!BV112,Selection!BV114,Selection!BV116:BV119,Selection!BV144) -> 0
A17: Storage Added to Solar | C17: =SUM(Selection!AZ109,Selection!AZ111,Selection!AZ113,Selection!AZ115,Selection!AZ120,Selection!AZ121,Selection!AZ122) -> 0 | D17: =SUM(Selection!BA109,Selection!BA111,Selection!BA113,Selection!BA115,Selection!BA120,Selection!BA121,Selection!BA122) -> 0 | E17: =SUM(Selection!BB109,Selection!BB111,Selection!BB113,Selection!BB115,Selection!BB120,Selection!BB121,Selection!BB122) -> 0 | F17: =SUM(Selection!BC109,Selection!BC111,Selection!BC113,Selection!BC115,Selection!BC120,Selection!BC121,Selection!BC122) -> 0 | G17: =SUM(Selection!BD109,Selection!BD111,Selection!BD113,Selection!BD115,Selection!BD120,Selection!BD121,Selection!BD122) -> 0 | H17: =SUM(Selection!BE109,Selection!BE111,Selection!BE113,Selection!BE115,Selection!BE120,Selection!BE121,Selection!BE122) -> 0 | I17: =SUM(Selection!BF109,Selection!BF111,Selection!BF113,Selection!BF115,Selection!BF120,Selection!BF121,Selection!BF122) -> 0 | J17: =SUM(Selection!BG109,Selection!BG111,Selection!BG113,Selection!BG115,Selection!BG120,Selection!BG121,Selection!BG122) -> 0 | K17: =SUM(Selection!BH109,Selection!BH111,Selection!BH113,Selection!BH115,Selection!BH120,Selection!BH121,Selection!BH122) -> 0 | L17: =SUM(Selection!BI109,Selection!BI111,Selection!BI113,Selection!BI115,Selection!BI120,Selection!BI121,Selection!BI122) -> 0 | M17: =SUM(Selection!BJ109,Selection!BJ111,Selection!BJ113,Selection!BJ115,Selection!BJ120,Selection!BJ121,Selection!BJ122) -> 0 | N17: =SUM(Selection!BK109,Selection!BK111,Selection!BK113,Selection!BK115,Selection!BK120,Selection!BK121,Selection!BK122) -> 0 | O17: =SUM(Selection!BL109,Selection!BL111,Selection!BL113,Selection!BL115,Selection!BL120,Selection!BL121,Selection!BL122) -> 0 | P17: =SUM(Selection!BM109,Selection!BM111,Selection!BM113,Selection!BM115,Selection!BM120,Selection!BM121,Selection!BM122) -> 0 | Q17: =SUM(Selection!BN109,Selection!BN111,Selection!BN113,Selection!BN115,Selection!BN120,Selection!BN121,Selection!BN122) -> 0 | R17: =SUM(Selection!BO109,Selection!BO111,Selection!BO113,Selection!BO115,Selection!BO120,Selection!BO121,Selection!BO122) -> 0 | S17: =SUM(Selection!BP109,Selection!BP111,Selection!BP113,Selection!BP115,Selection!BP120,Selection!BP121,Selection!BP122) -> 0 | T17: =SUM(Selection!BQ109,Selection!BQ111,Selection!BQ113,Selection!BQ115,Selection!BQ120,Selection!BQ121,Selection!BQ122) -> 0 | U17: =SUM(Selection!BR109,Selection!BR111,Selection!BR113,Selection!BR115,Selection!BR120,Selection!BR121,Selection!BR122) -> 0 | V17: =SUM(Selection!BS109,Selection!BS111,Selection!BS113,Selection!BS115,Selection!BS120,Selection!BS121,Selection!BS122) -> 0 | W17: =SUM(Selection!BT109,Selection!BT111,Selection!BT113,Selection!BT115,Selection!BT120,Selection!BT121,Selection!BT122) -> 0 | X17: =SUM(Selection!BU109,Selection!BU111,Selection!BU113,Selection!BU115,Selection!BU120,Selection!BU121,Selection!BU122) -> 0 | Y17: =SUM(Selection!BV109,Selection!BV111,Selection!BV113,Selection!BV115,Selection!BV120,Selection!BV121,Selection!BV122) -> 0
A18: Wind | C18: =SUM(Selection!AZ104:AZ107,Selection!AZ142:AZ143) -> 0 | D18: =SUM(Selection!BA104:BA107,Selection!BA142:BA143) -> 0 | E18: =SUM(Selection!BB104:BB107,Selection!BB142:BB143) -> 0 | F18: =SUM(Selection!BC104:BC107,Selection!BC142:BC143) -> 0 | G18: =SUM(Selection!BD104:BD107,Selection!BD142:BD143) -> 0 | H18: =SUM(Selection!BE104:BE107,Selection!BE142:BE143) -> 0 | I18: =SUM(Selection!BF104:BF107,Selection!BF142:BF143) -> 0 | J18: =SUM(Selection!BG104:BG107,Selection!BG142:BG143) -> 0 | K18: =SUM(Selection!BH104:BH107,Selection!BH142:BH143) -> 0 | L18: =SUM(Selection!BI104:BI107,Selection!BI142:BI143) -> 0 | M18: =SUM(Selection!BJ104:BJ107,Selection!BJ142:BJ143) -> 0 | N18: =SUM(Selection!BK104:BK107,Selection!BK142:BK143) -> 0 | O18: =SUM(Selection!BL104:BL107,Selection!BL142:BL143) -> 0 | P18: =SUM(Selection!BM104:BM107,Selection!BM142:BM143) -> 0 | Q18: =SUM(Selection!BN104:BN107,Selection!BN142:BN143) -> 0 | R18: =SUM(Selection!BO104:BO107,Selection!BO142:BO143) -> 0 | S18: =SUM(Selection!BP104:BP107,Selection!BP142:BP143) -> 0 | T18: =SUM(Selection!BQ104:BQ107,Selection!BQ142:BQ143) -> 0 | U18: =SUM(Selection!BR104:BR107,Selection!BR142:BR143) -> 0 | V18: =SUM(Selection!BS104:BS107,Selection!BS142:BS143) -> 0 | W18: =SUM(Selection!BT104:BT107,Selection!BT142:BT143) -> 0 | X18: =SUM(Selection!BU104:BU107,Selection!BU142:BU143) -> 0 | Y18: =SUM(Selection!BV104:BV107,Selection!BV142:BV143) -> 0
A19: Storage | C19: =SUM(Selection!AZ123:AZ130,Selection!AZ134:AZ137) -> 0 | D19: =SUM(Selection!BA123:BA130,Selection!BA134:BA137) -> 0 | E19: =SUM(Selection!BB123:BB130,Selection!BB134:BB137) -> 0 | F19: =SUM(Selection!BC123:BC130,Selection!BC134:BC137) -> 0 | G19: =SUM(Selection!BD123:BD130,Selection!BD134:BD137) -> 0 | H19: =SUM(Selection!BE123:BE130,Selection!BE134:BE137) -> 0 | I19: =SUM(Selection!BF123:BF130,Selection!BF134:BF137) -> 0 | J19: =SUM(Selection!BG123:BG130,Selection!BG134:BG137) -> 0 | K19: =SUM(Selection!BH123:BH130,Selection!BH134:BH137) -> 0 | L19: =SUM(Selection!BI123:BI130,Selection!BI134:BI137) -> 0 | M19: =SUM(Selection!BJ123:BJ130,Selection!BJ134:BJ137) -> 0 | N19: =SUM(Selection!BK123:BK130,Selection!BK134:BK137) -> 0 | O19: =SUM(Selection!BL123:BL130,Selection!BL134:BL137) -> 0 | P19: =SUM(Selection!BM123:BM130,Selection!BM134:BM137) -> 0 | Q19: =SUM(Selection!BN123:BN130,Selection!BN134:BN137) -> 0 | R19: =SUM(Selection!BO123:BO130,Selection!BO134:BO137) -> 0 | S19: =SUM(Selection!BP123:BP130,Selection!BP134:BP137) -> 0 | T19: =SUM(Selection!BQ123:BQ130,Selection!BQ134:BQ137) -> 0 | U19: =SUM(Selection!BR123:BR130,Selection!BR134:BR137) -> 115.4350431 | V19: =SUM(Selection!BS123:BS130,Selection!BS134:BS137) -> 0 | W19: =SUM(Selection!BT123:BT130,Selection!BT134:BT137) -> 103.5725389 | X19: =SUM(Selection!BU123:BU130,Selection!BU134:BU137) -> 0 | Y19: =SUM(Selection!BV123:BV130,Selection!BV134:BV137) -> 0
A20: Hydrogen/Ammonia | C20: =SUM(Selection!AZ132:AZ133) -> 0 | D20: =SUM(Selection!BA132:BA133) -> 0 | E20: =SUM(Selection!BB132:BB133) -> 0 | F20: =SUM(Selection!BC132:BC133) -> 0 | G20: =SUM(Selection!BD132:BD133) -> 0 | H20: =SUM(Selection!BE132:BE133) -> 0 | I20: =SUM(Selection!BF132:BF133) -> 0 | J20: =SUM(Selection!BG132:BG133) -> 0 | K20: =SUM(Selection!BH132:BH133) -> 0 | L20: =SUM(Selection!BI132:BI133) -> 0 | M20: =SUM(Selection!BJ132:BJ133) -> 0 | N20: =SUM(Selection!BK132:BK133) -> 0 | O20: =SUM(Selection!BL132:BL133) -> 0 | P20: =SUM(Selection!BM132:BM133) -> 0 | Q20: =SUM(Selection!BN132:BN133) -> 0 | R20: =SUM(Selection!BO132:BO133) -> 91.08440286 | S20: =SUM(Selection!BP132:BP133) -> 0 | T20: =SUM(Selection!BQ132:BQ133) -> 0 | U20: =SUM(Selection!BR132:BR133) -> 0 | V20: =SUM(Selection!BS132:BS133) -> 0 | W20: =SUM(Selection!BT132:BT133) -> 0 | X20: =SUM(Selection!BU132:BU133) -> 0 | Y20: =SUM(Selection!BV132:BV133) -> 0
A21: Other "Clean" Baseload | C21: =SUM(Selection!AZ138,Selection!AZ131,Selection!AZ103) -> 0 | D21: =SUM(Selection!BA138,Selection!BA131,Selection!BA103) -> 0 | E21: =SUM(Selection!BB138,Selection!BB131,Selection!BB103) -> 0 | F21: =SUM(Selection!BC138,Selection!BC131,Selection!BC103) -> 0 | G21: =SUM(Selection!BD138,Selection!BD131,Selection!BD103) -> 0 | H21: =SUM(Selection!BE138,Selection!BE131,Selection!BE103) -> 0 | I21: =SUM(Selection!BF138,Selection!BF131,Selection!BF103) -> 0 | J21: =SUM(Selection!BG138,Selection!BG131,Selection!BG103) -> 0 | K21: =SUM(Selection!BH138,Selection!BH131,Selection!BH103) -> 0 | L21: =SUM(Selection!BI138,Selection!BI131,Selection!BI103) -> 0 | M21: =SUM(Selection!BJ138,Selection!BJ131,Selection!BJ103) -> 0 | N21: =SUM(Selection!BK138,Selection!BK131,Selection!BK103) -> 0 | O21: =SUM(Selection!BL138,Selection!BL131,Selection!BL103) -> 0 | P21: =SUM(Selection!BM138,Selection!BM131,Selection!BM103) -> 0 | Q21: =SUM(Selection!BN138,Selection!BN131,Selection!BN103) -> 0 | R21: =SUM(Selection!BO138,Selection!BO131,Selection!BO103) -> 0 | S21: =SUM(Selection!BP138,Selection!BP131,Selection!BP103) -> 0 | T21: =SUM(Selection!BQ138,Selection!BQ131,Selection!BQ103) -> 0 | U21: =SUM(Selection!BR138,Selection!BR131,Selection!BR103) -> 0 | V21: =SUM(Selection!BS138,Selection!BS131,Selection!BS103) -> 0 | W21: =SUM(Selection!BT138,Selection!BT131,Selection!BT103) -> 0 | X21: =SUM(Selection!BU138,Selection!BU131,Selection!BU103) -> 0 | Y21: =SUM(Selection!BV138,Selection!BV131,Selection!BV103) -> 0
A22: Existing Plant Upgrades | C22: =SUM(Selection!AZ139:AZ141) -> 0 | D22: =SUM(Selection!BA139:BA141) -> 0 | E22: =SUM(Selection!BB139:BB141) -> 0 | F22: =SUM(Selection!BC139:BC141) -> 0 | G22: =SUM(Selection!BD139:BD141) -> 0 | H22: =SUM(Selection!BE139:BE141) -> 0 | I22: =SUM(Selection!BF139:BF141) -> 0 | J22: =SUM(Selection!BG139:BG141) -> 0 | K22: =SUM(Selection!BH139:BH141) -> 0 | L22: =SUM(Selection!BI139:BI141) -> 0 | M22: =SUM(Selection!BJ139:BJ141) -> 0 | N22: =SUM(Selection!BK139:BK141) -> 0 | O22: =SUM(Selection!BL139:BL141) -> 0 | P22: =SUM(Selection!BM139:BM141) -> 5 | Q22: =SUM(Selection!BN139:BN141) -> 0 | R22: =SUM(Selection!BO139:BO141) -> 0 | S22: =SUM(Selection!BP139:BP141) -> 0 | T22: =SUM(Selection!BQ139:BQ141) -> 0 | U22: =SUM(Selection!BR139:BR141) -> 0 | V22: =SUM(Selection!BS139:BS141) -> 0 | W22: =SUM(Selection!BT139:BT141) -> 0 | X22: =SUM(Selection!BU139:BU141) -> 0 | Y22: =SUM(Selection!BV139:BV141) -> 0
A26: Washington
A27: NG CT | C27: =SUM(Selection!D100:D102) -> 0 | D27: =SUM(Selection!E100:E102) -> 0 | E27: =SUM(Selection!F100:F102) -> 0 | F27: =SUM(Selection!G100:G102) -> 0 | G27: =SUM(Selection!H100:H102) -> 0 | H27: =SUM(Selection!I100:I102) -> 0 | I27: =SUM(Selection!J100:J102) -> 0 | J27: =SUM(Selection!K100:K102) -> 0 | K27: =SUM(Selection!L100:L102) -> 0 | L27: =SUM(Selection!M100:M102) -> 0 | M27: =SUM(Selection!N100:N102) -> 0 | N27: =SUM(Selection!O100:O102) -> 0 | O27: =SUM(Selection!P100:P102) -> 0 | P27: =SUM(Selection!Q100:Q102) -> 0 | Q27: =SUM(Selection!R100:R102) -> 0 | R27: =SUM(Selection!S100:S102) -> 0 | S27: =SUM(Selection!T100:T102) -> 0 | T27: =SUM(Selection!U100:U102) -> 0 | U27: =SUM(Selection!V100:V102) -> 0 | V27: =SUM(Selection!W100:W102) -> 0 | W27: =SUM(Selection!X100:X102) -> 0 | X27: =SUM(Selection!Y100:Y102) -> 0 | Y27: =SUM(Selection!Z100:Z102) -> 0 | AA27: =B27+(B15*G_A!P$9) -> 0 | AB27: =C27+(C15*G_A!Q$9) -> 0 | AC27: =D27+(D15*G_A!R$9) -> 0 | AD27: =E27+(E15*G_A!S$9) -> 0 | AE27: =F27+(F15*G_A!T$9) -> 0 | AF27: =G27+(G15*G_A!U$9) -> 0 | AG27: =H27+(H15*G_A!V$9) -> 0 | AH27: =I27+(I15*G_A!W$9) -> 0 | AI27: =J27+(J15*G_A!X$9) -> 0 | AJ27: =K27+(K15*G_A!Y$9) -> 0 | AK27: =L27+(L15*G_A!Z$9) -> 0 | AL27: =M27+(M15*G_A!AA$9) -> 0 | AM27: =N27+(N15*G_A!AB$9) -> 0 | AN27: =O27+(O15*G_A!AC$9) -> 0 | AO27: =P27+(P15*G_A!AD$9) -> 0 | AP27: =Q27+(Q15*G_A!AE$9) -> 0 | AQ27: =R27+(R15*G_A!AF$9) -> 0 | AR27: =S27+(S15*G_A!AG$9) -> 0 | AS27: =T27+(T15*G_A!AH$9) -> 0 | AT27: =U27+(U15*G_A!AI$9) -> 0 | AU27: =V27+(V15*G_A!AJ$9) -> 0 | AV27: =W27+(W15*G_A!AK$9) -> 0 | AW27: =X27+(X15*G_A!AL$9) -> 0 | AX27: =Y27+(Y15*G_A!AM$9) -> 0
A28: Solar | C28: =SUM(Selection!D108,Selection!D110,Selection!D112,Selection!D114,Selection!D116:D119,Selection!D144,Selection!D145) -> 0 | D28: =SUM(Selection!E108,Selection!E110,Selection!E112,Selection!E114,Selection!E116:E119,Selection!E144,Selection!E145) -> 0.66843261 | E28: =SUM(Selection!F108,Selection!F110,Selection!F112,Selection!F114,Selection!F116:F119,Selection!F144,Selection!F145) -> 0.6770081293 | F28: =SUM(Selection!G108,Selection!G110,Selection!G112,Selection!G114,Selection!G116:G119,Selection!G144,Selection!G145) -> 0.6863290245 | G28: =SUM(Selection!H108,Selection!H110,Selection!H112,Selection!H114,Selection!H116:H119,Selection!H144,Selection!H145) -> 0.6976246972 | H28: =SUM(Selection!I108,Selection!I110,Selection!I112,Selection!I114,Selection!I116:I119,Selection!I144,Selection!I145) -> 0.7109027234 | I28: =SUM(Selection!J108,Selection!J110,Selection!J112,Selection!J114,Selection!J116:J119,Selection!J144,Selection!J145) -> 0.7199366217 | J28: =SUM(Selection!K108,Selection!K110,Selection!K112,Selection!K114,Selection!K116:K119,Selection!K144,Selection!K145) -> 0.727438435 | K28: =SUM(Selection!L108,Selection!L110,Selection!L112,Selection!L114,Selection!L116:L119,Selection!L144,Selection!L145) -> 0.7410515703 | L28: =SUM(Selection!M108,Selection!M110,Selection!M112,Selection!M114,Selection!M116:M119,Selection!M144,Selection!M145) -> 0.7529775587 | M28: =SUM(Selection!N108,Selection!N110,Selection!N112,Selection!N114,Selection!N116:N119,Selection!N144,Selection!N145) -> 0.7602689058 | N28: =SUM(Selection!O108,Selection!O110,Selection!O112,Selection!O114,Selection!O116:O119,Selection!O144,Selection!O145) -> 0.1 | O28: =SUM(Selection!P108,Selection!P110,Selection!P112,Selection!P114,Selection!P116:P119,Selection!P144,Selection!P145) -> 0.1 | P28: =SUM(Selection!Q108,Selection!Q110,Selection!Q112,Selection!Q114,Selection!Q116:Q119,Selection!Q144,Selection!Q145) -> 0.1 | Q28: =SUM(Selection!R108,Selection!R110,Selection!R112,Selection!R114,Selection!R116:R119,Selection!R144,Selection!R145) -> 0.1 | R28: =SUM(Selection!S108,Selection!S110,Selection!S112,Selection!S114,Selection!S116:S119,Selection!S144,Selection!S145) -> 0.1 | S28: =SUM(Selection!T108,Selection!T110,Selection!T112,Selection!T114,Selection!T116:T119,Selection!T144,Selection!T145) -> 0.1 | T28: =SUM(Selection!U108,Selection!U110,Selection!U112,Selection!U114,Selection!U116:U119,Selection!U144,Selection!U145) -> 0.1 | U28: =SUM(Selection!V108,Selection!V110,Selection!V112,Selection!V114,Selection!V116:V119,Selection!V144,Selection!V145) -> 0.1730620619 | V28: =SUM(Selection!W108,Selection!W110,Selection!W112,Selection!W114,Selection!W116:W119,Selection!W144,Selection!W145) -> 0.1 | W28: =SUM(Selection!X108,Selection!X110,Selection!X112,Selection!X114,Selection!X116:X119,Selection!X144,Selection!X145) -> 0.1824860271 | X28: =SUM(Selection!Y108,Selection!Y110,Selection!Y112,Selection!Y114,Selection!Y116:Y119,Selection!Y144,Selection!Y145) -> 0.1027643483 | Y28: =SUM(Selection!Z108,Selection!Z110,Selection!Z112,Selection!Z114,Selection!Z116:Z119,Selection!Z144,Selection!Z145) -> 0.1118967741 | AA28: =B28+(B16*G_A!P$9) -> 0 | AB28: =C28+(C16*G_A!Q$9) -> 0 | AC28: =D28+(D16*G_A!R$9) -> 0.66843261 | AD28: =E28+(E16*G_A!S$9) -> 0.6770081293 | AE28: =F28+(F16*G_A!T$9) -> 0.6863290245 | AF28: =G28+(G16*G_A!U$9) -> 0.6976246972 | AG28: =H28+(H16*G_A!V$9) -> 0.7109027234 | AH28: =I28+(I16*G_A!W$9) -> 0.7199366217 | AI28: =J28+(J16*G_A!X$9) -> 0.727438435 | AJ28: =K28+(K16*G_A!Y$9) -> 0.7410515703 | AK28: =L28+(L16*G_A!Z$9) -> 0.7529775587 | AL28: =M28+(M16*G_A!AA$9) -> 0.7602689058 | AM28: =N28+(N16*G_A!AB$9) -> 0.1 | AN28: =O28+(O16*G_A!AC$9) -> 0.1 | AO28: =P28+(P16*G_A!AD$9) -> 0.1 | AP28: =Q28+(Q16*G_A!AE$9) -> 0.1 | AQ28: =R28+(R16*G_A!AF$9) -> 0.1 | AR28: =S28+(S16*G_A!AG$9) -> 0.1 | AS28: =T28+(T16*G_A!AH$9) -> 0.1 | AT28: =U28+(U16*G_A!AI$9) -> 0.1730620619 | AU28: =V28+(V16*G_A!AJ$9) -> 0.1 | AV28: =W28+(W16*G_A!AK$9) -> 0.1824860271 | AW28: =X28+(X16*G_A!AL$9) -> 0.1027643483 | AX28: =Y28+(Y16*G_A!AM$9) -> 0.1118967741
A29: Storage Added to Solar | C29: =SUM(,Selection!D109,Selection!D111,Selection!D113,Selection!D115,Selection!D120:D122) -> 0 | D29: =SUM(,Selection!E109,Selection!E111,Selection!E113,Selection!E115,Selection!E120:E122) -> 0 | E29: =SUM(,Selection!F109,Selection!F111,Selection!F113,Selection!F115,Selection!F120:F122) -> 0 | F29: =SUM(,Selection!G109,Selection!G111,Selection!G113,Selection!G115,Selection!G120:G122) -> 0 | G29: =SUM(,Selection!H109,Selection!H111,Selection!H113,Selection!H115,Selection!H120:H122) -> 0 | H29: =SUM(,Selection!I109,Selection!I111,Selection!I113,Selection!I115,Selection!I120:I122) -> 0 | I29: =SUM(,Selection!J109,Selection!J111,Selection!J113,Selection!J115,Selection!J120:J122) -> 0 | J29: =SUM(,Selection!K109,Selection!K111,Selection!K113,Selection!K115,Selection!K120:K122) -> 0 | K29: =SUM(,Selection!L109,Selection!L111,Selection!L113,Selection!L115,Selection!L120:L122) -> 0 | L29: =SUM(,Selection!M109,Selection!M111,Selection!M113,Selection!M115,Selection!M120:M122) -> 0 | M29: =SUM(,Selection!N109,Selection!N111,Selection!N113,Selection!N115,Selection!N120:N122) -> 0 | N29: =SUM(,Selection!O109,Selection!O111,Selection!O113,Selection!O115,Selection!O120:O122) -> 0.1 | O29: =SUM(,Selection!P109,Selection!P111,Selection!P113,Selection!P115,Selection!P120:P122) -> 0.1 | P29: =SUM(,Selection!Q109,Selection!Q111,Selection!Q113,Selection!Q115,Selection!Q120:Q122) -> 0.1 | Q29: =SUM(,Selection!R109,Selection!R111,Selection!R113,Selection!R115,Selection!R120:R122) -> 0.1 | R29: =SUM(,Selection!S109,Selection!S111,Selection!S113,Selection!S115,Selection!S120:S122) -> 0.1 | S29: =SUM(,Selection!T109,Selection!T111,Selection!T113,Selection!T115,Selection!T120:T122) -> 0.1 | T29: =SUM(,Selection!U109,Selection!U111,Selection!U113,Selection!U115,Selection!U120:U122) -> 0.1 | U29: =SUM(,Selection!V109,Selection!V111,Selection!V113,Selection!V115,Selection!V120:V122) -> 0 | V29: =SUM(,Selection!W109,Selection!W111,Selection!W113,Selection!W115,Selection!W120:W122) -> 0.1 | W29: =SUM(,Selection!X109,Selection!X111,Selection!X113,Selection!X115,Selection!X120:X122) -> 0 | X29: =SUM(,Selection!Y109,Selection!Y111,Selection!Y113,Selection!Y115,Selection!Y120:Y122) -> 0.1027643483 | Y29: =SUM(,Selection!Z109,Selection!Z111,Selection!Z113,Selection!Z115,Selection!Z120:Z122) -> 0.1118967741 | AA29: =B29+(B17*G_A!P$9) -> 0 | AB29: =C29+(C17*G_A!Q$9) -> 0 | AC29: =D29+(D17*G_A!R$9) -> 0 | AD29: =E29+(E17*G_A!S$9) -> 0 | AE29: =F29+(F17*G_A!T$9) -> 0 | AF29: =G29+(G17*G_A!U$9) -> 0 | AG29: =H29+(H17*G_A!V$9) -> 0 | AH29: =I29+(I17*G_A!W$9) -> 0 | AI29: =J29+(J17*G_A!X$9) -> 0 | AJ29: =K29+(K17*G_A!Y$9) -> 0 | AK29: =L29+(L17*G_A!Z$9) -> 0 | AL29: =M29+(M17*G_A!AA$9) -> 0 | AM29: =N29+(N17*G_A!AB$9) -> 0.1 | AN29: =O29+(O17*G_A!AC$9) -> 0.1 | AO29: =P29+(P17*G_A!AD$9) -> 0.1 | AP29: =Q29+(Q17*G_A!AE$9) -> 0.1 | AQ29: =R29+(R17*G_A!AF$9) -> 0.1 | AR29: =S29+(S17*G_A!AG$9) -> 0.1 | AS29: =T29+(T17*G_A!AH$9) -> 0.1 | AT29: =U29+(U17*G_A!AI$9) -> 0 | AU29: =V29+(V17*G_A!AJ$9) -> 0.1 | AV29: =W29+(W17*G_A!AK$9) -> 0 | AW29: =X29+(X17*G_A!AL$9) -> 0.1027643483 | AX29: =Y29+(Y17*G_A!AM$9) -> 0.1118967741
A30: Wind | C30: =SUM(Selection!D104:D107,Selection!D142:D143) -> 0 | D30: =SUM(Selection!E104:E107,Selection!E142:E143) -> 0 | E30: =SUM(Selection!F104:F107,Selection!F142:F143) -> 0 | F30: =SUM(Selection!G104:G107,Selection!G142:G143) -> 0 | G30: =SUM(Selection!H104:H107,Selection!H142:H143) -> 125.0527522 | H30: =SUM(Selection!I104:I107,Selection!I142:I143) -> 0 | I30: =SUM(Selection!J104:J107,Selection!J142:J143) -> 0 | J30: =SUM(Selection!K104:K107,Selection!K142:K143) -> 150 | K30: =SUM(Selection!L104:L107,Selection!L142:L143) -> 0 | L30: =SUM(Selection!M104:M107,Selection!M142:M143) -> 174.9472478 | M30: =SUM(Selection!N104:N107,Selection!N142:N143) -> 0 | N30: =SUM(Selection!O104:O107,Selection!O142:O143) -> 0 | O30: =SUM(Selection!P104:P107,Selection!P142:P143) -> 0 | P30: =SUM(Selection!Q104:Q107,Selection!Q142:Q143) -> 0 | Q30: =SUM(Selection!R104:R107,Selection!R142:R143) -> 0 | R30: =SUM(Selection!S104:S107,Selection!S142:S143) -> 0 | S30: =SUM(Selection!T104:T107,Selection!T142:T143) -> 0 | T30: =SUM(Selection!U104:U107,Selection!U142:U143) -> 0 | U30: =SUM(Selection!V104:V107,Selection!V142:V143) -> 140 | V30: =SUM(Selection!W104:W107,Selection!W142:W143) -> 105 | W30: =SUM(Selection!X104:X107,Selection!X142:X143) -> 0 | X30: =SUM(Selection!Y104:Y107,Selection!Y142:Y143) -> 137.1796571 | Y30: =SUM(Selection!Z104:Z107,Selection!Z142:Z143) -> 508.3714743 | AA30: =B30+(B18*G_A!P$9) -> 0 | AB30: =C30+(C18*G_A!Q$9) -> 0 | AC30: =D30+(D18*G_A!R$9) -> 0 | AD30: =E30+(E18*G_A!S$9) -> 0 | AE30: =F30+(F18*G_A!T$9) -> 0 | AF30: =G30+(G18*G_A!U$9) -> 125.0527522 | AG30: =H30+(H18*G_A!V$9) -> 0 | AH30: =I30+(I18*G_A!W$9) -> 0 | AI30: =J30+(J18*G_A!X$9) -> 150 | AJ30: =K30+(K18*G_A!Y$9) -> 0 | AK30: =L30+(L18*G_A!Z$9) -> 174.9472478 | AL30: =M30+(M18*G_A!AA$9) -> 0 | AM30: =N30+(N18*G_A!AB$9) -> 0 | AN30: =O30+(O18*G_A!AC$9) -> 0 | AO30: =P30+(P18*G_A!AD$9) -> 0 | AP30: =Q30+(Q18*G_A!AE$9) -> 0 | AQ30: =R30+(R18*G_A!AF$9) -> 0 | AR30: =S30+(S18*G_A!AG$9) -> 0 | AS30: =T30+(T18*G_A!AH$9) -> 0 | AT30: =U30+(U18*G_A!AI$9) -> 140 | AU30: =V30+(V18*G_A!AJ$9) -> 105 | AV30: =W30+(W18*G_A!AK$9) -> 0 | AW30: =X30+(X18*G_A!AL$9) -> 137.1796571 | AX30: =Y30+(Y18*G_A!AM$9) -> 508.3714743
A31: Storage | C31: =SUM(Selection!D123:D130,Selection!D135:D137) -> 0 | D31: =SUM(Selection!E123:E130,Selection!E135:E137) -> 0 | E31: =SUM(Selection!F123:F130,Selection!F135:F137) -> 0 | F31: =SUM(Selection!G123:G130,Selection!G135:G137) -> 0 | G31: =SUM(Selection!H123:H130,Selection!H135:H137) -> 25 | H31: =SUM(Selection!I123:I130,Selection!I135:I137) -> 0 | I31: =SUM(Selection!J123:J130,Selection!J135:J137) -> 35.66204694 | J31: =SUM(Selection!K123:K130,Selection!K135:K137) -> 0 | K31: =SUM(Selection!L123:L130,Selection!L135:L137) -> 0 | L31: =SUM(Selection!M123:M130,Selection!M135:M137) -> 147.4063059 | M31: =SUM(Selection!N123:N130,Selection!N135:N137) -> 0 | N31: =SUM(Selection!O123:O130,Selection!O135:O137) -> 0 | O31: =SUM(Selection!P123:P130,Selection!P135:P137) -> 0 | P31: =SUM(Selection!Q123:Q130,Selection!Q135:Q137) -> 0 | Q31: =SUM(Selection!R123:R130,Selection!R135:R137) -> 0 | R31: =SUM(Selection!S123:S130,Selection!S135:S137) -> 0 | S31: =SUM(Selection!T123:T130,Selection!T135:T137) -> 0 | T31: =SUM(Selection!U123:U130,Selection!U135:U137) -> 51.48488053 | U31: =SUM(Selection!V123:V130,Selection!V135:V137) -> 0 | V31: =SUM(Selection!W123:W130,Selection!W135:W137) -> 0 | W31: =SUM(Selection!X123:X130,Selection!X135:X137) -> 0 | X31: =SUM(Selection!Y123:Y130,Selection!Y135:Y137) -> 25 | Y31: =SUM(Selection!Z123:Z130,Selection!Z135:Z137) -> 100 | AA31: =B31+(B19*G_A!P$9) -> 0 | AB31: =C31+(C19*G_A!Q$9) -> 0 | AC31: =D31+(D19*G_A!R$9) -> 0 | AD31: =E31+(E19*G_A!S$9) -> 0 | AE31: =F31+(F19*G_A!T$9) -> 0 | AF31: =G31+(G19*G_A!U$9) -> 25 | AG31: =H31+(H19*G_A!V$9) -> 0 | AH31: =I31+(I19*G_A!W$9) -> 35.66204694 | AI31: =J31+(J19*G_A!X$9) -> 0 | AJ31: =K31+(K19*G_A!Y$9) -> 0 | AK31: =L31+(L19*G_A!Z$9) -> 147.4063059 | AL31: =M31+(M19*G_A!AA$9) -> 0 | AM31: =N31+(N19*G_A!AB$9) -> 0 | AN31: =O31+(O19*G_A!AC$9) -> 0 | AO31: =P31+(P19*G_A!AD$9) -> 0 | AP31: =Q31+(Q19*G_A!AE$9) -> 0 | AQ31: =R31+(R19*G_A!AF$9) -> 0 | AR31: =S31+(S19*G_A!AG$9) -> 0 | AS31: =T31+(T19*G_A!AH$9) -> 51.48488053 | AT31: =U31+(U19*G_A!AI$9) -> 75.78310577 | AU31: =V31+(V19*G_A!AJ$9) -> 0 | AV31: =W31+(W19*G_A!AK$9) -> 67.99537178 | AW31: =X31+(X19*G_A!AL$9) -> 25 | AX31: =Y31+(Y19*G_A!AM$9) -> 100
... 35 more rows

Sheet Position Summary
A2: PRIOR TO RESOURCE ACQUISITION
B3: Washington | O3: Idaho | AB3: System | AO3: Check
A4: Capacity | B4: 1 | C4: 2 | D4: 3 | E4: 4 | F4: 5 | G4: 6 | H4: 7 | I4: 8 | J4: 9 | K4: 10 | L4: 11 | M4: 12 | O4: 1 | P4: 2 | Q4: 3 | R4: 4 | S4: 5 | T4: 6 | U4: 7 | V4: 8 | W4: 9 | X4: 10 | Y4: 11 | Z4: 12 | AB4: 1 | AC4: 2 | AD4: 3 | AE4: 4 | AF4: 5 | AG4: 6 | AH4: 7 | AI4: 8 | AJ4: 9 | AK4: 10 | AL4: 11 | AM4: 12 | AO4: 1 | AP4: 2 | AQ4: 3 | AR4: 4 | AS4: 5 | AT4: 6 | AU4: 7 | AV4: 8 | AW4: 9 | AX4: 10 | AY4: 11 | AZ4: 12
A5: 2023 | B5: =HLOOKUP($A5&"_"&IF(B$4<10,"0"&B$4,B$4),WA_LR!$C$3:$JR$49,45,FALSE) -> 163.2809294 | C5: =HLOOKUP($A5&"_"&IF(C$4<10,"0"&C$4,C$4),WA_LR!$C$3:$JR$49,45,FALSE) -> 249.370913 | D5: =HLOOKUP($A5&"_"&IF(D$4<10,"0"&D$4,D$4),WA_LR!$C$3:$JR$49,45,FALSE) -> 375.8395313 | E5: =HLOOKUP($A5&"_"&IF(E$4<10,"0"&E$4,E$4),WA_LR!$C$3:$JR$49,45,FALSE) -> 513.5063453 | F5: =HLOOKUP($A5&"_"&IF(F$4<10,"0"&F$4,F$4),WA_LR!$C$3:$JR$49,45,FALSE) -> 344.6428314 | G5: =HLOOKUP($A5&"_"&IF(G$4<10,"0"&G$4,G$4),WA_LR!$C$3:$JR$49,45,FALSE) -> 318.6556751 | H5: =HLOOKUP($A5&"_"&IF(H$4<10,"0"&H$4,H$4),WA_LR!$C$3:$JR$49,45,FALSE) -> 193.5441823 | I5: =HLOOKUP($A5&"_"&IF(I$4<10,"0"&I$4,I$4),WA_LR!$C$3:$JR$49,45,FALSE) -> 152.1940555 | J5: =HLOOKUP($A5&"_"&IF(J$4<10,"0"&J$4,J$4),WA_LR!$C$3:$JR$49,45,FALSE) -> 196.4292209 | K5: =HLOOKUP($A5&"_"&IF(K$4<10,"0"&K$4,K$4),WA_LR!$C$3:$JR$49,45,FALSE) -> 465.8580082 | L5: =HLOOKUP($A5&"_"&IF(L$4<10,"0"&L$4,L$4),WA_LR!$C$3:$JR$49,45,FALSE) -> 340.1196678 | M5: =HLOOKUP($A5&"_"&IF(M$4<10,"0"&M$4,M$4),WA_LR!$C$3:$JR$49,45,FALSE) -> 211.6992046 | O5: =HLOOKUP($A5&"_"&IF(O$4<10,"0"&O$4,O$4),ID_LR!$C$3:$JR$49,45,FALSE) -> 26.75563872 | P5: =HLOOKUP($A5&"_"&IF(P$4<10,"0"&P$4,P$4),ID_LR!$C$3:$JR$49,45,FALSE) -> 89.86819099 | Q5: =HLOOKUP($A5&"_"&IF(Q$4<10,"0"&Q$4,Q$4),ID_LR!$C$3:$JR$49,45,FALSE) -> 146.6724909 | R5: =HLOOKUP($A5&"_"&IF(R$4<10,"0"&R$4,R$4),ID_LR!$C$3:$JR$49,45,FALSE) -> 206.0929989 | S5: =HLOOKUP($A5&"_"&IF(S$4<10,"0"&S$4,S$4),ID_LR!$C$3:$JR$49,45,FALSE) -> 133.4730275 | T5: =HLOOKUP($A5&"_"&IF(T$4<10,"0"&T$4,T$4),ID_LR!$C$3:$JR$49,45,FALSE) -> 132.9105039 | U5: =HLOOKUP($A5&"_"&IF(U$4<10,"0"&U$4,U$4),ID_LR!$C$3:$JR$49,45,FALSE) -> 64.13771866 | V5: =HLOOKUP($A5&"_"&IF(V$4<10,"0"&V$4,V$4),ID_LR!$C$3:$JR$49,45,FALSE) -> 61.07066314 | W5: =HLOOKUP($A5&"_"&IF(W$4<10,"0"&W$4,W$4),ID_LR!$C$3:$JR$49,45,FALSE) -> 88.06116616 | X5: =HLOOKUP($A5&"_"&IF(X$4<10,"0"&X$4,X$4),ID_LR!$C$3:$JR$49,45,FALSE) -> 209.7562342 | Y5: =HLOOKUP($A5&"_"&IF(Y$4<10,"0"&Y$4,Y$4),ID_LR!$C$3:$JR$49,45,FALSE) -> 120.1035406 | Z5: =HLOOKUP($A5&"_"&IF(Z$4<10,"0"&Z$4,Z$4),ID_LR!$C$3:$JR$49,45,FALSE) -> 43.49822155 | AB5: =HLOOKUP($A5&"_"&IF(AB$4<10,"0"&AB$4,AB$4),System_LR!$C$3:$JR$49,45,FALSE) -> 190.4765681 | AC5: =HLOOKUP($A5&"_"&IF(AC$4<10,"0"&AC$4,AC$4),System_LR!$C$3:$JR$49,45,FALSE) -> 339.679104 | AD5: =HLOOKUP($A5&"_"&IF(AD$4<10,"0"&AD$4,AD$4),System_LR!$C$3:$JR$49,45,FALSE) -> 522.9520222 | AE5: =HLOOKUP($A5&"_"&IF(AE$4<10,"0"&AE$4,AE$4),System_LR!$C$3:$JR$49,45,FALSE) -> 720.0393443 | AF5: =HLOOKUP($A5&"_"&IF(AF$4<10,"0"&AF$4,AF$4),System_LR!$C$3:$JR$49,45,FALSE) -> 478.3758589 | AG5: =HLOOKUP($A5&"_"&IF(AG$4<10,"0"&AG$4,AG$4),System_LR!$C$3:$JR$49,45,FALSE) -> 451.826179 | AH5: =HLOOKUP($A5&"_"&IF(AH$4<10,"0"&AH$4,AH$4),System_LR!$C$3:$JR$49,45,FALSE) -> 257.941901 | AI5: =HLOOKUP($A5&"_"&IF(AI$4<10,"0"&AI$4,AI$4),System_LR!$C$3:$JR$49,45,FALSE) -> 213.5247186 | AJ5: =HLOOKUP($A5&"_"&IF(AJ$4<10,"0"&AJ$4,AJ$4),System_LR!$C$3:$JR$49,45,FALSE) -> 284.7503871 | AK5: =HLOOKUP($A5&"_"&IF(AK$4<10,"0"&AK$4,AK$4),System_LR!$C$3:$JR$49,45,FALSE) -> 676.0542424 | AL5: =HLOOKUP($A5&"_"&IF(AL$4<10,"0"&AL$4,AL$4),System_LR!$C$3:$JR$49,45,FALSE) -> 460.6632084 | AM5: =HLOOKUP($A5&"_"&IF(AM$4<10,"0"&AM$4,AM$4),System_LR!$C$3:$JR$49,45,FALSE) -> 255.6374261 | AO5: =B5+O5-AB5 -> -0.44 | AP5: =C5+P5-AC5 -> -0.44 | AQ5: =D5+Q5-AD5 -> -0.44 | AR5: =E5+R5-AE5 -> -0.44 | AS5: =F5+S5-AF5 -> -0.26 | AT5: =G5+T5-AG5 -> -0.26 | AU5: =H5+U5-AH5 -> -0.26 | AV5: =I5+V5-AI5 -> -0.26 | AW5: =J5+W5-AJ5 -> -0.26 | AX5: =K5+X5-AK5 -> -0.44 | AY5: =L5+Y5-AL5 -> -0.44 | AZ5: =M5+Z5-AM5 -> -0.44
A6: 2024 | B6: =HLOOKUP($A6&"_"&IF(B$4<10,"0"&B$4,B$4),WA_LR!$C$3:$JR$49,45,FALSE) -> 220.8546132 | C6: =HLOOKUP($A6&"_"&IF(C$4<10,"0"&C$4,C$4),WA_LR!$C$3:$JR$49,45,FALSE) -> 311.5378718 | D6: =HLOOKUP($A6&"_"&IF(D$4<10,"0"&D$4,D$4),WA_LR!$C$3:$JR$49,45,FALSE) -> 439.6083272 | E6: =HLOOKUP($A6&"_"&IF(E$4<10,"0"&E$4,E$4),WA_LR!$C$3:$JR$49,45,FALSE) -> 570.0072308 | F6: =HLOOKUP($A6&"_"&IF(F$4<10,"0"&F$4,F$4),WA_LR!$C$3:$JR$49,45,FALSE) -> 394.8283289 | G6: =HLOOKUP($A6&"_"&IF(G$4<10,"0"&G$4,G$4),WA_LR!$C$3:$JR$49,45,FALSE) -> 371.1024145 | H6: =HLOOKUP($A6&"_"&IF(H$4<10,"0"&H$4,H$4),WA_LR!$C$3:$JR$49,45,FALSE) -> 240.7162808 | I6: =HLOOKUP($A6&"_"&IF(I$4<10,"0"&I$4,I$4),WA_LR!$C$3:$JR$49,45,FALSE) -> 199.3501999 | J6: =HLOOKUP($A6&"_"&IF(J$4<10,"0"&J$4,J$4),WA_LR!$C$3:$JR$49,45,FALSE) -> 236.0935449 | K6: =HLOOKUP($A6&"_"&IF(K$4<10,"0"&K$4,K$4),WA_LR!$C$3:$JR$49,45,FALSE) -> 526.700952 | L6: =HLOOKUP($A6&"_"&IF(L$4<10,"0"&L$4,L$4),WA_LR!$C$3:$JR$49,45,FALSE) -> 388.6865655 | M6: =HLOOKUP($A6&"_"&IF(M$4<10,"0"&M$4,M$4),WA_LR!$C$3:$JR$49,45,FALSE) -> 264.050023 | O6: =HLOOKUP($A6&"_"&IF(O$4<10,"0"&O$4,O$4),ID_LR!$C$3:$JR$49,45,FALSE) -> 60.38980796 | P6: =HLOOKUP($A6&"_"&IF(P$4<10,"0"&P$4,P$4),ID_LR!$C$3:$JR$49,45,FALSE) -> 125.4443758 | Q6: =HLOOKUP($A6&"_"&IF(Q$4<10,"0"&Q$4,Q$4),ID_LR!$C$3:$JR$49,45,FALSE) -> 182.7550269 | R6: =HLOOKUP($A6&"_"&IF(R$4<10,"0"&R$4,R$4),ID_LR!$C$3:$JR$49,45,FALSE) -> 237.8683951 | S6: =HLOOKUP($A6&"_"&IF(S$4<10,"0"&S$4,S$4),ID_LR!$C$3:$JR$49,45,FALSE) -> 161.5370262 | T6: =HLOOKUP($A6&"_"&IF(T$4<10,"0"&T$4,T$4),ID_LR!$C$3:$JR$49,45,FALSE) -> 161.6737237 | U6: =HLOOKUP($A6&"_"&IF(U$4<10,"0"&U$4,U$4),ID_LR!$C$3:$JR$49,45,FALSE) -> 90.37405927 | V6: =HLOOKUP($A6&"_"&IF(V$4<10,"0"&V$4,V$4),ID_LR!$C$3:$JR$49,45,FALSE) -> 87.3512998 | W6: =HLOOKUP($A6&"_"&IF(W$4<10,"0"&W$4,W$4),ID_LR!$C$3:$JR$49,45,FALSE) -> 110.5655114 | X6: =HLOOKUP($A6&"_"&IF(X$4<10,"0"&X$4,X$4),ID_LR!$C$3:$JR$49,45,FALSE) -> 243.6115455 | Y6: =HLOOKUP($A6&"_"&IF(Y$4<10,"0"&Y$4,Y$4),ID_LR!$C$3:$JR$49,45,FALSE) -> 148.0972373 | Z6: =HLOOKUP($A6&"_"&IF(Z$4<10,"0"&Z$4,Z$4),ID_LR!$C$3:$JR$49,45,FALSE) -> 74.1342768 | AB6: =HLOOKUP($A6&"_"&IF(AB$4<10,"0"&AB$4,AB$4),System_LR!$C$3:$JR$49,45,FALSE) -> 281.6844211 | AC6: =HLOOKUP($A6&"_"&IF(AC$4<10,"0"&AC$4,AC$4),System_LR!$C$3:$JR$49,45,FALSE) -> 437.4222476 | AD6: =HLOOKUP($A6&"_"&IF(AD$4<10,"0"&AD$4,AD$4),System_LR!$C$3:$JR$49,45,FALSE) -> 622.8033541 | AE6: =HLOOKUP($A6&"_"&IF(AE$4<10,"0"&AE$4,AE$4),System_LR!$C$3:$JR$49,45,FALSE) -> 808.3156259 | AF6: =HLOOKUP($A6&"_"&IF(AF$4<10,"0"&AF$4,AF$4),System_LR!$C$3:$JR$49,45,FALSE) -> 556.6253551 | AG6: =HLOOKUP($A6&"_"&IF(AG$4<10,"0"&AG$4,AG$4),System_LR!$C$3:$JR$49,45,FALSE) -> 533.0361382 | AH6: =HLOOKUP($A6&"_"&IF(AH$4<10,"0"&AH$4,AH$4),System_LR!$C$3:$JR$49,45,FALSE) -> 331.3503401 | AI6: =HLOOKUP($A6&"_"&IF(AI$4<10,"0"&AI$4,AI$4),System_LR!$C$3:$JR$49,45,FALSE) -> 286.9614997 | AJ6: =HLOOKUP($A6&"_"&IF(AJ$4<10,"0"&AJ$4,AJ$4),System_LR!$C$3:$JR$49,45,FALSE) -> 346.9190564 | AK6: =HLOOKUP($A6&"_"&IF(AK$4<10,"0"&AK$4,AK$4),System_LR!$C$3:$JR$49,45,FALSE) -> 770.7524975 | AL6: =HLOOKUP($A6&"_"&IF(AL$4<10,"0"&AL$4,AL$4),System_LR!$C$3:$JR$49,45,FALSE) -> 537.2238028 | AM6: =HLOOKUP($A6&"_"&IF(AM$4<10,"0"&AM$4,AM$4),System_LR!$C$3:$JR$49,45,FALSE) -> 338.6242998 | AO6: =B6+O6-AB6 -> -0.44 | AP6: -0.44 | AQ6: -0.44 | AR6: -0.44 | AS6: -0.26 | AT6: -0.26 | AU6: -0.26 | AV6: -0.26 | AW6: -0.26 | AX6: -0.44 | AY6: -0.44 | AZ6: -0.44
A7: 2025 | B7: =HLOOKUP($A7&"_"&IF(B$4<10,"0"&B$4,B$4),WA_LR!$C$3:$JR$49,45,FALSE) -> 215.8665775 | C7: =HLOOKUP($A7&"_"&IF(C$4<10,"0"&C$4,C$4),WA_LR!$C$3:$JR$49,45,FALSE) -> 307.6013253 | D7: =HLOOKUP($A7&"_"&IF(D$4<10,"0"&D$4,D$4),WA_LR!$C$3:$JR$49,45,FALSE) -> 434.9528046 | E7: =HLOOKUP($A7&"_"&IF(E$4<10,"0"&E$4,E$4),WA_LR!$C$3:$JR$49,45,FALSE) -> 597.233459 | F7: =HLOOKUP($A7&"_"&IF(F$4<10,"0"&F$4,F$4),WA_LR!$C$3:$JR$49,45,FALSE) -> 450.9237112 | G7: =HLOOKUP($A7&"_"&IF(G$4<10,"0"&G$4,G$4),WA_LR!$C$3:$JR$49,45,FALSE) -> 430.1350831 | H7: =HLOOKUP($A7&"_"&IF(H$4<10,"0"&H$4,H$4),WA_LR!$C$3:$JR$49,45,FALSE) -> 296.1246079 | I7: =HLOOKUP($A7&"_"&IF(I$4<10,"0"&I$4,I$4),WA_LR!$C$3:$JR$49,45,FALSE) -> 251.8982702 | J7: =HLOOKUP($A7&"_"&IF(J$4<10,"0"&J$4,J$4),WA_LR!$C$3:$JR$49,45,FALSE) -> 291.4532398 | K7: =HLOOKUP($A7&"_"&IF(K$4<10,"0"&K$4,K$4),WA_LR!$C$3:$JR$49,45,FALSE) -> 554.5605789 | L7: =HLOOKUP($A7&"_"&IF(L$4<10,"0"&L$4,L$4),WA_LR!$C$3:$JR$49,45,FALSE) -> 383.0351488 | M7: =HLOOKUP($A7&"_"&IF(M$4<10,"0"&M$4,M$4),WA_LR!$C$3:$JR$49,45,FALSE) -> 258.3158166 | O7: =HLOOKUP($A7&"_"&IF(O$4<10,"0"&O$4,O$4),ID_LR!$C$3:$JR$49,45,FALSE) -> 58.46078756 | P7: =HLOOKUP($A7&"_"&IF(P$4<10,"0"&P$4,P$4),ID_LR!$C$3:$JR$49,45,FALSE) -> 123.6563204 | Q7: =HLOOKUP($A7&"_"&IF(Q$4<10,"0"&Q$4,Q$4),ID_LR!$C$3:$JR$49,45,FALSE) -> 180.5377831 | R7: =HLOOKUP($A7&"_"&IF(R$4<10,"0"&R$4,R$4),ID_LR!$C$3:$JR$49,45,FALSE) -> 251.9914852 | S7: =HLOOKUP($A7&"_"&IF(S$4<10,"0"&S$4,S$4),ID_LR!$C$3:$JR$49,45,FALSE) -> 190.2814897 | T7: =HLOOKUP($A7&"_"&IF(T$4<10,"0"&T$4,T$4),ID_LR!$C$3:$JR$49,45,FALSE) -> 191.4793346 | U7: =HLOOKUP($A7&"_"&IF(U$4<10,"0"&U$4,U$4),ID_LR!$C$3:$JR$49,45,FALSE) -> 118.3383352 | V7: =HLOOKUP($A7&"_"&IF(V$4<10,"0"&V$4,V$4),ID_LR!$C$3:$JR$49,45,FALSE) -> 114.0067365 | W7: =HLOOKUP($A7&"_"&IF(W$4<10,"0"&W$4,W$4),ID_LR!$C$3:$JR$49,45,FALSE) -> 138.5334624 | X7: =HLOOKUP($A7&"_"&IF(X$4<10,"0"&X$4,X$4),ID_LR!$C$3:$JR$49,45,FALSE) -> 257.9381899 | Y7: =HLOOKUP($A7&"_"&IF(Y$4<10,"0"&Y$4,Y$4),ID_LR!$C$3:$JR$49,45,FALSE) -> 145.2644567 | Z7: =HLOOKUP($A7&"_"&IF(Z$4<10,"0"&Z$4,Z$4),ID_LR!$C$3:$JR$49,45,FALSE) -> 71.67592068 | AB7: =HLOOKUP($A7&"_"&IF(AB$4<10,"0"&AB$4,AB$4),System_LR!$C$3:$JR$49,45,FALSE) -> 274.7673651 | AC7: =HLOOKUP($A7&"_"&IF(AC$4<10,"0"&AC$4,AC$4),System_LR!$C$3:$JR$49,45,FALSE) -> 431.6976457 | AD7: =HLOOKUP($A7&"_"&IF(AD$4<10,"0"&AD$4,AD$4),System_LR!$C$3:$JR$49,45,FALSE) -> 615.9305877 | AE7: =HLOOKUP($A7&"_"&IF(AE$4<10,"0"&AE$4,AE$4),System_LR!$C$3:$JR$49,45,FALSE) -> 849.6649442 | AF7: =HLOOKUP($A7&"_"&IF(AF$4<10,"0"&AF$4,AF$4),System_LR!$C$3:$JR$49,45,FALSE) -> 641.4652009 | AG7: =HLOOKUP($A7&"_"&IF(AG$4<10,"0"&AG$4,AG$4),System_LR!$C$3:$JR$49,45,FALSE) -> 621.8744177 | AH7: =HLOOKUP($A7&"_"&IF(AH$4<10,"0"&AH$4,AH$4),System_LR!$C$3:$JR$49,45,FALSE) -> 414.7229431 | AI7: =HLOOKUP($A7&"_"&IF(AI$4<10,"0"&AI$4,AI$4),System_LR!$C$3:$JR$49,45,FALSE) -> 366.1650068 | AJ7: =HLOOKUP($A7&"_"&IF(AJ$4<10,"0"&AJ$4,AJ$4),System_LR!$C$3:$JR$49,45,FALSE) -> 430.2467022 | AK7: =HLOOKUP($A7&"_"&IF(AK$4<10,"0"&AK$4,AK$4),System_LR!$C$3:$JR$49,45,FALSE) -> 812.9387688 | AL7: =HLOOKUP($A7&"_"&IF(AL$4<10,"0"&AL$4,AL$4),System_LR!$C$3:$JR$49,45,FALSE) -> 528.7396056 | AM7: =HLOOKUP($A7&"_"&IF(AM$4<10,"0"&AM$4,AM$4),System_LR!$C$3:$JR$49,45,FALSE) -> 330.4317373 | AO7: -0.44 | AP7: -0.44 | AQ7: -0.44 | AR7: =E7+R7-AE7 -> -0.44 | AS7: -0.26 | AT7: -0.26 | AU7: -0.26 | AV7: -0.26 | AW7: -0.26 | AX7: -0.44 | AY7: -0.44 | AZ7: -0.44
A8: 2026 | B8: =HLOOKUP($A8&"_"&IF(B$4<10,"0"&B$4,B$4),WA_LR!$C$3:$JR$49,45,FALSE) -> 151.0198476 | C8: =HLOOKUP($A8&"_"&IF(C$4<10,"0"&C$4,C$4),WA_LR!$C$3:$JR$49,45,FALSE) -> 246.1742021 | D8: =HLOOKUP($A8&"_"&IF(D$4<10,"0"&D$4,D$4),WA_LR!$C$3:$JR$49,45,FALSE) -> 373.1943538 | E8: =HLOOKUP($A8&"_"&IF(E$4<10,"0"&E$4,E$4),WA_LR!$C$3:$JR$49,45,FALSE) -> 535.3515388 | F8: =HLOOKUP($A8&"_"&IF(F$4<10,"0"&F$4,F$4),WA_LR!$C$3:$JR$49,45,FALSE) -> 386.8972462 | G8: =HLOOKUP($A8&"_"&IF(G$4<10,"0"&G$4,G$4),WA_LR!$C$3:$JR$49,45,FALSE) -> 372.9618943 | H8: =HLOOKUP($A8&"_"&IF(H$4<10,"0"&H$4,H$4),WA_LR!$C$3:$JR$49,45,FALSE) -> 236.0526091 | I8: =HLOOKUP($A8&"_"&IF(I$4<10,"0"&I$4,I$4),WA_LR!$C$3:$JR$49,45,FALSE) -> 185.1641297 | J8: =HLOOKUP($A8&"_"&IF(J$4<10,"0"&J$4,J$4),WA_LR!$C$3:$JR$49,45,FALSE) -> 226.2804256 | K8: =HLOOKUP($A8&"_"&IF(K$4<10,"0"&K$4,K$4),WA_LR!$C$3:$JR$49,45,FALSE) -> 495.5407435 | L8: =HLOOKUP($A8&"_"&IF(L$4<10,"0"&L$4,L$4),WA_LR!$C$3:$JR$49,45,FALSE) -> 310.9542267 | M8: =HLOOKUP($A8&"_"&IF(M$4<10,"0"&M$4,M$4),WA_LR!$C$3:$JR$49,45,FALSE) -> 190.162086 | O8: =HLOOKUP($A8&"_"&IF(O$4<10,"0"&O$4,O$4),ID_LR!$C$3:$JR$49,45,FALSE) -> 24.86523111 | P8: =HLOOKUP($A8&"_"&IF(P$4<10,"0"&P$4,P$4),ID_LR!$C$3:$JR$49,45,FALSE) -> 91.52619967 | Q8: =HLOOKUP($A8&"_"&IF(Q$4<10,"0"&Q$4,Q$4),ID_LR!$C$3:$JR$49,45,FALSE) -> 148.1772687 | R8: =HLOOKUP($A8&"_"&IF(R$4<10,"0"&R$4,R$4),ID_LR!$C$3:$JR$49,45,FALSE) -> 219.2635387 | S8: =HLOOKUP($A8&"_"&IF(S$4<10,"0"&S$4,S$4),ID_LR!$C$3:$JR$49,45,FALSE) -> 155.9511324 | T8: =HLOOKUP($A8&"_"&IF(T$4<10,"0"&T$4,T$4),ID_LR!$C$3:$JR$49,45,FALSE) -> 160.2079394 | U8: =HLOOKUP($A8&"_"&IF(U$4<10,"0"&U$4,U$4),ID_LR!$C$3:$JR$49,45,FALSE) -> 85.53232857 | V8: =HLOOKUP($A8&"_"&IF(V$4<10,"0"&V$4,V$4),ID_LR!$C$3:$JR$49,45,FALSE) -> 77.94099891 | W8: =HLOOKUP($A8&"_"&IF(W$4<10,"0"&W$4,W$4),ID_LR!$C$3:$JR$49,45,FALSE) -> 103.1813711 | X8: =HLOOKUP($A8&"_"&IF(X$4<10,"0"&X$4,X$4),ID_LR!$C$3:$JR$49,45,FALSE) -> 226.6064456 | Y8: =HLOOKUP($A8&"_"&IF(Y$4<10,"0"&Y$4,Y$4),ID_LR!$C$3:$JR$49,45,FALSE) -> 107.3943776 | Z8: =HLOOKUP($A8&"_"&IF(Z$4<10,"0"&Z$4,Z$4),ID_LR!$C$3:$JR$49,45,FALSE) -> 36.21145952 | AB8: =HLOOKUP($A8&"_"&IF(AB$4<10,"0"&AB$4,AB$4),System_LR!$C$3:$JR$49,45,FALSE) -> 176.3250787 | AC8: =HLOOKUP($A8&"_"&IF(AC$4<10,"0"&AC$4,AC$4),System_LR!$C$3:$JR$49,45,FALSE) -> 338.1404018 | AD8: =HLOOKUP($A8&"_"&IF(AD$4<10,"0"&AD$4,AD$4),System_LR!$C$3:$JR$49,45,FALSE) -> 521.8116226 | AE8: =HLOOKUP($A8&"_"&IF(AE$4<10,"0"&AE$4,AE$4),System_LR!$C$3:$JR$49,45,FALSE) -> 755.0550775 | AF8: =HLOOKUP($A8&"_"&IF(AF$4<10,"0"&AF$4,AF$4),System_LR!$C$3:$JR$49,45,FALSE) -> 543.1083787 | AG8: =HLOOKUP($A8&"_"&IF(AG$4<10,"0"&AG$4,AG$4),System_LR!$C$3:$JR$49,45,FALSE) -> 533.4298337 | AH8: =HLOOKUP($A8&"_"&IF(AH$4<10,"0"&AH$4,AH$4),System_LR!$C$3:$JR$49,45,FALSE) -> 321.8449376 | AI8: =HLOOKUP($A8&"_"&IF(AI$4<10,"0"&AI$4,AI$4),System_LR!$C$3:$JR$49,45,FALSE) -> 263.3651286 | AJ8: =HLOOKUP($A8&"_"&IF(AJ$4<10,"0"&AJ$4,AJ$4),System_LR!$C$3:$JR$49,45,FALSE) -> 329.7217967 | AK8: =HLOOKUP($A8&"_"&IF(AK$4<10,"0"&AK$4,AK$4),System_LR!$C$3:$JR$49,45,FALSE) -> 722.5871891 | AL8: =HLOOKUP($A8&"_"&IF(AL$4<10,"0"&AL$4,AL$4),System_LR!$C$3:$JR$49,45,FALSE) -> 137.119345 | AM8: =HLOOKUP($A8&"_"&IF(AM$4<10,"0"&AM$4,AM$4),System_LR!$C$3:$JR$49,45,FALSE) -> -54.85571369 | AO8: -0.44 | AP8: -0.44 | AQ8: -0.44 | AR8: -0.44 | AS8: -0.26 | AT8: -0.26 | AU8: -0.26 | AV8: -0.26 | AW8: -0.26 | AX8: -0.44 | AY8: 281.2292593 | AZ8: 281.2292593
A9: 2027 | B9: =HLOOKUP($A9&"_"&IF(B$4<10,"0"&B$4,B$4),WA_LR!$C$3:$JR$49,45,FALSE) -> -42.92595244 | C9: =HLOOKUP($A9&"_"&IF(C$4<10,"0"&C$4,C$4),WA_LR!$C$3:$JR$49,45,FALSE) -> 54.824383 | D9: =HLOOKUP($A9&"_"&IF(D$4<10,"0"&D$4,D$4),WA_LR!$C$3:$JR$49,45,FALSE) -> 184.2403327 | E9: =HLOOKUP($A9&"_"&IF(E$4<10,"0"&E$4,E$4),WA_LR!$C$3:$JR$49,45,FALSE) -> 367.4543848 | F9: =HLOOKUP($A9&"_"&IF(F$4<10,"0"&F$4,F$4),WA_LR!$C$3:$JR$49,45,FALSE) -> 234.6744018 | G9: =HLOOKUP($A9&"_"&IF(G$4<10,"0"&G$4,G$4),WA_LR!$C$3:$JR$49,45,FALSE) -> 224.4712199 | H9: =HLOOKUP($A9&"_"&IF(H$4<10,"0"&H$4,H$4),WA_LR!$C$3:$JR$49,45,FALSE) -> 88.27192581 | I9: =HLOOKUP($A9&"_"&IF(I$4<10,"0"&I$4,I$4),WA_LR!$C$3:$JR$49,45,FALSE) -> 33.21019635 | J9: =HLOOKUP($A9&"_"&IF(J$4<10,"0"&J$4,J$4),WA_LR!$C$3:$JR$49,45,FALSE) -> 74.38982274 | K9: =HLOOKUP($A9&"_"&IF(K$4<10,"0"&K$4,K$4),WA_LR!$C$3:$JR$49,45,FALSE) -> 315.1033955 | L9: =HLOOKUP($A9&"_"&IF(L$4<10,"0"&L$4,L$4),WA_LR!$C$3:$JR$49,45,FALSE) -> 119.1271967 | M9: =HLOOKUP($A9&"_"&IF(M$4<10,"0"&M$4,M$4),WA_LR!$C$3:$JR$49,45,FALSE) -> -2.800797761 | O9: =HLOOKUP($A9&"_"&IF(O$4<10,"0"&O$4,O$4),ID_LR!$C$3:$JR$49,45,FALSE) -> -73.44865174 | P9: =HLOOKUP($A9&"_"&IF(P$4<10,"0"&P$4,P$4),ID_LR!$C$3:$JR$49,45,FALSE) -> -6.672404659 | Q9: =HLOOKUP($A9&"_"&IF(Q$4<10,"0"&Q$4,Q$4),ID_LR!$C$3:$JR$49,45,FALSE) -> 49.15959196 | R9: =HLOOKUP($A9&"_"&IF(R$4<10,"0"&R$4,R$4),ID_LR!$C$3:$JR$49,45,FALSE) -> 129.4203994 | S9: =HLOOKUP($A9&"_"&IF(S$4<10,"0"&S$4,S$4),ID_LR!$C$3:$JR$49,45,FALSE) -> 72.07596028 | T9: =HLOOKUP($A9&"_"&IF(T$4<10,"0"&T$4,T$4),ID_LR!$C$3:$JR$49,45,FALSE) -> 77.72547052 | U9: =HLOOKUP($A9&"_"&IF(U$4<10,"0"&U$4,U$4),ID_LR!$C$3:$JR$49,45,FALSE) -> 2.470901028 | V9: =HLOOKUP($A9&"_"&IF(V$4<10,"0"&V$4,V$4),ID_LR!$C$3:$JR$49,45,FALSE) -> -6.431158549 | W9: =HLOOKUP($A9&"_"&IF(W$4<10,"0"&W$4,W$4),ID_LR!$C$3:$JR$49,45,FALSE) -> 19.63824688 | X9: =HLOOKUP($A9&"_"&IF(X$4<10,"0"&X$4,X$4),ID_LR!$C$3:$JR$49,45,FALSE) -> 130.9961019 | Y9: =HLOOKUP($A9&"_"&IF(Y$4<10,"0"&Y$4,Y$4),ID_LR!$C$3:$JR$49,45,FALSE) -> 8.721738591 | Z9: =HLOOKUP($A9&"_"&IF(Z$4<10,"0"&Z$4,Z$4),ID_LR!$C$3:$JR$49,45,FALSE) -> -61.11969359 | AB9: =HLOOKUP($A9&"_"&IF(AB$4<10,"0"&AB$4,AB$4),System_LR!$C$3:$JR$49,45,FALSE) -> -115.9346042 | AC9: =HLOOKUP($A9&"_"&IF(AC$4<10,"0"&AC$4,AC$4),System_LR!$C$3:$JR$49,45,FALSE) -> 48.59197834 | AD9: =HLOOKUP($A9&"_"&IF(AD$4<10,"0"&AD$4,AD$4),System_LR!$C$3:$JR$49,45,FALSE) -> 233.8399246 | AE9: =HLOOKUP($A9&"_"&IF(AE$4<10,"0"&AE$4,AE$4),System_LR!$C$3:$JR$49,45,FALSE) -> 497.3147841 | AF9: =HLOOKUP($A9&"_"&IF(AF$4<10,"0"&AF$4,AF$4),System_LR!$C$3:$JR$49,45,FALSE) -> 307.0103621 | AG9: =HLOOKUP($A9&"_"&IF(AG$4<10,"0"&AG$4,AG$4),System_LR!$C$3:$JR$49,45,FALSE) -> 302.4566904 | AH9: =HLOOKUP($A9&"_"&IF(AH$4<10,"0"&AH$4,AH$4),System_LR!$C$3:$JR$49,45,FALSE) -> 91.00282684 | AI9: =HLOOKUP($A9&"_"&IF(AI$4<10,"0"&AI$4,AI$4),System_LR!$C$3:$JR$49,45,FALSE) -> 27.0390378 | AJ9: =HLOOKUP($A9&"_"&IF(AJ$4<10,"0"&AJ$4,AJ$4),System_LR!$C$3:$JR$49,45,FALSE) -> 94.28806962 | AK9: =HLOOKUP($A9&"_"&IF(AK$4<10,"0"&AK$4,AK$4),System_LR!$C$3:$JR$49,45,FALSE) -> 446.5394974 | AL9: =HLOOKUP($A9&"_"&IF(AL$4<10,"0"&AL$4,AL$4),System_LR!$C$3:$JR$49,45,FALSE) -> 128.2889353 | AM9: =HLOOKUP($A9&"_"&IF(AM$4<10,"0"&AM$4,AM$4),System_LR!$C$3:$JR$49,45,FALSE) -> -63.48049135 | AO9: -0.44 | AP9: -0.44 | AQ9: -0.44 | AR9: -0.44 | AS9: -0.26 | AT9: -0.26 | AU9: -0.26 | AV9: -0.26 | AW9: -0.26 | AX9: -0.44 | AY9: -0.44 | AZ9: -0.44
A10: 2028 | B10: =HLOOKUP($A10&"_"&IF(B$4<10,"0"&B$4,B$4),WA_LR!$C$3:$JR$49,45,FALSE) -> -47.59891789 | C10: =HLOOKUP($A10&"_"&IF(C$4<10,"0"&C$4,C$4),WA_LR!$C$3:$JR$49,45,FALSE) -> 47.56455045 | D10: =HLOOKUP($A10&"_"&IF(D$4<10,"0"&D$4,D$4),WA_LR!$C$3:$JR$49,45,FALSE) -> 176.760149 | E10: =HLOOKUP($A10&"_"&IF(E$4<10,"0"&E$4,E$4),WA_LR!$C$3:$JR$49,45,FALSE) -> 362.4693379 | F10: =HLOOKUP($A10&"_"&IF(F$4<10,"0"&F$4,F$4),WA_LR!$C$3:$JR$49,45,FALSE) -> 226.8831323 | G10: =HLOOKUP($A10&"_"&IF(G$4<10,"0"&G$4,G$4),WA_LR!$C$3:$JR$49,45,FALSE) -> 226.910093 | H10: =HLOOKUP($A10&"_"&IF(H$4<10,"0"&H$4,H$4),WA_LR!$C$3:$JR$49,45,FALSE) -> 81.11037221 | I10: =HLOOKUP($A10&"_"&IF(I$4<10,"0"&I$4,I$4),WA_LR!$C$3:$JR$49,45,FALSE) -> 29.35640798 | J10: =HLOOKUP($A10&"_"&IF(J$4<10,"0"&J$4,J$4),WA_LR!$C$3:$JR$49,45,FALSE) -> 64.55964309 | K10: =HLOOKUP($A10&"_"&IF(K$4<10,"0"&K$4,K$4),WA_LR!$C$3:$JR$49,45,FALSE) -> 296.5906246 | L10: =HLOOKUP($A10&"_"&IF(L$4<10,"0"&L$4,L$4),WA_LR!$C$3:$JR$49,45,FALSE) -> 98.95714129 | M10: =HLOOKUP($A10&"_"&IF(M$4<10,"0"&M$4,M$4),WA_LR!$C$3:$JR$49,45,FALSE) -> -21.50207529 | O10: =HLOOKUP($A10&"_"&IF(O$4<10,"0"&O$4,O$4),ID_LR!$C$3:$JR$49,45,FALSE) -> -75.84694512 | P10: =HLOOKUP($A10&"_"&IF(P$4<10,"0"&P$4,P$4),ID_LR!$C$3:$JR$49,45,FALSE) -> -10.30508234 | Q10: =HLOOKUP($A10&"_"&IF(Q$4<10,"0"&Q$4,Q$4),ID_LR!$C$3:$JR$49,45,FALSE) -> 44.8299022 | R10: =HLOOKUP($A10&"_"&IF(R$4<10,"0"&R$4,R$4),ID_LR!$C$3:$JR$49,45,FALSE) -> 125.8695106 | S10: =HLOOKUP($A10&"_"&IF(S$4<10,"0"&S$4,S$4),ID_LR!$C$3:$JR$49,45,FALSE) -> 66.14545008 | T10: =HLOOKUP($A10&"_"&IF(T$4<10,"0"&T$4,T$4),ID_LR!$C$3:$JR$49,45,FALSE) -> 76.56382442 | U10: =HLOOKUP($A10&"_"&IF(U$4<10,"0"&U$4,U$4),ID_LR!$C$3:$JR$49,45,FALSE) -> -3.835986899 | V10: =HLOOKUP($A10&"_"&IF(V$4<10,"0"&V$4,V$4),ID_LR!$C$3:$JR$49,45,FALSE) -> -10.96655651 | W10: =HLOOKUP($A10&"_"&IF(W$4<10,"0"&W$4,W$4),ID_LR!$C$3:$JR$49,45,FALSE) -> 12.20576532 | X10: =HLOOKUP($A10&"_"&IF(X$4<10,"0"&X$4,X$4),ID_LR!$C$3:$JR$49,45,FALSE) -> 120.4289027 | Y10: =HLOOKUP($A10&"_"&IF(Y$4<10,"0"&Y$4,Y$4),ID_LR!$C$3:$JR$49,45,FALSE) -> -2.088036225 | Z10: =HLOOKUP($A10&"_"&IF(Z$4<10,"0"&Z$4,Z$4),ID_LR!$C$3:$JR$49,45,FALSE) -> -70.68009777 | AB10: =HLOOKUP($A10&"_"&IF(AB$4<10,"0"&AB$4,AB$4),System_LR!$C$3:$JR$49,45,FALSE) -> -123.005863 | AC10: =HLOOKUP($A10&"_"&IF(AC$4<10,"0"&AC$4,AC$4),System_LR!$C$3:$JR$49,45,FALSE) -> 37.69946811 | AD10: =HLOOKUP($A10&"_"&IF(AD$4<10,"0"&AD$4,AD$4),System_LR!$C$3:$JR$49,45,FALSE) -> 222.0300512 | AE10: =HLOOKUP($A10&"_"&IF(AE$4<10,"0"&AE$4,AE$4),System_LR!$C$3:$JR$49,45,FALSE) -> 488.7788485 | AF10: =HLOOKUP($A10&"_"&IF(AF$4<10,"0"&AF$4,AF$4),System_LR!$C$3:$JR$49,45,FALSE) -> 293.2885823 | AG10: =HLOOKUP($A10&"_"&IF(AG$4<10,"0"&AG$4,AG$4),System_LR!$C$3:$JR$49,45,FALSE) -> 303.7339174 | AH10: =HLOOKUP($A10&"_"&IF(AH$4<10,"0"&AH$4,AH$4),System_LR!$C$3:$JR$49,45,FALSE) -> 77.53438532 | AI10: =HLOOKUP($A10&"_"&IF(AI$4<10,"0"&AI$4,AI$4),System_LR!$C$3:$JR$49,45,FALSE) -> 18.64985147 | AJ10: =HLOOKUP($A10&"_"&IF(AJ$4<10,"0"&AJ$4,AJ$4),System_LR!$C$3:$JR$49,45,FALSE) -> 77.02540841 | AK10: =HLOOKUP($A10&"_"&IF(AK$4<10,"0"&AK$4,AK$4),System_LR!$C$3:$JR$49,45,FALSE) -> 417.4595273 | AL10: =HLOOKUP($A10&"_"&IF(AL$4<10,"0"&AL$4,AL$4),System_LR!$C$3:$JR$49,45,FALSE) -> 97.30910507 | AM10: =HLOOKUP($A10&"_"&IF(AM$4<10,"0"&AM$4,AM$4),System_LR!$C$3:$JR$49,45,FALSE) -> -91.74217306 | AO10: -0.44 | AP10: -0.44 | AQ10: -0.44 | AR10: -0.44 | AS10: -0.26 | AT10: -0.26 | AU10: -0.26 | AV10: -0.26 | AW10: -0.26 | AX10: -0.44 | AY10: -0.44 | AZ10: -0.44
A11: 2029 | B11: =HLOOKUP($A11&"_"&IF(B$4<10,"0"&B$4,B$4),WA_LR!$C$3:$JR$49,45,FALSE) -> -68.79739135 | C11: =HLOOKUP($A11&"_"&IF(C$4<10,"0"&C$4,C$4),WA_LR!$C$3:$JR$49,45,FALSE) -> 28.55523061 | D11: =HLOOKUP($A11&"_"&IF(D$4<10,"0"&D$4,D$4),WA_LR!$C$3:$JR$49,45,FALSE) -> 156.1402838 | E11: =HLOOKUP($A11&"_"&IF(E$4<10,"0"&E$4,E$4),WA_LR!$C$3:$JR$49,45,FALSE) -> 342.2477242 | F11: =HLOOKUP($A11&"_"&IF(F$4<10,"0"&F$4,F$4),WA_LR!$C$3:$JR$49,45,FALSE) -> 203.7677092 | G11: =HLOOKUP($A11&"_"&IF(G$4<10,"0"&G$4,G$4),WA_LR!$C$3:$JR$49,45,FALSE) -> 201.8030812 | H11: =HLOOKUP($A11&"_"&IF(H$4<10,"0"&H$4,H$4),WA_LR!$C$3:$JR$49,45,FALSE) -> 56.27104184 | I11: =HLOOKUP($A11&"_"&IF(I$4<10,"0"&I$4,I$4),WA_LR!$C$3:$JR$49,45,FALSE) -> 8.26499916 | J11: =HLOOKUP($A11&"_"&IF(J$4<10,"0"&J$4,J$4),WA_LR!$C$3:$JR$49,45,FALSE) -> 44.26994552 | K11: =HLOOKUP($A11&"_"&IF(K$4<10,"0"&K$4,K$4),WA_LR!$C$3:$JR$49,45,FALSE) -> 290.2290145 | L11: =HLOOKUP($A11&"_"&IF(L$4<10,"0"&L$4,L$4),WA_LR!$C$3:$JR$49,45,FALSE) -> 90.55266835 | M11: =HLOOKUP($A11&"_"&IF(M$4<10,"0"&M$4,M$4),WA_LR!$C$3:$JR$49,45,FALSE) -> -31.35343696 | O11: =HLOOKUP($A11&"_"&IF(O$4<10,"0"&O$4,O$4),ID_LR!$C$3:$JR$49,45,FALSE) -> -86.70272459 | P11: =HLOOKUP($A11&"_"&IF(P$4<10,"0"&P$4,P$4),ID_LR!$C$3:$JR$49,45,FALSE) -> -20.51050968 | Q11: =HLOOKUP($A11&"_"&IF(Q$4<10,"0"&Q$4,Q$4),ID_LR!$C$3:$JR$49,45,FALSE) -> 33.68889963 | R11: =HLOOKUP($A11&"_"&IF(R$4<10,"0"&R$4,R$4),ID_LR!$C$3:$JR$49,45,FALSE) -> 114.4097777 | S11: =HLOOKUP($A11&"_"&IF(S$4<10,"0"&S$4,S$4),ID_LR!$C$3:$JR$49,45,FALSE) -> 52.1962713 | T11: =HLOOKUP($A11&"_"&IF(T$4<10,"0"&T$4,T$4),ID_LR!$C$3:$JR$49,45,FALSE) -> 61.17942889 | U11: =HLOOKUP($A11&"_"&IF(U$4<10,"0"&U$4,U$4),ID_LR!$C$3:$JR$49,45,FALSE) -> -19.40391715 | V11: =HLOOKUP($A11&"_"&IF(V$4<10,"0"&V$4,V$4),ID_LR!$C$3:$JR$49,45,FALSE) -> -24.48109361 | W11: =HLOOKUP($A11&"_"&IF(W$4<10,"0"&W$4,W$4),ID_LR!$C$3:$JR$49,45,FALSE) -> -0.7848278192 | X11: =HLOOKUP($A11&"_"&IF(X$4<10,"0"&X$4,X$4),ID_LR!$C$3:$JR$49,45,FALSE) -> 116.3030879 | Y11: =HLOOKUP($A11&"_"&IF(Y$4<10,"0"&Y$4,Y$4),ID_LR!$C$3:$JR$49,45,FALSE) -> -6.65700391 | Z11: =HLOOKUP($A11&"_"&IF(Z$4<10,"0"&Z$4,Z$4),ID_LR!$C$3:$JR$49,45,FALSE) -> -75.56020457 | AB11: =HLOOKUP($A11&"_"&IF(AB$4<10,"0"&AB$4,AB$4),System_LR!$C$3:$JR$49,45,FALSE) -> -155.0601159 | AC11: =HLOOKUP($A11&"_"&IF(AC$4<10,"0"&AC$4,AC$4),System_LR!$C$3:$JR$49,45,FALSE) -> 8.484720936 | AD11: =HLOOKUP($A11&"_"&IF(AD$4<10,"0"&AD$4,AD$4),System_LR!$C$3:$JR$49,45,FALSE) -> 190.2691835 | AE11: =HLOOKUP($A11&"_"&IF(AE$4<10,"0"&AE$4,AE$4),System_LR!$C$3:$JR$49,45,FALSE) -> 457.0975018 | AF11: =HLOOKUP($A11&"_"&IF(AF$4<10,"0"&AF$4,AF$4),System_LR!$C$3:$JR$49,45,FALSE) -> 256.2239805 | AG11: =HLOOKUP($A11&"_"&IF(AG$4<10,"0"&AG$4,AG$4),System_LR!$C$3:$JR$49,45,FALSE) -> 263.2425101 | AH11: =HLOOKUP($A11&"_"&IF(AH$4<10,"0"&AH$4,AH$4),System_LR!$C$3:$JR$49,45,FALSE) -> 37.12712468 | AI11: =HLOOKUP($A11&"_"&IF(AI$4<10,"0"&AI$4,AI$4),System_LR!$C$3:$JR$49,45,FALSE) -> -15.95609445 | AJ11: =HLOOKUP($A11&"_"&IF(AJ$4<10,"0"&AJ$4,AJ$4),System_LR!$C$3:$JR$49,45,FALSE) -> 43.74511771 | AK11: =HLOOKUP($A11&"_"&IF(AK$4<10,"0"&AK$4,AK$4),System_LR!$C$3:$JR$49,45,FALSE) -> 406.9721024 | AL11: =HLOOKUP($A11&"_"&IF(AL$4<10,"0"&AL$4,AL$4),System_LR!$C$3:$JR$49,45,FALSE) -> 84.33566444 | AM11: =HLOOKUP($A11&"_"&IF(AM$4<10,"0"&AM$4,AM$4),System_LR!$C$3:$JR$49,45,FALSE) -> -106.4736415 | AO11: -0.44 | AP11: -0.44 | AQ11: -0.44 | AR11: -0.44 | AS11: -0.26 | AT11: -0.26 | AU11: -0.26 | AV11: -0.26 | AW11: -0.26 | AX11: -0.44 | AY11: -0.44 | AZ11: -0.44
A12: 2030 | B12: =HLOOKUP($A12&"_"&IF(B$4<10,"0"&B$4,B$4),WA_LR!$C$3:$JR$49,45,FALSE) -> -77.03506862 | C12: =HLOOKUP($A12&"_"&IF(C$4<10,"0"&C$4,C$4),WA_LR!$C$3:$JR$49,45,FALSE) -> 20.2578443 | D12: =HLOOKUP($A12&"_"&IF(D$4<10,"0"&D$4,D$4),WA_LR!$C$3:$JR$49,45,FALSE) -> 148.7478633 | E12: =HLOOKUP($A12&"_"&IF(E$4<10,"0"&E$4,E$4),WA_LR!$C$3:$JR$49,45,FALSE) -> 337.9057022 | F12: =HLOOKUP($A12&"_"&IF(F$4<10,"0"&F$4,F$4),WA_LR!$C$3:$JR$49,45,FALSE) -> 198.5266779 | G12: =HLOOKUP($A12&"_"&IF(G$4<10,"0"&G$4,G$4),WA_LR!$C$3:$JR$49,45,FALSE) -> 196.201655 | H12: =HLOOKUP($A12&"_"&IF(H$4<10,"0"&H$4,H$4),WA_LR!$C$3:$JR$49,45,FALSE) -> 50.75002167 | I12: =HLOOKUP($A12&"_"&IF(I$4<10,"0"&I$4,I$4),WA_LR!$C$3:$JR$49,45,FALSE) -> 0.6482871494 | J12: =HLOOKUP($A12&"_"&IF(J$4<10,"0"&J$4,J$4),WA_LR!$C$3:$JR$49,45,FALSE) -> 29.842551 | K12: =HLOOKUP($A12&"_"&IF(K$4<10,"0"&K$4,K$4),WA_LR!$C$3:$JR$49,45,FALSE) -> 284.4895285 | L12: =HLOOKUP($A12&"_"&IF(L$4<10,"0"&L$4,L$4),WA_LR!$C$3:$JR$49,45,FALSE) -> 82.1742063 | M12: =HLOOKUP($A12&"_"&IF(M$4<10,"0"&M$4,M$4),WA_LR!$C$3:$JR$49,45,FALSE) -> -41.57961679 | O12: =HLOOKUP($A12&"_"&IF(O$4<10,"0"&O$4,O$4),ID_LR!$C$3:$JR$49,45,FALSE) -> -90.80149405 | P12: =HLOOKUP($A12&"_"&IF(P$4<10,"0"&P$4,P$4),ID_LR!$C$3:$JR$49,45,FALSE) -> -24.9084711 | Q12: =HLOOKUP($A12&"_"&IF(Q$4<10,"0"&Q$4,Q$4),ID_LR!$C$3:$JR$49,45,FALSE) -> 29.46818641 | R12: =HLOOKUP($A12&"_"&IF(R$4<10,"0"&R$4,R$4),ID_LR!$C$3:$JR$49,45,FALSE) -> 111.270757 | S12: =HLOOKUP($A12&"_"&IF(S$4<10,"0"&S$4,S$4),ID_LR!$C$3:$JR$49,45,FALSE) -> 47.55427986 | T12: =HLOOKUP($A12&"_"&IF(T$4<10,"0"&T$4,T$4),ID_LR!$C$3:$JR$49,45,FALSE) -> 55.93393672 | U12: =HLOOKUP($A12&"_"&IF(U$4<10,"0"&U$4,U$4),ID_LR!$C$3:$JR$49,45,FALSE) -> -24.93838902 | V12: =HLOOKUP($A12&"_"&IF(V$4<10,"0"&V$4,V$4),ID_LR!$C$3:$JR$49,45,FALSE) -> -30.91165056 | W12: =HLOOKUP($A12&"_"&IF(W$4<10,"0"&W$4,W$4),ID_LR!$C$3:$JR$49,45,FALSE) -> -10.56430859 | X12: =HLOOKUP($A12&"_"&IF(X$4<10,"0"&X$4,X$4),ID_LR!$C$3:$JR$49,45,FALSE) -> 112.5432965 | Y12: =HLOOKUP($A12&"_"&IF(Y$4<10,"0"&Y$4,Y$4),ID_LR!$C$3:$JR$49,45,FALSE) -> -11.19062919 | Z12: =HLOOKUP($A12&"_"&IF(Z$4<10,"0"&Z$4,Z$4),ID_LR!$C$3:$JR$49,45,FALSE) -> -80.65759931 | AB12: =HLOOKUP($A12&"_"&IF(AB$4<10,"0"&AB$4,AB$4),System_LR!$C$3:$JR$49,45,FALSE) -> -167.3965627 | AC12: =HLOOKUP($A12&"_"&IF(AC$4<10,"0"&AC$4,AC$4),System_LR!$C$3:$JR$49,45,FALSE) -> -4.210626795 | AD12: =HLOOKUP($A12&"_"&IF(AD$4<10,"0"&AD$4,AD$4),System_LR!$C$3:$JR$49,45,FALSE) -> 178.6560497 | AE12: =HLOOKUP($A12&"_"&IF(AE$4<10,"0"&AE$4,AE$4),System_LR!$C$3:$JR$49,45,FALSE) -> 449.6164592 | AF12: =HLOOKUP($A12&"_"&IF(AF$4<10,"0"&AF$4,AF$4),System_LR!$C$3:$JR$49,45,FALSE) -> 246.3409578 | AG12: =HLOOKUP($A12&"_"&IF(AG$4<10,"0"&AG$4,AG$4),System_LR!$C$3:$JR$49,45,FALSE) -> 252.3955917 | AH12: =HLOOKUP($A12&"_"&IF(AH$4<10,"0"&AH$4,AH$4),System_LR!$C$3:$JR$49,45,FALSE) -> 26.07163264 | AI12: =HLOOKUP($A12&"_"&IF(AI$4<10,"0"&AI$4,AI$4),System_LR!$C$3:$JR$49,45,FALSE) -> -30.00336341 | AJ12: =HLOOKUP($A12&"_"&IF(AJ$4<10,"0"&AJ$4,AJ$4),System_LR!$C$3:$JR$49,45,FALSE) -> 19.5382424 | AK12: =HLOOKUP($A12&"_"&IF(AK$4<10,"0"&AK$4,AK$4),System_LR!$C$3:$JR$49,45,FALSE) -> 397.472825 | AL12: =HLOOKUP($A12&"_"&IF(AL$4<10,"0"&AL$4,AL$4),System_LR!$C$3:$JR$49,45,FALSE) -> 71.42357711 | AM12: =HLOOKUP($A12&"_"&IF(AM$4<10,"0"&AM$4,AM$4),System_LR!$C$3:$JR$49,45,FALSE) -> -121.7972161 | AO12: -0.44 | AP12: -0.44 | AQ12: -0.44 | AR12: -0.44 | AS12: -0.26 | AT12: -0.26 | AU12: -0.26 | AV12: -0.26 | AW12: -0.26 | AX12: -0.44 | AY12: -0.44 | AZ12: -0.44
A13: 2031 | B13: =HLOOKUP($A13&"_"&IF(B$4<10,"0"&B$4,B$4),WA_LR!$C$3:$JR$49,45,FALSE) -> -91.40217881 | C13: =HLOOKUP($A13&"_"&IF(C$4<10,"0"&C$4,C$4),WA_LR!$C$3:$JR$49,45,FALSE) -> 7.440978745 | D13: =HLOOKUP($A13&"_"&IF(D$4<10,"0"&D$4,D$4),WA_LR!$C$3:$JR$49,45,FALSE) -> 139.539516 | E13: =HLOOKUP($A13&"_"&IF(E$4<10,"0"&E$4,E$4),WA_LR!$C$3:$JR$49,45,FALSE) -> 328.0721206 | F13: =HLOOKUP($A13&"_"&IF(F$4<10,"0"&F$4,F$4),WA_LR!$C$3:$JR$49,45,FALSE) -> 183.8797237 | G13: =HLOOKUP($A13&"_"&IF(G$4<10,"0"&G$4,G$4),WA_LR!$C$3:$JR$49,45,FALSE) -> 180.7986197 | H13: =HLOOKUP($A13&"_"&IF(H$4<10,"0"&H$4,H$4),WA_LR!$C$3:$JR$49,45,FALSE) -> 34.96990093 | I13: =HLOOKUP($A13&"_"&IF(I$4<10,"0"&I$4,I$4),WA_LR!$C$3:$JR$49,45,FALSE) -> -15.65062727 | J13: =HLOOKUP($A13&"_"&IF(J$4<10,"0"&J$4,J$4),WA_LR!$C$3:$JR$49,45,FALSE) -> 23.72154406 | K13: =HLOOKUP($A13&"_"&IF(K$4<10,"0"&K$4,K$4),WA_LR!$C$3:$JR$49,45,FALSE) -> 274.0221029 | L13: =HLOOKUP($A13&"_"&IF(L$4<10,"0"&L$4,L$4),WA_LR!$C$3:$JR$49,45,FALSE) -> 72.08952532 | M13: =HLOOKUP($A13&"_"&IF(M$4<10,"0"&M$4,M$4),WA_LR!$C$3:$JR$49,45,FALSE) -> -53.22085258 | O13: =HLOOKUP($A13&"_"&IF(O$4<10,"0"&O$4,O$4),ID_LR!$C$3:$JR$49,45,FALSE) -> -97.54692999 | P13: =HLOOKUP($A13&"_"&IF(P$4<10,"0"&P$4,P$4),ID_LR!$C$3:$JR$49,45,FALSE) -> -31.09345468 | Q13: =HLOOKUP($A13&"_"&IF(Q$4<10,"0"&Q$4,Q$4),ID_LR!$C$3:$JR$49,45,FALSE) -> 24.90792617 | R13: =HLOOKUP($A13&"_"&IF(R$4<10,"0"&R$4,R$4),ID_LR!$C$3:$JR$49,45,FALSE) -> 105.8318377 | S13: =HLOOKUP($A13&"_"&IF(S$4<10,"0"&S$4,S$4),ID_LR!$C$3:$JR$49,45,FALSE) -> 38.47246238 | T13: =HLOOKUP($A13&"_"&IF(T$4<10,"0"&T$4,T$4),ID_LR!$C$3:$JR$49,45,FALSE) -> 46.05961607 | U13: =HLOOKUP($A13&"_"&IF(U$4<10,"0"&U$4,U$4),ID_LR!$C$3:$JR$49,45,FALSE) -> -35.33465563 | V13: =HLOOKUP($A13&"_"&IF(V$4<10,"0"&V$4,V$4),ID_LR!$C$3:$JR$49,45,FALSE) -> -41.37958322 | W13: =HLOOKUP($A13&"_"&IF(W$4<10,"0"&W$4,W$4),ID_LR!$C$3:$JR$49,45,FALSE) -> -15.83722072 | X13: =HLOOKUP($A13&"_"&IF(X$4<10,"0"&X$4,X$4),ID_LR!$C$3:$JR$49,45,FALSE) -> 106.9143443 | Y13: =HLOOKUP($A13&"_"&IF(Y$4<10,"0"&Y$4,Y$4),ID_LR!$C$3:$JR$49,45,FALSE) -> -15.94137228 | Z13: =HLOOKUP($A13&"_"&IF(Z$4<10,"0"&Z$4,Z$4),ID_LR!$C$3:$JR$49,45,FALSE) -> -85.84088649 | AB13: =HLOOKUP($A13&"_"&IF(AB$4<10,"0"&AB$4,AB$4),System_LR!$C$3:$JR$49,45,FALSE) -> -188.5091088 | AC13: =HLOOKUP($A13&"_"&IF(AC$4<10,"0"&AC$4,AC$4),System_LR!$C$3:$JR$49,45,FALSE) -> -23.21247594 | AD13: =HLOOKUP($A13&"_"&IF(AD$4<10,"0"&AD$4,AD$4),System_LR!$C$3:$JR$49,45,FALSE) -> 164.8874422 | AE13: =HLOOKUP($A13&"_"&IF(AE$4<10,"0"&AE$4,AE$4),System_LR!$C$3:$JR$49,45,FALSE) -> 434.3439583 | AF13: =HLOOKUP($A13&"_"&IF(AF$4<10,"0"&AF$4,AF$4),System_LR!$C$3:$JR$49,45,FALSE) -> 222.6121861 | AG13: =HLOOKUP($A13&"_"&IF(AG$4<10,"0"&AG$4,AG$4),System_LR!$C$3:$JR$49,45,FALSE) -> 227.1182358 | AH13: =HLOOKUP($A13&"_"&IF(AH$4<10,"0"&AH$4,AH$4),System_LR!$C$3:$JR$49,45,FALSE) -> -0.1047546944 | AI13: =HLOOKUP($A13&"_"&IF(AI$4<10,"0"&AI$4,AI$4),System_LR!$C$3:$JR$49,45,FALSE) -> -56.77021049 | AJ13: =HLOOKUP($A13&"_"&IF(AJ$4<10,"0"&AJ$4,AJ$4),System_LR!$C$3:$JR$49,45,FALSE) -> 8.144323339 | AK13: =HLOOKUP($A13&"_"&IF(AK$4<10,"0"&AK$4,AK$4),System_LR!$C$3:$JR$49,45,FALSE) -> 381.3764472 | AL13: =HLOOKUP($A13&"_"&IF(AL$4<10,"0"&AL$4,AL$4),System_LR!$C$3:$JR$49,45,FALSE) -> 56.58815303 | AM13: =HLOOKUP($A13&"_"&IF(AM$4<10,"0"&AM$4,AM$4),System_LR!$C$3:$JR$49,45,FALSE) -> -138.6217391 | AO13: -0.44 | AP13: -0.44 | AQ13: -0.44 | AR13: -0.44 | AS13: -0.26 | AT13: -0.26 | AU13: -0.26 | AV13: -0.26 | AW13: -0.26 | AX13: -0.44 | AY13: -0.44 | AZ13: -0.44
A14: 2032 | B14: =HLOOKUP($A14&"_"&IF(B$4<10,"0"&B$4,B$4),WA_LR!$C$3:$JR$49,45,FALSE) -> -104.9450248 | C14: =HLOOKUP($A14&"_"&IF(C$4<10,"0"&C$4,C$4),WA_LR!$C$3:$JR$49,45,FALSE) -> -4.576935964 | D14: =HLOOKUP($A14&"_"&IF(D$4<10,"0"&D$4,D$4),WA_LR!$C$3:$JR$49,45,FALSE) -> 127.9315335 | E14: =HLOOKUP($A14&"_"&IF(E$4<10,"0"&E$4,E$4),WA_LR!$C$3:$JR$49,45,FALSE) -> 317.4727332 | F14: =HLOOKUP($A14&"_"&IF(F$4<10,"0"&F$4,F$4),WA_LR!$C$3:$JR$49,45,FALSE) -> 172.9938879 | G14: =HLOOKUP($A14&"_"&IF(G$4<10,"0"&G$4,G$4),WA_LR!$C$3:$JR$49,45,FALSE) -> 157.9317137 | H14: =HLOOKUP($A14&"_"&IF(H$4<10,"0"&H$4,H$4),WA_LR!$C$3:$JR$49,45,FALSE) -> 22.47991733 | I14: =HLOOKUP($A14&"_"&IF(I$4<10,"0"&I$4,I$4),WA_LR!$C$3:$JR$49,45,FALSE) -> -30.76042508 | J14: =HLOOKUP($A14&"_"&IF(J$4<10,"0"&J$4,J$4),WA_LR!$C$3:$JR$49,45,FALSE) -> 8.803228643 | K14: =HLOOKUP($A14&"_"&IF(K$4<10,"0"&K$4,K$4),WA_LR!$C$3:$JR$49,45,FALSE) -> 262.1260482 | L14: =HLOOKUP($A14&"_"&IF(L$4<10,"0"&L$4,L$4),WA_LR!$C$3:$JR$49,45,FALSE) -> 59.12216737 | M14: =HLOOKUP($A14&"_"&IF(M$4<10,"0"&M$4,M$4),WA_LR!$C$3:$JR$49,45,FALSE) -> -66.86670157 | O14: =HLOOKUP($A14&"_"&IF(O$4<10,"0"&O$4,O$4),ID_LR!$C$3:$JR$49,45,FALSE) -> -103.7601603 | P14: =HLOOKUP($A14&"_"&IF(P$4<10,"0"&P$4,P$4),ID_LR!$C$3:$JR$49,45,FALSE) -> -36.20580306 | Q14: =HLOOKUP($A14&"_"&IF(Q$4<10,"0"&Q$4,Q$4),ID_LR!$C$3:$JR$49,45,FALSE) -> 19.18642713 | R14: =HLOOKUP($A14&"_"&IF(R$4<10,"0"&R$4,R$4),ID_LR!$C$3:$JR$49,45,FALSE) -> 100.0807342 | S14: =HLOOKUP($A14&"_"&IF(S$4<10,"0"&S$4,S$4),ID_LR!$C$3:$JR$49,45,FALSE) -> 31.43415024 | T14: =HLOOKUP($A14&"_"&IF(T$4<10,"0"&T$4,T$4),ID_LR!$C$3:$JR$49,45,FALSE) -> 32.32592126 | U14: =HLOOKUP($A14&"_"&IF(U$4<10,"0"&U$4,U$4),ID_LR!$C$3:$JR$49,45,FALSE) -> -43.98160843 | V14: =HLOOKUP($A14&"_"&IF(V$4<10,"0"&V$4,V$4),ID_LR!$C$3:$JR$49,45,FALSE) -> -51.22504522 | W14: =HLOOKUP($A14&"_"&IF(W$4<10,"0"&W$4,W$4),ID_LR!$C$3:$JR$49,45,FALSE) -> -25.51165722 | X14: =HLOOKUP($A14&"_"&IF(X$4<10,"0"&X$4,X$4),ID_LR!$C$3:$JR$49,45,FALSE) -> 100.6523246 | Y14: =HLOOKUP($A14&"_"&IF(Y$4<10,"0"&Y$4,Y$4),ID_LR!$C$3:$JR$49,45,FALSE) -> -22.11304562 | Z14: =HLOOKUP($A14&"_"&IF(Z$4<10,"0"&Z$4,Z$4),ID_LR!$C$3:$JR$49,45,FALSE) -> -91.99833307 | AB14: =HLOOKUP($A14&"_"&IF(AB$4<10,"0"&AB$4,AB$4),System_LR!$C$3:$JR$49,45,FALSE) -> -208.2651852 | AC14: =HLOOKUP($A14&"_"&IF(AC$4<10,"0"&AC$4,AC$4),System_LR!$C$3:$JR$49,45,FALSE) -> -40.34273903 | AD14: =HLOOKUP($A14&"_"&IF(AD$4<10,"0"&AD$4,AD$4),System_LR!$C$3:$JR$49,45,FALSE) -> 147.5579606 | AE14: =HLOOKUP($A14&"_"&IF(AE$4<10,"0"&AE$4,AE$4),System_LR!$C$3:$JR$49,45,FALSE) -> 417.9934674 | AF14: =HLOOKUP($A14&"_"&IF(AF$4<10,"0"&AF$4,AF$4),System_LR!$C$3:$JR$49,45,FALSE) -> 204.6880381 | AG14: =HLOOKUP($A14&"_"&IF(AG$4<10,"0"&AG$4,AG$4),System_LR!$C$3:$JR$49,45,FALSE) -> 190.517635 | AH14: =HLOOKUP($A14&"_"&IF(AH$4<10,"0"&AH$4,AH$4),System_LR!$C$3:$JR$49,45,FALSE) -> -21.24169111 | AI14: =HLOOKUP($A14&"_"&IF(AI$4<10,"0"&AI$4,AI$4),System_LR!$C$3:$JR$49,45,FALSE) -> -81.72547031 | AJ14: =HLOOKUP($A14&"_"&IF(AJ$4<10,"0"&AJ$4,AJ$4),System_LR!$C$3:$JR$49,45,FALSE) -> -16.44842858 | AK14: =HLOOKUP($A14&"_"&IF(AK$4<10,"0"&AK$4,AK$4),System_LR!$C$3:$JR$49,45,FALSE) -> 363.2183728 | AL14: =HLOOKUP($A14&"_"&IF(AL$4<10,"0"&AL$4,AL$4),System_LR!$C$3:$JR$49,45,FALSE) -> 37.44912176 | AM14: =HLOOKUP($A14&"_"&IF(AM$4<10,"0"&AM$4,AM$4),System_LR!$C$3:$JR$49,45,FALSE) -> -158.4250346 | AO14: -0.44 | AP14: -0.44 | AQ14: -0.44 | AR14: -0.44 | AS14: -0.26 | AT14: -0.26 | AU14: -0.26 | AV14: -0.26 | AW14: -0.26 | AX14: -0.44 | AY14: -0.44 | AZ14: -0.44
A15: 2033 | B15: =HLOOKUP($A15&"_"&IF(B$4<10,"0"&B$4,B$4),WA_LR!$C$3:$JR$49,45,FALSE) -> -116.0808976 | C15: =HLOOKUP($A15&"_"&IF(C$4<10,"0"&C$4,C$4),WA_LR!$C$3:$JR$49,45,FALSE) -> -15.86007182 | D15: =HLOOKUP($A15&"_"&IF(D$4<10,"0"&D$4,D$4),WA_LR!$C$3:$JR$49,45,FALSE) -> 116.2152078 | E15: =HLOOKUP($A15&"_"&IF(E$4<10,"0"&E$4,E$4),WA_LR!$C$3:$JR$49,45,FALSE) -> 305.711265 | F15: =HLOOKUP($A15&"_"&IF(F$4<10,"0"&F$4,F$4),WA_LR!$C$3:$JR$49,45,FALSE) -> 159.0735101 | G15: =HLOOKUP($A15&"_"&IF(G$4<10,"0"&G$4,G$4),WA_LR!$C$3:$JR$49,45,FALSE) -> 146.2149083 | H15: =HLOOKUP($A15&"_"&IF(H$4<10,"0"&H$4,H$4),WA_LR!$C$3:$JR$49,45,FALSE) -> 6.879616213 | I15: =HLOOKUP($A15&"_"&IF(I$4<10,"0"&I$4,I$4),WA_LR!$C$3:$JR$49,45,FALSE) -> -48.96648616 | J15: =HLOOKUP($A15&"_"&IF(J$4<10,"0"&J$4,J$4),WA_LR!$C$3:$JR$49,45,FALSE) -> -1.5072796 | K15: =HLOOKUP($A15&"_"&IF(K$4<10,"0"&K$4,K$4),WA_LR!$C$3:$JR$49,45,FALSE) -> 250.7695439 | L15: =HLOOKUP($A15&"_"&IF(L$4<10,"0"&L$4,L$4),WA_LR!$C$3:$JR$49,45,FALSE) -> 44.40103487 | M15: =HLOOKUP($A15&"_"&IF(M$4<10,"0"&M$4,M$4),WA_LR!$C$3:$JR$49,45,FALSE) -> -82.24785061 | O15: =HLOOKUP($A15&"_"&IF(O$4<10,"0"&O$4,O$4),ID_LR!$C$3:$JR$49,45,FALSE) -> -108.7267927 | P15: =HLOOKUP($A15&"_"&IF(P$4<10,"0"&P$4,P$4),ID_LR!$C$3:$JR$49,45,FALSE) -> -42.11848777 | Q15: =HLOOKUP($A15&"_"&IF(Q$4<10,"0"&Q$4,Q$4),ID_LR!$C$3:$JR$49,45,FALSE) -> 13.04263225 | R15: =HLOOKUP($A15&"_"&IF(R$4<10,"0"&R$4,R$4),ID_LR!$C$3:$JR$49,45,FALSE) -> 93.66275585 | S15: =HLOOKUP($A15&"_"&IF(S$4<10,"0"&S$4,S$4),ID_LR!$C$3:$JR$49,45,FALSE) -> 22.65866572 | T15: =HLOOKUP($A15&"_"&IF(T$4<10,"0"&T$4,T$4),ID_LR!$C$3:$JR$49,45,FALSE) -> 24.21404236 | U15: =HLOOKUP($A15&"_"&IF(U$4<10,"0"&U$4,U$4),ID_LR!$C$3:$JR$49,45,FALSE) -> -54.44643235 | V15: =HLOOKUP($A15&"_"&IF(V$4<10,"0"&V$4,V$4),ID_LR!$C$3:$JR$49,45,FALSE) -> -62.82682201 | W15: =HLOOKUP($A15&"_"&IF(W$4<10,"0"&W$4,W$4),ID_LR!$C$3:$JR$49,45,FALSE) -> -32.9682767 | X15: =HLOOKUP($A15&"_"&IF(X$4<10,"0"&X$4,X$4),ID_LR!$C$3:$JR$49,45,FALSE) -> 94.65367978 | Y15: =HLOOKUP($A15&"_"&IF(Y$4<10,"0"&Y$4,Y$4),ID_LR!$C$3:$JR$49,45,FALSE) -> -29.23970371 | Z15: =HLOOKUP($A15&"_"&IF(Z$4<10,"0"&Z$4,Z$4),ID_LR!$C$3:$JR$49,45,FALSE) -> -99.13954726 | AB15: =HLOOKUP($A15&"_"&IF(AB$4<10,"0"&AB$4,AB$4),System_LR!$C$3:$JR$49,45,FALSE) -> -224.3676903 | AC15: =HLOOKUP($A15&"_"&IF(AC$4<10,"0"&AC$4,AC$4),System_LR!$C$3:$JR$49,45,FALSE) -> -57.53855958 | AD15: =HLOOKUP($A15&"_"&IF(AD$4<10,"0"&AD$4,AD$4),System_LR!$C$3:$JR$49,45,FALSE) -> 129.6978401 | AE15: =HLOOKUP($A15&"_"&IF(AE$4<10,"0"&AE$4,AE$4),System_LR!$C$3:$JR$49,45,FALSE) -> 399.8140208 | AF15: =HLOOKUP($A15&"_"&IF(AF$4<10,"0"&AF$4,AF$4),System_LR!$C$3:$JR$49,45,FALSE) -> 181.9921758 | AG15: =HLOOKUP($A15&"_"&IF(AG$4<10,"0"&AG$4,AG$4),System_LR!$C$3:$JR$49,45,FALSE) -> 170.6889506 | AH15: =HLOOKUP($A15&"_"&IF(AH$4<10,"0"&AH$4,AH$4),System_LR!$C$3:$JR$49,45,FALSE) -> -47.30681614 | AI15: =HLOOKUP($A15&"_"&IF(AI$4<10,"0"&AI$4,AI$4),System_LR!$C$3:$JR$49,45,FALSE) -> -111.5333082 | AJ15: =HLOOKUP($A15&"_"&IF(AJ$4<10,"0"&AJ$4,AJ$4),System_LR!$C$3:$JR$49,45,FALSE) -> -34.2155563 | AK15: =HLOOKUP($A15&"_"&IF(AK$4<10,"0"&AK$4,AK$4),System_LR!$C$3:$JR$49,45,FALSE) -> 345.8632237 | AL15: =HLOOKUP($A15&"_"&IF(AL$4<10,"0"&AL$4,AL$4),System_LR!$C$3:$JR$49,45,FALSE) -> 15.60133116 | AM15: =HLOOKUP($A15&"_"&IF(AM$4<10,"0"&AM$4,AM$4),System_LR!$C$3:$JR$49,45,FALSE) -> -180.9473979 | AO15: -0.44 | AP15: -0.44 | AQ15: -0.44 | AR15: -0.44 | AS15: -0.26 | AT15: -0.26 | AU15: -0.26 | AV15: -0.26 | AW15: -0.26 | AX15: -0.44 | AY15: -0.44 | AZ15: -0.44
A16: 2034 | B16: =HLOOKUP($A16&"_"&IF(B$4<10,"0"&B$4,B$4),WA_LR!$C$3:$JR$49,45,FALSE) -> -176.0313342 | C16: =HLOOKUP($A16&"_"&IF(C$4<10,"0"&C$4,C$4),WA_LR!$C$3:$JR$49,45,FALSE) -> -77.17331131 | D16: =HLOOKUP($A16&"_"&IF(D$4<10,"0"&D$4,D$4),WA_LR!$C$3:$JR$49,45,FALSE) -> 56.12137664 | E16: =HLOOKUP($A16&"_"&IF(E$4<10,"0"&E$4,E$4),WA_LR!$C$3:$JR$49,45,FALSE) -> 250.5635959 | F16: =HLOOKUP($A16&"_"&IF(F$4<10,"0"&F$4,F$4),WA_LR!$C$3:$JR$49,45,FALSE) -> 102.7963195 | G16: =HLOOKUP($A16&"_"&IF(G$4<10,"0"&G$4,G$4),WA_LR!$C$3:$JR$49,45,FALSE) -> 83.60497036 | H16: =HLOOKUP($A16&"_"&IF(H$4<10,"0"&H$4,H$4),WA_LR!$C$3:$JR$49,45,FALSE) -> -45.84360805 | I16: =HLOOKUP($A16&"_"&IF(I$4<10,"0"&I$4,I$4),WA_LR!$C$3:$JR$49,45,FALSE) -> -104.0617034 | J16: =HLOOKUP($A16&"_"&IF(J$4<10,"0"&J$4,J$4),WA_LR!$C$3:$JR$49,45,FALSE) -> -58.54165437 | K16: =HLOOKUP($A16&"_"&IF(K$4<10,"0"&K$4,K$4),WA_LR!$C$3:$JR$49,45,FALSE) -> 191.7715165 | L16: =HLOOKUP($A16&"_"&IF(L$4<10,"0"&L$4,L$4),WA_LR!$C$3:$JR$49,45,FALSE) -> -7.709964778 | M16: =HLOOKUP($A16&"_"&IF(M$4<10,"0"&M$4,M$4),WA_LR!$C$3:$JR$49,45,FALSE) -> -140.712337 | O16: =HLOOKUP($A16&"_"&IF(O$4<10,"0"&O$4,O$4),ID_LR!$C$3:$JR$49,45,FALSE) -> -139.3094346 | P16: =HLOOKUP($A16&"_"&IF(P$4<10,"0"&P$4,P$4),ID_LR!$C$3:$JR$49,45,FALSE) -> -73.63805905 | Q16: =HLOOKUP($A16&"_"&IF(Q$4<10,"0"&Q$4,Q$4),ID_LR!$C$3:$JR$49,45,FALSE) -> -18.08656336 | R16: =HLOOKUP($A16&"_"&IF(R$4<10,"0"&R$4,R$4),ID_LR!$C$3:$JR$49,45,FALSE) -> 64.58345798 | S16: =HLOOKUP($A16&"_"&IF(S$4<10,"0"&S$4,S$4),ID_LR!$C$3:$JR$49,45,FALSE) -> -8.293692616 | T16: =HLOOKUP($A16&"_"&IF(T$4<10,"0"&T$4,T$4),ID_LR!$C$3:$JR$49,45,FALSE) -> -10.57656726 | U16: =HLOOKUP($A16&"_"&IF(U$4<10,"0"&U$4,U$4),ID_LR!$C$3:$JR$49,45,FALSE) -> -84.36872 | V16: =HLOOKUP($A16&"_"&IF(V$4<10,"0"&V$4,V$4),ID_LR!$C$3:$JR$49,45,FALSE) -> -93.82917116 | W16: =HLOOKUP($A16&"_"&IF(W$4<10,"0"&W$4,W$4),ID_LR!$C$3:$JR$49,45,FALSE) -> -64.83710264 | X16: =HLOOKUP($A16&"_"&IF(X$4<10,"0"&X$4,X$4),ID_LR!$C$3:$JR$49,45,FALSE) -> 63.79549648 | Y16: =HLOOKUP($A16&"_"&IF(Y$4<10,"0"&Y$4,Y$4),ID_LR!$C$3:$JR$49,45,FALSE) -> -55.8571858 | Z16: =HLOOKUP($A16&"_"&IF(Z$4<10,"0"&Z$4,Z$4),ID_LR!$C$3:$JR$49,45,FALSE) -> -128.8339212 | AB16: =HLOOKUP($A16&"_"&IF(AB$4<10,"0"&AB$4,AB$4),System_LR!$C$3:$JR$49,45,FALSE) -> -314.9007687 | AC16: =HLOOKUP($A16&"_"&IF(AC$4<10,"0"&AC$4,AC$4),System_LR!$C$3:$JR$49,45,FALSE) -> -150.3713704 | AD16: =HLOOKUP($A16&"_"&IF(AD$4<10,"0"&AD$4,AD$4),System_LR!$C$3:$JR$49,45,FALSE) -> 38.47481328 | AE16: =HLOOKUP($A16&"_"&IF(AE$4<10,"0"&AE$4,AE$4),System_LR!$C$3:$JR$49,45,FALSE) -> 315.5870539 | AF16: =HLOOKUP($A16&"_"&IF(AF$4<10,"0"&AF$4,AF$4),System_LR!$C$3:$JR$49,45,FALSE) -> 94.76262686 | AG16: =HLOOKUP($A16&"_"&IF(AG$4<10,"0"&AG$4,AG$4),System_LR!$C$3:$JR$49,45,FALSE) -> 73.2884031 | AH16: =HLOOKUP($A16&"_"&IF(AH$4<10,"0"&AH$4,AH$4),System_LR!$C$3:$JR$49,45,FALSE) -> -129.9523281 | AI16: =HLOOKUP($A16&"_"&IF(AI$4<10,"0"&AI$4,AI$4),System_LR!$C$3:$JR$49,45,FALSE) -> -197.6308746 | AJ16: =HLOOKUP($A16&"_"&IF(AJ$4<10,"0"&AJ$4,AJ$4),System_LR!$C$3:$JR$49,45,FALSE) -> -123.118757 | AK16: =HLOOKUP($A16&"_"&IF(AK$4<10,"0"&AK$4,AK$4),System_LR!$C$3:$JR$49,45,FALSE) -> 256.007013 | AL16: =HLOOKUP($A16&"_"&IF(AL$4<10,"0"&AL$4,AL$4),System_LR!$C$3:$JR$49,45,FALSE) -> -63.12715058 | AM16: =HLOOKUP($A16&"_"&IF(AM$4<10,"0"&AM$4,AM$4),System_LR!$C$3:$JR$49,45,FALSE) -> -269.1062582 | AO16: -0.44 | AP16: -0.44 | AQ16: -0.44 | AR16: -0.44 | AS16: -0.26 | AT16: -0.26 | AU16: -0.26 | AV16: -0.26 | AW16: -0.26 | AX16: -0.44 | AY16: -0.44 | AZ16: -0.44
A17: 2035 | B17: =HLOOKUP($A17&"_"&IF(B$4<10,"0"&B$4,B$4),WA_LR!$C$3:$JR$49,45,FALSE) -> -190.5816595 | C17: =HLOOKUP($A17&"_"&IF(C$4<10,"0"&C$4,C$4),WA_LR!$C$3:$JR$49,45,FALSE) -> -93.92219953 | D17: =HLOOKUP($A17&"_"&IF(D$4<10,"0"&D$4,D$4),WA_LR!$C$3:$JR$49,45,FALSE) -> 39.96391693 | E17: =HLOOKUP($A17&"_"&IF(E$4<10,"0"&E$4,E$4),WA_LR!$C$3:$JR$49,45,FALSE) -> 236.9333093 | F17: =HLOOKUP($A17&"_"&IF(F$4<10,"0"&F$4,F$4),WA_LR!$C$3:$JR$49,45,FALSE) -> 85.58622395 | G17: =HLOOKUP($A17&"_"&IF(G$4<10,"0"&G$4,G$4),WA_LR!$C$3:$JR$49,45,FALSE) -> 79.0613106 | H17: =HLOOKUP($A17&"_"&IF(H$4<10,"0"&H$4,H$4),WA_LR!$C$3:$JR$49,45,FALSE) -> -60.79665184 | I17: =HLOOKUP($A17&"_"&IF(I$4<10,"0"&I$4,I$4),WA_LR!$C$3:$JR$49,45,FALSE) -> -117.9158475 | J17: =HLOOKUP($A17&"_"&IF(J$4<10,"0"&J$4,J$4),WA_LR!$C$3:$JR$49,45,FALSE) -> -76.07258416 | K17: =HLOOKUP($A17&"_"&IF(K$4<10,"0"&K$4,K$4),WA_LR!$C$3:$JR$49,45,FALSE) -> 177.9513381 | L17: =HLOOKUP($A17&"_"&IF(L$4<10,"0"&L$4,L$4),WA_LR!$C$3:$JR$49,45,FALSE) -> -21.76612519 | M17: =HLOOKUP($A17&"_"&IF(M$4<10,"0"&M$4,M$4),WA_LR!$C$3:$JR$49,45,FALSE) -> -157.833462 | O17: =HLOOKUP($A17&"_"&IF(O$4<10,"0"&O$4,O$4),ID_LR!$C$3:$JR$49,45,FALSE) -> -146.0017794 | P17: =HLOOKUP($A17&"_"&IF(P$4<10,"0"&P$4,P$4),ID_LR!$C$3:$JR$49,45,FALSE) -> -81.77813489 | Q17: =HLOOKUP($A17&"_"&IF(Q$4<10,"0"&Q$4,Q$4),ID_LR!$C$3:$JR$49,45,FALSE) -> -26.15870067 | R17: =HLOOKUP($A17&"_"&IF(R$4<10,"0"&R$4,R$4),ID_LR!$C$3:$JR$49,45,FALSE) -> 57.28596737 | S17: =HLOOKUP($A17&"_"&IF(S$4<10,"0"&S$4,S$4),ID_LR!$C$3:$JR$49,45,FALSE) -> -18.85112819 | T17: =HLOOKUP($A17&"_"&IF(T$4<10,"0"&T$4,T$4),ID_LR!$C$3:$JR$49,45,FALSE) -> -14.93271728 | U17: =HLOOKUP($A17&"_"&IF(U$4<10,"0"&U$4,U$4),ID_LR!$C$3:$JR$49,45,FALSE) -> -94.56151319 | V17: =HLOOKUP($A17&"_"&IF(V$4<10,"0"&V$4,V$4),ID_LR!$C$3:$JR$49,45,FALSE) -> -103.2635113 | W17: =HLOOKUP($A17&"_"&IF(W$4<10,"0"&W$4,W$4),ID_LR!$C$3:$JR$49,45,FALSE) -> -76.04567252 | X17: =HLOOKUP($A17&"_"&IF(X$4<10,"0"&X$4,X$4),ID_LR!$C$3:$JR$49,45,FALSE) -> 56.67384666 | Y17: =HLOOKUP($A17&"_"&IF(Y$4<10,"0"&Y$4,Y$4),ID_LR!$C$3:$JR$49,45,FALSE) -> -62.42756424 | Z17: =HLOOKUP($A17&"_"&IF(Z$4<10,"0"&Z$4,Z$4),ID_LR!$C$3:$JR$49,45,FALSE) -> -136.7931249 | AB17: =HLOOKUP($A17&"_"&IF(AB$4<10,"0"&AB$4,AB$4),System_LR!$C$3:$JR$49,45,FALSE) -> -336.1434389 | AC17: =HLOOKUP($A17&"_"&IF(AC$4<10,"0"&AC$4,AC$4),System_LR!$C$3:$JR$49,45,FALSE) -> -175.2603344 | AD17: =HLOOKUP($A17&"_"&IF(AD$4<10,"0"&AD$4,AD$4),System_LR!$C$3:$JR$49,45,FALSE) -> 14.24521626 | AE17: =HLOOKUP($A17&"_"&IF(AE$4<10,"0"&AE$4,AE$4),System_LR!$C$3:$JR$49,45,FALSE) -> 294.6592767 | AF17: =HLOOKUP($A17&"_"&IF(AF$4<10,"0"&AF$4,AF$4),System_LR!$C$3:$JR$49,45,FALSE) -> 66.99509576 | AG17: =HLOOKUP($A17&"_"&IF(AG$4<10,"0"&AG$4,AG$4),System_LR!$C$3:$JR$49,45,FALSE) -> 64.38859332 | AH17: =HLOOKUP($A17&"_"&IF(AH$4<10,"0"&AH$4,AH$4),System_LR!$C$3:$JR$49,45,FALSE) -> -155.098165 | AI17: =HLOOKUP($A17&"_"&IF(AI$4<10,"0"&AI$4,AI$4),System_LR!$C$3:$JR$49,45,FALSE) -> -220.9193587 | AJ17: =HLOOKUP($A17&"_"&IF(AJ$4<10,"0"&AJ$4,AJ$4),System_LR!$C$3:$JR$49,45,FALSE) -> -151.8582567 | AK17: =HLOOKUP($A17&"_"&IF(AK$4<10,"0"&AK$4,AK$4),System_LR!$C$3:$JR$49,45,FALSE) -> 235.0651848 | AL17: =HLOOKUP($A17&"_"&IF(AL$4<10,"0"&AL$4,AL$4),System_LR!$C$3:$JR$49,45,FALSE) -> -83.75368944 | AM17: =HLOOKUP($A17&"_"&IF(AM$4<10,"0"&AM$4,AM$4),System_LR!$C$3:$JR$49,45,FALSE) -> -294.1865869 | AO17: -0.44 | AP17: -0.44 | AQ17: -0.44 | AR17: -0.44 | AS17: -0.26 | AT17: -0.26 | AU17: -0.26 | AV17: -0.26 | AW17: -0.26 | AX17: -0.44 | AY17: -0.44 | AZ17: -0.44
A18: 2036 | B18: =HLOOKUP($A18&"_"&IF(B$4<10,"0"&B$4,B$4),WA_LR!$C$3:$JR$49,45,FALSE) -> -249.1799401 | C18: =HLOOKUP($A18&"_"&IF(C$4<10,"0"&C$4,C$4),WA_LR!$C$3:$JR$49,45,FALSE) -> -153.4480498 | D18: =HLOOKUP($A18&"_"&IF(D$4<10,"0"&D$4,D$4),WA_LR!$C$3:$JR$49,45,FALSE) -> -16.18555988 | E18: =HLOOKUP($A18&"_"&IF(E$4<10,"0"&E$4,E$4),WA_LR!$C$3:$JR$49,45,FALSE) -> 179.9555148 | F18: =HLOOKUP($A18&"_"&IF(F$4<10,"0"&F$4,F$4),WA_LR!$C$3:$JR$49,45,FALSE) -> 45.13839387 | G18: =HLOOKUP($A18&"_"&IF(G$4<10,"0"&G$4,G$4),WA_LR!$C$3:$JR$49,45,FALSE) -> 37.64725515 | H18: =HLOOKUP($A18&"_"&IF(H$4<10,"0"&H$4,H$4),WA_LR!$C$3:$JR$49,45,FALSE) -> -102.0482015 | I18: =HLOOKUP($A18&"_"&IF(I$4<10,"0"&I$4,I$4),WA_LR!$C$3:$JR$49,45,FALSE) -> -159.1158736 | J18: =HLOOKUP($A18&"_"&IF(J$4<10,"0"&J$4,J$4),WA_LR!$C$3:$JR$49,45,FALSE) -> -124.8584428 | K18: =HLOOKUP($A18&"_"&IF(K$4<10,"0"&K$4,K$4),WA_LR!$C$3:$JR$49,45,FALSE) -> 120.6693697 | L18: =HLOOKUP($A18&"_"&IF(L$4<10,"0"&L$4,L$4),WA_LR!$C$3:$JR$49,45,FALSE) -> -80.70666446 | M18: =HLOOKUP($A18&"_"&IF(M$4<10,"0"&M$4,M$4),WA_LR!$C$3:$JR$49,45,FALSE) -> -218.7450238 | O18: =HLOOKUP($A18&"_"&IF(O$4<10,"0"&O$4,O$4),ID_LR!$C$3:$JR$49,45,FALSE) -> -175.688139 | P18: =HLOOKUP($A18&"_"&IF(P$4<10,"0"&P$4,P$4),ID_LR!$C$3:$JR$49,45,FALSE) -> -111.2007973 | Q18: =HLOOKUP($A18&"_"&IF(Q$4<10,"0"&Q$4,Q$4),ID_LR!$C$3:$JR$49,45,FALSE) -> -55.00484411 | R18: =HLOOKUP($A18&"_"&IF(R$4<10,"0"&R$4,R$4),ID_LR!$C$3:$JR$49,45,FALSE) -> 27.3846921 | S18: =HLOOKUP($A18&"_"&IF(S$4<10,"0"&S$4,S$4),ID_LR!$C$3:$JR$49,45,FALSE) -> -41.52750796 | T18: =HLOOKUP($A18&"_"&IF(T$4<10,"0"&T$4,T$4),ID_LR!$C$3:$JR$49,45,FALSE) -> -38.61305355 | U18: =HLOOKUP($A18&"_"&IF(U$4<10,"0"&U$4,U$4),ID_LR!$C$3:$JR$49,45,FALSE) -> -118.5402202 | V18: =HLOOKUP($A18&"_"&IF(V$4<10,"0"&V$4,V$4),ID_LR!$C$3:$JR$49,45,FALSE) -> -126.9858479 | W18: =HLOOKUP($A18&"_"&IF(W$4<10,"0"&W$4,W$4),ID_LR!$C$3:$JR$49,45,FALSE) -> -103.5968177 | X18: =HLOOKUP($A18&"_"&IF(X$4<10,"0"&X$4,X$4),ID_LR!$C$3:$JR$49,45,FALSE) -> 26.92563766 | Y18: =HLOOKUP($A18&"_"&IF(Y$4<10,"0"&Y$4,Y$4),ID_LR!$C$3:$JR$49,45,FALSE) -> -92.41011712 | Z18: =HLOOKUP($A18&"_"&IF(Z$4<10,"0"&Z$4,Z$4),ID_LR!$C$3:$JR$49,45,FALSE) -> -167.5668697 | AB18: =HLOOKUP($A18&"_"&IF(AB$4<10,"0"&AB$4,AB$4),System_LR!$C$3:$JR$49,45,FALSE) -> -424.4280791 | AC18: =HLOOKUP($A18&"_"&IF(AC$4<10,"0"&AC$4,AC$4),System_LR!$C$3:$JR$49,45,FALSE) -> -264.2088471 | AD18: =HLOOKUP($A18&"_"&IF(AD$4<10,"0"&AD$4,AD$4),System_LR!$C$3:$JR$49,45,FALSE) -> -70.75040399 | AE18: =HLOOKUP($A18&"_"&IF(AE$4<10,"0"&AE$4,AE$4),System_LR!$C$3:$JR$49,45,FALSE) -> 207.7802069 | AF18: =HLOOKUP($A18&"_"&IF(AF$4<10,"0"&AF$4,AF$4),System_LR!$C$3:$JR$49,45,FALSE) -> 3.870885918 | AG18: =HLOOKUP($A18&"_"&IF(AG$4<10,"0"&AG$4,AG$4),System_LR!$C$3:$JR$49,45,FALSE) -> -0.7057984003 | AH18: =HLOOKUP($A18&"_"&IF(AH$4<10,"0"&AH$4,AH$4),System_LR!$C$3:$JR$49,45,FALSE) -> -220.3284217 | AI18: =HLOOKUP($A18&"_"&IF(AI$4<10,"0"&AI$4,AI$4),System_LR!$C$3:$JR$49,45,FALSE) -> -285.8417215 | AJ18: =HLOOKUP($A18&"_"&IF(AJ$4<10,"0"&AJ$4,AJ$4),System_LR!$C$3:$JR$49,45,FALSE) -> -228.1952605 | AK18: =HLOOKUP($A18&"_"&IF(AK$4<10,"0"&AK$4,AK$4),System_LR!$C$3:$JR$49,45,FALSE) -> 148.0350074 | AL18: =HLOOKUP($A18&"_"&IF(AL$4<10,"0"&AL$4,AL$4),System_LR!$C$3:$JR$49,45,FALSE) -> -172.6767816 | AM18: =HLOOKUP($A18&"_"&IF(AM$4<10,"0"&AM$4,AM$4),System_LR!$C$3:$JR$49,45,FALSE) -> -385.8718935 | AO18: -0.44 | AP18: -0.44 | AQ18: -0.44 | AR18: -0.44 | AS18: -0.26 | AT18: -0.26 | AU18: -0.26 | AV18: -0.26 | AW18: -0.26 | AX18: -0.44 | AY18: -0.44 | AZ18: -0.44
A19: 2037 | B19: =HLOOKUP($A19&"_"&IF(B$4<10,"0"&B$4,B$4),WA_LR!$C$3:$JR$49,45,FALSE) -> -267.9981694 | C19: =HLOOKUP($A19&"_"&IF(C$4<10,"0"&C$4,C$4),WA_LR!$C$3:$JR$49,45,FALSE) -> -171.9160038 | D19: =HLOOKUP($A19&"_"&IF(D$4<10,"0"&D$4,D$4),WA_LR!$C$3:$JR$49,45,FALSE) -> -33.14104645 | E19: =HLOOKUP($A19&"_"&IF(E$4<10,"0"&E$4,E$4),WA_LR!$C$3:$JR$49,45,FALSE) -> 162.8576468 | F19: =HLOOKUP($A19&"_"&IF(F$4<10,"0"&F$4,F$4),WA_LR!$C$3:$JR$49,45,FALSE) -> 26.40782389 | G19: =HLOOKUP($A19&"_"&IF(G$4<10,"0"&G$4,G$4),WA_LR!$C$3:$JR$49,45,FALSE) -> 24.33049059 | H19: =HLOOKUP($A19&"_"&IF(H$4<10,"0"&H$4,H$4),WA_LR!$C$3:$JR$49,45,FALSE) -> -119.1827839 | I19: =HLOOKUP($A19&"_"&IF(I$4<10,"0"&I$4,I$4),WA_LR!$C$3:$JR$49,45,FALSE) -> -178.5779759 | J19: =HLOOKUP($A19&"_"&IF(J$4<10,"0"&J$4,J$4),WA_LR!$C$3:$JR$49,45,FALSE) -> -140.7028911 | K19: =HLOOKUP($A19&"_"&IF(K$4<10,"0"&K$4,K$4),WA_LR!$C$3:$JR$49,45,FALSE) -> 104.494853 | L19: =HLOOKUP($A19&"_"&IF(L$4<10,"0"&L$4,L$4),WA_LR!$C$3:$JR$49,45,FALSE) -> -97.83721064 | M19: =HLOOKUP($A19&"_"&IF(M$4<10,"0"&M$4,M$4),WA_LR!$C$3:$JR$49,45,FALSE) -> -236.0861841 | O19: =HLOOKUP($A19&"_"&IF(O$4<10,"0"&O$4,O$4),ID_LR!$C$3:$JR$49,45,FALSE) -> -184.5127969 | P19: =HLOOKUP($A19&"_"&IF(P$4<10,"0"&P$4,P$4),ID_LR!$C$3:$JR$49,45,FALSE) -> -121.1349929 | Q19: =HLOOKUP($A19&"_"&IF(Q$4<10,"0"&Q$4,Q$4),ID_LR!$C$3:$JR$49,45,FALSE) -> -63.27524736 | R19: =HLOOKUP($A19&"_"&IF(R$4<10,"0"&R$4,R$4),ID_LR!$C$3:$JR$49,45,FALSE) -> 18.36443609 | S19: =HLOOKUP($A19&"_"&IF(S$4<10,"0"&S$4,S$4),ID_LR!$C$3:$JR$49,45,FALSE) -> -52.9219192 | T19: =HLOOKUP($A19&"_"&IF(T$4<10,"0"&T$4,T$4),ID_LR!$C$3:$JR$49,45,FALSE) -> -47.61009308 | U19: =HLOOKUP($A19&"_"&IF(U$4<10,"0"&U$4,U$4),ID_LR!$C$3:$JR$49,45,FALSE) -> -129.9927187 | V19: =HLOOKUP($A19&"_"&IF(V$4<10,"0"&V$4,V$4),ID_LR!$C$3:$JR$49,45,FALSE) -> -139.4126373 | W19: =HLOOKUP($A19&"_"&IF(W$4<10,"0"&W$4,W$4),ID_LR!$C$3:$JR$49,45,FALSE) -> -113.9826188 | X19: =HLOOKUP($A19&"_"&IF(X$4<10,"0"&X$4,X$4),ID_LR!$C$3:$JR$49,45,FALSE) -> 18.79713006 | Y19: =HLOOKUP($A19&"_"&IF(Y$4<10,"0"&Y$4,Y$4),ID_LR!$C$3:$JR$49,45,FALSE) -> -100.3661962 | Z19: =HLOOKUP($A19&"_"&IF(Z$4<10,"0"&Z$4,Z$4),ID_LR!$C$3:$JR$49,45,FALSE) -> -175.4002236 | AB19: =HLOOKUP($A19&"_"&IF(AB$4<10,"0"&AB$4,AB$4),System_LR!$C$3:$JR$49,45,FALSE) -> -452.0709663 | AC19: =HLOOKUP($A19&"_"&IF(AC$4<10,"0"&AC$4,AC$4),System_LR!$C$3:$JR$49,45,FALSE) -> -292.6109968 | AD19: =HLOOKUP($A19&"_"&IF(AD$4<10,"0"&AD$4,AD$4),System_LR!$C$3:$JR$49,45,FALSE) -> -95.97629381 | AE19: =HLOOKUP($A19&"_"&IF(AE$4<10,"0"&AE$4,AE$4),System_LR!$C$3:$JR$49,45,FALSE) -> 181.6620829 | AF19: =HLOOKUP($A19&"_"&IF(AF$4<10,"0"&AF$4,AF$4),System_LR!$C$3:$JR$49,45,FALSE) -> -26.25409531 | AG19: =HLOOKUP($A19&"_"&IF(AG$4<10,"0"&AG$4,AG$4),System_LR!$C$3:$JR$49,45,FALSE) -> -23.01960249 | AH19: =HLOOKUP($A19&"_"&IF(AH$4<10,"0"&AH$4,AH$4),System_LR!$C$3:$JR$49,45,FALSE) -> -248.9155026 | AI19: =HLOOKUP($A19&"_"&IF(AI$4<10,"0"&AI$4,AI$4),System_LR!$C$3:$JR$49,45,FALSE) -> -317.7306132 | AJ19: =HLOOKUP($A19&"_"&IF(AJ$4<10,"0"&AJ$4,AJ$4),System_LR!$C$3:$JR$49,45,FALSE) -> -254.4255098 | AK19: =HLOOKUP($A19&"_"&IF(AK$4<10,"0"&AK$4,AK$4),System_LR!$C$3:$JR$49,45,FALSE) -> 123.7319831 | AL19: =HLOOKUP($A19&"_"&IF(AL$4<10,"0"&AL$4,AL$4),System_LR!$C$3:$JR$49,45,FALSE) -> -197.7634069 | AM19: =HLOOKUP($A19&"_"&IF(AM$4<10,"0"&AM$4,AM$4),System_LR!$C$3:$JR$49,45,FALSE) -> -411.0464077 | AO19: -0.44 | AP19: -0.44 | AQ19: -0.44 | AR19: -0.44 | AS19: -0.26 | AT19: -0.26 | AU19: -0.26 | AV19: -0.26 | AW19: -0.26 | AX19: -0.44 | AY19: -0.44 | AZ19: -0.44
A20: 2038 | B20: =HLOOKUP($A20&"_"&IF(B$4<10,"0"&B$4,B$4),WA_LR!$C$3:$JR$49,45,FALSE) -> -287.9099771 | C20: =HLOOKUP($A20&"_"&IF(C$4<10,"0"&C$4,C$4),WA_LR!$C$3:$JR$49,45,FALSE) -> -190.4144135 | D20: =HLOOKUP($A20&"_"&IF(D$4<10,"0"&D$4,D$4),WA_LR!$C$3:$JR$49,45,FALSE) -> -51.98135016 | E20: =HLOOKUP($A20&"_"&IF(E$4<10,"0"&E$4,E$4),WA_LR!$C$3:$JR$49,45,FALSE) -> 142.8224574 | F20: =HLOOKUP($A20&"_"&IF(F$4<10,"0"&F$4,F$4),WA_LR!$C$3:$JR$49,45,FALSE) -> 2.444980231 | G20: =HLOOKUP($A20&"_"&IF(G$4<10,"0"&G$4,G$4),WA_LR!$C$3:$JR$49,45,FALSE) -> -1.602533271 | H20: =HLOOKUP($A20&"_"&IF(H$4<10,"0"&H$4,H$4),WA_LR!$C$3:$JR$49,45,FALSE) -> -146.418862 | I20: =HLOOKUP($A20&"_"&IF(I$4<10,"0"&I$4,I$4),WA_LR!$C$3:$JR$49,45,FALSE) -> -201.1693338 | J20: =HLOOKUP($A20&"_"&IF(J$4<10,"0"&J$4,J$4),WA_LR!$C$3:$JR$49,45,FALSE) -> -166.5775509 | K20: =HLOOKUP($A20&"_"&IF(K$4<10,"0"&K$4,K$4),WA_LR!$C$3:$JR$49,45,FALSE) -> 84.40666492 | L20: =HLOOKUP($A20&"_"&IF(L$4<10,"0"&L$4,L$4),WA_LR!$C$3:$JR$49,45,FALSE) -> -118.9126085 | M20: =HLOOKUP($A20&"_"&IF(M$4<10,"0"&M$4,M$4),WA_LR!$C$3:$JR$49,45,FALSE) -> -256.7153582 | O20: =HLOOKUP($A20&"_"&IF(O$4<10,"0"&O$4,O$4),ID_LR!$C$3:$JR$49,45,FALSE) -> -193.4908904 | P20: =HLOOKUP($A20&"_"&IF(P$4<10,"0"&P$4,P$4),ID_LR!$C$3:$JR$49,45,FALSE) -> -130.142439 | Q20: =HLOOKUP($A20&"_"&IF(Q$4<10,"0"&Q$4,Q$4),ID_LR!$C$3:$JR$49,45,FALSE) -> -71.8926374 | R20: =HLOOKUP($A20&"_"&IF(R$4<10,"0"&R$4,R$4),ID_LR!$C$3:$JR$49,45,FALSE) -> 9.464251088 | S20: =HLOOKUP($A20&"_"&IF(S$4<10,"0"&S$4,S$4),ID_LR!$C$3:$JR$49,45,FALSE) -> -65.03510346 | T20: =HLOOKUP($A20&"_"&IF(T$4<10,"0"&T$4,T$4),ID_LR!$C$3:$JR$49,45,FALSE) -> -60.97337113 | U20: =HLOOKUP($A20&"_"&IF(U$4<10,"0"&U$4,U$4),ID_LR!$C$3:$JR$49,45,FALSE) -> -143.792179 | V20: =HLOOKUP($A20&"_"&IF(V$4<10,"0"&V$4,V$4),ID_LR!$C$3:$JR$49,45,FALSE) -> -151.0494341 | W20: =HLOOKUP($A20&"_"&IF(W$4<10,"0"&W$4,W$4),ID_LR!$C$3:$JR$49,45,FALSE) -> -128.3172978 | X20: =HLOOKUP($A20&"_"&IF(X$4<10,"0"&X$4,X$4),ID_LR!$C$3:$JR$49,45,FALSE) -> 9.765031681 | Y20: =HLOOKUP($A20&"_"&IF(Y$4<10,"0"&Y$4,Y$4),ID_LR!$C$3:$JR$49,45,FALSE) -> -110.1071461 | Z20: =HLOOKUP($A20&"_"&IF(Z$4<10,"0"&Z$4,Z$4),ID_LR!$C$3:$JR$49,45,FALSE) -> -184.5842306 | AB20: =HLOOKUP($A20&"_"&IF(AB$4<10,"0"&AB$4,AB$4),System_LR!$C$3:$JR$49,45,FALSE) -> -480.9608675 | AC20: =HLOOKUP($A20&"_"&IF(AC$4<10,"0"&AC$4,AC$4),System_LR!$C$3:$JR$49,45,FALSE) -> -320.1168525 | AD20: =HLOOKUP($A20&"_"&IF(AD$4<10,"0"&AD$4,AD$4),System_LR!$C$3:$JR$49,45,FALSE) -> -123.4339876 | AE20: =HLOOKUP($A20&"_"&IF(AE$4<10,"0"&AE$4,AE$4),System_LR!$C$3:$JR$49,45,FALSE) -> 152.7267084 | AF20: =HLOOKUP($A20&"_"&IF(AF$4<10,"0"&AF$4,AF$4),System_LR!$C$3:$JR$49,45,FALSE) -> -62.33012323 | AG20: =HLOOKUP($A20&"_"&IF(AG$4<10,"0"&AG$4,AG$4),System_LR!$C$3:$JR$49,45,FALSE) -> -62.3159044 | AH20: =HLOOKUP($A20&"_"&IF(AH$4<10,"0"&AH$4,AH$4),System_LR!$C$3:$JR$49,45,FALSE) -> -289.951041 | AI20: =HLOOKUP($A20&"_"&IF(AI$4<10,"0"&AI$4,AI$4),System_LR!$C$3:$JR$49,45,FALSE) -> -351.9587678 | AJ20: =HLOOKUP($A20&"_"&IF(AJ$4<10,"0"&AJ$4,AJ$4),System_LR!$C$3:$JR$49,45,FALSE) -> -294.6348486 | AK20: =HLOOKUP($A20&"_"&IF(AK$4<10,"0"&AK$4,AK$4),System_LR!$C$3:$JR$49,45,FALSE) -> 94.6116966 | AL20: =HLOOKUP($A20&"_"&IF(AL$4<10,"0"&AL$4,AL$4),System_LR!$C$3:$JR$49,45,FALSE) -> -228.5797546 | AM20: =HLOOKUP($A20&"_"&IF(AM$4<10,"0"&AM$4,AM$4),System_LR!$C$3:$JR$49,45,FALSE) -> -440.8595888 | AO20: -0.44 | AP20: -0.44 | AQ20: -0.44 | AR20: -0.44 | AS20: -0.26 | AT20: -0.26 | AU20: -0.26 | AV20: -0.26 | AW20: -0.26 | AX20: -0.44 | AY20: -0.44 | AZ20: -0.44
A21: 2039 | B21: =HLOOKUP($A21&"_"&IF(B$4<10,"0"&B$4,B$4),WA_LR!$C$3:$JR$49,45,FALSE) -> -308.9776781 | C21: =HLOOKUP($A21&"_"&IF(C$4<10,"0"&C$4,C$4),WA_LR!$C$3:$JR$49,45,FALSE) -> -210.4045138 | D21: =HLOOKUP($A21&"_"&IF(D$4<10,"0"&D$4,D$4),WA_LR!$C$3:$JR$49,45,FALSE) -> -72.33717103 | E21: =HLOOKUP($A21&"_"&IF(E$4<10,"0"&E$4,E$4),WA_LR!$C$3:$JR$49,45,FALSE) -> 124.6151101 | F21: =HLOOKUP($A21&"_"&IF(F$4<10,"0"&F$4,F$4),WA_LR!$C$3:$JR$49,45,FALSE) -> -18.03053941 | G21: =HLOOKUP($A21&"_"&IF(G$4<10,"0"&G$4,G$4),WA_LR!$C$3:$JR$49,45,FALSE) -> -15.40354239 | H21: =HLOOKUP($A21&"_"&IF(H$4<10,"0"&H$4,H$4),WA_LR!$C$3:$JR$49,45,FALSE) -> -169.135647 | I21: =HLOOKUP($A21&"_"&IF(I$4<10,"0"&I$4,I$4),WA_LR!$C$3:$JR$49,45,FALSE) -> -223.1567226 | J21: =HLOOKUP($A21&"_"&IF(J$4<10,"0"&J$4,J$4),WA_LR!$C$3:$JR$49,45,FALSE) -> -183.8193542 | K21: =HLOOKUP($A21&"_"&IF(K$4<10,"0"&K$4,K$4),WA_LR!$C$3:$JR$49,45,FALSE) -> 64.49309809 | L21: =HLOOKUP($A21&"_"&IF(L$4<10,"0"&L$4,L$4),WA_LR!$C$3:$JR$49,45,FALSE) -> -140.2531751 | M21: =HLOOKUP($A21&"_"&IF(M$4<10,"0"&M$4,M$4),WA_LR!$C$3:$JR$49,45,FALSE) -> -277.9944686 | O21: =HLOOKUP($A21&"_"&IF(O$4<10,"0"&O$4,O$4),ID_LR!$C$3:$JR$49,45,FALSE) -> -203.1764665 | P21: =HLOOKUP($A21&"_"&IF(P$4<10,"0"&P$4,P$4),ID_LR!$C$3:$JR$49,45,FALSE) -> -139.5663636 | Q21: =HLOOKUP($A21&"_"&IF(Q$4<10,"0"&Q$4,Q$4),ID_LR!$C$3:$JR$49,45,FALSE) -> -81.61071814 | R21: =HLOOKUP($A21&"_"&IF(R$4<10,"0"&R$4,R$4),ID_LR!$C$3:$JR$49,45,FALSE) -> 0.2169052197 | S21: =HLOOKUP($A21&"_"&IF(S$4<10,"0"&S$4,S$4),ID_LR!$C$3:$JR$49,45,FALSE) -> -77.26850238 | T21: =HLOOKUP($A21&"_"&IF(T$4<10,"0"&T$4,T$4),ID_LR!$C$3:$JR$49,45,FALSE) -> -70.16289519 | U21: =HLOOKUP($A21&"_"&IF(U$4<10,"0"&U$4,U$4),ID_LR!$C$3:$JR$49,45,FALSE) -> -158.3202763 | V21: =HLOOKUP($A21&"_"&IF(V$4<10,"0"&V$4,V$4),ID_LR!$C$3:$JR$49,45,FALSE) -> -164.8463508 | W21: =HLOOKUP($A21&"_"&IF(W$4<10,"0"&W$4,W$4),ID_LR!$C$3:$JR$49,45,FALSE) -> -139.3753895 | X21: =HLOOKUP($A21&"_"&IF(X$4<10,"0"&X$4,X$4),ID_LR!$C$3:$JR$49,45,FALSE) -> 0.04571546102 | Y21: =HLOOKUP($A21&"_"&IF(Y$4<10,"0"&Y$4,Y$4),ID_LR!$C$3:$JR$49,45,FALSE) -> -119.9138847 | Z21: =HLOOKUP($A21&"_"&IF(Z$4<10,"0"&Z$4,Z$4),ID_LR!$C$3:$JR$49,45,FALSE) -> -194.1726123 | AB21: =HLOOKUP($A21&"_"&IF(AB$4<10,"0"&AB$4,AB$4),System_LR!$C$3:$JR$49,45,FALSE) -> -511.7141447 | AC21: =HLOOKUP($A21&"_"&IF(AC$4<10,"0"&AC$4,AC$4),System_LR!$C$3:$JR$49,45,FALSE) -> -349.5308774 | AD21: =HLOOKUP($A21&"_"&IF(AD$4<10,"0"&AD$4,AD$4),System_LR!$C$3:$JR$49,45,FALSE) -> -153.5078892 | AE21: =HLOOKUP($A21&"_"&IF(AE$4<10,"0"&AE$4,AE$4),System_LR!$C$3:$JR$49,45,FALSE) -> 125.2720153 | AF21: =HLOOKUP($A21&"_"&IF(AF$4<10,"0"&AF$4,AF$4),System_LR!$C$3:$JR$49,45,FALSE) -> -95.03904179 | AG21: =HLOOKUP($A21&"_"&IF(AG$4<10,"0"&AG$4,AG$4),System_LR!$C$3:$JR$49,45,FALSE) -> -85.30643759 | AH21: =HLOOKUP($A21&"_"&IF(AH$4<10,"0"&AH$4,AH$4),System_LR!$C$3:$JR$49,45,FALSE) -> -327.1959232 | AI21: =HLOOKUP($A21&"_"&IF(AI$4<10,"0"&AI$4,AI$4),System_LR!$C$3:$JR$49,45,FALSE) -> -387.7430734 | AJ21: =HLOOKUP($A21&"_"&IF(AJ$4<10,"0"&AJ$4,AJ$4),System_LR!$C$3:$JR$49,45,FALSE) -> -322.9347438 | AK21: =HLOOKUP($A21&"_"&IF(AK$4<10,"0"&AK$4,AK$4),System_LR!$C$3:$JR$49,45,FALSE) -> 64.97881355 | AL21: =HLOOKUP($A21&"_"&IF(AL$4<10,"0"&AL$4,AL$4),System_LR!$C$3:$JR$49,45,FALSE) -> -259.7270597 | AM21: =HLOOKUP($A21&"_"&IF(AM$4<10,"0"&AM$4,AM$4),System_LR!$C$3:$JR$49,45,FALSE) -> -471.7270809 | AO21: -0.44 | AP21: -0.44 | AQ21: -0.44 | AR21: -0.44 | AS21: -0.26 | AT21: -0.26 | AU21: -0.26 | AV21: -0.26 | AW21: -0.26 | AX21: -0.44 | AY21: -0.44 | AZ21: -0.44
A22: 2040 | B22: =HLOOKUP($A22&"_"&IF(B$4<10,"0"&B$4,B$4),WA_LR!$C$3:$JR$49,45,FALSE) -> -332.537037 | C22: =HLOOKUP($A22&"_"&IF(C$4<10,"0"&C$4,C$4),WA_LR!$C$3:$JR$49,45,FALSE) -> -234.5917608 | D22: =HLOOKUP($A22&"_"&IF(D$4<10,"0"&D$4,D$4),WA_LR!$C$3:$JR$49,45,FALSE) -> -93.76407322 | E22: =HLOOKUP($A22&"_"&IF(E$4<10,"0"&E$4,E$4),WA_LR!$C$3:$JR$49,45,FALSE) -> 104.2255086 | F22: =HLOOKUP($A22&"_"&IF(F$4<10,"0"&F$4,F$4),WA_LR!$C$3:$JR$49,45,FALSE) -> -40.26954505 | G22: =HLOOKUP($A22&"_"&IF(G$4<10,"0"&G$4,G$4),WA_LR!$C$3:$JR$49,45,FALSE) -> -34.33409731 | H22: =HLOOKUP($A22&"_"&IF(H$4<10,"0"&H$4,H$4),WA_LR!$C$3:$JR$49,45,FALSE) -> -187.1141502 | I22: =HLOOKUP($A22&"_"&IF(I$4<10,"0"&I$4,I$4),WA_LR!$C$3:$JR$49,45,FALSE) -> -242.7872564 | J22: =HLOOKUP($A22&"_"&IF(J$4<10,"0"&J$4,J$4),WA_LR!$C$3:$JR$49,45,FALSE) -> -202.3168542 | K22: =HLOOKUP($A22&"_"&IF(K$4<10,"0"&K$4,K$4),WA_LR!$C$3:$JR$49,45,FALSE) -> 43.34787272 | L22: =HLOOKUP($A22&"_"&IF(L$4<10,"0"&L$4,L$4),WA_LR!$C$3:$JR$49,45,FALSE) -> -162.9355993 | M22: =HLOOKUP($A22&"_"&IF(M$4<10,"0"&M$4,M$4),WA_LR!$C$3:$JR$49,45,FALSE) -> -299.3325523 | O22: =HLOOKUP($A22&"_"&IF(O$4<10,"0"&O$4,O$4),ID_LR!$C$3:$JR$49,45,FALSE) -> -214.0316106 | P22: =HLOOKUP($A22&"_"&IF(P$4<10,"0"&P$4,P$4),ID_LR!$C$3:$JR$49,45,FALSE) -> -149.4412307 | Q22: =HLOOKUP($A22&"_"&IF(Q$4<10,"0"&Q$4,Q$4),ID_LR!$C$3:$JR$49,45,FALSE) -> -91.67623072 | R22: =HLOOKUP($A22&"_"&IF(R$4<10,"0"&R$4,R$4),ID_LR!$C$3:$JR$49,45,FALSE) -> -10.01911132 | S22: =HLOOKUP($A22&"_"&IF(S$4<10,"0"&S$4,S$4),ID_LR!$C$3:$JR$49,45,FALSE) -> -90.26853464 | T22: =HLOOKUP($A22&"_"&IF(T$4<10,"0"&T$4,T$4),ID_LR!$C$3:$JR$49,45,FALSE) -> -81.82780376 | U22: =HLOOKUP($A22&"_"&IF(U$4<10,"0"&U$4,U$4),ID_LR!$C$3:$JR$49,45,FALSE) -> -169.9392417 | V22: =HLOOKUP($A22&"_"&IF(V$4<10,"0"&V$4,V$4),ID_LR!$C$3:$JR$49,45,FALSE) -> -177.0683155 | W22: =HLOOKUP($A22&"_"&IF(W$4<10,"0"&W$4,W$4),ID_LR!$C$3:$JR$49,45,FALSE) -> -150.8500839 | X22: =HLOOKUP($A22&"_"&IF(X$4<10,"0"&X$4,X$4),ID_LR!$C$3:$JR$49,45,FALSE) -> -10.09709001 | Y22: =HLOOKUP($A22&"_"&IF(Y$4<10,"0"&Y$4,Y$4),ID_LR!$C$3:$JR$49,45,FALSE) -> -130.1861444 | Z22: =HLOOKUP($A22&"_"&IF(Z$4<10,"0"&Z$4,Z$4),ID_LR!$C$3:$JR$49,45,FALSE) -> -203.5260595 | AB22: =HLOOKUP($A22&"_"&IF(AB$4<10,"0"&AB$4,AB$4),System_LR!$C$3:$JR$49,45,FALSE) -> -546.1286475 | AC22: =HLOOKUP($A22&"_"&IF(AC$4<10,"0"&AC$4,AC$4),System_LR!$C$3:$JR$49,45,FALSE) -> -383.5929915 | AD22: =HLOOKUP($A22&"_"&IF(AD$4<10,"0"&AD$4,AD$4),System_LR!$C$3:$JR$49,45,FALSE) -> -185.0003039 | AE22: =HLOOKUP($A22&"_"&IF(AE$4<10,"0"&AE$4,AE$4),System_LR!$C$3:$JR$49,45,FALSE) -> 94.6463973 | AF22: =HLOOKUP($A22&"_"&IF(AF$4<10,"0"&AF$4,AF$4),System_LR!$C$3:$JR$49,45,FALSE) -> -130.2780797 | AG22: =HLOOKUP($A22&"_"&IF(AG$4<10,"0"&AG$4,AG$4),System_LR!$C$3:$JR$49,45,FALSE) -> -115.9019011 | AH22: =HLOOKUP($A22&"_"&IF(AH$4<10,"0"&AH$4,AH$4),System_LR!$C$3:$JR$49,45,FALSE) -> -356.7933919 | AI22: =HLOOKUP($A22&"_"&IF(AI$4<10,"0"&AI$4,AI$4),System_LR!$C$3:$JR$49,45,FALSE) -> -419.5955719 | AJ22: =HLOOKUP($A22&"_"&IF(AJ$4<10,"0"&AJ$4,AJ$4),System_LR!$C$3:$JR$49,45,FALSE) -> -352.906938 | AK22: =HLOOKUP($A22&"_"&IF(AK$4<10,"0"&AK$4,AK$4),System_LR!$C$3:$JR$49,45,FALSE) -> 33.69078272 | AL22: =HLOOKUP($A22&"_"&IF(AL$4<10,"0"&AL$4,AL$4),System_LR!$C$3:$JR$49,45,FALSE) -> -292.6817437 | AM22: =HLOOKUP($A22&"_"&IF(AM$4<10,"0"&AM$4,AM$4),System_LR!$C$3:$JR$49,45,FALSE) -> -502.4186118 | AO22: -0.44 | AP22: -0.44 | AQ22: -0.44 | AR22: -0.44 | AS22: -0.26 | AT22: -0.26 | AU22: -0.26 | AV22: -0.26 | AW22: -0.26 | AX22: -0.44 | AY22: -0.44 | AZ22: -0.44
A23: 2041 | B23: =HLOOKUP($A23&"_"&IF(B$4<10,"0"&B$4,B$4),WA_LR!$C$3:$JR$49,45,FALSE) -> -402.7618248 | C23: =HLOOKUP($A23&"_"&IF(C$4<10,"0"&C$4,C$4),WA_LR!$C$3:$JR$49,45,FALSE) -> -300.4001994 | D23: =HLOOKUP($A23&"_"&IF(D$4<10,"0"&D$4,D$4),WA_LR!$C$3:$JR$49,45,FALSE) -> -159.5838265 | E23: =HLOOKUP($A23&"_"&IF(E$4<10,"0"&E$4,E$4),WA_LR!$C$3:$JR$49,45,FALSE) -> 36.64151355 | F23: =HLOOKUP($A23&"_"&IF(F$4<10,"0"&F$4,F$4),WA_LR!$C$3:$JR$49,45,FALSE) -> -106.3506414 | G23: =HLOOKUP($A23&"_"&IF(G$4<10,"0"&G$4,G$4),WA_LR!$C$3:$JR$49,45,FALSE) -> -84.6195861 | H23: =HLOOKUP($A23&"_"&IF(H$4<10,"0"&H$4,H$4),WA_LR!$C$3:$JR$49,45,FALSE) -> -250.6490635 | I23: =HLOOKUP($A23&"_"&IF(I$4<10,"0"&I$4,I$4),WA_LR!$C$3:$JR$49,45,FALSE) -> -305.1437811 | J23: =HLOOKUP($A23&"_"&IF(J$4<10,"0"&J$4,J$4),WA_LR!$C$3:$JR$49,45,FALSE) -> -267.0461054 | K23: =HLOOKUP($A23&"_"&IF(K$4<10,"0"&K$4,K$4),WA_LR!$C$3:$JR$49,45,FALSE) -> -25.04889734 | L23: =HLOOKUP($A23&"_"&IF(L$4<10,"0"&L$4,L$4),WA_LR!$C$3:$JR$49,45,FALSE) -> -235.8549652 | M23: =HLOOKUP($A23&"_"&IF(M$4<10,"0"&M$4,M$4),WA_LR!$C$3:$JR$49,45,FALSE) -> -370.7704858 | O23: =HLOOKUP($A23&"_"&IF(O$4<10,"0"&O$4,O$4),ID_LR!$C$3:$JR$49,45,FALSE) -> -249.1834331 | P23: =HLOOKUP($A23&"_"&IF(P$4<10,"0"&P$4,P$4),ID_LR!$C$3:$JR$49,45,FALSE) -> -184.0949796 | Q23: =HLOOKUP($A23&"_"&IF(Q$4<10,"0"&Q$4,Q$4),ID_LR!$C$3:$JR$49,45,FALSE) -> -124.7150187 | R23: =HLOOKUP($A23&"_"&IF(R$4<10,"0"&R$4,R$4),ID_LR!$C$3:$JR$49,45,FALSE) -> -44.75726847 | S23: =HLOOKUP($A23&"_"&IF(S$4<10,"0"&S$4,S$4),ID_LR!$C$3:$JR$49,45,FALSE) -> -126.4446329 | T23: =HLOOKUP($A23&"_"&IF(T$4<10,"0"&T$4,T$4),ID_LR!$C$3:$JR$49,45,FALSE) -> -109.6385422 | U23: =HLOOKUP($A23&"_"&IF(U$4<10,"0"&U$4,U$4),ID_LR!$C$3:$JR$49,45,FALSE) -> -205.5866833 | V23: =HLOOKUP($A23&"_"&IF(V$4<10,"0"&V$4,V$4),ID_LR!$C$3:$JR$49,45,FALSE) -> -211.753266 | W23: =HLOOKUP($A23&"_"&IF(W$4<10,"0"&W$4,W$4),ID_LR!$C$3:$JR$49,45,FALSE) -> -186.5670562 | X23: =HLOOKUP($A23&"_"&IF(X$4<10,"0"&X$4,X$4),ID_LR!$C$3:$JR$49,45,FALSE) -> -44.71230951 | Y23: =HLOOKUP($A23&"_"&IF(Y$4<10,"0"&Y$4,Y$4),ID_LR!$C$3:$JR$49,45,FALSE) -> -166.4588418 | Z23: =HLOOKUP($A23&"_"&IF(Z$4<10,"0"&Z$4,Z$4),ID_LR!$C$3:$JR$49,45,FALSE) -> -238.9839671 | AB23: =HLOOKUP($A23&"_"&IF(AB$4<10,"0"&AB$4,AB$4),System_LR!$C$3:$JR$49,45,FALSE) -> -651.5052579 | AC23: =HLOOKUP($A23&"_"&IF(AC$4<10,"0"&AC$4,AC$4),System_LR!$C$3:$JR$49,45,FALSE) -> -484.055179 | AD23: =HLOOKUP($A23&"_"&IF(AD$4<10,"0"&AD$4,AD$4),System_LR!$C$3:$JR$49,45,FALSE) -> -283.8588452 | AE23: =HLOOKUP($A23&"_"&IF(AE$4<10,"0"&AE$4,AE$4),System_LR!$C$3:$JR$49,45,FALSE) -> -7.675754916 | AF23: =HLOOKUP($A23&"_"&IF(AF$4<10,"0"&AF$4,AF$4),System_LR!$C$3:$JR$49,45,FALSE) -> -232.5352743 | AG23: =HLOOKUP($A23&"_"&IF(AG$4<10,"0"&AG$4,AG$4),System_LR!$C$3:$JR$49,45,FALSE) -> -193.9981283 | AH23: =HLOOKUP($A23&"_"&IF(AH$4<10,"0"&AH$4,AH$4),System_LR!$C$3:$JR$49,45,FALSE) -> -455.9757468 | AI23: =HLOOKUP($A23&"_"&IF(AI$4<10,"0"&AI$4,AI$4),System_LR!$C$3:$JR$49,45,FALSE) -> -516.6370471 | AJ23: =HLOOKUP($A23&"_"&IF(AJ$4<10,"0"&AJ$4,AJ$4),System_LR!$C$3:$JR$49,45,FALSE) -> -453.3531616 | AK23: =HLOOKUP($A23&"_"&IF(AK$4<10,"0"&AK$4,AK$4),System_LR!$C$3:$JR$49,45,FALSE) -> -69.32120685 | AL23: =HLOOKUP($A23&"_"&IF(AL$4<10,"0"&AL$4,AL$4),System_LR!$C$3:$JR$49,45,FALSE) -> -401.873807 | AM23: =HLOOKUP($A23&"_"&IF(AM$4<10,"0"&AM$4,AM$4),System_LR!$C$3:$JR$49,45,FALSE) -> -609.3144528 | AO23: -0.44 | AP23: -0.44 | AQ23: -0.44 | AR23: -0.44 | AS23: -0.26 | AT23: -0.26 | AU23: -0.26 | AV23: -0.26 | AW23: -0.26 | AX23: -0.44 | AY23: -0.44 | AZ23: -0.44
A24: 2042 | B24: =HLOOKUP($A24&"_"&IF(B$4<10,"0"&B$4,B$4),WA_LR!$C$3:$JR$49,45,FALSE) -> -431.1294225 | C24: =HLOOKUP($A24&"_"&IF(C$4<10,"0"&C$4,C$4),WA_LR!$C$3:$JR$49,45,FALSE) -> -327.4204764 | D24: =HLOOKUP($A24&"_"&IF(D$4<10,"0"&D$4,D$4),WA_LR!$C$3:$JR$49,45,FALSE) -> -186.4037929 | E24: =HLOOKUP($A24&"_"&IF(E$4<10,"0"&E$4,E$4),WA_LR!$C$3:$JR$49,45,FALSE) -> 12.19773813 | F24: =HLOOKUP($A24&"_"&IF(F$4<10,"0"&F$4,F$4),WA_LR!$C$3:$JR$49,45,FALSE) -> -131.2548379 | G24: =HLOOKUP($A24&"_"&IF(G$4<10,"0"&G$4,G$4),WA_LR!$C$3:$JR$49,45,FALSE) -> -102.9263334 | H24: =HLOOKUP($A24&"_"&IF(H$4<10,"0"&H$4,H$4),WA_LR!$C$3:$JR$49,45,FALSE) -> -272.2322489 | I24: =HLOOKUP($A24&"_"&IF(I$4<10,"0"&I$4,I$4),WA_LR!$C$3:$JR$49,45,FALSE) -> -332.8919489 | J24: =HLOOKUP($A24&"_"&IF(J$4<10,"0"&J$4,J$4),WA_LR!$C$3:$JR$49,45,FALSE) -> -295.2261639 | K24: =HLOOKUP($A24&"_"&IF(K$4<10,"0"&K$4,K$4),WA_LR!$C$3:$JR$49,45,FALSE) -> -51.48002288 | L24: =HLOOKUP($A24&"_"&IF(L$4<10,"0"&L$4,L$4),WA_LR!$C$3:$JR$49,45,FALSE) -> -264.1185131 | M24: =HLOOKUP($A24&"_"&IF(M$4<10,"0"&M$4,M$4),WA_LR!$C$3:$JR$49,45,FALSE) -> -399.0909796 | O24: =HLOOKUP($A24&"_"&IF(O$4<10,"0"&O$4,O$4),ID_LR!$C$3:$JR$49,45,FALSE) -> -262.0760272 | P24: =HLOOKUP($A24&"_"&IF(P$4<10,"0"&P$4,P$4),ID_LR!$C$3:$JR$49,45,FALSE) -> -196.5670709 | Q24: =HLOOKUP($A24&"_"&IF(Q$4<10,"0"&Q$4,Q$4),ID_LR!$C$3:$JR$49,45,FALSE) -> -137.0729963 | R24: =HLOOKUP($A24&"_"&IF(R$4<10,"0"&R$4,R$4),ID_LR!$C$3:$JR$49,45,FALSE) -> -56.64057377 | S24: =HLOOKUP($A24&"_"&IF(S$4<10,"0"&S$4,S$4),ID_LR!$C$3:$JR$49,45,FALSE) -> -140.6548079 | T24: =HLOOKUP($A24&"_"&IF(T$4<10,"0"&T$4,T$4),ID_LR!$C$3:$JR$49,45,FALSE) -> -120.6898274 | U24: =HLOOKUP($A24&"_"&IF(U$4<10,"0"&U$4,U$4),ID_LR!$C$3:$JR$49,45,FALSE) -> -219.0619037 | V24: =HLOOKUP($A24&"_"&IF(V$4<10,"0"&V$4,V$4),ID_LR!$C$3:$JR$49,45,FALSE) -> -228.2421595 | W24: =HLOOKUP($A24&"_"&IF(W$4<10,"0"&W$4,W$4),ID_LR!$C$3:$JR$49,45,FALSE) -> -203.0509985 | X24: =HLOOKUP($A24&"_"&IF(X$4<10,"0"&X$4,X$4),ID_LR!$C$3:$JR$49,45,FALSE) -> -57.04739542 | Y24: =HLOOKUP($A24&"_"&IF(Y$4<10,"0"&Y$4,Y$4),ID_LR!$C$3:$JR$49,45,FALSE) -> -179.0598855 | Z24: =HLOOKUP($A24&"_"&IF(Z$4<10,"0"&Z$4,Z$4),ID_LR!$C$3:$JR$49,45,FALSE) -> -251.534872 | AB24: =HLOOKUP($A24&"_"&IF(AB$4<10,"0"&AB$4,AB$4),System_LR!$C$3:$JR$49,45,FALSE) -> -692.7654497 | AC24: =HLOOKUP($A24&"_"&IF(AC$4<10,"0"&AC$4,AC$4),System_LR!$C$3:$JR$49,45,FALSE) -> -523.5475473 | AD24: =HLOOKUP($A24&"_"&IF(AD$4<10,"0"&AD$4,AD$4),System_LR!$C$3:$JR$49,45,FALSE) -> -323.0367891 | AE24: =HLOOKUP($A24&"_"&IF(AE$4<10,"0"&AE$4,AE$4),System_LR!$C$3:$JR$49,45,FALSE) -> -44.00283564 | AF24: =HLOOKUP($A24&"_"&IF(AF$4<10,"0"&AF$4,AF$4),System_LR!$C$3:$JR$49,45,FALSE) -> -271.6496457 | AG24: =HLOOKUP($A24&"_"&IF(AG$4<10,"0"&AG$4,AG$4),System_LR!$C$3:$JR$49,45,FALSE) -> -223.3561607 | AH24: =HLOOKUP($A24&"_"&IF(AH$4<10,"0"&AH$4,AH$4),System_LR!$C$3:$JR$49,45,FALSE) -> -491.0341527 | AI24: =HLOOKUP($A24&"_"&IF(AI$4<10,"0"&AI$4,AI$4),System_LR!$C$3:$JR$49,45,FALSE) -> -560.8741084 | AJ24: =HLOOKUP($A24&"_"&IF(AJ$4<10,"0"&AJ$4,AJ$4),System_LR!$C$3:$JR$49,45,FALSE) -> -498.0171624 | AK24: =HLOOKUP($A24&"_"&IF(AK$4<10,"0"&AK$4,AK$4),System_LR!$C$3:$JR$49,45,FALSE) -> -108.0874183 | AL24: =HLOOKUP($A24&"_"&IF(AL$4<10,"0"&AL$4,AL$4),System_LR!$C$3:$JR$49,45,FALSE) -> -442.7383985 | AM24: =HLOOKUP($A24&"_"&IF(AM$4<10,"0"&AM$4,AM$4),System_LR!$C$3:$JR$49,45,FALSE) -> -650.1858516 | AO24: -0.44 | AP24: -0.44 | AQ24: -0.44 | AR24: -0.44 | AS24: -0.26 | AT24: -0.26 | AU24: -0.26 | AV24: -0.26 | AW24: -0.26 | AX24: -0.44 | AY24: -0.44 | AZ24: -0.44
A25: 2043 | B25: =HLOOKUP($A25&"_"&IF(B$4<10,"0"&B$4,B$4),WA_LR!$C$3:$JR$49,45,FALSE) -> -470.5741931 | C25: =HLOOKUP($A25&"_"&IF(C$4<10,"0"&C$4,C$4),WA_LR!$C$3:$JR$49,45,FALSE) -> -368.9821051 | D25: =HLOOKUP($A25&"_"&IF(D$4<10,"0"&D$4,D$4),WA_LR!$C$3:$JR$49,45,FALSE) -> -227.292767 | E25: =HLOOKUP($A25&"_"&IF(E$4<10,"0"&E$4,E$4),WA_LR!$C$3:$JR$49,45,FALSE) -> -26.22766995 | F25: =HLOOKUP($A25&"_"&IF(F$4<10,"0"&F$4,F$4),WA_LR!$C$3:$JR$49,45,FALSE) -> -168.2112228 | G25: =HLOOKUP($A25&"_"&IF(G$4<10,"0"&G$4,G$4),WA_LR!$C$3:$JR$49,45,FALSE) -> -132.9887838 | H25: =HLOOKUP($A25&"_"&IF(H$4<10,"0"&H$4,H$4),WA_LR!$C$3:$JR$49,45,FALSE) -> -304.1966095 | I25: =HLOOKUP($A25&"_"&IF(I$4<10,"0"&I$4,I$4),WA_LR!$C$3:$JR$49,45,FALSE) -> -373.4261202 | J25: =HLOOKUP($A25&"_"&IF(J$4<10,"0"&J$4,J$4),WA_LR!$C$3:$JR$49,45,FALSE) -> -335.3129981 | K25: =HLOOKUP($A25&"_"&IF(K$4<10,"0"&K$4,K$4),WA_LR!$C$3:$JR$49,45,FALSE) -> -91.10901486 | L25: =HLOOKUP($A25&"_"&IF(L$4<10,"0"&L$4,L$4),WA_LR!$C$3:$JR$49,45,FALSE) -> -299.9394943 | M25: =HLOOKUP($A25&"_"&IF(M$4<10,"0"&M$4,M$4),WA_LR!$C$3:$JR$49,45,FALSE) -> -437.2541564 | O25: =HLOOKUP($A25&"_"&IF(O$4<10,"0"&O$4,O$4),ID_LR!$C$3:$JR$49,45,FALSE) -> -280.473956 | P25: =HLOOKUP($A25&"_"&IF(P$4<10,"0"&P$4,P$4),ID_LR!$C$3:$JR$49,45,FALSE) -> -216.3337107 | Q25: =HLOOKUP($A25&"_"&IF(Q$4<10,"0"&Q$4,Q$4),ID_LR!$C$3:$JR$49,45,FALSE) -> -156.4251319 | R25: =HLOOKUP($A25&"_"&IF(R$4<10,"0"&R$4,R$4),ID_LR!$C$3:$JR$49,45,FALSE) -> -75.52068372 | S25: =HLOOKUP($A25&"_"&IF(S$4<10,"0"&S$4,S$4),ID_LR!$C$3:$JR$49,45,FALSE) -> -161.0389152 | T25: =HLOOKUP($A25&"_"&IF(T$4<10,"0"&T$4,T$4),ID_LR!$C$3:$JR$49,45,FALSE) -> -137.7012704 | U25: =HLOOKUP($A25&"_"&IF(U$4<10,"0"&U$4,U$4),ID_LR!$C$3:$JR$49,45,FALSE) -> -237.7916421 | V25: =HLOOKUP($A25&"_"&IF(V$4<10,"0"&V$4,V$4),ID_LR!$C$3:$JR$49,45,FALSE) -> -251.2965142 | W25: =HLOOKUP($A25&"_"&IF(W$4<10,"0"&W$4,W$4),ID_LR!$C$3:$JR$49,45,FALSE) -> -225.6148811 | X25: =HLOOKUP($A25&"_"&IF(X$4<10,"0"&X$4,X$4),ID_LR!$C$3:$JR$49,45,FALSE) -> -75.87783889 | Y25: =HLOOKUP($A25&"_"&IF(Y$4<10,"0"&Y$4,Y$4),ID_LR!$C$3:$JR$49,45,FALSE) -> -195.1346429 | Z25: =HLOOKUP($A25&"_"&IF(Z$4<10,"0"&Z$4,Z$4),ID_LR!$C$3:$JR$49,45,FALSE) -> -268.8137484 | AB25: =HLOOKUP($A25&"_"&IF(AB$4<10,"0"&AB$4,AB$4),System_LR!$C$3:$JR$49,45,FALSE) -> -750.6081491 | AC25: =HLOOKUP($A25&"_"&IF(AC$4<10,"0"&AC$4,AC$4),System_LR!$C$3:$JR$49,45,FALSE) -> -584.8758159 | AD25: =HLOOKUP($A25&"_"&IF(AD$4<10,"0"&AD$4,AD$4),System_LR!$C$3:$JR$49,45,FALSE) -> -383.2778989 | AE25: =HLOOKUP($A25&"_"&IF(AE$4<10,"0"&AE$4,AE$4),System_LR!$C$3:$JR$49,45,FALSE) -> -101.3083537 | AF25: =HLOOKUP($A25&"_"&IF(AF$4<10,"0"&AF$4,AF$4),System_LR!$C$3:$JR$49,45,FALSE) -> -328.990138 | AG25: =HLOOKUP($A25&"_"&IF(AG$4<10,"0"&AG$4,AG$4),System_LR!$C$3:$JR$49,45,FALSE) -> -270.4300542 | AH25: =HLOOKUP($A25&"_"&IF(AH$4<10,"0"&AH$4,AH$4),System_LR!$C$3:$JR$49,45,FALSE) -> -541.7282516 | AI25: =HLOOKUP($A25&"_"&IF(AI$4<10,"0"&AI$4,AI$4),System_LR!$C$3:$JR$49,45,FALSE) -> -624.4626344 | AJ25: =HLOOKUP($A25&"_"&IF(AJ$4<10,"0"&AJ$4,AJ$4),System_LR!$C$3:$JR$49,45,FALSE) -> -560.6678792 | AK25: =HLOOKUP($A25&"_"&IF(AK$4<10,"0"&AK$4,AK$4),System_LR!$C$3:$JR$49,45,FALSE) -> -166.5468537 | AL25: =HLOOKUP($A25&"_"&IF(AL$4<10,"0"&AL$4,AL$4),System_LR!$C$3:$JR$49,45,FALSE) -> -494.6341373 | AM25: =HLOOKUP($A25&"_"&IF(AM$4<10,"0"&AM$4,AM$4),System_LR!$C$3:$JR$49,45,FALSE) -> -705.6279048 | AO25: -0.44 | AP25: -0.44 | AQ25: -0.44 | AR25: -0.44 | AS25: -0.26 | AT25: -0.26 | AU25: -0.26 | AV25: -0.26 | AW25: -0.26 | AX25: -0.44 | AY25: -0.44 | AZ25: -0.44
A26: 2044 | B26: =HLOOKUP($A26&"_"&IF(B$4<10,"0"&B$4,B$4),WA_LR!$C$3:$JR$49,45,FALSE) -> -504.8308195 | C26: =HLOOKUP($A26&"_"&IF(C$4<10,"0"&C$4,C$4),WA_LR!$C$3:$JR$49,45,FALSE) -> -404.2038057 | D26: =HLOOKUP($A26&"_"&IF(D$4<10,"0"&D$4,D$4),WA_LR!$C$3:$JR$49,45,FALSE) -> -261.1332853 | E26: =HLOOKUP($A26&"_"&IF(E$4<10,"0"&E$4,E$4),WA_LR!$C$3:$JR$49,45,FALSE) -> -56.34671855 | F26: =HLOOKUP($A26&"_"&IF(F$4<10,"0"&F$4,F$4),WA_LR!$C$3:$JR$49,45,FALSE) -> -199.2801311 | G26: =HLOOKUP($A26&"_"&IF(G$4<10,"0"&G$4,G$4),WA_LR!$C$3:$JR$49,45,FALSE) -> -169.0551875 | H26: =HLOOKUP($A26&"_"&IF(H$4<10,"0"&H$4,H$4),WA_LR!$C$3:$JR$49,45,FALSE) -> -332.4814032 | I26: =HLOOKUP($A26&"_"&IF(I$4<10,"0"&I$4,I$4),WA_LR!$C$3:$JR$49,45,FALSE) -> -404.5084907 | J26: =HLOOKUP($A26&"_"&IF(J$4<10,"0"&J$4,J$4),WA_LR!$C$3:$JR$49,45,FALSE) -> -366.0293745 | K26: =HLOOKUP($A26&"_"&IF(K$4<10,"0"&K$4,K$4),WA_LR!$C$3:$JR$49,45,FALSE) -> -123.8842568 | L26: =HLOOKUP($A26&"_"&IF(L$4<10,"0"&L$4,L$4),WA_LR!$C$3:$JR$49,45,FALSE) -> -333.9491388 | M26: =HLOOKUP($A26&"_"&IF(M$4<10,"0"&M$4,M$4),WA_LR!$C$3:$JR$49,45,FALSE) -> -467.0842069 | O26: =HLOOKUP($A26&"_"&IF(O$4<10,"0"&O$4,O$4),ID_LR!$C$3:$JR$49,45,FALSE) -> -295.8680407 | P26: =HLOOKUP($A26&"_"&IF(P$4<10,"0"&P$4,P$4),ID_LR!$C$3:$JR$49,45,FALSE) -> -230.0953695 | Q26: =HLOOKUP($A26&"_"&IF(Q$4<10,"0"&Q$4,Q$4),ID_LR!$C$3:$JR$49,45,FALSE) -> -171.8477305 | R26: =HLOOKUP($A26&"_"&IF(R$4<10,"0"&R$4,R$4),ID_LR!$C$3:$JR$49,45,FALSE) -> -89.77386362 | S26: =HLOOKUP($A26&"_"&IF(S$4<10,"0"&S$4,S$4),ID_LR!$C$3:$JR$49,45,FALSE) -> -178.227417 | T26: =HLOOKUP($A26&"_"&IF(T$4<10,"0"&T$4,T$4),ID_LR!$C$3:$JR$49,45,FALSE) -> -158.189228 | U26: =HLOOKUP($A26&"_"&IF(U$4<10,"0"&U$4,U$4),ID_LR!$C$3:$JR$49,45,FALSE) -> -254.5871149 | V26: =HLOOKUP($A26&"_"&IF(V$4<10,"0"&V$4,V$4),ID_LR!$C$3:$JR$49,45,FALSE) -> -269.2605596 | W26: =HLOOKUP($A26&"_"&IF(W$4<10,"0"&W$4,W$4),ID_LR!$C$3:$JR$49,45,FALSE) -> -243.1053617 | X26: =HLOOKUP($A26&"_"&IF(X$4<10,"0"&X$4,X$4),ID_LR!$C$3:$JR$49,45,FALSE) -> -90.82053416 | Y26: =HLOOKUP($A26&"_"&IF(Y$4<10,"0"&Y$4,Y$4),ID_LR!$C$3:$JR$49,45,FALSE) -> -209.9686424 | Z26: =HLOOKUP($A26&"_"&IF(Z$4<10,"0"&Z$4,Z$4),ID_LR!$C$3:$JR$49,45,FALSE) -> -282.0960102 | AB26: =HLOOKUP($A26&"_"&IF(AB$4<10,"0"&AB$4,AB$4),System_LR!$C$3:$JR$49,45,FALSE) -> -800.2588602 | AC26: =HLOOKUP($A26&"_"&IF(AC$4<10,"0"&AC$4,AC$4),System_LR!$C$3:$JR$49,45,FALSE) -> -633.8591752 | AD26: =HLOOKUP($A26&"_"&IF(AD$4<10,"0"&AD$4,AD$4),System_LR!$C$3:$JR$49,45,FALSE) -> -432.5410157 | AE26: =HLOOKUP($A26&"_"&IF(AE$4<10,"0"&AE$4,AE$4),System_LR!$C$3:$JR$49,45,FALSE) -> -145.6805822 | AF26: =HLOOKUP($A26&"_"&IF(AF$4<10,"0"&AF$4,AF$4),System_LR!$C$3:$JR$49,45,FALSE) -> -377.2475481 | AG26: =HLOOKUP($A26&"_"&IF(AG$4<10,"0"&AG$4,AG$4),System_LR!$C$3:$JR$49,45,FALSE) -> -326.9844156 | AH26: =HLOOKUP($A26&"_"&IF(AH$4<10,"0"&AH$4,AH$4),System_LR!$C$3:$JR$49,45,FALSE) -> -586.8085181 | AI26: =HLOOKUP($A26&"_"&IF(AI$4<10,"0"&AI$4,AI$4),System_LR!$C$3:$JR$49,45,FALSE) -> -673.5090503 | AJ26: =HLOOKUP($A26&"_"&IF(AJ$4<10,"0"&AJ$4,AJ$4),System_LR!$C$3:$JR$49,45,FALSE) -> -608.8747362 | AK26: =HLOOKUP($A26&"_"&IF(AK$4<10,"0"&AK$4,AK$4),System_LR!$C$3:$JR$49,45,FALSE) -> -214.2647909 | AL26: =HLOOKUP($A26&"_"&IF(AL$4<10,"0"&AL$4,AL$4),System_LR!$C$3:$JR$49,45,FALSE) -> -543.4777812 | AM26: =HLOOKUP($A26&"_"&IF(AM$4<10,"0"&AM$4,AM$4),System_LR!$C$3:$JR$49,45,FALSE) -> -748.7402172 | AO26: -0.44 | AP26: -0.44 | AQ26: -0.44 | AR26: -0.44 | AS26: -0.26 | AT26: -0.26 | AU26: -0.26 | AV26: -0.26 | AW26: -0.26 | AX26: -0.44 | AY26: -0.44 | AZ26: -0.44
A27: 2045 | B27: =HLOOKUP($A27&"_"&IF(B$4<10,"0"&B$4,B$4),WA_LR!$C$3:$JR$49,45,FALSE) -> -861.3098987 | C27: =HLOOKUP($A27&"_"&IF(C$4<10,"0"&C$4,C$4),WA_LR!$C$3:$JR$49,45,FALSE) -> -759.4866015 | D27: =HLOOKUP($A27&"_"&IF(D$4<10,"0"&D$4,D$4),WA_LR!$C$3:$JR$49,45,FALSE) -> -617.9208284 | E27: =HLOOKUP($A27&"_"&IF(E$4<10,"0"&E$4,E$4),WA_LR!$C$3:$JR$49,45,FALSE) -> -411.0746865 | F27: =HLOOKUP($A27&"_"&IF(F$4<10,"0"&F$4,F$4),WA_LR!$C$3:$JR$49,45,FALSE) -> -506.6886812 | G27: =HLOOKUP($A27&"_"&IF(G$4<10,"0"&G$4,G$4),WA_LR!$C$3:$JR$49,45,FALSE) -> -477.0585257 | H27: =HLOOKUP($A27&"_"&IF(H$4<10,"0"&H$4,H$4),WA_LR!$C$3:$JR$49,45,FALSE) -> -638.2211162 | I27: =HLOOKUP($A27&"_"&IF(I$4<10,"0"&I$4,I$4),WA_LR!$C$3:$JR$49,45,FALSE) -> -712.0838918 | J27: =HLOOKUP($A27&"_"&IF(J$4<10,"0"&J$4,J$4),WA_LR!$C$3:$JR$49,45,FALSE) -> -678.5053136 | K27: =HLOOKUP($A27&"_"&IF(K$4<10,"0"&K$4,K$4),WA_LR!$C$3:$JR$49,45,FALSE) -> -480.7274119 | L27: =HLOOKUP($A27&"_"&IF(L$4<10,"0"&L$4,L$4),WA_LR!$C$3:$JR$49,45,FALSE) -> -691.7340527 | M27: =HLOOKUP($A27&"_"&IF(M$4<10,"0"&M$4,M$4),WA_LR!$C$3:$JR$49,45,FALSE) -> -826.9483664 | O27: =HLOOKUP($A27&"_"&IF(O$4<10,"0"&O$4,O$4),ID_LR!$C$3:$JR$49,45,FALSE) -> -371.2506664 | P27: =HLOOKUP($A27&"_"&IF(P$4<10,"0"&P$4,P$4),ID_LR!$C$3:$JR$49,45,FALSE) -> -307.7253431 | Q27: =HLOOKUP($A27&"_"&IF(Q$4<10,"0"&Q$4,Q$4),ID_LR!$C$3:$JR$49,45,FALSE) -> -247.6681793 | R27: =HLOOKUP($A27&"_"&IF(R$4<10,"0"&R$4,R$4),ID_LR!$C$3:$JR$49,45,FALSE) -> -165.4962441 | S27: =HLOOKUP($A27&"_"&IF(S$4<10,"0"&S$4,S$4),ID_LR!$C$3:$JR$49,45,FALSE) -> -240.8965941 | T27: =HLOOKUP($A27&"_"&IF(T$4<10,"0"&T$4,T$4),ID_LR!$C$3:$JR$49,45,FALSE) -> -221.8351231 | U27: =HLOOKUP($A27&"_"&IF(U$4<10,"0"&U$4,U$4),ID_LR!$C$3:$JR$49,45,FALSE) -> -317.694018 | V27: =HLOOKUP($A27&"_"&IF(V$4<10,"0"&V$4,V$4),ID_LR!$C$3:$JR$49,45,FALSE) -> -332.9420628 | W27: =HLOOKUP($A27&"_"&IF(W$4<10,"0"&W$4,W$4),ID_LR!$C$3:$JR$49,45,FALSE) -> -309.1274825 | X27: =HLOOKUP($A27&"_"&IF(X$4<10,"0"&X$4,X$4),ID_LR!$C$3:$JR$49,45,FALSE) -> -166.8005227 | Y27: =HLOOKUP($A27&"_"&IF(Y$4<10,"0"&Y$4,Y$4),ID_LR!$C$3:$JR$49,45,FALSE) -> -285.6044854 | Z27: =HLOOKUP($A27&"_"&IF(Z$4<10,"0"&Z$4,Z$4),ID_LR!$C$3:$JR$49,45,FALSE) -> -359.0290041 | AB27: =HLOOKUP($A27&"_"&IF(AB$4<10,"0"&AB$4,AB$4),System_LR!$C$3:$JR$49,45,FALSE) -> -1232.120565 | AC27: =HLOOKUP($A27&"_"&IF(AC$4<10,"0"&AC$4,AC$4),System_LR!$C$3:$JR$49,45,FALSE) -> -1066.771945 | AD27: =HLOOKUP($A27&"_"&IF(AD$4<10,"0"&AD$4,AD$4),System_LR!$C$3:$JR$49,45,FALSE) -> -865.1490077 | AE27: =HLOOKUP($A27&"_"&IF(AE$4<10,"0"&AE$4,AE$4),System_LR!$C$3:$JR$49,45,FALSE) -> -576.1309306 | AF27: =HLOOKUP($A27&"_"&IF(AF$4<10,"0"&AF$4,AF$4),System_LR!$C$3:$JR$49,45,FALSE) -> -747.3252754 | AG27: =HLOOKUP($A27&"_"&IF(AG$4<10,"0"&AG$4,AG$4),System_LR!$C$3:$JR$49,45,FALSE) -> -698.6336489 | AH27: =HLOOKUP($A27&"_"&IF(AH$4<10,"0"&AH$4,AH$4),System_LR!$C$3:$JR$49,45,FALSE) -> -955.6551342 | AI27: =HLOOKUP($A27&"_"&IF(AI$4<10,"0"&AI$4,AI$4),System_LR!$C$3:$JR$49,45,FALSE) -> -1044.765955 | AJ27: =HLOOKUP($A27&"_"&IF(AJ$4<10,"0"&AJ$4,AJ$4),System_LR!$C$3:$JR$49,45,FALSE) -> -987.3727961 | AK27: =HLOOKUP($A27&"_"&IF(AK$4<10,"0"&AK$4,AK$4),System_LR!$C$3:$JR$49,45,FALSE) -> -647.0879347 | AL27: =HLOOKUP($A27&"_"&IF(AL$4<10,"0"&AL$4,AL$4),System_LR!$C$3:$JR$49,45,FALSE) -> -976.8985381 | AM27: =HLOOKUP($A27&"_"&IF(AM$4<10,"0"&AM$4,AM$4),System_LR!$C$3:$JR$49,45,FALSE) -> -1185.53737 | AO27: -0.44 | AP27: -0.44 | AQ27: -0.44 | AR27: -0.44 | AS27: -0.26 | AT27: -0.26 | AU27: -0.26 | AV27: -0.26 | AW27: -0.26 | AX27: -0.44 | AY27: -0.44 | AZ27: -0.44
A30: Energy | B30: 1 | C30: 2 | D30: 3 | E30: 4 | F30: 5 | G30: 6 | H30: 7 | I30: 8 | J30: 9 | K30: 10 | L30: 11 | M30: 12 | O30: 1 | P30: 2 | Q30: 3 | R30: 4 | S30: 5 | T30: 6 | U30: 7 | V30: 8 | W30: 9 | X30: 10 | Y30: 11 | Z30: 12 | AB30: 1 | AC30: 2 | AD30: 3 | AE30: 4 | AF30: 5 | AG30: 6 | AH30: 7 | AI30: 8 | AJ30: 9 | AK30: 10 | AL30: 11 | AM30: 12 | AO30: 1 | AP30: 2 | AQ30: 3 | AR30: 4 | AS30: 5 | AT30: 6 | AU30: 7 | AV30: 8 | AW30: 9 | AX30: 10 | AY30: 11 | AZ30: 12
A31: 2023 | B31: =HLOOKUP($A31&"_"&IF(B$4<10,"0"&B$4,B$4),WA_LR!$C$133:$JR$175,41,FALSE) -> 148.1809322 | C31: =HLOOKUP($A31&"_"&IF(C$4<10,"0"&C$4,C$4),WA_LR!$C$133:$JR$175,41,FALSE) -> 143.4275831 | D31: =HLOOKUP($A31&"_"&IF(D$4<10,"0"&D$4,D$4),WA_LR!$C$133:$JR$175,41,FALSE) -> 246.5308917 | E31: =HLOOKUP($A31&"_"&IF(E$4<10,"0"&E$4,E$4),WA_LR!$C$133:$JR$175,41,FALSE) -> 311.9329992 | F31: =HLOOKUP($A31&"_"&IF(F$4<10,"0"&F$4,F$4),WA_LR!$C$133:$JR$175,41,FALSE) -> 387.8249192 | G31: =HLOOKUP($A31&"_"&IF(G$4<10,"0"&G$4,G$4),WA_LR!$C$133:$JR$175,41,FALSE) -> 419.2855665 | H31: =HLOOKUP($A31&"_"&IF(H$4<10,"0"&H$4,H$4),WA_LR!$C$133:$JR$175,41,FALSE) -> 215.74605 | I31: =HLOOKUP($A31&"_"&IF(I$4<10,"0"&I$4,I$4),WA_LR!$C$133:$JR$175,41,FALSE) -> 130.7909636 | J31: =HLOOKUP($A31&"_"&IF(J$4<10,"0"&J$4,J$4),WA_LR!$C$133:$JR$175,41,FALSE) -> 194.1105637 | K31: =HLOOKUP($A31&"_"&IF(K$4<10,"0"&K$4,K$4),WA_LR!$C$133:$JR$175,41,FALSE) -> 216.4582806 | L31: =HLOOKUP($A31&"_"&IF(L$4<10,"0"&L$4,L$4),WA_LR!$C$133:$JR$175,41,FALSE) -> 186.2503711 | M31: =HLOOKUP($A31&"_"&IF(M$4<10,"0"&M$4,M$4),WA_LR!$C$133:$JR$175,41,FALSE) -> 204.9488368 | O31: =HLOOKUP($A31&"_"&IF(O$4<10,"0"&O$4,O$4),ID_LR!$C$133:$JR$175,41,FALSE) -> 49.58192107 | P31: =HLOOKUP($A31&"_"&IF(P$4<10,"0"&P$4,P$4),ID_LR!$C$133:$JR$175,41,FALSE) -> 59.12814215 | Q31: =HLOOKUP($A31&"_"&IF(Q$4<10,"0"&Q$4,Q$4),ID_LR!$C$133:$JR$175,41,FALSE) -> 104.3909823 | R31: =HLOOKUP($A31&"_"&IF(R$4<10,"0"&R$4,R$4),ID_LR!$C$133:$JR$175,41,FALSE) -> 133.160925 | S31: =HLOOKUP($A31&"_"&IF(S$4<10,"0"&S$4,S$4),ID_LR!$C$133:$JR$175,41,FALSE) -> 176.1060148 | T31: =HLOOKUP($A31&"_"&IF(T$4<10,"0"&T$4,T$4),ID_LR!$C$133:$JR$175,41,FALSE) -> 201.2122468 | U31: =HLOOKUP($A31&"_"&IF(U$4<10,"0"&U$4,U$4),ID_LR!$C$133:$JR$175,41,FALSE) -> 92.40189361 | V31: =HLOOKUP($A31&"_"&IF(V$4<10,"0"&V$4,V$4),ID_LR!$C$133:$JR$175,41,FALSE) -> 58.10682107 | W31: =HLOOKUP($A31&"_"&IF(W$4<10,"0"&W$4,W$4),ID_LR!$C$133:$JR$175,41,FALSE) -> 93.50419521 | X31: =HLOOKUP($A31&"_"&IF(X$4<10,"0"&X$4,X$4),ID_LR!$C$133:$JR$175,41,FALSE) -> 100.7714238 | Y31: =HLOOKUP($A31&"_"&IF(Y$4<10,"0"&Y$4,Y$4),ID_LR!$C$133:$JR$175,41,FALSE) -> 72.37657328 | Z31: =HLOOKUP($A31&"_"&IF(Z$4<10,"0"&Z$4,Z$4),ID_LR!$C$133:$JR$175,41,FALSE) -> 75.15338378 | AB31: =HLOOKUP($A31&"_"&IF(AB$4<10,"0"&AB$4,AB$4),System_LR!$C$132:$JR$174,41,FALSE) -> 197.7628533 | AC31: =HLOOKUP($A31&"_"&IF(AC$4<10,"0"&AC$4,AC$4),System_LR!$C$132:$JR$174,41,FALSE) -> 202.5557253 | AD31: =HLOOKUP($A31&"_"&IF(AD$4<10,"0"&AD$4,AD$4),System_LR!$C$132:$JR$174,41,FALSE) -> 350.921874 | AE31: =HLOOKUP($A31&"_"&IF(AE$4<10,"0"&AE$4,AE$4),System_LR!$C$132:$JR$174,41,FALSE) -> 445.0939242 | AF31: =HLOOKUP($A31&"_"&IF(AF$4<10,"0"&AF$4,AF$4),System_LR!$C$132:$JR$174,41,FALSE) -> 563.930934 | AG31: =HLOOKUP($A31&"_"&IF(AG$4<10,"0"&AG$4,AG$4),System_LR!$C$132:$JR$174,41,FALSE) -> 620.4978133 | AH31: =HLOOKUP($A31&"_"&IF(AH$4<10,"0"&AH$4,AH$4),System_LR!$C$132:$JR$174,41,FALSE) -> 308.1479437 | AI31: =HLOOKUP($A31&"_"&IF(AI$4<10,"0"&AI$4,AI$4),System_LR!$C$132:$JR$174,41,FALSE) -> 188.8977847 | AJ31: =HLOOKUP($A31&"_"&IF(AJ$4<10,"0"&AJ$4,AJ$4),System_LR!$C$132:$JR$174,41,FALSE) -> 287.6147589 | AK31: =HLOOKUP($A31&"_"&IF(AK$4<10,"0"&AK$4,AK$4),System_LR!$C$132:$JR$174,41,FALSE) -> 317.2297044 | AL31: =HLOOKUP($A31&"_"&IF(AL$4<10,"0"&AL$4,AL$4),System_LR!$C$132:$JR$174,41,FALSE) -> 258.6269444 | AM31: =HLOOKUP($A31&"_"&IF(AM$4<10,"0"&AM$4,AM$4),System_LR!$C$132:$JR$174,41,FALSE) -> 280.1022205 | AO31: =B31+O31-AB31 -> 0 | AP31: =C31+P31-AC31 -> 2.273736754e-13 | AQ31: =D31+Q31-AD31 -> 0 | AR31: =E31+R31-AE31 -> 0 | AS31: =F31+S31-AF31 -> 0 | AT31: =G31+T31-AG31 -> 0 | AU31: =H31+U31-AH31 -> 0 | AV31: =I31+V31-AI31 -> 0 | AW31: =J31+W31-AJ31 -> 0 | AX31: =K31+X31-AK31 -> 0 | AY31: =L31+Y31-AL31 -> 0 | AZ31: =M31+Z31-AM31 -> 0
... 35 more rows

Sheet Financial Summary
A1: Key Financial & Other Results
B2: Nominal Dollars (Millions)
A4: 0.0658 | B4: Discount Rate
A5: 0.0286282296 | B5: WA Misc Adder
A6: 0.000525708 | B6: ID Misc Adder
E7: Washington- Direct | AC7: Idaho- Direct | BA7: System/Shared Data | BZ7: Sunk Costs
B8: Time | E8: 2023 | F8: 2024 | G8: 2025 | H8: 2026 | I8: 2027 | J8: 2028 | K8: 2029 | L8: 2030 | M8: 2031 | N8: 2032 | O8: 2033 | P8: 2034 | Q8: 2035 | R8: 2036 | S8: 2037 | T8: 2038 | U8: 2039 | V8: 2040 | W8: 2041 | X8: 2042 | Y8: 2043 | Z8: 2044 | AA8: 2045 | AC8: 2023 | AD8: 2024 | AE8: 2025 | AF8: 2026 | AG8: 2027 | AH8: 2028 | AI8: 2029 | AJ8: 2030 | AK8: 2031 | AL8: 2032 | AM8: 2033 | AN8: 2034 | AO8: 2035 | AP8: 2036 | AQ8: 2037 | AR8: 2038 | AS8: 2039 | AT8: 2040 | AU8: 2041 | AV8: 2042 | AW8: 2043 | AX8: 2044 | AY8: 2045 | BA8: 2023 | BB8: 2024 | BC8: 2025 | BD8: 2026 | BE8: 2027 | BF8: 2028 | BG8: 2029 | BH8: 2030 | BI8: 2031 | BJ8: 2032 | BK8: 2033 | BL8: 2034 | BM8: 2035 | BN8: 2036 | BO8: 2037 | BP8: 2038 | BQ8: 2039 | BR8: 2040 | BS8: 2041 | BT8: 2042 | BU8: 2043 | BV8: 2044 | BW8: 2045 | BZ8: 2022 | CA8: 2023 | CB8: 2024 | CC8: 2025
B9: Retail Sales (GWh) | E9: =SUM('Clean Goals'!D9:O9)/1000 -> 5716.169314 | F9: =SUM('Clean Goals'!P9:AA9)/1000 -> 5754.374236 | G9: =SUM('Clean Goals'!AB9:AM9)/1000 -> 5775.429511 | H9: =SUM('Clean Goals'!AN9:AY9)/1000 -> 5798.435229 | I9: =SUM('Clean Goals'!AZ9:BK9)/1000 -> 5825.25646 | J9: =SUM('Clean Goals'!BL9:BW9)/1000 -> 5850.76391 | K9: =SUM('Clean Goals'!BX9:CI9)/1000 -> 5878.677766 | L9: =SUM('Clean Goals'!CJ9:CU9)/1000 -> 5902.519235 | M9: =SUM('Clean Goals'!CV9:DG9)/1000 -> 5937.344947 | N9: =SUM('Clean Goals'!DH9:DS9)/1000 -> 5973.567602 | O9: =SUM('Clean Goals'!DT9:EE9)/1000 -> 6011.214767 | P9: =SUM('Clean Goals'!EF9:EQ9)/1000 -> 6050.355948 | Q9: =SUM('Clean Goals'!ER9:FC9)/1000 -> 6091.294414 | R9: =SUM('Clean Goals'!FD9:FO9)/1000 -> 6134.304517 | S9: =SUM('Clean Goals'!FP9:GA9)/1000 -> 6179.755974 | T9: =SUM('Clean Goals'!GB9:GM9)/1000 -> 6227.910648 | U9: =SUM('Clean Goals'!GN9:GY9)/1000 -> 6279.317584 | V9: =SUM('Clean Goals'!GZ9:HK9)/1000 -> 6334.570896 | W9: =SUM('Clean Goals'!HL9:HW9)/1000 -> 6394.104223 | X9: =SUM('Clean Goals'!HX9:II9)/1000 -> 6458.693482 | Y9: =SUM('Clean Goals'!IJ9:IU9)/1000 -> 6528.951233 | Z9: =SUM('Clean Goals'!IV9:JG9)/1000 -> 6605.89966 | AA9: =SUM('Clean Goals'!JH9:JS9)/1000 -> 6690.383171 | AC9: =SUM('Clean Goals'!D108:O108)/1000 -> 3496.566 | AD9: =SUM('Clean Goals'!P108:AA108)/1000 -> 3508.223 | AE9: =SUM('Clean Goals'!AB108:AM108)/1000 -> 3520.014 | AF9: =SUM('Clean Goals'!AN108:AY108)/1000 -> 3533.723 | AG9: =SUM('Clean Goals'!AZ108:BK108)/1000 -> 3554.087 | AH9: =SUM('Clean Goals'!BL108:BW108)/1000 -> 3573.197 | AI9: =SUM('Clean Goals'!BX108:CI108)/1000 -> 3593.843 | AJ9: =SUM('Clean Goals'!CJ108:CU108)/1000 -> 3613.019 | AK9: =SUM('Clean Goals'!CV108:DG108)/1000 -> 3636.275 | AL9: =SUM('Clean Goals'!DH108:DS108)/1000 -> 3660.306 | AM9: =SUM('Clean Goals'!DT108:EE108)/1000 -> 3685.833 | AN9: =SUM('Clean Goals'!EF108:EQ108)/1000 -> 3712.537 | AO9: =SUM('Clean Goals'!ER108:FC108)/1000 -> 3740.444 | AP9: =SUM('Clean Goals'!FD108:FO108)/1000 -> 3769.693 | AQ9: =SUM('Clean Goals'!FP108:GA108)/1000 -> 3800.582 | AR9: =SUM('Clean Goals'!GB108:GM108)/1000 -> 3833.188 | AS9: =SUM('Clean Goals'!GN108:GY108)/1000 -> 3867.441 | AT9: =SUM('Clean Goals'!GZ108:HK108)/1000 -> 3903.974 | AU9: =SUM('Clean Goals'!HL108:HW108)/1000 -> 3942.779 | AV9: =SUM('Clean Goals'!HX108:II108)/1000 -> 3984.267 | AW9: =SUM('Clean Goals'!IJ108:IU108)/1000 -> 4028.529 | AX9: =SUM('Clean Goals'!IV108:JG108)/1000 -> 4076.88 | AY9: =SUM('Clean Goals'!JH108:JS108)/1000 -> 4128.938 | BA9: =E9+AC9 -> 9212.735314 | BB9: 9262.597236 | BC9: 9295.443511 | BD9: 9332.158229 | BE9: 9379.34346 | BF9: 9423.96091 | BG9: 9472.520766 | BH9: 9515.538235 | BI9: 9573.619947 | BJ9: 9633.873602 | BK9: 9697.047767 | BL9: 9762.892948 | BM9: 9831.738414 | BN9: 9903.997517 | BO9: 9980.337974 | BP9: 10061.09865 | BQ9: 10146.75858 | BR9: 10238.5449 | BS9: 10336.88322 | BT9: 10442.96048 | BU9: 10557.48023 | BV9: 10682.77966 | BW9: 10819.32117
B10: Idaho Industrial Generation (GWh) | AC10: 385.8538046 | AD10: 387.76029 | AE10: 391.0558867 | AF10: 392.3589545 | AG10: 391.2769415 | AH10: 389.5533175 | AI10: 387.4083685 | AJ10: 391.261638 | AK10: 391.2301276 | AL10: 391.9428468 | AM10: 390.4102853 | AN10: 389.470685 | AO10: 391.3325645 | AP10: 392.2145713 | AQ10: 391.7119414 | AR10: 391.1708773 | AS10: 391.7423547 | AT10: 393.0679268 | AU10: 391.9381091 | AV10: 391.5688216 | AW10: 391.6233111 | AX10: 392.9899506 | AY10: 391.7903539
A11: Aurora | B11: Load Cost at Market Prices (No EE) | E11: =AVERAGE(Risk!B621:B920) -> 299.6677407 | F11: =AVERAGE(Risk!C621:C920) -> 274.6913861 | G11: =AVERAGE(Risk!D621:D920) -> 230.6838026 | H11: =AVERAGE(Risk!E621:E920) -> 216.852925 | I11: =AVERAGE(Risk!F621:F920) -> 197.2799176 | J11: =AVERAGE(Risk!G621:G920) -> 200.7678574 | K11: =AVERAGE(Risk!H621:H920) -> 201.5935782 | L11: =AVERAGE(Risk!I621:I920) -> 231.7633294 | M11: =AVERAGE(Risk!J621:J920) -> 221.7248056 | N11: =AVERAGE(Risk!K621:K920) -> 220.3243043 | O11: =AVERAGE(Risk!L621:L920) -> 228.3165156 | P11: =AVERAGE(Risk!M621:M920) -> 234.6475587 | Q11: =AVERAGE(Risk!N621:N920) -> 247.5008725 | R11: =AVERAGE(Risk!O621:O920) -> 257.0201767 | S11: =AVERAGE(Risk!P621:P920) -> 271.6361135 | T11: =AVERAGE(Risk!Q621:Q920) -> 274.0417965 | U11: =AVERAGE(Risk!R621:R920) -> 285.7330868 | V11: =AVERAGE(Risk!S621:S920) -> 310.7650986 | W11: =AVERAGE(Risk!T621:T920) -> 314.4363341 | X11: =AVERAGE(Risk!U621:U920) -> 333.4935887 | Y11: =AVERAGE(Risk!V621:V920) -> 347.2703724 | Z11: =AVERAGE(Risk!W621:W920) -> 399.592566 | AA11: =AVERAGE(Risk!X621:X920) -> 403.1342504 | AC11: =AVERAGE(Risk!Z621:Z920) -> 181.5969513 | AD11: =AVERAGE(Risk!AA621:AA920) -> 165.8279171 | AE11: =AVERAGE(Risk!AB621:AB920) -> 139.3140154 | AF11: =AVERAGE(Risk!AC621:AC920) -> 130.964645 | AG11: =AVERAGE(Risk!AD621:AD920) -> 119.2901938 | AH11: =AVERAGE(Risk!AE621:AE920) -> 121.4656257 | AI11: =AVERAGE(Risk!AF621:AF920) -> 122.1691528 | AJ11: =AVERAGE(Risk!AG621:AG920) -> 140.6462195 | AK11: =AVERAGE(Risk!AH621:AH920) -> 134.6402852 | AL11: =AVERAGE(Risk!AI621:AI920) -> 133.7998222 | AM11: =AVERAGE(Risk!AJ621:AJ920) -> 138.8342863 | AN11: =AVERAGE(Risk!AK621:AK920) -> 142.8028169 | AO11: =AVERAGE(Risk!AL621:AL920) -> 150.7530867 | AP11: =AVERAGE(Risk!AM621:AM920) -> 156.6056863 | AQ11: =AVERAGE(Risk!AN621:AN920) -> 165.7416416 | AR11: =AVERAGE(Risk!AO621:AO920) -> 167.3574419 | AS11: =AVERAGE(Risk!AP621:AP920) -> 174.6333061 | AT11: =AVERAGE(Risk!AQ621:AQ920) -> 189.9821692 | AU11: =AVERAGE(Risk!AR621:AR920) -> 192.4427654 | AV11: =AVERAGE(Risk!AS621:AS920) -> 204.2129669 | AW11: =AVERAGE(Risk!AT621:AT920) -> 212.7204729 | AX11: =AVERAGE(Risk!AU621:AU920) -> 244.7381319 | AY11: =AVERAGE(Risk!AV621:AV920) -> 247.0422221
B13: Energy Efficiency
B14: Optimization Cost | E14: =EE_Selection!BG4 -> 0.792575506 | F14: =EE_Selection!BH4 -> 1.800884172 | G14: =EE_Selection!BI4 -> 2.817802903 | H14: =EE_Selection!BJ4 -> 4.128885664 | I14: =EE_Selection!BK4 -> 5.674109098 | J14: =EE_Selection!BL4 -> 7.489018267 | K14: =EE_Selection!BM4 -> 9.491182346 | L14: =EE_Selection!BN4 -> 11.47877728 | M14: =EE_Selection!BO4 -> 13.44995823 | N14: =EE_Selection!BP4 -> 15.25330296 | O14: =EE_Selection!BQ4 -> 16.83702061 | P14: =EE_Selection!BR4 -> 18.14098496 | Q14: =EE_Selection!BS4 -> 19.21073123 | R14: =EE_Selection!BT4 -> 20.10652816 | S14: =EE_Selection!BU4 -> 20.89424888 | T14: =EE_Selection!BV4 -> 21.5584995 | U14: =EE_Selection!BW4 -> 22.19172956 | V14: =EE_Selection!BX4 -> 22.79112372 | W14: =EE_Selection!BY4 -> 23.38135688 | X14: =EE_Selection!BZ4 -> 23.96989272 | Y14: =EE_Selection!CA4 -> 24.57228706 | Z14: =EE_Selection!CB4 -> 25.20070706 | AA14: =EE_Selection!CC4 -> 25.87073059 | AC14: =EE_Selection!CE5 -> 0.09918218971 | AD14: =EE_Selection!CF5 -> 0.2239650099 | AE14: =EE_Selection!CG5 -> 0.3001772659 | AF14: =EE_Selection!CH5 -> 0.430534581 | AG14: =EE_Selection!CI5 -> 0.5816876002 | AH14: =EE_Selection!CJ5 -> 0.7562327873 | AI14: =EE_Selection!CK5 -> 0.9498823858 | AJ14: =EE_Selection!CL5 -> 1.156452922 | AK14: =EE_Selection!CM5 -> 1.369700902 | AL14: =EE_Selection!CN5 -> 1.584922204 | AM14: =EE_Selection!CO5 -> 1.779050358 | AN14: =EE_Selection!CP5 -> 1.966341861 | AO14: =EE_Selection!CQ5 -> 2.149464896 | AP14: =EE_Selection!CR5 -> 2.329534483 | AQ14: =EE_Selection!CS5 -> 2.504860668 | AR14: =EE_Selection!CT5 -> 2.663909491 | AS14: =EE_Selection!CU5 -> 2.821221775 | AT14: =EE_Selection!CV5 -> 2.969708101 | AU14: =EE_Selection!CW5 -> 3.114472382 | AV14: =EE_Selection!CX5 -> 3.256461688 | AW14: =EE_Selection!CY5 -> 3.383499375 | AX14: =EE_Selection!CZ5 -> 3.508937498 | AY14: =EE_Selection!DA5 -> 3.628773942
B15: Market Value | E15: =-EE_Mrkt_Value!AD4 -> -1.086432448 | F15: =-EE_Mrkt_Value!AE4 -> -2.13130319 | G15: =-EE_Mrkt_Value!AF4 -> -2.877823277 | H15: =-EE_Mrkt_Value!AG4 -> -3.77994805 | I15: =-EE_Mrkt_Value!AH4 -> -4.506439277 | J15: =-EE_Mrkt_Value!AI4 -> -5.710968429 | K15: =-EE_Mrkt_Value!AJ4 -> -6.963450572 | L15: =-EE_Mrkt_Value!AK4 -> -9.241976951 | M15: =-EE_Mrkt_Value!AL4 -> -10.06641918 | N15: =-EE_Mrkt_Value!AM4 -> -11.00239299 | O15: =-EE_Mrkt_Value!AN4 -> -12.36317818 | P15: =-EE_Mrkt_Value!AO4 -> -13.55073008 | Q15: =-EE_Mrkt_Value!AP4 -> -15.0436917 | R15: =-EE_Mrkt_Value!AQ4 -> -16.1452803 | S15: =-EE_Mrkt_Value!AR4 -> -17.55925894 | T15: =-EE_Mrkt_Value!AS4 -> -18.07211132 | U15: =-EE_Mrkt_Value!AT4 -> -19.11735654 | V15: =-EE_Mrkt_Value!AU4 -> -20.84388627 | W15: =-EE_Mrkt_Value!AV4 -> -21.40625534 | X15: =-EE_Mrkt_Value!AW4 -> -22.7576481 | Y15: =-EE_Mrkt_Value!AX4 -> -23.5581736 | Z15: =-EE_Mrkt_Value!AY4 -> -26.96219505 | AA15: =-EE_Mrkt_Value!AZ4 -> -27.10679029 | AC15: =-EE_Mrkt_Value!BB4 -> -0.4106174216 | AD15: =-EE_Mrkt_Value!BC4 -> -0.8066829063 | AE15: =-EE_Mrkt_Value!BD4 -> -1.077290491 | AF15: =-EE_Mrkt_Value!BE4 -> -1.398199351 | AG15: =-EE_Mrkt_Value!BF4 -> -1.634964561 | AH15: =-EE_Mrkt_Value!BG4 -> -2.036196644 | AI15: =-EE_Mrkt_Value!BH4 -> -2.451900405 | AJ15: =-EE_Mrkt_Value!BI4 -> -3.275681698 | AK15: =-EE_Mrkt_Value!BJ4 -> -3.517602121 | AL15: =-EE_Mrkt_Value!BK4 -> -3.839061438 | AM15: =-EE_Mrkt_Value!BL4 -> -4.319257217 | AN15: =-EE_Mrkt_Value!BM4 -> -4.754527639 | AO15: =-EE_Mrkt_Value!BN4 -> -5.282410508 | AP15: =-EE_Mrkt_Value!BO4 -> -5.709548745 | AQ15: =-EE_Mrkt_Value!BP4 -> -6.292404015 | AR15: =-EE_Mrkt_Value!BQ4 -> -6.500918999 | AS15: =-EE_Mrkt_Value!BR4 -> -6.914934719 | AT15: =-EE_Mrkt_Value!BS4 -> -7.608610132 | AU15: =-EE_Mrkt_Value!BT4 -> -7.849447596 | AV15: =-EE_Mrkt_Value!BU4 -> -8.439170132 | AW15: =-EE_Mrkt_Value!BV4 -> -8.760406994 | AX15: =-EE_Mrkt_Value!BW4 -> -10.06528523 | AY15: =-EE_Mrkt_Value!BX4 -> -10.11641995
B16: T&D Adjustment | E16: =-(G_A!Q$18*EE_Selection!DC$4*1000)/1000000 -> -0.03783498181 | F16: =-(G_A!R$18*EE_Selection!DD$4*1000)/1000000 -> -0.08511759096 | G16: =-(G_A!S$18*EE_Selection!DE$4*1000)/1000000 -> -0.138823145 | H16: =-(G_A!T$18*EE_Selection!DF$4*1000)/1000000 -> -0.201918394 | I16: =-(G_A!U$18*EE_Selection!DG$4*1000)/1000000 -> -0.269494571 | J16: =-(G_A!V$18*EE_Selection!DH$4*1000)/1000000 -> -0.3405122726 | K16: =-(G_A!W$18*EE_Selection!DI$4*1000)/1000000 -> -0.4135502652 | L16: =-(G_A!X$18*EE_Selection!DJ$4*1000)/1000000 -> -0.4824534863 | M16: =-(G_A!Y$18*EE_Selection!DK$4*1000)/1000000 -> -0.5612388161 | N16: =-(G_A!Z$18*EE_Selection!DL$4*1000)/1000000 -> -0.6427286176 | O16: =-(G_A!AA$18*EE_Selection!DM$4*1000)/1000000 -> -0.7243147235 | P16: =-(G_A!AB$18*EE_Selection!DN$4*1000)/1000000 -> -0.8062168837 | Q16: =-(G_A!AC$18*EE_Selection!DO$4*1000)/1000000 -> -0.8866718671 | R16: =-(G_A!AD$18*EE_Selection!DP$4*1000)/1000000 -> -0.965696304 | S16: =-(G_A!AE$18*EE_Selection!DQ$4*1000)/1000000 -> -1.041303348 | T16: =-(G_A!AF$18*EE_Selection!DR$4*1000)/1000000 -> -1.106791585 | U16: =-(G_A!AG$18*EE_Selection!DS$4*1000)/1000000 -> -1.169489198 | V16: =-(G_A!AH$18*EE_Selection!DT$4*1000)/1000000 -> -1.229344549 | W16: =-(G_A!AI$18*EE_Selection!DU$4*1000)/1000000 -> -1.288240844 | X16: =-(G_A!AJ$18*EE_Selection!DV$4*1000)/1000000 -> -1.345880894 | Y16: =-(G_A!AK$18*EE_Selection!DW$4*1000)/1000000 -> -1.381040268 | Z16: =-(G_A!AL$18*EE_Selection!DX$4*1000)/1000000 -> -1.417897003 | AA16: =-(G_A!AM$18*EE_Selection!DY$4*1000)/1000000 -> -1.443871491 | AC16: =-(G_A!Q$18*EE_Selection!DC$5*1000)/1000000 -> -0.01834623799 | AD16: =-(G_A!R$18*EE_Selection!DD$5*1000)/1000000 -> -0.04092451996 | AE16: =-(G_A!S$18*EE_Selection!DE$5*1000)/1000000 -> -0.0674146305 | AF16: =-(G_A!T$18*EE_Selection!DF$5*1000)/1000000 -> -0.09814337464 | AG16: =-(G_A!U$18*EE_Selection!DG$5*1000)/1000000 -> -0.1314469111 | AH16: =-(G_A!V$18*EE_Selection!DH$5*1000)/1000000 -> -0.1666845592 | AI16: =-(G_A!W$18*EE_Selection!DI$5*1000)/1000000 -> -0.2029455338 | AJ16: =-(G_A!X$18*EE_Selection!DJ$5*1000)/1000000 -> -0.2387991616 | AK16: =-(G_A!Y$18*EE_Selection!DK$5*1000)/1000000 -> -0.2776511006 | AL16: =-(G_A!Z$18*EE_Selection!DL$5*1000)/1000000 -> -0.3172362375 | AM16: =-(G_A!AA$18*EE_Selection!DM$5*1000)/1000000 -> -0.3560491349 | AN16: =-(G_A!AB$18*EE_Selection!DN$5*1000)/1000000 -> -0.3945696128 | AO16: =-(G_A!AC$18*EE_Selection!DO$5*1000)/1000000 -> -0.4318696913 | AP16: =-(G_A!AD$18*EE_Selection!DP$5*1000)/1000000 -> -0.4680821543 | AQ16: =-(G_A!AE$18*EE_Selection!DQ$5*1000)/1000000 -> -0.5024979656 | AR16: =-(G_A!AF$18*EE_Selection!DR$5*1000)/1000000 -> -0.5318951532 | AS16: =-(G_A!AG$18*EE_Selection!DS$5*1000)/1000000 -> -0.5599944129 | AT16: =-(G_A!AH$18*EE_Selection!DT$5*1000)/1000000 -> -0.5866784365 | AU16: =-(G_A!AI$18*EE_Selection!DU$5*1000)/1000000 -> -0.6121123705 | AV16: =-(G_A!AJ$18*EE_Selection!DV$5*1000)/1000000 -> -0.6373488468 | AW16: =-(G_A!AK$18*EE_Selection!DW$5*1000)/1000000 -> -0.6516973332 | AX16: =-(G_A!AL$18*EE_Selection!DX$5*1000)/1000000 -> -0.6659875005 | AY16: =-(G_A!AM$18*EE_Selection!DY$5*1000)/1000000 -> -0.6772453413
B17: Non-Energy Impacts | E17: =-SUMPRODUCT(EE_Selection!$EY$21:$EY$1509,EE_Selection!K$21:K$1509)*G_A!Q$10/100 -> -0.8950913531 | F17: =-SUMPRODUCT(EE_Selection!$EY$21:$EY$1509,EE_Selection!L$21:L$1509)*G_A!R$10/100 -> -2.006292232 | G17: =-SUMPRODUCT(EE_Selection!$EY$21:$EY$1509,EE_Selection!M$21:M$1509)*G_A!S$10/100 -> -3.328194204 | H17: =-SUMPRODUCT(EE_Selection!$EY$21:$EY$1509,EE_Selection!N$21:N$1509)*G_A!T$10/100 -> -4.850822589 | I17: =-SUMPRODUCT(EE_Selection!$EY$21:$EY$1509,EE_Selection!O$21:O$1509)*G_A!U$10/100 -> -6.551806118 | J17: =-SUMPRODUCT(EE_Selection!$EY$21:$EY$1509,EE_Selection!P$21:P$1509)*G_A!V$10/100 -> -8.476334305 | K17: =-SUMPRODUCT(EE_Selection!$EY$21:$EY$1509,EE_Selection!Q$21:Q$1509)*G_A!W$10/100 -> -10.52690201 | L17: =-SUMPRODUCT(EE_Selection!$EY$21:$EY$1509,EE_Selection!R$21:R$1509)*G_A!X$10/100 -> -12.54900316 | M17: =-SUMPRODUCT(EE_Selection!$EY$21:$EY$1509,EE_Selection!S$21:S$1509)*G_A!Y$10/100 -> -14.52895385 | N17: =-SUMPRODUCT(EE_Selection!$EY$21:$EY$1509,EE_Selection!T$21:T$1509)*G_A!Z$10/100 -> -16.34153379 | O17: =-SUMPRODUCT(EE_Selection!$EY$21:$EY$1509,EE_Selection!U$21:U$1509)*G_A!AA$10/100 -> -17.94203406 | P17: =-SUMPRODUCT(EE_Selection!$EY$21:$EY$1509,EE_Selection!V$21:V$1509)*G_A!AB$10/100 -> -19.31550769 | Q17: =-SUMPRODUCT(EE_Selection!$EY$21:$EY$1509,EE_Selection!W$21:W$1509)*G_A!AC$10/100 -> -20.51733446 | R17: =-SUMPRODUCT(EE_Selection!$EY$21:$EY$1509,EE_Selection!X$21:X$1509)*G_A!AD$10/100 -> -21.59951904 | S17: =-SUMPRODUCT(EE_Selection!$EY$21:$EY$1509,EE_Selection!Y$21:Y$1509)*G_A!AE$10/100 -> -22.62009775 | T17: =-SUMPRODUCT(EE_Selection!$EY$21:$EY$1509,EE_Selection!Z$21:Z$1509)*G_A!AF$10/100 -> -23.56177124 | U17: =-SUMPRODUCT(EE_Selection!$EY$21:$EY$1509,EE_Selection!AA$21:AA$1509)*G_A!AG$10/100 -> -24.49786419 | V17: =-SUMPRODUCT(EE_Selection!$EY$21:$EY$1509,EE_Selection!AB$21:AB$1509)*G_A!AH$10/100 -> -25.44239947 | W17: =-SUMPRODUCT(EE_Selection!$EY$21:$EY$1509,EE_Selection!AC$21:AC$1509)*G_A!AI$10/100 -> -26.41921983 | X17: =-SUMPRODUCT(EE_Selection!$EY$21:$EY$1509,EE_Selection!AD$21:AD$1509)*G_A!AJ$10/100 -> -27.42371736 | Y17: =-SUMPRODUCT(EE_Selection!$EY$21:$EY$1509,EE_Selection!AE$21:AE$1509)*G_A!AK$10/100 -> -28.27880874 | Z17: =-SUMPRODUCT(EE_Selection!$EY$21:$EY$1509,EE_Selection!AF$21:AF$1509)*G_A!AL$10/100 -> -29.1550579 | AA17: =-SUMPRODUCT(EE_Selection!$EY$21:$EY$1509,EE_Selection!AG$21:AG$1509)*G_A!AM$10/100 -> -29.99923262 | AC17: 0 | AD17: 0 | AE17: 0 | AF17: 0 | AG17: 0 | AH17: 0 | AI17: 0 | AJ17: 0 | AK17: 0 | AL17: 0 | AM17: 0 | AN17: 0 | AO17: 0 | AP17: 0 | AQ17: 0 | AR17: 0 | AS17: 0 | AT17: 0 | AU17: 0 | AV17: 0 | AW17: 0 | AX17: 0 | AY17: 0
B18: Power Act Energy/T&D- 10% Adder | E18: =SUM(E15:E16)*0.1 -> -0.1124267429 | F18: -0.2216420781 | G18: -0.3016646422 | H18: -0.3981866444 | I18: -0.4775933848 | J18: -0.6051480702 | K18: -0.7377000837 | L18: -0.9724430438 | M18: -1.0627658 | N18: -1.164512161 | O18: -1.308749291 | P18: -1.435694696 | Q18: -1.593036356 | R18: -1.71109766 | S18: -1.860056229 | T18: -1.91789029 | U18: -2.028684574 | V18: -2.207323082 | W18: -2.269449618 | X18: -2.4103529 | Y18: -2.493921387 | Z18: -2.838009205 | AA18: =SUM(AA15:AA16)*0.1 -> -2.855066178 | AC18: 0 | AD18: 0 | AE18: 0 | AF18: 0 | AG18: 0 | AH18: 0 | AI18: 0 | AJ18: 0 | AK18: 0 | AL18: 0 | AM18: 0 | AN18: 0 | AO18: 0 | AP18: 0 | AQ18: 0 | AR18: 0 | AS18: 0 | AT18: 0 | AU18: 0 | AV18: 0 | AW18: 0 | AX18: 0 | AY18: 0
B19: Capacity Power Act- 10% Adder | E19: =EE_Selection!DC$4*0.1*-G_A!Q20/1000 -> 0 | F19: =EE_Selection!DD$4*0.1*-G_A!R20/1000 -> 0 | G19: =EE_Selection!DE$4*0.1*-G_A!S20/1000 -> 0 | H19: =EE_Selection!DF$4*0.1*-G_A!T20/1000 -> 0 | I19: =EE_Selection!DG$4*0.1*-G_A!U20/1000 -> -0.08413606107 | J19: =EE_Selection!DH$4*0.1*-G_A!V20/1000 -> -0.1084339046 | K19: =EE_Selection!DI$4*0.1*-G_A!W20/1000 -> -0.1343262227 | L19: =EE_Selection!DJ$4*0.1*-G_A!X20/1000 -> -0.1598409749 | M19: =EE_Selection!DK$4*0.1*-G_A!Y20/1000 -> -0.1896620945 | N19: =EE_Selection!DL$4*0.1*-G_A!Z20/1000 -> -0.2215443361 | O19: =EE_Selection!DM$4*0.1*-G_A!AA20/1000 -> -0.254659862 | P19: =EE_Selection!DN$4*0.1*-G_A!AB20/1000 -> -0.2891247342 | Q19: =EE_Selection!DO$4*0.1*-G_A!AC20/1000 -> -0.3243369726 | R19: =EE_Selection!DP$4*0.1*-G_A!AD20/1000 -> -0.3603083033 | S19: =EE_Selection!DQ$4*0.1*-G_A!AE20/1000 -> -0.3962881973 | T19: =EE_Selection!DR$4*0.1*-G_A!AF20/1000 -> -0.4296352369 | U19: =EE_Selection!DS$4*0.1*-G_A!AG20/1000 -> -0.4630527111 | V19: =EE_Selection!DT$4*0.1*-G_A!AH20/1000 -> -0.4964871451 | W19: =EE_Selection!DU$4*0.1*-G_A!AI20/1000 -> -0.5306786607 | X19: =EE_Selection!DV$4*0.1*-G_A!AJ20/1000 -> -0.5655113942 | Y19: =EE_Selection!DW$4*0.1*-G_A!AK20/1000 -> -0.5918903308 | Z19: =EE_Selection!DX$4*0.1*-G_A!AL20/1000 -> -0.6198402297 | AA19: =EE_Selection!DY$4*0.1*-G_A!AM20/1000 -> -0.6438189989 | AC19: 0 | AD19: 0 | AE19: 0 | AF19: 0 | AG19: 0 | AH19: 0 | AI19: 0 | AJ19: 0 | AK19: 0 | AL19: 0 | AM19: 0 | AN19: 0 | AO19: 0 | AP19: 0 | AQ19: 0 | AR19: 0 | AS19: 0 | AT19: 0 | AU19: 0 | AV19: 0 | AW19: 0 | AX19: 0 | AY19: 0
B20: Energy Savings from DR Power Act Adder | E20: =-DR!C119/1000000 -> 0 | F20: =-DR!D119/1000000 -> 0 | G20: =-DR!E119/1000000 -> -0.02617580639 | H20: =-DR!F119/1000000 -> -0.08510293305 | I20: =-DR!G119/1000000 -> -0.1924163054 | J20: =-DR!H119/1000000 -> -0.23705213 | K20: =-DR!I119/1000000 -> -0.2716048034 | L20: =-DR!J119/1000000 -> -0.3233802067 | M20: =-DR!K119/1000000 -> -0.3042127198 | N20: =-DR!L119/1000000 -> -0.2903016581 | O20: =-DR!M119/1000000 -> -0.3084389067 | P20: =-DR!N119/1000000 -> -0.3089694416 | Q20: =-DR!O119/1000000 -> -0.3395546925 | R20: =-DR!P119/1000000 -> -0.3512053445 | S20: =-DR!Q119/1000000 -> -0.3585054754 | T20: =-DR!R119/1000000 -> -0.3858419603 | U20: =-DR!S119/1000000 -> -0.3301292456 | V20: =-DR!T119/1000000 -> -0.3572383349 | W20: =-DR!U119/1000000 -> -0.3628268081 | X20: =-DR!V119/1000000 -> -0.3906856832 | Y20: =-DR!W119/1000000 -> -0.3983542274 | Z20: =-DR!X119/1000000 -> -0.4532240973 | AA20: =-DR!Y119/1000000 -> -0.3618026284 | AC20: =DR!AB119/1000000 -> 0 | AD20: =DR!AC119/1000000 -> 0 | AE20: =DR!AD119/1000000 -> 0 | AF20: =DR!AE119/1000000 -> 0 | AG20: =DR!AF119/1000000 -> 0 | AH20: =DR!AG119/1000000 -> 0 | AI20: =DR!AH119/1000000 -> 0 | AJ20: =DR!AI119/1000000 -> 0 | AK20: =DR!AJ119/1000000 -> 0 | AL20: =DR!AK119/1000000 -> 0 | AM20: =DR!AL119/1000000 -> 0 | AN20: =DR!AM119/1000000 -> 0 | AO20: =DR!AN119/1000000 -> 0 | AP20: =DR!AO119/1000000 -> 0 | AQ20: =DR!AP119/1000000 -> 0 | AR20: =DR!AQ119/1000000 -> 0 | AS20: =DR!AR119/1000000 -> 0 | AT20: =DR!AS119/1000000 -> 0 | AU20: =DR!AT119/1000000 -> 0 | AV20: =DR!AU119/1000000 -> 0 | AW20: =DR!AV119/1000000 -> 0 | AX20: =DR!AW119/1000000 -> 0 | AY20: =DR!AX119/1000000 -> 0
B22: Existing/Committed Thermal Plant Capital Recovery
B23: Coyote Springs 2 | E23: =BA23*G_A!Q$9 -> 10.70633929 | F23: =BB23*G_A!R$9 -> 10.3014607 | G23: =BC23*G_A!S$9 -> 9.917240916 | H23: =BD23*G_A!T$9 -> 9.545325752 | I23: =BE23*G_A!U$9 -> 9.178425806 | J23: =BF23*G_A!V$9 -> 8.813853919 | K23: =BG23*G_A!W$9 -> 8.452291409 | L23: =BH23*G_A!X$9 -> 8.091943955 | M23: =BI23*G_A!Y$9 -> 7.734744324 | N23: =BJ23*G_A!Z$9 -> 7.380503229 | O23: =BK23*G_A!AA$9 -> 7.026262135 | P23: =BL23*G_A!AB$9 -> 6.67202104 | Q23: =BM23*G_A!AC$9 -> 6.317779945 | R23: =BN23*G_A!AD$9 -> 5.96353885 | S23: =BO23*G_A!AE$9 -> 5.609297756 | T23: =BP23*G_A!AF$9 -> 5.254181183 | U23: =BQ23*G_A!AG$9 -> 4.508749131 | V23: =BR23*G_A!AH$9 -> 0.01483455746 | W23: =BS23*G_A!AI$9 -> 0.008900724865 | X23: =BT23*G_A!AJ$9 -> 0.002966904284 | Y23: =BU23*G_A!AK$9 -> 0 | Z23: =BV23*G_A!AL$9 -> 0 | AA23: =BW23*G_A!AM$9 -> 0 | AC23: =BA23*(1-G_A!Q$9) -> 5.601869835 | AD23: =BB23*(1-G_A!R$9) -> 5.390025514 | AE23: =BC23*(1-G_A!S$9) -> 5.188990487 | AF23: =BD23*(1-G_A!T$9) -> 4.994393596 | AG23: =BE23*(1-G_A!U$9) -> 4.802420814 | AH23: =BF23*(1-G_A!V$9) -> 4.61166614 | AI23: =BG23*(1-G_A!W$9) -> 4.422486061 | AJ23: =BH23*(1-G_A!X$9) -> 4.233941734 | AK23: =BI23*(1-G_A!Y$9) -> 4.047044441 | AL23: =BJ23*(1-G_A!Z$9) -> 3.86169514 | AM23: =BK23*(1-G_A!AA$9) -> 3.676345839 | AN23: =BL23*(1-G_A!AB$9) -> 3.490996538 | AO23: =BM23*(1-G_A!AC$9) -> 3.305647237 | AP23: =BN23*(1-G_A!AD$9) -> 3.120297936 | AQ23: =BO23*(1-G_A!AE$9) -> 2.934948635 | AR23: =BP23*(1-G_A!AF$9) -> 2.749141258 | AS23: =BQ23*(1-G_A!AG$9) -> 2.359109408 | AT23: =BR23*(1-G_A!AH$9) -> 0.007761874316 | AU23: =BS23*(1-G_A!AI$9) -> 0.00465711956 | AV23: =BT23*(1-G_A!AJ$9) -> 0.001552371091 | AW23: =BU23*(1-G_A!AK$9) -> 0 | AX23: =BV23*(1-G_A!AL$9) -> 0 | AY23: =BW23*(1-G_A!AM$9) -> 0 | BA23: 16.30820913 | BB23: 15.69148621 | BC23: 15.1062314 | BD23: 14.53971935 | BE23: 13.98084662 | BF23: 13.42552006 | BG23: 12.87477747 | BH23: 12.32588569 | BI23: 11.78178876 | BJ23: 11.24219837 | BK23: 10.70260797 | BL23: 10.16301758 | BM23: 9.623427182 | BN23: 9.083836786 | BO23: 8.544246391 | BP23: 8.003322441 | BQ23: 6.867858539 | BR23: 0.02259643178 | BS23: 0.01355784443 | BT23: 0.004519275375 | BU23: 0 | BV23: 0 | BW23: 0
B24: Colstrip 3 | E24: 6.000054634 | F24: 5.607486538 | G24: 5.215953325 | H24: 0.1271562719 | I24: 0.1122001538 | J24: 0.09872719079 | K24: 0.08632776326 | L24: 0.07432529992 | M24: 0.06551486563 | N24: 0.05981791124 | O24: 0.05412095686 | P24: 0.04842400247 | Q24: 0.04272704808 | R24: 0.0370300937 | S24: 0.03133313931 | T24: 0.02563618493 | U24: 0.01993923054 | V24: 0.01424227616 | W24: 0.008545321771 | X24: 0.002848422289 | Y24: 0 | Z24: 0 | AA24: 0 | AC24: 2.929392457 | AD24: 2.754183034 | AE24: 2.579511238 | AF24: 2.405350833 | AG24: 2.080024027 | AH24: 0.05130470171 | AI24: 0.04484374332 | AJ24: 0.03858948936 | AK24: 0.03400436673 | AL24: 0.03104746058 | AM24: 0.02809055444 | AN24: 0.0251336483 | AO24: 0.02217674215 | AP24: 0.01921983601 | AQ24: 0.01626292986 | AR24: 0.01330602372 | AS24: 0.01034911757 | AT24: 0.007392211431 | AU24: 0.004435305286 | AV24: 0.001478426107 | AW24: 0 | AX24: 0 | AY24: 0 | BA24: =E24+AC24 -> 8.929447091 | BB24: =F24+AD24 -> 8.361669572 | BC24: 7.795464564 | BD24: 2.532507105 | BE24: 2.192224181 | BF24: 0.1500318925 | BG24: 0.1311715066 | BH24: 0.1129147893 | BI24: 0.09951923236 | BJ24: 0.09086537183 | BK24: 0.0822115113 | BL24: 0.07355765077 | BM24: 0.06490379024 | BN24: 0.05624992971 | BO24: 0.04759606918 | BP24: 0.03894220865 | BQ24: 0.03028834812 | BR24: 0.02163448759 | BS24: 0.01298062706 | BT24: 0.004326848396 | BU24: 0 | BV24: 0 | BW24: 0
B25: Colstrip 4 | E25: 6.806596975 | F25: 6.366853385 | G25: 5.928163255 | H25: 0.1092644801 | I25: 0.09758228939 | J25: 0.0866667398 | K25: 0.07639341001 | L25: 0.06678921206 | M25: 0.05955620276 | N25: 0.05437739456 | O25: 0.04919858637 | P25: 0.04401977817 | Q25: 0.03884096997 | R25: 0.03366216177 | S25: 0.02848335358 | T25: 0.02330454538 | U25: 0.01812573718 | V25: 0.01294692899 | W25: 0.007768120789 | X25: 0.002589358345 | Y25: 0 | Z25: 0 | AA25: 0 | AC25: 2.85615854 | AD25: 2.68001376 | AE25: 2.504416008 | AF25: 2.329400592 | AG25: 0.851277382 | AH25: 0.04498500378 | AI25: 0.03964000844 | AJ25: 0.0346435083 | AK25: 0.03088497869 | AL25: 0.02819932212 | AM25: 0.02551366555 | AN25: 0.02282800897 | AO25: 0.0201423524 | AP25: 0.01745669582 | AQ25: 0.01477103925 | AR25: 0.01208538268 | AS25: 0.009399726102 | AT25: 0.006714069528 | AU25: 0.004028412954 | AV25: 0.001342792334 | AW25: 0 | AX25: 0 | AY25: 0 | BA25: =E25+AC25 -> 9.662755515 | BB25: 9.046867145 | BC25: 8.432579263 | BD25: 2.438665072 | BE25: 0.9488596714 | BF25: 0.1316517436 | BG25: 0.1160334184 | BH25: 0.1014327204 | BI25: 0.09044118146 | BJ25: 0.08257671668 | BK25: 0.07471225191 | BL25: 0.06684778714 | BM25: 0.05898332237 | BN25: 0.0511188576 | BO25: 0.04325439283 | BP25: 0.03538992806 | BQ25: 0.02752546329 | BR25: 0.01966099851 | BS25: 0.01179653374 | BT25: 0.003932150679 | BU25: 0 | BV25: 0 | BW25: 0
B26: Kettle Falls | E26: =BA26*G_A!Q$9 -> 5.946705652 | F26: =BB26*G_A!R$9 -> 5.743298401 | G26: =BC26*G_A!S$9 -> 5.542140674 | H26: =BD26*G_A!T$9 -> 5.343130143 | I26: =BE26*G_A!U$9 -> 5.145969493 | J26: =BF26*G_A!V$9 -> 4.950584998 | K26: =BG26*G_A!W$9 -> 4.755259365 | L26: =BH26*G_A!X$9 -> 4.551667645 | M26: =BI26*G_A!Y$9 -> 4.342992577 | N26: =BJ26*G_A!Z$9 -> 4.1366146 | O26: =BK26*G_A!AA$9 -> 3.930236624 | P26: =BL26*G_A!AB$9 -> 3.723858648 | Q26: =BM26*G_A!AC$9 -> 3.517480671 | R26: =BN26*G_A!AD$9 -> 3.311102695 | S26: =BO26*G_A!AE$9 -> 3.104724718 | T26: =BP26*G_A!AF$9 -> 2.898346742 | U26: =BQ26*G_A!AG$9 -> 2.691968765 | V26: =BR26*G_A!AH$9 -> 2.485590789 | W26: =BS26*G_A!AI$9 -> 0.5155406013 | X26: =BT26*G_A!AJ$9 -> 0.009315067204 | Y26: =BU26*G_A!AK$9 -> 0 | Z26: =BV26*G_A!AL$9 -> 0 | AA26: =BW26*G_A!AM$9 -> 0 | AC26: =BA26*(1-G_A!Q$9) -> 3.111490315 | AD26: =BB26*(1-G_A!R$9) -> 3.005061692 | AE26: =BC26*(1-G_A!S$9) -> 2.899810086 | AF26: =BD26*(1-G_A!T$9) -> 2.795681956 | AG26: =BE26*(1-G_A!U$9) -> 2.692521738 | AH26: =BF26*(1-G_A!V$9) -> 2.590290856 | AI26: =BG26*(1-G_A!W$9) -> 2.488090772 | AJ26: =BH26*(1-G_A!X$9) -> 2.38156563 | AK26: =BI26*(1-G_A!Y$9) -> 2.272380731 | AL26: =BJ26*(1-G_A!Z$9) -> 2.164397738 | AM26: =BK26*(1-G_A!AA$9) -> 2.056414745 | AN26: =BL26*(1-G_A!AB$9) -> 1.948431752 | AO26: =BM26*(1-G_A!AC$9) -> 1.840448759 | AP26: =BN26*(1-G_A!AD$9) -> 1.732465766 | AQ26: =BO26*(1-G_A!AE$9) -> 1.624482773 | AR26: =BP26*(1-G_A!AF$9) -> 1.51649978 | AS26: =BQ26*(1-G_A!AG$9) -> 1.408516787 | AT26: =BR26*(1-G_A!AH$9) -> 1.300533794 | AU26: =BS26*(1-G_A!AI$9) -> 0.2697459201 | AV26: =BT26*(1-G_A!AJ$9) -> 0.004873915589 | AW26: =BU26*(1-G_A!AK$9) -> 0 | AX26: =BV26*(1-G_A!AL$9) -> 0 | AY26: =BW26*(1-G_A!AM$9) -> 0 | BA26: 9.058195967 | BB26: 8.748360093 | BC26: 8.441950761 | BD26: 8.138812098 | BE26: 7.838491231 | BF26: 7.540875853 | BG26: 7.243350138 | BH26: 6.933233274 | BI26: 6.615373308 | BJ26: 6.301012339 | BK26: 5.986651369 | BL26: 5.6722904 | BM26: 5.35792943 | BN26: 5.043568461 | BO26: 4.729207492 | BP26: 4.414846522 | BQ26: 4.100485553 | BR26: 3.786124583 | BS26: 0.7852865214 | BT26: 0.01418898279 | BU26: 0 | BV26: 0 | BW26: 0
B27: Kettle Falls CT | E27: =BA27*G_A!Q$9 -> 0.3775604944 | F27: =BB27*G_A!R$9 -> 0.3590469126 | G27: =BC27*G_A!S$9 -> 0.3405497191 | H27: =BD27*G_A!T$9 -> 0.3220528259 | I27: =BE27*G_A!U$9 -> 0.3035562811 | J27: =BF27*G_A!V$9 -> 0.2848791027 | K27: =BG27*G_A!W$9 -> 0.2652890779 | L27: =BH27*G_A!X$9 -> 0.1320578378 | M27: =BI27*G_A!Y$9 -> 0.001118079118 | N27: =BJ27*G_A!Z$9 -> 0.000571099413 | O27: =BK27*G_A!AA$9 -> 0.0001486951452 | P27: =BL27*G_A!AB$9 -> 0 | Q27: =BM27*G_A!AC$9 -> 0 | R27: =BN27*G_A!AD$9 -> 0 | S27: =BO27*G_A!AE$9 -> 0 | T27: =BP27*G_A!AF$9 -> 0 | U27: =BQ27*G_A!AG$9 -> 0 | V27: =BR27*G_A!AH$9 -> 0 | W27: =BS27*G_A!AI$9 -> 0 | X27: =BT27*G_A!AJ$9 -> 0 | Y27: =BU27*G_A!AK$9 -> 0 | Z27: =BV27*G_A!AL$9 -> 0 | AA27: =BW27*G_A!AM$9 -> 0 | AC27: =BA27*(1-G_A!Q$9) -> 0.1975506928 | AD27: =BB27*(1-G_A!R$9) -> 0.1878638454 | AE27: =BC27*(1-G_A!S$9) -> 0.1781855727 | AF27: =BD27*(1-G_A!T$9) -> 0.1685074572 | AG27: =BE27*(1-G_A!U$9) -> 0.1588295241 | AH27: =BF27*(1-G_A!V$9) -> 0.1490570781 | AI27: =BG27*(1-G_A!W$9) -> 0.1388070042 | AJ27: =BH27*(1-G_A!X$9) -> 0.0690965229 | AK27: =BI27*(1-G_A!Y$9) -> 0.000585011694 | AL27: =BJ27*(1-G_A!Z$9) -> 0.0002988159153 | AM27: =BK27*(1-G_A!AA$9) -> 7.78016487e-05 | AN27: =BL27*(1-G_A!AB$9) -> 0 | AO27: =BM27*(1-G_A!AC$9) -> 0 | AP27: =BN27*(1-G_A!AD$9) -> 0 | AQ27: =BO27*(1-G_A!AE$9) -> 0 | AR27: =BP27*(1-G_A!AF$9) -> 0 | AS27: =BQ27*(1-G_A!AG$9) -> 0 | AT27: =BR27*(1-G_A!AH$9) -> 0 | AU27: =BS27*(1-G_A!AI$9) -> 0 | AV27: =BT27*(1-G_A!AJ$9) -> 0 | AW27: =BU27*(1-G_A!AK$9) -> 0 | AX27: =BV27*(1-G_A!AL$9) -> 0 | AY27: =BW27*(1-G_A!AM$9) -> 0 | BA27: 0.5751111872 | BB27: 0.546910758 | BC27: 0.5187352918 | BD27: 0.4905602831 | BE27: 0.4623858051 | BF27: 0.4339361808 | BG27: 0.4040960822 | BH27: 0.2011543607 | BI27: 0.001703090812 | BJ27: 0.0008699153283 | BK27: 0.0002264967939 | BL27: 0 | BM27: 0 | BN27: 0 | BO27: 0 | BP27: 0 | BQ27: 0 | BR27: 0 | BS27: 0 | BT27: 0 | BU27: 0 | BV27: 0 | BW27: 0
B28: Boulder Park | E28: =BA28*G_A!Q$9 -> 1.288574344 | F28: =BB28*G_A!R$9 -> 1.243497266 | G28: =BC28*G_A!S$9 -> 1.198836556 | H28: =BD28*G_A!T$9 -> 1.1543893 | I28: =BE28*G_A!U$9 -> 1.10999226 | J28: =BF28*G_A!V$9 -> 1.065616654 | K28: =BG28*G_A!W$9 -> 1.021246473 | L28: =BH28*G_A!X$9 -> 0.9768761838 | M28: =BI28*G_A!Y$9 -> 0.9327169226 | N28: =BJ28*G_A!Z$9 -> 0.8887688575 | O28: =BK28*G_A!AA$9 -> 0.8448207925 | P28: =BL28*G_A!AB$9 -> 0.8008727274 | Q28: =BM28*G_A!AC$9 -> 0.7569246623 | R28: =BN28*G_A!AD$9 -> 0.7129765972 | S28: =BO28*G_A!AE$9 -> 0.6690285321 | T28: =BP28*G_A!AF$9 -> 0.6243543441 | U28: =BQ28*G_A!AG$9 -> 0.1463765831 | V28: =BR28*G_A!AH$9 -> 0.000445881184 | W28: =BS28*G_A!AI$9 -> 0.0002675335163 | X28: =BT28*G_A!AJ$9 -> 8.917984123e-05 | Y28: =BU28*G_A!AK$9 -> 0 | Z28: =BV28*G_A!AL$9 -> 0 | AA28: =BW28*G_A!AM$9 -> 0 | AC28: =BA28*(1-G_A!Q$9) -> 0.6742197825 | AD28: =BB28*(1-G_A!R$9) -> 0.6506341371 | AE28: =BC28*(1-G_A!S$9) -> 0.6272663471 | AF28: =BD28*(1-G_A!T$9) -> 0.6040102429 | AG28: =BE28*(1-G_A!U$9) -> 0.5807804131 | AH28: =BF28*(1-G_A!V$9) -> 0.5575617984 | AI28: =BG28*(1-G_A!W$9) -> 0.534346022 | AJ28: =BH28*(1-G_A!X$9) -> 0.5111301891 | AK28: =BI28*(1-G_A!Y$9) -> 0.4880247722 | AL28: =BJ28*(1-G_A!Z$9) -> 0.4650298592 | AM28: =BK28*(1-G_A!AA$9) -> 0.4420349462 | AN28: =BL28*(1-G_A!AB$9) -> 0.4190400333 | AO28: =BM28*(1-G_A!AC$9) -> 0.3960451203 | AP28: =BN28*(1-G_A!AD$9) -> 0.3730502074 | AQ28: =BO28*(1-G_A!AE$9) -> 0.3500552944 | AR28: =BP28*(1-G_A!AF$9) -> 0.3266804527 | AS28: =BQ28*(1-G_A!AG$9) -> 0.07658850922 | AT28: =BR28*(1-G_A!AH$9) -> 0.0002332980757 | AU28: =BS28*(1-G_A!AI$9) -> 0.00013998136 | AV28: =BT28*(1-G_A!AJ$9) -> 4.666150109e-05 | AW28: =BU28*(1-G_A!AK$9) -> 0 | AX28: =BV28*(1-G_A!AL$9) -> 0 | AY28: =BW28*(1-G_A!AM$9) -> 0 | BA28: 1.962794127 | BB28: 1.894131404 | BC28: 1.826102903 | BD28: 1.758399543 | BE28: 1.690772673 | BF28: 1.623178452 | BG28: 1.555592495 | BH28: 1.488006373 | BI28: 1.420741695 | BJ28: 1.353798717 | BK28: 1.286855739 | BL28: 1.219912761 | BM28: 1.152969783 | BN28: 1.086026805 | BO28: 1.019083827 | BP28: 0.9510347968 | BQ28: 0.2229650924 | BR28: 0.0006791792597 | BS28: 0.0004075148763 | BT28: 0.0001358413423 | BU28: 0 | BV28: 0 | BW28: 0
B29: Rathdrum | E29: =BA29*G_A!Q$9 -> 3.032082782 | F29: =BB29*G_A!R$9 -> 2.899811279 | G29: =BC29*G_A!S$9 -> 2.767700356 | H29: =BD29*G_A!T$9 -> 2.635644971 | I29: =BE29*G_A!U$9 -> 2.503724786 | J29: =BF29*G_A!V$9 -> 2.37220574 | K29: =BG29*G_A!W$9 -> 2.240957566 | L29: =BH29*G_A!X$9 -> 2.109709374 | M29: =BI29*G_A!Y$9 -> 1.978461182 | N29: =BJ29*G_A!Z$9 -> 1.786175285 | O29: =BK29*G_A!AA$9 -> 0 | P29: =BL29*G_A!AB$9 -> 0 | Q29: =BM29*G_A!AC$9 -> 0 | R29: =BN29*G_A!AD$9 -> 0 | S29: =BO29*G_A!AE$9 -> 0 | T29: =BP29*G_A!AF$9 -> 0 | U29: =BQ29*G_A!AG$9 -> 0 | V29: =BR29*G_A!AH$9 -> 0 | W29: =BS29*G_A!AI$9 -> 0 | X29: =BT29*G_A!AJ$9 -> 0 | Y29: =BU29*G_A!AK$9 -> 0 | Z29: =BV29*G_A!AL$9 -> 0 | AA29: =BW29*G_A!AM$9 -> 0 | AC29: =BA29*(1-G_A!Q$9) -> 1.586474388 | AD29: =BB29*(1-G_A!R$9) -> 1.517266069 | AE29: =BC29*(1-G_A!S$9) -> 1.44814177 | AF29: =BD29*(1-G_A!T$9) -> 1.379046531 | AG29: =BE29*(1-G_A!U$9) -> 1.310022032 | AH29: =BF29*(1-G_A!V$9) -> 1.241207421 | AI29: =BG29*(1-G_A!W$9) -> 1.172534538 | AJ29: =BH29*(1-G_A!X$9) -> 1.103861645 | AK29: =BI29*(1-G_A!Y$9) -> 1.035188753 | AL29: =BJ29*(1-G_A!Z$9) -> 0.9345791475 | AM29: =BK29*(1-G_A!AA$9) -> 0 | AN29: =BL29*(1-G_A!AB$9) -> 0 | AO29: =BM29*(1-G_A!AC$9) -> 0 | AP29: =BN29*(1-G_A!AD$9) -> 0 | AQ29: =BO29*(1-G_A!AE$9) -> 0 | AR29: =BP29*(1-G_A!AF$9) -> 0 | AS29: =BQ29*(1-G_A!AG$9) -> 0 | AT29: =BR29*(1-G_A!AH$9) -> 0 | AU29: =BS29*(1-G_A!AI$9) -> 0 | AV29: =BT29*(1-G_A!AJ$9) -> 0 | AW29: =BU29*(1-G_A!AK$9) -> 0 | AX29: =BV29*(1-G_A!AL$9) -> 0 | AY29: =BW29*(1-G_A!AM$9) -> 0 | BA29: 4.618557169 | BB29: 4.417077348 | BC29: 4.215842126 | BD29: 4.014691502 | BE29: 3.813746819 | BF29: 3.613413161 | BG29: 3.413492104 | BH29: 3.213571019 | BI29: 3.013649935 | BJ29: 2.720754432 | BK29: 0 | BL29: 0 | BM29: 0 | BN29: 0 | BO29: 0 | BP29: 0 | BQ29: 0 | BR29: 0 | BS29: 0 | BT29: 0 | BU29: 0 | BV29: 0 | BW29: 0
B30: Northeast | E30: =BA30*G_A!Q$9 -> 0 | F30: =BB30*G_A!R$9 -> 0 | G30: =BC30*G_A!S$9 -> 0 | H30: =BD30*G_A!T$9 -> 0 | I30: =BE30*G_A!U$9 -> 0 | J30: =BF30*G_A!V$9 -> 0 | K30: =BG30*G_A!W$9 -> 0 | L30: =BH30*G_A!X$9 -> 0 | M30: =BI30*G_A!Y$9 -> 0 | N30: =BJ30*G_A!Z$9 -> 0 | O30: =BK30*G_A!AA$9 -> 0 | P30: =BL30*G_A!AB$9 -> 0 | Q30: =BM30*G_A!AC$9 -> 0 | R30: =BN30*G_A!AD$9 -> 0 | S30: =BO30*G_A!AE$9 -> 0 | T30: =BP30*G_A!AF$9 -> 0 | U30: =BQ30*G_A!AG$9 -> 0 | V30: =BR30*G_A!AH$9 -> 0 | W30: =BS30*G_A!AI$9 -> 0 | X30: =BT30*G_A!AJ$9 -> 0 | Y30: =BU30*G_A!AK$9 -> 0 | Z30: =BV30*G_A!AL$9 -> 0 | AA30: =BW30*G_A!AM$9 -> 0 | AC30: =BA30*(1-G_A!Q$9) -> 0 | AD30: =BB30*(1-G_A!R$9) -> 0 | AE30: =BC30*(1-G_A!S$9) -> 0 | AF30: =BD30*(1-G_A!T$9) -> 0 | AG30: =BE30*(1-G_A!U$9) -> 0 | AH30: =BF30*(1-G_A!V$9) -> 0 | AI30: =BG30*(1-G_A!W$9) -> 0 | AJ30: =BH30*(1-G_A!X$9) -> 0 | AK30: =BI30*(1-G_A!Y$9) -> 0 | AL30: =BJ30*(1-G_A!Z$9) -> 0 | AM30: =BK30*(1-G_A!AA$9) -> 0 | AN30: =BL30*(1-G_A!AB$9) -> 0 | AO30: =BM30*(1-G_A!AC$9) -> 0 | AP30: =BN30*(1-G_A!AD$9) -> 0 | AQ30: =BO30*(1-G_A!AE$9) -> 0 | AR30: =BP30*(1-G_A!AF$9) -> 0 | AS30: =BQ30*(1-G_A!AG$9) -> 0 | AT30: =BR30*(1-G_A!AH$9) -> 0 | AU30: =BS30*(1-G_A!AI$9) -> 0 | AV30: =BT30*(1-G_A!AJ$9) -> 0 | AW30: =BU30*(1-G_A!AK$9) -> 0 | AX30: =BV30*(1-G_A!AL$9) -> 0 | AY30: =BW30*(1-G_A!AM$9) -> 0 | BA30: 0 | BB30: 0 | BC30: 0 | BD30: 0 | BE30: 0 | BF30: 0 | BG30: 0 | BH30: 0 | BI30: 0 | BJ30: 0 | BK30: 0 | BL30: 0 | BM30: 0 | BN30: 0 | BO30: 0 | BP30: 0 | BQ30: 0 | BR30: 0 | BS30: 0 | BT30: 0 | BU30: 0 | BV30: 0 | BW30: 0
... 32 more rows

Sheet Clean Goals
B1: Monthly Hours (excludes DST) | D1: 744 | E1: 672 | F1: 744 | G1: 720 | H1: 744 | I1: 720 | J1: 744 | K1: 744 | L1: 720 | M1: 744 | N1: 720 | O1: 744 | P1: =D1 -> 744 | Q1: 696 | R1: =F1 -> 744 | S1: 720 | T1: 744 | U1: 720 | V1: 744 | W1: 744 | X1: 720 | Y1: 744 | Z1: 720 | AA1: 744 | AB1: 744 | AC1: 696 | AD1: 744 | AE1: 720 | AF1: 744 | AG1: 720 | AH1: 744 | AI1: 744 | AJ1: 720 | AK1: 744 | AL1: 720 | AM1: 744 | AN1: 744 | AO1: 696 | AP1: 744 | AQ1: 720 | AR1: 744 | AS1: 720 | AT1: 744 | AU1: 744 | AV1: 720 | AW1: 744 | AX1: 720 | AY1: 744 | AZ1: 744 | BA1: 696 | BB1: 744 | BC1: 720 | BD1: 744 | BE1: 720 | BF1: 744 | BG1: 744 | BH1: 720 | BI1: 744 | BJ1: 720 | BK1: 744 | BL1: 744 | BM1: 696 | BN1: 744 | BO1: 720 | BP1: 744 | BQ1: 720 | BR1: 744 | BS1: 744 | BT1: 720 | BU1: 744 | BV1: 720 | BW1: 744 | BX1: 744 | BY1: 696 | BZ1: 744 | CA1: 720 | CB1: 744 | CC1: =BQ1 -> 720 | CD1: 744 | CE1: 744 | CF1: 720 | CG1: 744 | CH1: 720 | CI1: 744 | CJ1: 744 | CK1: 696 | CL1: 744 | CM1: 720 | CN1: 744 | CO1: 720 | CP1: 744 | CQ1: 744 | CR1: 720 | CS1: 744 | CT1: 720 | CU1: 744 | CV1: 744 | CW1: 696 | CX1: 744 | CY1: 720 | CZ1: 744 | DA1: 720 | DB1: 744 | DC1: 744 | DD1: 720 | DE1: 744 | DF1: 720 | DG1: 744 | DH1: 744 | DI1: 696 | DJ1: 744 | DK1: 720 | DL1: 744 | DM1: 720 | DN1: 744 | DO1: 744 | DP1: 720 | DQ1: 744 | DR1: 720 | DS1: 744 | DT1: 744 | DU1: 696 | DV1: 744 | DW1: 720 | DX1: 744 | DY1: 720 | DZ1: 744 | EA1: 744 | EB1: 720 | EC1: 744 | ED1: 720 | EE1: 744 | EF1: 744 | EG1: 696 | EH1: 744 | EI1: 720 | EJ1: 744 | EK1: 720 | EL1: 744 | EM1: 744 | EN1: 720 | EO1: =EC1 -> 744 | EP1: 720 | EQ1: 744 | ER1: 744 | ES1: 696 | ET1: 744 | EU1: 720 | EV1: 744 | EW1: 720 | EX1: 744 | EY1: 744 | EZ1: 720 | FA1: 744 | FB1: 720 | FC1: 744 | FD1: 744 | FE1: 696 | FF1: 744 | FG1: 720 | FH1: 744 | FI1: 720 | FJ1: 744 | FK1: 744 | FL1: 720 | FM1: 744 | FN1: 720 | FO1: 744 | FP1: 744 | FQ1: 696 | FR1: 744 | FS1: 720 | FT1: 744 | FU1: 720 | FV1: 744 | FW1: 744 | FX1: 720 | FY1: 744 | FZ1: 720 | GA1: 744 | GB1: 744 | GC1: 696 | GD1: 744 | GE1: 720 | GF1: 744 | GG1: 720 | GH1: 744 | GI1: 744 | GJ1: 720 | GK1: 744 | GL1: 720 | GM1: 744 | GN1: 744 | GO1: 696 | GP1: 744 | GQ1: 720 | GR1: 744 | GS1: 720 | GT1: 744 | GU1: 744 | GV1: 720 | GW1: 744 | GX1: 720 | GY1: 744 | GZ1: 744 | HA1: 696 | HB1: =GP1 -> 744 | HC1: 720 | HD1: 744 | HE1: 720 | HF1: 744 | HG1: 744 | HH1: 720 | HI1: 744 | HJ1: 720 | HK1: 744 | HL1: 744 | HM1: 696 | HN1: 744 | HO1: 720 | HP1: 744 | HQ1: 720 | HR1: 744 | HS1: 744 | HT1: 720 | HU1: 744 | HV1: 720 | HW1: 744 | HX1: 744 | HY1: 696 | HZ1: 744 | IA1: 720 | IB1: 744 | IC1: 720 | ID1: 744 | IE1: 744 | IF1: 720 | IG1: 744 | IH1: 720 | II1: 744 | IJ1: 744 | IK1: 696 | IL1: 744 | IM1: 720 | IN1: 744 | IO1: 720 | IP1: 744 | IQ1: 744 | IR1: 720 | IS1: 744 | IT1: 720 | IU1: 744 | IV1: 744 | IW1: 696 | IX1: 744 | IY1: 720 | IZ1: 744 | JA1: 720 | JB1: 744 | JC1: 744 | JD1: 720 | JE1: 744 | JF1: 720 | JG1: 744 | JH1: 744 | JI1: 696 | JJ1: 744 | JK1: 720 | JL1: 744 | JM1: =JA1 -> 720 | JN1: 744 | JO1: 744 | JP1: 720 | JQ1: 744 | JR1: 720 | JS1: 744
B2: PT Ratio | D2: =G_A!$Q$9 -> 0.6565 | E2: =G_A!$Q$9 -> 0.6565 | F2: =G_A!$Q$9 -> 0.6565 | G2: =G_A!$Q$9 -> 0.6565 | H2: =G_A!$Q$9 -> 0.6565 | I2: =G_A!$Q$9 -> 0.6565 | J2: =G_A!$Q$9 -> 0.6565 | K2: =G_A!$Q$9 -> 0.6565 | L2: =G_A!$Q$9 -> 0.6565 | M2: =G_A!$Q$9 -> 0.6565 | N2: =G_A!$Q$9 -> 0.6565 | O2: =G_A!$Q$9 -> 0.6565 | P2: =G_A!$R$9 -> 0.6565 | Q2: =G_A!$R$9 -> 0.6565 | R2: =G_A!$R$9 -> 0.6565 | S2: =G_A!$R$9 -> 0.6565 | T2: =G_A!$R$9 -> 0.6565 | U2: =G_A!$R$9 -> 0.6565 | V2: =G_A!$R$9 -> 0.6565 | W2: =G_A!$R$9 -> 0.6565 | X2: =G_A!$R$9 -> 0.6565 | Y2: =G_A!$R$9 -> 0.6565 | Z2: =G_A!$R$9 -> 0.6565 | AA2: =G_A!$R$9 -> 0.6565 | AB2: =G_A!$S$9 -> 0.6565 | AC2: =G_A!$S$9 -> 0.6565 | AD2: =G_A!$S$9 -> 0.6565 | AE2: =G_A!$S$9 -> 0.6565 | AF2: =G_A!$S$9 -> 0.6565 | AG2: =G_A!$S$9 -> 0.6565 | AH2: =G_A!$S$9 -> 0.6565 | AI2: =G_A!$S$9 -> 0.6565 | AJ2: =G_A!$S$9 -> 0.6565 | AK2: =G_A!$S$9 -> 0.6565 | AL2: =G_A!$S$9 -> 0.6565 | AM2: =G_A!$S$9 -> 0.6565 | AN2: =G_A!$T$9 -> 0.6565 | AO2: =G_A!$T$9 -> 0.6565 | AP2: =G_A!$T$9 -> 0.6565 | AQ2: =G_A!$T$9 -> 0.6565 | AR2: =G_A!$T$9 -> 0.6565 | AS2: =G_A!$T$9 -> 0.6565 | AT2: =G_A!$T$9 -> 0.6565 | AU2: =G_A!$T$9 -> 0.6565 | AV2: =G_A!$T$9 -> 0.6565 | AW2: =G_A!$T$9 -> 0.6565 | AX2: =G_A!$T$9 -> 0.6565 | AY2: =G_A!$T$9 -> 0.6565 | AZ2: =G_A!$U$9 -> 0.6565 | BA2: =G_A!$U$9 -> 0.6565 | BB2: =G_A!$U$9 -> 0.6565 | BC2: =G_A!$U$9 -> 0.6565 | BD2: =G_A!$U$9 -> 0.6565 | BE2: =G_A!$U$9 -> 0.6565 | BF2: =G_A!$U$9 -> 0.6565 | BG2: =G_A!$U$9 -> 0.6565 | BH2: =G_A!$U$9 -> 0.6565 | BI2: =G_A!$U$9 -> 0.6565 | BJ2: =G_A!$U$9 -> 0.6565 | BK2: =G_A!$U$9 -> 0.6565 | BL2: =G_A!$V$9 -> 0.6565 | BM2: =G_A!$V$9 -> 0.6565 | BN2: =G_A!$V$9 -> 0.6565 | BO2: =G_A!$V$9 -> 0.6565 | BP2: =G_A!$V$9 -> 0.6565 | BQ2: =G_A!$V$9 -> 0.6565 | BR2: =G_A!$V$9 -> 0.6565 | BS2: =G_A!$V$9 -> 0.6565 | BT2: =G_A!$V$9 -> 0.6565 | BU2: =G_A!$V$9 -> 0.6565 | BV2: =G_A!$V$9 -> 0.6565 | BW2: =G_A!$V$9 -> 0.6565 | BX2: =G_A!$W$9 -> 0.6565 | BY2: =G_A!$W$9 -> 0.6565 | BZ2: =G_A!$W$9 -> 0.6565 | CA2: =G_A!$W$9 -> 0.6565 | CB2: =G_A!$W$9 -> 0.6565 | CC2: =G_A!$W$9 -> 0.6565 | CD2: =G_A!$W$9 -> 0.6565 | CE2: =G_A!$W$9 -> 0.6565 | CF2: =G_A!$W$9 -> 0.6565 | CG2: =G_A!$W$9 -> 0.6565 | CH2: =G_A!$W$9 -> 0.6565 | CI2: =G_A!$W$9 -> 0.6565 | CJ2: =G_A!$X$9 -> 0.6565 | CK2: =G_A!$X$9 -> 0.6565 | CL2: =G_A!$X$9 -> 0.6565 | CM2: =G_A!$X$9 -> 0.6565 | CN2: =G_A!$X$9 -> 0.6565 | CO2: =G_A!$X$9 -> 0.6565 | CP2: =G_A!$X$9 -> 0.6565 | CQ2: =G_A!$X$9 -> 0.6565 | CR2: =G_A!$X$9 -> 0.6565 | CS2: =G_A!$X$9 -> 0.6565 | CT2: =G_A!$X$9 -> 0.6565 | CU2: =G_A!$X$9 -> 0.6565 | CV2: =G_A!$Y$9 -> 0.6565 | CW2: =G_A!$Y$9 -> 0.6565 | CX2: =G_A!$Y$9 -> 0.6565 | CY2: =G_A!$Y$9 -> 0.6565 | CZ2: =G_A!$Y$9 -> 0.6565 | DA2: =G_A!$Y$9 -> 0.6565 | DB2: =G_A!$Y$9 -> 0.6565 | DC2: =G_A!$Y$9 -> 0.6565 | DD2: =G_A!$Y$9 -> 0.6565 | DE2: =G_A!$Y$9 -> 0.6565 | DF2: =G_A!$Y$9 -> 0.6565 | DG2: =G_A!$Y$9 -> 0.6565 | DH2: =G_A!$Z$9 -> 0.6565 | DI2: =G_A!$Z$9 -> 0.6565 | DJ2: =G_A!$Z$9 -> 0.6565 | DK2: =G_A!$Z$9 -> 0.6565 | DL2: =G_A!$Z$9 -> 0.6565 | DM2: =G_A!$Z$9 -> 0.6565 | DN2: =G_A!$Z$9 -> 0.6565 | DO2: =G_A!$Z$9 -> 0.6565 | DP2: =G_A!$Z$9 -> 0.6565 | DQ2: =G_A!$Z$9 -> 0.6565 | DR2: =G_A!$Z$9 -> 0.6565 | DS2: =G_A!$Z$9 -> 0.6565 | DT2: =G_A!$AA$9 -> 0.6565 | DU2: =G_A!$AA$9 -> 0.6565 | DV2: =G_A!$AA$9 -> 0.6565 | DW2: =G_A!$AA$9 -> 0.6565 | DX2: =G_A!$AA$9 -> 0.6565 | DY2: =G_A!$AA$9 -> 0.6565 | DZ2: =G_A!$AA$9 -> 0.6565 | EA2: =G_A!$AA$9 -> 0.6565 | EB2: =G_A!$AA$9 -> 0.6565 | EC2: =G_A!$AA$9 -> 0.6565 | ED2: =G_A!$AA$9 -> 0.6565 | EE2: =G_A!$AA$9 -> 0.6565 | EF2: =G_A!$AB$9 -> 0.6565 | EG2: =G_A!$AB$9 -> 0.6565 | EH2: =G_A!$AB$9 -> 0.6565 | EI2: =G_A!$AB$9 -> 0.6565 | EJ2: =G_A!$AB$9 -> 0.6565 | EK2: =G_A!$AB$9 -> 0.6565 | EL2: =G_A!$AB$9 -> 0.6565 | EM2: =G_A!$AB$9 -> 0.6565 | EN2: =G_A!$AB$9 -> 0.6565 | EO2: =G_A!$AB$9 -> 0.6565 | EP2: =G_A!$AB$9 -> 0.6565 | EQ2: =G_A!$AB$9 -> 0.6565 | ER2: =G_A!$AC$9 -> 0.6565 | ES2: =G_A!$AC$9 -> 0.6565 | ET2: =G_A!$AC$9 -> 0.6565 | EU2: =G_A!$AC$9 -> 0.6565 | EV2: =G_A!$AC$9 -> 0.6565 | EW2: =G_A!$AC$9 -> 0.6565 | EX2: =G_A!$AC$9 -> 0.6565 | EY2: =G_A!$AC$9 -> 0.6565 | EZ2: =G_A!$AC$9 -> 0.6565 | FA2: =G_A!$AC$9 -> 0.6565 | FB2: =G_A!$AC$9 -> 0.6565 | FC2: =G_A!$AC$9 -> 0.6565 | FD2: =G_A!$AD$9 -> 0.6565 | FE2: =G_A!$AD$9 -> 0.6565 | FF2: =G_A!$AD$9 -> 0.6565 | FG2: =G_A!$AD$9 -> 0.6565 | FH2: =G_A!$AD$9 -> 0.6565 | FI2: =G_A!$AD$9 -> 0.6565 | FJ2: =G_A!$AD$9 -> 0.6565 | FK2: =G_A!$AD$9 -> 0.6565 | FL2: =G_A!$AD$9 -> 0.6565 | FM2: =G_A!$AD$9 -> 0.6565 | FN2: =G_A!$AD$9 -> 0.6565 | FO2: =G_A!$AD$9 -> 0.6565 | FP2: =G_A!$AE$9 -> 0.6565 | FQ2: =G_A!$AE$9 -> 0.6565 | FR2: =G_A!$AE$9 -> 0.6565 | FS2: =G_A!$AE$9 -> 0.6565 | FT2: =G_A!$AE$9 -> 0.6565 | FU2: =G_A!$AE$9 -> 0.6565 | FV2: =G_A!$AE$9 -> 0.6565 | FW2: =G_A!$AE$9 -> 0.6565 | FX2: =G_A!$AE$9 -> 0.6565 | FY2: =G_A!$AE$9 -> 0.6565 | FZ2: =G_A!$AE$9 -> 0.6565 | GA2: =G_A!$AE$9 -> 0.6565 | GB2: =G_A!$AF$9 -> 0.6565 | GC2: =G_A!$AF$9 -> 0.6565 | GD2: =G_A!$AF$9 -> 0.6565 | GE2: =G_A!$AF$9 -> 0.6565 | GF2: =G_A!$AF$9 -> 0.6565 | GG2: =G_A!$AF$9 -> 0.6565 | GH2: =G_A!$AF$9 -> 0.6565 | GI2: =G_A!$AF$9 -> 0.6565 | GJ2: =G_A!$AF$9 -> 0.6565 | GK2: =G_A!$AF$9 -> 0.6565 | GL2: =G_A!$AF$9 -> 0.6565 | GM2: =G_A!$AF$9 -> 0.6565 | GN2: =G_A!$AG$9 -> 0.6565 | GO2: =G_A!$AG$9 -> 0.6565 | GP2: =G_A!$AG$9 -> 0.6565 | GQ2: =G_A!$AG$9 -> 0.6565 | GR2: =G_A!$AG$9 -> 0.6565 | GS2: =G_A!$AG$9 -> 0.6565 | GT2: =G_A!$AG$9 -> 0.6565 | GU2: =G_A!$AG$9 -> 0.6565 | GV2: =G_A!$AG$9 -> 0.6565 | GW2: =G_A!$AG$9 -> 0.6565 | GX2: =G_A!$AG$9 -> 0.6565 | GY2: =G_A!$AG$9 -> 0.6565 | GZ2: =G_A!$AH$9 -> 0.6565 | HA2: =G_A!$AH$9 -> 0.6565 | HB2: =G_A!$AH$9 -> 0.6565 | HC2: =G_A!$AH$9 -> 0.6565 | HD2: =G_A!$AH$9 -> 0.6565 | HE2: =G_A!$AH$9 -> 0.6565 | HF2: =G_A!$AH$9 -> 0.6565 | HG2: =G_A!$AH$9 -> 0.6565 | HH2: =G_A!$AH$9 -> 0.6565 | HI2: =G_A!$AH$9 -> 0.6565 | HJ2: =G_A!$AH$9 -> 0.6565 | HK2: =G_A!$AH$9 -> 0.6565 | HL2: =G_A!$AI$9 -> 0.6565 | HM2: =G_A!$AI$9 -> 0.6565 | HN2: =G_A!$AI$9 -> 0.6565 | HO2: =G_A!$AI$9 -> 0.6565 | HP2: =G_A!$AI$9 -> 0.6565 | HQ2: =G_A!$AI$9 -> 0.6565 | HR2: =G_A!$AI$9 -> 0.6565 | HS2: =G_A!$AI$9 -> 0.6565 | HT2: =G_A!$AI$9 -> 0.6565 | HU2: =G_A!$AI$9 -> 0.6565 | HV2: =G_A!$AI$9 -> 0.6565 | HW2: =G_A!$AI$9 -> 0.6565 | HX2: =G_A!$AJ$9 -> 0.6565 | HY2: =G_A!$AJ$9 -> 0.6565 | HZ2: =G_A!$AJ$9 -> 0.6565 | IA2: =G_A!$AJ$9 -> 0.6565 | IB2: =G_A!$AJ$9 -> 0.6565 | IC2: =G_A!$AJ$9 -> 0.6565 | ID2: =G_A!$AJ$9 -> 0.6565 | IE2: =G_A!$AJ$9 -> 0.6565 | IF2: =G_A!$AJ$9 -> 0.6565 | IG2: =G_A!$AJ$9 -> 0.6565 | IH2: =G_A!$AJ$9 -> 0.6565 | II2: =G_A!$AJ$9 -> 0.6565 | IJ2: =G_A!$AK$9 -> 0.6565 | IK2: =G_A!$AK$9 -> 0.6565 | IL2: =G_A!$AK$9 -> 0.6565 | IM2: =G_A!$AK$9 -> 0.6565 | IN2: =G_A!$AK$9 -> 0.6565 | IO2: =G_A!$AK$9 -> 0.6565 | IP2: =G_A!$AK$9 -> 0.6565 | IQ2: =G_A!$AK$9 -> 0.6565 | IR2: =G_A!$AK$9 -> 0.6565 | IS2: =G_A!$AK$9 -> 0.6565 | IT2: =G_A!$AK$9 -> 0.6565 | IU2: =G_A!$AK$9 -> 0.6565 | IV2: =G_A!$AL$9 -> 0.6565 | IW2: =G_A!$AL$9 -> 0.6565 | IX2: =G_A!$AL$9 -> 0.6565 | IY2: =G_A!$AL$9 -> 0.6565 | IZ2: =G_A!$AL$9 -> 0.6565 | JA2: =G_A!$AL$9 -> 0.6565 | JB2: =G_A!$AL$9 -> 0.6565 | JC2: =G_A!$AL$9 -> 0.6565 | JD2: =G_A!$AL$9 -> 0.6565 | JE2: =G_A!$AL$9 -> 0.6565 | JF2: =G_A!$AL$9 -> 0.6565 | JG2: =G_A!$AL$9 -> 0.6565 | JH2: =G_A!$AM$9 -> 0.6565 | JI2: =G_A!$AM$9 -> 0.6565 | JJ2: =G_A!$AM$9 -> 0.6565 | JK2: =G_A!$AM$9 -> 0.6565 | JL2: =G_A!$AM$9 -> 0.6565 | JM2: =G_A!$AM$9 -> 0.6565 | JN2: =G_A!$AM$9 -> 0.6565 | JO2: =G_A!$AM$9 -> 0.6565 | JP2: =G_A!$AM$9 -> 0.6565 | JQ2: =G_A!$AM$9 -> 0.6565 | JR2: =G_A!$AM$9 -> 0.6565 | JS2: =G_A!$AM$9 -> 0.6565
B3: Compliance Period | D3: 2023 | E3: 2023 | F3: 2023 | G3: 2023 | H3: 2023 | I3: 2023 | J3: 2023 | K3: 2023 | L3: 2023 | M3: 2023 | N3: 2023 | O3: 2023 | P3: =D3+1 -> 2024 | Q3: 2024 | R3: 2024 | S3: 2024 | T3: 2024 | U3: 2024 | V3: 2024 | W3: 2024 | X3: 2024 | Y3: 2024 | Z3: =N3+1 -> 2024 | AA3: 2024 | AB3: 2025 | AC3: 2025 | AD3: 2025 | AE3: 2025 | AF3: 2025 | AG3: 2025 | AH3: 2025 | AI3: 2025 | AJ3: =X3+1 -> 2025 | AK3: 2025 | AL3: 2025 | AM3: 2025 | AN3: 2026 | AO3: 2026 | AP3: 2026 | AQ3: 2026 | AR3: 2026 | AS3: 2026 | AT3: =AH3+1 -> 2026 | AU3: 2026 | AV3: 2026 | AW3: 2026 | AX3: 2026 | AY3: 2026 | AZ3: 2027 | BA3: 2027 | BB3: 2027 | BC3: 2027 | BD3: =AR3+1 -> 2027 | BE3: 2027 | BF3: 2027 | BG3: 2027 | BH3: 2027 | BI3: 2027 | BJ3: 2027 | BK3: 2027 | BL3: 2028 | BM3: 2028 | BN3: =BB3+1 -> 2028 | BO3: 2028 | BP3: 2028 | BQ3: 2028 | BR3: 2028 | BS3: 2028 | BT3: 2028 | BU3: 2028 | BV3: 2028 | BW3: 2028 | BX3: =BL3+1 -> 2029 | BY3: 2029 | BZ3: 2029 | CA3: 2029 | CB3: 2029 | CC3: 2029 | CD3: 2029 | CE3: 2029 | CF3: 2029 | CG3: 2029 | CH3: =BV3+1 -> 2029 | CI3: 2029 | CJ3: 2030-2033 | CK3: 2030-2033 | CL3: 2030-2033 | CM3: 2030-2033 | CN3: 2030-2033 | CO3: 2030-2033 | CP3: 2030-2033 | CQ3: 2030-2033 | CR3: 2030-2033 | CS3: 2030-2033 | CT3: 2030-2033 | CU3: 2030-2033 | CV3: 2030-2033 | CW3: 2030-2033 | CX3: 2030-2033 | CY3: 2030-2033 | CZ3: 2030-2033 | DA3: 2030-2033 | DB3: 2030-2033 | DC3: 2030-2033 | DD3: 2030-2033 | DE3: 2030-2033 | DF3: 2030-2033 | DG3: 2030-2033 | DH3: 2030-2033 | DI3: 2030-2033 | DJ3: 2030-2033 | DK3: 2030-2033 | DL3: 2030-2033 | DM3: 2030-2033 | DN3: 2030-2033 | DO3: 2030-2033 | DP3: 2030-2033 | DQ3: 2030-2033 | DR3: 2030-2033 | DS3: 2030-2033 | DT3: 2030-2033 | DU3: 2030-2033 | DV3: 2030-2033 | DW3: 2030-2033 | DX3: 2030-2033 | DY3: 2030-2033 | DZ3: 2030-2033 | EA3: 2030-2033 | EB3: 2030-2033 | EC3: 2030-2033 | ED3: 2030-2033 | EE3: 2030-2033 | EF3: 2034-2037 | EG3: 2034-2037 | EH3: 2034-2037 | EI3: 2034-2037 | EJ3: 2034-2037 | EK3: 2034-2037 | EL3: 2034-2037 | EM3: 2034-2037 | EN3: 2034-2037 | EO3: 2034-2037 | EP3: 2034-2037 | EQ3: 2034-2037 | ER3: 2034-2037 | ES3: 2034-2037 | ET3: 2034-2037 | EU3: 2034-2037 | EV3: 2034-2037 | EW3: 2034-2037 | EX3: 2034-2037 | EY3: 2034-2037 | EZ3: 2034-2037 | FA3: 2034-2037 | FB3: 2034-2037 | FC3: 2034-2037 | FD3: 2034-2037 | FE3: 2034-2037 | FF3: 2034-2037 | FG3: 2034-2037 | FH3: 2034-2037 | FI3: 2034-2037 | FJ3: 2034-2037 | FK3: 2034-2037 | FL3: 2034-2037 | FM3: 2034-2037 | FN3: 2034-2037 | FO3: 2034-2037 | FP3: 2034-2037 | FQ3: 2034-2037 | FR3: 2034-2037 | FS3: 2034-2037 | FT3: 2034-2037 | FU3: 2034-2037 | FV3: 2034-2037 | FW3: 2034-2037 | FX3: 2034-2037 | FY3: 2034-2037 | FZ3: 2034-2037 | GA3: 2034-2037 | GB3: 2038-2041 | GC3: 2038-2041 | GD3: 2038-2041 | GE3: 2038-2041 | GF3: 2038-2041 | GG3: 2038-2041 | GH3: 2038-2041 | GI3: 2038-2041 | GJ3: 2038-2041 | GK3: 2038-2041 | GL3: 2038-2041 | GM3: 2038-2041 | GN3: 2038-2041 | GO3: 2038-2041 | GP3: 2038-2041 | GQ3: 2038-2041 | GR3: 2038-2041 | GS3: 2038-2041 | GT3: 2038-2041 | GU3: 2038-2041 | GV3: 2038-2041 | GW3: 2038-2041 | GX3: 2038-2041 | GY3: 2038-2041 | GZ3: 2038-2041 | HA3: 2038-2041 | HB3: 2038-2041 | HC3: 2038-2041 | HD3: 2038-2041 | HE3: 2038-2041 | HF3: 2038-2041 | HG3: 2038-2041 | HH3: 2038-2041 | HI3: 2038-2041 | HJ3: 2038-2041 | HK3: 2038-2041 | HL3: 2038-2041 | HM3: 2038-2041 | HN3: 2038-2041 | HO3: 2038-2041 | HP3: 2038-2041 | HQ3: 2038-2041 | HR3: 2038-2041 | HS3: 2038-2041 | HT3: 2038-2041 | HU3: 2038-2041 | HV3: 2038-2041 | HW3: 2038-2041 | HX3: 2042-2044 | HY3: 2042-2044 | HZ3: 2042-2044 | IA3: 2042-2044 | IB3: 2042-2044 | IC3: 2042-2044 | ID3: 2042-2044 | IE3: 2042-2044 | IF3: 2042-2044 | IG3: 2042-2044 | IH3: 2042-2044 | II3: 2042-2044 | IJ3: 2042-2044 | IK3: 2042-2044 | IL3: 2042-2044 | IM3: 2042-2044 | IN3: 2042-2044 | IO3: 2042-2044 | IP3: 2042-2044 | IQ3: 2042-2044 | IR3: 2042-2044 | IS3: 2042-2044 | IT3: 2042-2044 | IU3: 2042-2044 | IV3: 2042-2044 | IW3: 2042-2044 | IX3: 2042-2044 | IY3: 2042-2044 | IZ3: 2042-2044 | JA3: 2042-2044 | JB3: 2042-2044 | JC3: 2042-2044 | JD3: 2042-2044 | JE3: 2042-2044 | JF3: 2042-2044 | JG3: 2042-2044 | JH3: 2045 | JI3: 2045 | JJ3: 2045 | JK3: 2045 | JL3: 2045 | JM3: 2045 | JN3: 2045 | JO3: 2045 | JP3: 2045 | JQ3: 2045 | JR3: 2045 | JS3: 2045
B4: Year | D4: 2023 | E4: 2023 | F4: 2023 | G4: 2023 | H4: 2023 | I4: 2023 | J4: 2023 | K4: 2023 | L4: 2023 | M4: 2023 | N4: 2023 | O4: 2023 | P4: 2024 | Q4: 2024 | R4: 2024 | S4: 2024 | T4: 2024 | U4: 2024 | V4: 2024 | W4: 2024 | X4: 2024 | Y4: 2024 | Z4: 2024 | AA4: 2024 | AB4: 2025 | AC4: 2025 | AD4: 2025 | AE4: 2025 | AF4: 2025 | AG4: 2025 | AH4: 2025 | AI4: 2025 | AJ4: 2025 | AK4: 2025 | AL4: 2025 | AM4: 2025 | AN4: 2026 | AO4: 2026 | AP4: 2026 | AQ4: 2026 | AR4: 2026 | AS4: 2026 | AT4: 2026 | AU4: 2026 | AV4: 2026 | AW4: 2026 | AX4: 2026 | AY4: 2026 | AZ4: 2027 | BA4: 2027 | BB4: 2027 | BC4: 2027 | BD4: 2027 | BE4: 2027 | BF4: 2027 | BG4: 2027 | BH4: 2027 | BI4: 2027 | BJ4: 2027 | BK4: 2027 | BL4: 2028 | BM4: 2028 | BN4: 2028 | BO4: 2028 | BP4: 2028 | BQ4: 2028 | BR4: 2028 | BS4: 2028 | BT4: 2028 | BU4: 2028 | BV4: 2028 | BW4: 2028 | BX4: 2029 | BY4: 2029 | BZ4: 2029 | CA4: 2029 | CB4: 2029 | CC4: 2029 | CD4: 2029 | CE4: 2029 | CF4: 2029 | CG4: 2029 | CH4: 2029 | CI4: 2029 | CJ4: =BX4+1 -> 2030 | CK4: 2030 | CL4: 2030 | CM4: 2030 | CN4: 2030 | CO4: 2030 | CP4: 2030 | CQ4: 2030 | CR4: 2030 | CS4: 2030 | CT4: 2030 | CU4: 2030 | CV4: 2031 | CW4: 2031 | CX4: 2031 | CY4: 2031 | CZ4: 2031 | DA4: 2031 | DB4: 2031 | DC4: 2031 | DD4: 2031 | DE4: 2031 | DF4: 2031 | DG4: 2031 | DH4: 2032 | DI4: 2032 | DJ4: 2032 | DK4: 2032 | DL4: 2032 | DM4: 2032 | DN4: 2032 | DO4: 2032 | DP4: =DD4+1 -> 2032 | DQ4: 2032 | DR4: 2032 | DS4: 2032 | DT4: 2033 | DU4: 2033 | DV4: 2033 | DW4: 2033 | DX4: 2033 | DY4: 2033 | DZ4: 2033 | EA4: 2033 | EB4: 2033 | EC4: 2033 | ED4: 2033 | EE4: 2033 | EF4: 2034 | EG4: 2034 | EH4: 2034 | EI4: 2034 | EJ4: 2034 | EK4: 2034 | EL4: 2034 | EM4: 2034 | EN4: 2034 | EO4: 2034 | EP4: 2034 | EQ4: 2034 | ER4: 2035 | ES4: 2035 | ET4: 2035 | EU4: 2035 | EV4: =EJ4+1 -> 2035 | EW4: 2035 | EX4: 2035 | EY4: 2035 | EZ4: 2035 | FA4: 2035 | FB4: 2035 | FC4: 2035 | FD4: 2036 | FE4: 2036 | FF4: 2036 | FG4: 2036 | FH4: 2036 | FI4: 2036 | FJ4: 2036 | FK4: 2036 | FL4: 2036 | FM4: 2036 | FN4: 2036 | FO4: 2036 | FP4: 2037 | FQ4: 2037 | FR4: 2037 | FS4: 2037 | FT4: 2037 | FU4: 2037 | FV4: 2037 | FW4: 2037 | FX4: 2037 | FY4: 2037 | FZ4: 2037 | GA4: 2037 | GB4: =FP4+1 -> 2038 | GC4: 2038 | GD4: 2038 | GE4: 2038 | GF4: 2038 | GG4: 2038 | GH4: 2038 | GI4: 2038 | GJ4: 2038 | GK4: 2038 | GL4: 2038 | GM4: 2038 | GN4: 2039 | GO4: 2039 | GP4: 2039 | GQ4: 2039 | GR4: 2039 | GS4: 2039 | GT4: 2039 | GU4: 2039 | GV4: 2039 | GW4: 2039 | GX4: 2039 | GY4: 2039 | GZ4: 2040 | HA4: 2040 | HB4: 2040 | HC4: 2040 | HD4: 2040 | HE4: 2040 | HF4: 2040 | HG4: 2040 | HH4: =GV4+1 -> 2040 | HI4: 2040 | HJ4: 2040 | HK4: 2040 | HL4: 2041 | HM4: 2041 | HN4: 2041 | HO4: 2041 | HP4: 2041 | HQ4: 2041 | HR4: 2041 | HS4: 2041 | HT4: 2041 | HU4: 2041 | HV4: 2041 | HW4: 2041 | HX4: 2042 | HY4: 2042 | HZ4: 2042 | IA4: 2042 | IB4: 2042 | IC4: 2042 | ID4: 2042 | IE4: 2042 | IF4: 2042 | IG4: 2042 | IH4: 2042 | II4: 2042 | IJ4: 2043 | IK4: 2043 | IL4: 2043 | IM4: 2043 | IN4: =IB4+1 -> 2043 | IO4: 2043 | IP4: 2043 | IQ4: 2043 | IR4: 2043 | IS4: 2043 | IT4: 2043 | IU4: 2043 | IV4: 2044 | IW4: 2044 | IX4: 2044 | IY4: 2044 | IZ4: 2044 | JA4: 2044 | JB4: 2044 | JC4: 2044 | JD4: 2044 | JE4: 2044 | JF4: 2044 | JG4: 2044 | JH4: 2045 | JI4: 2045 | JJ4: 2045 | JK4: 2045 | JL4: 2045 | JM4: 2045 | JN4: 2045 | JO4: 2045 | JP4: 2045 | JQ4: 2045 | JR4: 2045 | JS4: 2045 | JV4: 2023 | JW4: 2024 | JX4: 2025 | JY4: 2026 | JZ4: 2027 | KA4: 2028 | KB4: 2029 | KC4: 2030 | KD4: 2031 | KE4: 2032 | KF4: 2033 | KG4: 2034 | KH4: 2035 | KI4: 2036 | KJ4: 2037 | KK4: 2038 | KL4: 2039 | KM4: 2040 | KN4: 2041 | KO4: 2042 | KP4: 2043 | KQ4: 2044 | KR4: 2045
B5: Month | D5: 1 | E5: 2 | F5: 3 | G5: 4 | H5: 5 | I5: 6 | J5: 7 | K5: 8 | L5: 9 | M5: 10 | N5: 11 | O5: 12 | P5: =D5 -> 1 | Q5: 2 | R5: 3 | S5: 4 | T5: 5 | U5: 6 | V5: 7 | W5: 8 | X5: 9 | Y5: 10 | Z5: 11 | AA5: 12 | AB5: 1 | AC5: 2 | AD5: 3 | AE5: 4 | AF5: 5 | AG5: 6 | AH5: 7 | AI5: 8 | AJ5: 9 | AK5: 10 | AL5: 11 | AM5: 12 | AN5: 1 | AO5: 2 | AP5: 3 | AQ5: 4 | AR5: 5 | AS5: 6 | AT5: 7 | AU5: 8 | AV5: 9 | AW5: 10 | AX5: 11 | AY5: 12 | AZ5: 1 | BA5: 2 | BB5: 3 | BC5: 4 | BD5: 5 | BE5: 6 | BF5: 7 | BG5: 8 | BH5: 9 | BI5: 10 | BJ5: 11 | BK5: 12 | BL5: 1 | BM5: 2 | BN5: 3 | BO5: 4 | BP5: 5 | BQ5: 6 | BR5: 7 | BS5: 8 | BT5: 9 | BU5: 10 | BV5: 11 | BW5: 12 | BX5: 1 | BY5: 2 | BZ5: 3 | CA5: 4 | CB5: =BP5 -> 5 | CC5: 6 | CD5: 7 | CE5: 8 | CF5: 9 | CG5: 10 | CH5: 11 | CI5: 12 | CJ5: 1 | CK5: 2 | CL5: 3 | CM5: 4 | CN5: 5 | CO5: 6 | CP5: 7 | CQ5: 8 | CR5: 9 | CS5: 10 | CT5: 11 | CU5: 12 | CV5: 1 | CW5: 2 | CX5: 3 | CY5: 4 | CZ5: 5 | DA5: 6 | DB5: 7 | DC5: 8 | DD5: 9 | DE5: 10 | DF5: 11 | DG5: 12 | DH5: 1 | DI5: 2 | DJ5: 3 | DK5: 4 | DL5: 5 | DM5: 6 | DN5: 7 | DO5: 8 | DP5: 9 | DQ5: 10 | DR5: 11 | DS5: 12 | DT5: 1 | DU5: 2 | DV5: 3 | DW5: 4 | DX5: 5 | DY5: 6 | DZ5: 7 | EA5: 8 | EB5: 9 | EC5: 10 | ED5: 11 | EE5: 12 | EF5: 1 | EG5: 2 | EH5: 3 | EI5: 4 | EJ5: 5 | EK5: 6 | EL5: 7 | EM5: 8 | EN5: =EB5 -> 9 | EO5: 10 | EP5: 11 | EQ5: 12 | ER5: 1 | ES5: 2 | ET5: 3 | EU5: 4 | EV5: 5 | EW5: 6 | EX5: 7 | EY5: 8 | EZ5: 9 | FA5: 10 | FB5: 11 | FC5: 12 | FD5: 1 | FE5: 2 | FF5: 3 | FG5: 4 | FH5: 5 | FI5: 6 | FJ5: 7 | FK5: 8 | FL5: 9 | FM5: 10 | FN5: 11 | FO5: 12 | FP5: 1 | FQ5: 2 | FR5: 3 | FS5: 4 | FT5: 5 | FU5: 6 | FV5: 7 | FW5: 8 | FX5: 9 | FY5: 10 | FZ5: 11 | GA5: 12 | GB5: 1 | GC5: 2 | GD5: 3 | GE5: 4 | GF5: 5 | GG5: 6 | GH5: 7 | GI5: 8 | GJ5: 9 | GK5: 10 | GL5: 11 | GM5: 12 | GN5: 1 | GO5: 2 | GP5: 3 | GQ5: 4 | GR5: 5 | GS5: 6 | GT5: 7 | GU5: 8 | GV5: 9 | GW5: 10 | GX5: 11 | GY5: 12 | GZ5: =GN5 -> 1 | HA5: 2 | HB5: 3 | HC5: 4 | HD5: 5 | HE5: 6 | HF5: 7 | HG5: 8 | HH5: 9 | HI5: 10 | HJ5: 11 | HK5: 12 | HL5: 1 | HM5: 2 | HN5: 3 | HO5: 4 | HP5: 5 | HQ5: 6 | HR5: 7 | HS5: 8 | HT5: 9 | HU5: 10 | HV5: 11 | HW5: 12 | HX5: 1 | HY5: 2 | HZ5: 3 | IA5: 4 | IB5: 5 | IC5: 6 | ID5: 7 | IE5: 8 | IF5: 9 | IG5: 10 | IH5: 11 | II5: 12 | IJ5: 1 | IK5: 2 | IL5: 3 | IM5: 4 | IN5: 5 | IO5: 6 | IP5: 7 | IQ5: 8 | IR5: 9 | IS5: 10 | IT5: 11 | IU5: 12 | IV5: 1 | IW5: 2 | IX5: 3 | IY5: 4 | IZ5: 5 | JA5: 6 | JB5: 7 | JC5: 8 | JD5: 9 | JE5: 10 | JF5: 11 | JG5: 12 | JH5: 1 | JI5: 2 | JJ5: 3 | JK5: 4 | JL5: =IZ5 -> 5 | JM5: 6 | JN5: 7 | JO5: 8 | JP5: 9 | JQ5: 10 | JR5: 11 | JS5: 12
B6: Primary Compliance | D6: 0.475 | E6: 0.475 | F6: 0.475 | G6: 0.475 | H6: 0.475 | I6: 0.475 | J6: 0.475 | K6: 0.475 | L6: 0.475 | M6: 0.475 | N6: 0.475 | O6: 0.475 | P6: 0.55 | Q6: 0.55 | R6: 0.55 | S6: 0.55 | T6: 0.55 | U6: 0.55 | V6: 0.55 | W6: 0.55 | X6: 0.55 | Y6: 0.55 | Z6: 0.55 | AA6: 0.55 | AB6: 0.625 | AC6: 0.625 | AD6: 0.625 | AE6: 0.625 | AF6: 0.625 | AG6: 0.625 | AH6: 0.625 | AI6: 0.625 | AJ6: 0.625 | AK6: 0.625 | AL6: 0.625 | AM6: 0.625 | AN6: 0.66 | AO6: 0.66 | AP6: 0.66 | AQ6: 0.66 | AR6: 0.66 | AS6: 0.66 | AT6: 0.66 | AU6: 0.66 | AV6: 0.66 | AW6: 0.66 | AX6: 0.66 | AY6: 0.66 | AZ6: 0.695 | BA6: 0.695 | BB6: 0.695 | BC6: 0.695 | BD6: 0.695 | BE6: 0.695 | BF6: 0.695 | BG6: 0.695 | BH6: 0.695 | BI6: 0.695 | BJ6: 0.695 | BK6: 0.695 | BL6: 0.73 | BM6: 0.73 | BN6: 0.73 | BO6: 0.73 | BP6: 0.73 | BQ6: 0.73 | BR6: 0.73 | BS6: 0.73 | BT6: 0.73 | BU6: 0.73 | BV6: 0.73 | BW6: 0.73 | BX6: 0.765 | BY6: 0.765 | BZ6: 0.765 | CA6: 0.765 | CB6: 0.765 | CC6: 0.765 | CD6: 0.765 | CE6: 0.765 | CF6: 0.765 | CG6: 0.765 | CH6: 0.765 | CI6: 0.765 | CJ6: 0.8 | CK6: 0.8 | CL6: 0.8 | CM6: 0.8 | CN6: 0.8 | CO6: 0.8 | CP6: 0.8 | CQ6: 0.8 | CR6: 0.8 | CS6: 0.8 | CT6: 0.8 | CU6: 0.8 | CV6: 0.8 | CW6: 0.8 | CX6: 0.8 | CY6: 0.8 | CZ6: 0.8 | DA6: 0.8 | DB6: 0.8 | DC6: 0.8 | DD6: 0.8 | DE6: 0.8 | DF6: 0.8 | DG6: 0.8 | DH6: 0.8 | DI6: 0.8 | DJ6: 0.8 | DK6: 0.8 | DL6: 0.8 | DM6: 0.8 | DN6: 0.8 | DO6: 0.8 | DP6: 0.8 | DQ6: 0.8 | DR6: 0.8 | DS6: 0.8 | DT6: 0.8 | DU6: 0.8 | DV6: 0.8 | DW6: 0.8 | DX6: 0.8 | DY6: 0.8 | DZ6: 0.8 | EA6: 0.8 | EB6: 0.8 | EC6: 0.8 | ED6: 0.8 | EE6: 0.8 | EF6: 0.85 | EG6: 0.85 | EH6: 0.85 | EI6: 0.85 | EJ6: 0.85 | EK6: 0.85 | EL6: 0.85 | EM6: 0.85 | EN6: 0.85 | EO6: 0.85 | EP6: 0.85 | EQ6: 0.85 | ER6: 0.85 | ES6: 0.85 | ET6: 0.85 | EU6: 0.85 | EV6: 0.85 | EW6: 0.85 | EX6: 0.85 | EY6: 0.85 | EZ6: 0.85 | FA6: 0.85 | FB6: 0.85 | FC6: 0.85 | FD6: 0.85 | FE6: 0.85 | FF6: 0.85 | FG6: 0.85 | FH6: 0.85 | FI6: 0.85 | FJ6: 0.85 | FK6: 0.85 | FL6: 0.85 | FM6: 0.85 | FN6: 0.85 | FO6: 0.85 | FP6: 0.85 | FQ6: 0.85 | FR6: 0.85 | FS6: 0.85 | FT6: 0.85 | FU6: 0.85 | FV6: 0.85 | FW6: 0.85 | FX6: 0.85 | FY6: 0.85 | FZ6: 0.85 | GA6: 0.85 | GB6: 0.9 | GC6: 0.9 | GD6: 0.9 | GE6: 0.9 | GF6: 0.9 | GG6: 0.9 | GH6: 0.9 | GI6: 0.9 | GJ6: 0.9 | GK6: 0.9 | GL6: 0.9 | GM6: 0.9 | GN6: 0.9 | GO6: 0.9 | GP6: 0.9 | GQ6: 0.9 | GR6: 0.9 | GS6: 0.9 | GT6: 0.9 | GU6: 0.9 | GV6: 0.9 | GW6: 0.9 | GX6: 0.9 | GY6: 0.9 | GZ6: 0.9 | HA6: 0.9 | HB6: 0.9 | HC6: 0.9 | HD6: 0.9 | HE6: 0.9 | HF6: 0.9 | HG6: 0.9 | HH6: 0.9 | HI6: 0.9 | HJ6: 0.9 | HK6: 0.9 | HL6: 0.9 | HM6: 0.9 | HN6: 0.9 | HO6: 0.9 | HP6: 0.9 | HQ6: 0.9 | HR6: 0.9 | HS6: 0.9 | HT6: 0.9 | HU6: 0.9 | HV6: 0.9 | HW6: 0.9 | HX6: 0.95 | HY6: 0.95 | HZ6: 0.95 | IA6: 0.95 | IB6: 0.95 | IC6: 0.95 | ID6: 0.95 | IE6: 0.95 | IF6: 0.95 | IG6: 0.95 | IH6: 0.95 | II6: 0.95 | IJ6: 0.95 | IK6: 0.95 | IL6: 0.95 | IM6: 0.95 | IN6: 0.95 | IO6: 0.95 | IP6: 0.95 | IQ6: 0.95 | IR6: 0.95 | IS6: 0.95 | IT6: 0.95 | IU6: 0.95 | IV6: 0.95 | IW6: 0.95 | IX6: 0.95 | IY6: 0.95 | IZ6: 0.95 | JA6: 0.95 | JB6: 0.95 | JC6: 0.95 | JD6: 0.95 | JE6: 0.95 | JF6: 0.95 | JG6: 0.95 | JH6: 1 | JI6: 1 | JJ6: 1 | JK6: 1 | JL6: 1 | JM6: 1 | JN6: 1 | JO6: 1 | JP6: 1 | JQ6: 1 | JR6: 1 | JS6: 1
B7: Alternative Compliance | D7: 0 | E7: 0 | F7: 0 | G7: 0 | H7: 0 | I7: 0 | J7: 0 | K7: 0 | L7: 0 | M7: 0 | N7: 0 | O7: 0 | P7: 0 | Q7: 0 | R7: 0 | S7: 0 | T7: 0 | U7: 0 | V7: 0 | W7: 0 | X7: 0 | Y7: 0 | Z7: 0 | AA7: 0 | AB7: 0 | AC7: 0 | AD7: 0 | AE7: 0 | AF7: 0 | AG7: 0 | AH7: 0 | AI7: 0 | AJ7: 0 | AK7: 0 | AL7: 0 | AM7: 0 | AN7: 0 | AO7: 0 | AP7: 0 | AQ7: 0 | AR7: 0 | AS7: 0 | AT7: 0 | AU7: 0 | AV7: 0 | AW7: 0 | AX7: 0 | AY7: 0 | AZ7: 0 | BA7: 0 | BB7: 0 | BC7: 0 | BD7: 0 | BE7: 0 | BF7: 0 | BG7: 0 | BH7: 0 | BI7: 0 | BJ7: 0 | BK7: 0 | BL7: 0 | BM7: 0 | BN7: 0 | BO7: 0 | BP7: 0 | BQ7: 0 | BR7: 0 | BS7: 0 | BT7: 0 | BU7: 0 | BV7: 0 | BW7: 0 | BX7: 0 | BY7: 0 | BZ7: 0 | CA7: 0 | CB7: 0 | CC7: 0 | CD7: 0 | CE7: 0 | CF7: 0 | CG7: 0 | CH7: 0 | CI7: 0 | CJ7: 0.2 | CK7: 0.2 | CL7: 0.2 | CM7: 0.2 | CN7: 0.2 | CO7: 0.2 | CP7: 0.2 | CQ7: 0.2 | CR7: 0.2 | CS7: 0.2 | CT7: 0.2 | CU7: 0.2 | CV7: 0.2 | CW7: 0.2 | CX7: 0.2 | CY7: 0.2 | CZ7: 0.2 | DA7: 0.2 | DB7: 0.2 | DC7: 0.2 | DD7: 0.2 | DE7: 0.2 | DF7: 0.2 | DG7: 0.2 | DH7: 0.2 | DI7: 0.2 | DJ7: 0.2 | DK7: 0.2 | DL7: 0.2 | DM7: 0.2 | DN7: 0.2 | DO7: 0.2 | DP7: 0.2 | DQ7: 0.2 | DR7: 0.2 | DS7: 0.2 | DT7: 0.2 | DU7: 0.2 | DV7: 0.2 | DW7: 0.2 | DX7: 0.2 | DY7: 0.2 | DZ7: 0.2 | EA7: 0.2 | EB7: 0.2 | EC7: 0.2 | ED7: 0.2 | EE7: 0.2 | EF7: 0.15 | EG7: 0.15 | EH7: 0.15 | EI7: 0.15 | EJ7: 0.15 | EK7: 0.15 | EL7: 0.15 | EM7: 0.15 | EN7: 0.15 | EO7: 0.15 | EP7: 0.15 | EQ7: 0.15 | ER7: 0.15 | ES7: 0.15 | ET7: 0.15 | EU7: 0.15 | EV7: 0.15 | EW7: 0.15 | EX7: 0.15 | EY7: 0.15 | EZ7: 0.15 | FA7: 0.15 | FB7: 0.15 | FC7: 0.15 | FD7: 0.15 | FE7: 0.15 | FF7: 0.15 | FG7: 0.15 | FH7: 0.15 | FI7: 0.15 | FJ7: 0.15 | FK7: 0.15 | FL7: 0.15 | FM7: 0.15 | FN7: 0.15 | FO7: 0.15 | FP7: 0.15 | FQ7: 0.15 | FR7: 0.15 | FS7: 0.15 | FT7: 0.15 | FU7: 0.15 | FV7: 0.15 | FW7: 0.15 | FX7: 0.15 | FY7: 0.15 | FZ7: 0.15 | GA7: 0.15 | GB7: 0.1 | GC7: 0.1 | GD7: 0.1 | GE7: 0.1 | GF7: 0.1 | GG7: 0.1 | GH7: 0.1 | GI7: 0.1 | GJ7: 0.1 | GK7: 0.1 | GL7: 0.1 | GM7: 0.1 | GN7: 0.1 | GO7: 0.1 | GP7: 0.1 | GQ7: 0.1 | GR7: 0.1 | GS7: 0.1 | GT7: 0.1 | GU7: 0.1 | GV7: 0.1 | GW7: 0.1 | GX7: 0.1 | GY7: 0.1 | GZ7: 0.1 | HA7: 0.1 | HB7: 0.1 | HC7: 0.1 | HD7: 0.1 | HE7: 0.1 | HF7: 0.1 | HG7: 0.1 | HH7: 0.1 | HI7: 0.1 | HJ7: 0.1 | HK7: 0.1 | HL7: 0.1 | HM7: 0.1 | HN7: 0.1 | HO7: 0.1 | HP7: 0.1 | HQ7: 0.1 | HR7: 0.1 | HS7: 0.1 | HT7: 0.1 | HU7: 0.1 | HV7: 0.1 | HW7: 0.1 | HX7: 0.05 | HY7: 0.05 | HZ7: 0.05 | IA7: 0.05 | IB7: 0.05 | IC7: 0.05 | ID7: 0.05 | IE7: 0.05 | IF7: 0.05 | IG7: 0.05 | IH7: 0.05 | II7: 0.05 | IJ7: 0.05 | IK7: 0.05 | IL7: 0.05 | IM7: 0.05 | IN7: 0.05 | IO7: 0.05 | IP7: 0.05 | IQ7: 0.05 | IR7: 0.05 | IS7: 0.05 | IT7: 0.05 | IU7: 0.05 | IV7: 0.05 | IW7: 0.05 | IX7: 0.05 | IY7: 0.05 | IZ7: 0.05 | JA7: 0.05 | JB7: 0.05 | JC7: 0.05 | JD7: 0.05 | JE7: 0.05 | JF7: 0.05 | JG7: 0.05 | JH7: 0 | JI7: 0 | JJ7: 0 | JK7: 0 | JL7: 0 | JM7: 0 | JN7: 0 | JO7: 0 | JP7: 0 | JQ7: 0 | JR7: 0 | JS7: 0
A8: WASHINGTON
A9: Retail Load | B9: Retail Sales | D9: 563283.9144 | E9: 529557.0105 | F9: 494721.6979 | G9: 454465.7052 | H9: 428519.7151 | I9: 430535.8376 | J9: 446657.1023 | K9: 487897.9965 | L9: 470506.4458 | M9: 431620.628 | N9: 446661.1907 | O9: 531742.0703 | P9: 566310.9972 | Q9: 532505.5382 | R9: 497687.0796 | S9: 457534.884 | T9: 431739.41 | U9: 433778.5927 | V9: 450133.0396 | W9: 491777.6134 | X9: 474107.0123 | Y9: 434723.2365 | Z9: 449594.5698 | AA9: 534482.2625 | AB9: 567575.2897 | AC9: 533845.8316 | AD9: 499084.0708 | AE9: 459195.974 | AF9: 433591.6477 | AG9: 435749.3139 | AH9: 452259.7007 | AI9: 494188.79 | AJ9: 476360.3341 | AK9: 436573.3294 | AL9: 451270.125 | AM9: 535735.1039 | AN9: 568879.651 | AO9: 535256.3403 | AP9: 500544.7006 | AQ9: 460965.685 | AR9: 435567.3418 | AS9: 437866.9587 | AT9: 454557.1232 | AU9: 496790.002 | AV9: 478837.9049 | AW9: 438664.6075 | AX9: 453214.8109 | AY9: 537290.1034 | AZ9: 574023.4614 | BA9: 539467.5542 | BB9: 502799.3739 | BC9: 462001.02 | BD9: 435701.6892 | BE9: 438143.8822 | BF9: 454482.6316 | BG9: 497383.0225 | BH9: 479893.8604 | BI9: 440977.922 | BJ9: 457490.572 | BK9: 542891.4702 | BL9: 576200.9155 | BM9: 541584.5033 | BN9: 504612.3345 | BO9: 463856.8903 | BP9: 437585.6649 | BQ9: 440150.7954 | BR9: 456584.2627 | BS9: 499746.8449 | BT9: 482143.4787 | BU9: 443212.8358 | BV9: 459883.7397 | BW9: 545201.6442 | BX9: 578629.5037 | BY9: 543916.0592 | BZ9: 506611.7693 | CA9: 465884.5232 | CB9: 439646.3199 | CC9: 442357.9769 | CD9: 458889.3373 | CE9: 502312.0879 | CF9: 484560.9419 | CG9: 445635.3097 | CH9: 462466.159 | CI9: 547767.7777 | CJ9: 580666.6141 | CK9: 545854.8368 | CL9: 508232.056 | CM9: 467570.3878 | CN9: 441402.3096 | CO9: 444284.4968 | CP9: 460895.4281 | CQ9: 504523.2456 | CR9: 486607.9252 | CS9: 447760.604 | CT9: 464733.9674 | CU9: 549987.3639 | CV9: 583767.5056 | CW9: 548741.4845 | CX9: 510716.6937 | CY9: 470081.6747 | CZ9: 444007.1228 | DA9: 447138.6131 | DB9: 463855.8144 | DC9: 507690.2681 | DD9: 489478.1386 | DE9: 450747.4022 | DF9: 467846.47 | DG9: 553273.7594 | DH9: 587030.7172 | DI9: 551760.5502 | DJ9: 513309.5587 | DK9: 472686.651 | DL9: 446704.8495 | DM9: 450102.0603 | DN9: 466924.4004 | DO9: 510966.789 | DP9: 492439.7265 | DQ9: 453841.321 | DR9: 471074.4262 | DS9: 556726.5524 | DT9: 590462.0613 | DU9: 554915.8652 | DV9: 516011.9865 | DW9: 475385.742 | DX9: 449495.7937 | DY9: 453176.3052 | DZ9: 470101.9135 | EA9: 514352.5898 | EB9: 495491.5612 | EC9: 457045.299 | ED9: 474422.5268 | EE9: 560353.123 | EF9: 594066.9642 | EG9: 558210.5346 | EH9: 518826.8518 | EI9: 478183.2817 | EJ9: 452385.9521 | EK9: 456369.6557 | EL9: 473396.5516 | EM9: 517855.7254 | EN9: 498639.5397 | EO9: 460365.4239 | EP9: 477895.5455 | EQ9: 564159.9217 | ER9: 597879.7553 | ES9: 561674.7972 | ET9: 521779.2921 | EU9: 481100.9138 | EV9: 455395.4724 | EW9: 459703.7907 | EX9: 476829.9414 | EY9: 521498.7352 | EZ9: 501904.2281 | FA9: 463825.4576 | FB9: 481520.3617 | FC9: 568181.6687 | FD9: 601926.8626 | FE9: 565331.0381 | FF9: 524889.5374 | FG9: 484158.6098 | FH9: 458545.1896 | FI9: 463202.3617 | FJ9: 480426.1227 | FK9: 525306.8073 | FL9: 505307.6427 | FM9: 467447.0637 | FN9: 485318.1784 | FO9: 572445.1035 | FP9: 606250.3566 | FQ9: 569216.2748 | FR9: 528188.218 | FS9: 487382.6243 | FT9: 461859.5699 | FU9: 466891.7749 | FV9: 484211.4397 | FW9: 529307.2442 | FX9: 508874.5351 | FY9: 471259.2249 | FZ9: 489321.8385 | GA9: 576992.8732 | GB9: 610875.3796 | GC9: 573351.075 | GD9: 531693.655 | GE9: 490791.4735 | GF9: 465358.622 | GG9: 470795.5494 | GH9: 488209.658 | GI9: 533524.3898 | GJ9: 512625.3783 | GK9: 475282.9225 | GL9: 493551.5118 | GM9: 581851.0329 | GN9: 615858.9426 | GO9: 577785.7065 | GP9: 535449.8348 | GQ9: 494425.4076 | GR9: 469081.7474 | GS9: 474956.494 | GT9: 492464.2837 | GU9: 538003.9908 | GV9: 516601.4407 | GW9: 479560.9572 | GX9: 498052.2147 | GY9: 587076.564 | GZ9: 621263.5233 | HA9: 582575.2022 | HB9: 539504.4749 | HC9: 498327.7241 | HD9: 473071.1592 | HE9: 479420.5211 | HF9: 497021.8748 | HG9: 542794.7735 | HH9: 520846.5543 | HI9: 484139.7314 | HJ9: 502873.2158 | HK9: 592732.1417 | HL9: 627133.9327 | HM9: 587757.4976 | HN9: 543890.1597 | HO9: 502529.0596 | HP9: 477358.2621 | HQ9: 484223.4971 | HR9: 501918.5501 | HS9: 547933.4926 | HT9: 525392.1397 | HU9: 489053.7474 | HV9: 508049.978 | HW9: 598863.9067 | HX9: 633549.6645 | HY9: 593402.6432 | HZ9: 548668.5773 | IA9: 507086.4051 | IB9: 481999.3747 | IC9: 489426.8172 | ID9: 507216.8501 | IE9: 553485.7478 | IF9: 530297.0618 | IG9: 494363.5603 | IH9: 513645.4408 | II9: 605551.339 | IJ9: 640574.9757 | IK9: 599565.9273 | IL9: 553887.1282 | IM9: 512043.4219 | IN9: 487038.2874 | IO9: 495079.5909 | IP9: 512966.311 | IQ9: 559502.2424 | IR9: 535605.3791 | IS9: 500117.6032 | IT9: 519710.2988 | IU9: 612860.0675 | IV9: 648314.6614 | IW9: 606340.1456 | IX9: 559627.6486 | IY9: 517475.4603 | IZ9: 492549.042 | JA9: 501262.0553 | JB9: 519248.7788 | JC9: 566069.2856 | JD9: 541395.0798 | JE9: 506395.4599 | JF9: 526327.5526 | JG9: 620894.4898 | JH9: 656854.9442 | JI9: 613800.1002 | JJ9: 565955.6432 | JK9: 523443.7042 | JL9: 498593.0789 | JM9: 508042.4485 | JN9: 526133.5524 | JO9: 573259.0985 | JP9: 547729.9559 | JQ9: 513263.4546 | JR9: 533565.539 | JS9: 629741.6513 | JV9: =SUM(D9:O9)/G_A!$Q$6 -> 652.5307436 | JW9: =SUM(P9:AA9)/G_A!$R$6 -> 655.097249 | JX9: =SUM(AB9:AM9)/G_A!$S$6 -> 659.2956063 | JY9: =SUM(AN9:AY9)/G_A!$T$6 -> 661.9218298 | JZ9: =SUM(AZ9:BK9)/G_A!$U$6 -> 664.9836141 | KA9: =SUM(BL9:BW9)/G_A!$V$6 -> 666.0705726 | KB9: =SUM(BX9:CI9)/G_A!$W$6 -> 671.0819367 | KC9: =SUM(CJ9:CU9)/G_A!$X$6 -> 673.8035657 | KD9: =SUM(CV9:DG9)/G_A!$Y$6 -> 677.7791035 | KE9: =SUM(DH9:DS9)/G_A!$Z$6 -> 680.0509566 | KF9: =SUM(DT9:EE9)/G_A!$AA$6 -> 686.2117314 | KG9: =SUM(EF9:EQ9)/G_A!$AB$6 -> 690.6799027 | KH9: =SUM(ER9:FC9)/G_A!$AC$6 -> 695.3532436 | KI9: =SUM(FD9:FO9)/G_A!$AD$6 -> 698.3497857 | KJ9: =SUM(FP9:GA9)/G_A!$AE$6 -> 705.4515952 | KK9: =SUM(GB9:GM9)/G_A!$AF$6 -> 710.9487041 | KL9: =SUM(GN9:GY9)/G_A!$AG$6 -> 716.8170758 | KM9: =SUM(GZ9:HK9)/G_A!$AH$6 -> 721.1487814 | KN9: =SUM(HL9:HW9)/G_A!$AI$6 -> 729.9205734 | KO9: =SUM(HX9:II9)/G_A!$AJ$6 -> 737.2937765 | KP9: =SUM(IJ9:IU9)/G_A!$AK$6 -> 745.3140677 | KQ9: =SUM(IV9:JG9)/G_A!$AL$6 -> 752.0377572 | KR9: =SUM(JH9:JS9)/G_A!$AM$6 -> 763.7423711
B10: EE Adjustment | D10: =(WA_LR!C138-WA_LR!C136)*WA_LR!C2 -> 30.48776151 | E10: =(WA_LR!D138-WA_LR!D136)*WA_LR!D2 -> 22.8421089 | F10: =(WA_LR!E138-WA_LR!E136)*WA_LR!E2 -> 18.74635559 | G10: =(WA_LR!F138-WA_LR!F136)*WA_LR!F2 -> 14.03726062 | H10: =(WA_LR!G138-WA_LR!G136)*WA_LR!G2 -> 5.209267181 | I10: =(WA_LR!H138-WA_LR!H136)*WA_LR!H2 -> 5.055871012 | J10: =(WA_LR!I138-WA_LR!I136)*WA_LR!I2 -> 7.967951302 | K10: =(WA_LR!J138-WA_LR!J136)*WA_LR!J2 -> 8.100273602 | L10: =(WA_LR!K138-WA_LR!K136)*WA_LR!K2 -> 7.322510341 | M10: =(WA_LR!L138-WA_LR!L136)*WA_LR!L2 -> 13.75623395 | N10: =(WA_LR!M138-WA_LR!M136)*WA_LR!M2 -> 25.96461276 | O10: =(WA_LR!N138-WA_LR!N136)*WA_LR!N2 -> 39.54586436 | P10: =(WA_LR!O138-WA_LR!O136)*WA_LR!O2 -> 66.18507357 | Q10: =(WA_LR!P138-WA_LR!P136)*WA_LR!P2 -> 51.37477413 | R10: =(WA_LR!Q138-WA_LR!Q136)*WA_LR!Q2 -> 40.73573183 | S10: =(WA_LR!R138-WA_LR!R136)*WA_LR!R2 -> 30.52615105 | T10: =(WA_LR!S138-WA_LR!S136)*WA_LR!S2 -> 11.39517379 | U10: =(WA_LR!T138-WA_LR!T136)*WA_LR!T2 -> 11.06042224 | V10: =(WA_LR!U138-WA_LR!U136)*WA_LR!U2 -> 17.37700792 | W10: =(WA_LR!V138-WA_LR!V136)*WA_LR!V2 -> 17.66374355 | X10: =(WA_LR!W138-WA_LR!W136)*WA_LR!W2 -> 15.97334326 | Y10: =(WA_LR!X138-WA_LR!X136)*WA_LR!X2 -> 29.92083488 | Z10: =(WA_LR!Y138-WA_LR!Y136)*WA_LR!Y2 -> 56.3784059 | AA10: =(WA_LR!Z138-WA_LR!Z136)*WA_LR!Z2 -> 85.81935532 | AB10: =(WA_LR!AA138-WA_LR!AA136)*WA_LR!AA2 -> 106.9340556 | AC10: =(WA_LR!AB138-WA_LR!AB136)*WA_LR!AB2 -> 80.16666782 | AD10: =(WA_LR!AC138-WA_LR!AC136)*WA_LR!AC2 -> 65.8750306 | AE10: =(WA_LR!AD138-WA_LR!AD136)*WA_LR!AD2 -> 49.39928655 | AF10: =(WA_LR!AE138-WA_LR!AE136)*WA_LR!AE2 -> 18.53940074 | AG10: =(WA_LR!AF138-WA_LR!AF136)*WA_LR!AF2 -> 17.99595085 | AH10: =(WA_LR!AG138-WA_LR!AG136)*WA_LR!AG2 -> 28.19386663 | AI10: =(WA_LR!AH138-WA_LR!AH136)*WA_LR!AH2 -> 28.6563698 | AJ10: =(WA_LR!AI138-WA_LR!AI136)*WA_LR!AI2 -> 25.92229112 | AK10: =(WA_LR!AJ138-WA_LR!AJ136)*WA_LR!AJ2 -> 48.42834806 | AL10: =(WA_LR!AK138-WA_LR!AK136)*WA_LR!AK2 -> 91.10817234 | AM10: =(WA_LR!AL138-WA_LR!AL136)*WA_LR!AL2 -> 138.6127071 | AN10: =(WA_LR!AM138-WA_LR!AM136)*WA_LR!AM2 -> 150.6158344 | AO10: =(WA_LR!AN138-WA_LR!AN136)*WA_LR!AN2 -> 112.9473987 | AP10: =(WA_LR!AO138-WA_LR!AO136)*WA_LR!AO2 -> 92.86760755 | AQ10: =(WA_LR!AP138-WA_LR!AP136)*WA_LR!AP2 -> 69.68937299 | AR10: =(WA_LR!AQ138-WA_LR!AQ136)*WA_LR!AQ2 -> 26.29342086 | AS10: =(WA_LR!AR138-WA_LR!AR136)*WA_LR!AR2 -> 25.52431559 | AT10: =(WA_LR!AS138-WA_LR!AS136)*WA_LR!AS2 -> 39.87718962 | AU10: =(WA_LR!AT138-WA_LR!AT136)*WA_LR!AT2 -> 40.52753734 | AV10: =(WA_LR!AU138-WA_LR!AU136)*WA_LR!AU2 -> 36.67248585 | AW10: =(WA_LR!AV138-WA_LR!AV136)*WA_LR!AV2 -> 68.33175259 | AX10: =(WA_LR!AW138-WA_LR!AW136)*WA_LR!AW2 -> 128.3513475 | AY10: =(WA_LR!AX138-WA_LR!AX136)*WA_LR!AX2 -> 195.1728723 | AZ10: =(WA_LR!AY138-WA_LR!AY136)*WA_LR!AY2 -> 195.9133092 | BA10: =(WA_LR!AZ138-WA_LR!AZ136)*WA_LR!AZ2 -> 146.9602298 | BB10: =(WA_LR!BA138-WA_LR!BA136)*WA_LR!BA2 -> 120.9076234 | BC10: =(WA_LR!BB138-WA_LR!BB136)*WA_LR!BB2 -> 90.79535018 | BD10: =(WA_LR!BC138-WA_LR!BC136)*WA_LR!BC2 -> 34.44093733 | BE10: =(WA_LR!BD138-WA_LR!BD136)*WA_LR!BD2 -> 33.4356686 | BF10: =(WA_LR!BE138-WA_LR!BE136)*WA_LR!BE2 -> 52.09080032 | BG10: =(WA_LR!BF138-WA_LR!BF136)*WA_LR!BF2 -> 52.9353007 | BH10: =(WA_LR!BG138-WA_LR!BG136)*WA_LR!BG2 -> 47.91538327 | BI10: =(WA_LR!BH138-WA_LR!BH136)*WA_LR!BH2 -> 89.0426094 | BJ10: =(WA_LR!BI138-WA_LR!BI136)*WA_LR!BI2 -> 166.9874999 | BK10: =(WA_LR!BJ138-WA_LR!BJ136)*WA_LR!BJ2 -> 253.7884252 | BL10: =(WA_LR!BK138-WA_LR!BK136)*WA_LR!BK2 -> 243.2749622 | BM10: =(WA_LR!BL138-WA_LR!BL136)*WA_LR!BL2 -> 189.0590444 | BN10: =(WA_LR!BM138-WA_LR!BM136)*WA_LR!BM2 -> 150.2673232 | BO10: =(WA_LR!BN138-WA_LR!BN136)*WA_LR!BN2 -> 112.9190171 | BP10: =(WA_LR!BO138-WA_LR!BO136)*WA_LR!BO2 -> 43.05092499 | BQ10: =(WA_LR!BP138-WA_LR!BP136)*WA_LR!BP2 -> 41.7968824 | BR10: =(WA_LR!BQ138-WA_LR!BQ136)*WA_LR!BQ2 -> 64.94486577 | BS10: =(WA_LR!BR138-WA_LR!BR136)*WA_LR!BR2 -> 65.9918194 | BT10: =(WA_LR!BS138-WA_LR!BS136)*WA_LR!BS2 -> 59.75187692 | BU10: =(WA_LR!BT138-WA_LR!BT136)*WA_LR!BT2 -> 110.7581623 | BV10: =(WA_LR!BU138-WA_LR!BU136)*WA_LR!BU2 -> 207.3974675 | BW10: =(WA_LR!BV138-WA_LR!BV136)*WA_LR!BV2 -> 315.0437231 | BX10: =(WA_LR!BW138-WA_LR!BW136)*WA_LR!BW2 -> 288.3404045 | BY10: =(WA_LR!BX138-WA_LR!BX136)*WA_LR!BX2 -> 216.417324 | BZ10: =(WA_LR!BY138-WA_LR!BY136)*WA_LR!BY2 -> 178.2611185 | CA10: =(WA_LR!BZ138-WA_LR!BZ136)*WA_LR!BZ2 -> 134.0467944 | CB10: =(WA_LR!CA138-WA_LR!CA136)*WA_LR!CA2 -> 51.36863215 | CC10: =(WA_LR!CB138-WA_LR!CB136)*WA_LR!CB2 -> 49.87534166 | CD10: =(WA_LR!CC138-WA_LR!CC136)*WA_LR!CC2 -> 77.29086399 | CE10: =(WA_LR!CD138-WA_LR!CD136)*WA_LR!CD2 -> 78.52970471 | CF10: =(WA_LR!CE138-WA_LR!CE136)*WA_LR!CE2 -> 71.12603546 | CG10: =(WA_LR!CF138-WA_LR!CF136)*WA_LR!CF2 -> 131.5044906 | CH10: =(WA_LR!CG138-WA_LR!CG136)*WA_LR!CG2 -> 245.8663613 | CI10: =(WA_LR!CH138-WA_LR!CH136)*WA_LR!CH2 -> 373.2862179 | CJ10: =(WA_LR!CI138-WA_LR!CI136)*WA_LR!CI2 -> 327.9324508 | CK10: =(WA_LR!CJ138-WA_LR!CJ136)*WA_LR!CJ2 -> 246.2118021 | CL10: =(WA_LR!CK138-WA_LR!CK136)*WA_LR!CK2 -> 202.9337155 | CM10: =(WA_LR!CL138-WA_LR!CL136)*WA_LR!CL2 -> 152.7135639 | CN10: =(WA_LR!CM138-WA_LR!CM136)*WA_LR!CM2 -> 58.84748952 | CO10: =(WA_LR!CN138-WA_LR!CN136)*WA_LR!CN2 -> 57.14053906 | CP10: =(WA_LR!CO138-WA_LR!CO136)*WA_LR!CO2 -> 88.29503688 | CQ10: =(WA_LR!CP138-WA_LR!CP136)*WA_LR!CP2 -> 89.70143099 | CR10: =(WA_LR!CQ138-WA_LR!CQ136)*WA_LR!CQ2 -> 81.27146881 | CS10: =(WA_LR!CR138-WA_LR!CR136)*WA_LR!CR2 -> 149.8455596 | CT10: =(WA_LR!CS138-WA_LR!CS136)*WA_LR!CS2 -> 279.687827 | CU10: =(WA_LR!CT138-WA_LR!CT136)*WA_LR!CT2 -> 424.3960366 | CV10: =(WA_LR!CU138-WA_LR!CU136)*WA_LR!CU2 -> 359.6100357 | CW10: =(WA_LR!CV138-WA_LR!CV136)*WA_LR!CV2 -> 270.092766 | CX10: =(WA_LR!CW138-WA_LR!CW136)*WA_LR!CW2 -> 222.7803107 | CY10: =(WA_LR!CX138-WA_LR!CX136)*WA_LR!CX2 -> 167.7902851 | CZ10: =(WA_LR!CY138-WA_LR!CY136)*WA_LR!CY2 -> 65.06205725 | DA10: =(WA_LR!CZ138-WA_LR!CZ136)*WA_LR!CZ2 -> 63.17948695 | DB10: =(WA_LR!DA138-WA_LR!DA136)*WA_LR!DA2 -> 97.31173548 | DC10: =(WA_LR!DB138-WA_LR!DB136)*WA_LR!DB2 -> 98.85080451 | DD10: =(WA_LR!DC138-WA_LR!DC136)*WA_LR!DC2 -> 89.59444591 | DE10: =(WA_LR!DD138-WA_LR!DD136)*WA_LR!DD2 -> 164.6743712 | DF10: =(WA_LR!DE138-WA_LR!DE136)*WA_LR!DE2 -> 306.7817473 | DG10: =(WA_LR!DF138-WA_LR!DF136)*WA_LR!DF2 -> 465.2097277 | DH10: =(WA_LR!DG138-WA_LR!DG136)*WA_LR!DG2 -> 382.8793103 | DI10: =(WA_LR!DH138-WA_LR!DH136)*WA_LR!DH2 -> 297.9634118 | DJ10: =(WA_LR!DI138-WA_LR!DI136)*WA_LR!DI2 -> 237.4937398 | DK10: =(WA_LR!DJ138-WA_LR!DJ136)*WA_LR!DJ2 -> 179.0449035 | DL10: =(WA_LR!DK138-WA_LR!DK136)*WA_LR!DK2 -> 69.92032739 | DM10: =(WA_LR!DL138-WA_LR!DL136)*WA_LR!DL2 -> 67.90281748 | DN10: =(WA_LR!DM138-WA_LR!DM136)*WA_LR!DM2 -> 104.2048782 | DO10: =(WA_LR!DN138-WA_LR!DN136)*WA_LR!DN2 -> 105.8396459 | DP10: =(WA_LR!DO138-WA_LR!DO136)*WA_LR!DO2 -> 95.96955898 | DQ10: =(WA_LR!DP138-WA_LR!DP136)*WA_LR!DP2 -> 175.7630039 | DR10: =(WA_LR!DQ138-WA_LR!DQ136)*WA_LR!DQ2 -> 326.7264379 | DS10: =(WA_LR!DR138-WA_LR!DR136)*WA_LR!DR2 -> 495.0893382 | DT10: =(WA_LR!DS138-WA_LR!DS136)*WA_LR!DS2 -> 397.7544174 | DU10: =(WA_LR!DT138-WA_LR!DT136)*WA_LR!DT2 -> 299.0010183 | DV10: =(WA_LR!DU138-WA_LR!DU136)*WA_LR!DU2 -> 247.0589082 | DW10: =(WA_LR!DV138-WA_LR!DV136)*WA_LR!DV2 -> 186.4522082 | DX10: =(WA_LR!DW138-WA_LR!DW136)*WA_LR!DW2 -> 73.37297358 | DY10: =(WA_LR!DX138-WA_LR!DX136)*WA_LR!DX2 -> 71.26222289 | DZ10: =(WA_LR!DY138-WA_LR!DY136)*WA_LR!DY2 -> 108.9306372 | EA10: =(WA_LR!DZ138-WA_LR!DZ136)*WA_LR!DZ2 -> 110.6244935 | EB10: =(WA_LR!EA138-WA_LR!EA136)*WA_LR!EA2 -> 100.3541341 | EC10: =(WA_LR!EB138-WA_LR!EB136)*WA_LR!EB2 -> 183.0832892 | ED10: =(WA_LR!EC138-WA_LR!EC136)*WA_LR!EC2 -> 339.526485 | EE10: =(WA_LR!ED138-WA_LR!ED136)*WA_LR!ED2 -> 514.0710486 | EF10: =(WA_LR!EE138-WA_LR!EE136)*WA_LR!EE2 -> 405.9604764 | EG10: =(WA_LR!EF138-WA_LR!EF136)*WA_LR!EF2 -> 305.3231321 | EH10: =(WA_LR!EG138-WA_LR!EG136)*WA_LR!EG2 -> 252.5396781 | EI10: =(WA_LR!EH138-WA_LR!EH136)*WA_LR!EH2 -> 190.810642 | EJ10: =(WA_LR!EI138-WA_LR!EI136)*WA_LR!EI2 -> 75.72153979 | EK10: =(WA_LR!EJ138-WA_LR!EJ136)*WA_LR!EJ2 -> 73.55042436 | EL10: =(WA_LR!EK138-WA_LR!EK136)*WA_LR!EK2 -> 111.9461003 | EM10: =(WA_LR!EL138-WA_LR!EL136)*WA_LR!EL2 -> 113.6698828 | EN10: =(WA_LR!EM138-WA_LR!EM136)*WA_LR!EM2 -> 103.1685472 | EO10: =(WA_LR!EN138-WA_LR!EN136)*WA_LR!EN2 -> 187.4181386 | EP10: =(WA_LR!EO138-WA_LR!EO136)*WA_LR!EO2 -> 346.6520476 | EQ10: =(WA_LR!EP138-WA_LR!EP136)*WA_LR!EP2 -> 524.3901836 | ER10: =(WA_LR!EQ138-WA_LR!EQ136)*WA_LR!EQ2 -> 409.6809054 | ES10: =(WA_LR!ER138-WA_LR!ER136)*WA_LR!ER2 -> 308.2896924 | ET10: =(WA_LR!ES138-WA_LR!ES136)*WA_LR!ES2 -> 255.2752767 | EU10: =(WA_LR!ET138-WA_LR!ET136)*WA_LR!ET2 -> 193.121077 | EV10: =(WA_LR!EU138-WA_LR!EU136)*WA_LR!EU2 -> 77.33187766 | EW10: =(WA_LR!EV138-WA_LR!EV136)*WA_LR!EV2 -> 75.1224281 | EX10: =(WA_LR!EW138-WA_LR!EW136)*WA_LR!EW2 -> 113.8152531 | EY10: =(WA_LR!EX138-WA_LR!EX136)*WA_LR!EX2 -> 115.5493195 | EZ10: =(WA_LR!EY138-WA_LR!EY136)*WA_LR!EY2 -> 104.9307725 | FA10: =(WA_LR!EZ138-WA_LR!EZ136)*WA_LR!EZ2 -> 189.7478993 | FB10: =(WA_LR!FA138-WA_LR!FA136)*WA_LR!FA2 -> 349.9615656 | FC10: =(WA_LR!FB138-WA_LR!FB136)*WA_LR!FB2 -> 528.8813387 | FD10: =(WA_LR!FC138-WA_LR!FC136)*WA_LR!FC2 -> 410.9498171 | FE10: =(WA_LR!FD138-WA_LR!FD136)*WA_LR!FD2 -> 320.4758501 | FF10: =(WA_LR!FE138-WA_LR!FE136)*WA_LR!FE2 -> 256.5170837 | FG10: =(WA_LR!FF138-WA_LR!FF136)*WA_LR!FF2 -> 194.3209204 | FH10: =(WA_LR!FG138-WA_LR!FG136)*WA_LR!FG2 -> 78.55293879 | FI10: =(WA_LR!FH138-WA_LR!FH136)*WA_LR!FH2 -> 76.31691802 | FJ10: =(WA_LR!FI138-WA_LR!FI136)*WA_LR!FI2 -> 115.070983 | FK10: =(WA_LR!FJ138-WA_LR!FJ136)*WA_LR!FJ2 -> 116.8045118 | FL10: =(WA_LR!FK138-WA_LR!FK136)*WA_LR!FK2 -> 106.1305986 | FM10: =(WA_LR!FL138-WA_LR!FL136)*WA_LR!FL2 -> 190.9913032 | FN10: =(WA_LR!FM138-WA_LR!FM136)*WA_LR!FM2 -> 351.1875705 | FO10: =(WA_LR!FN138-WA_LR!FN136)*WA_LR!FN2 -> 530.1824879 | FP10: =(WA_LR!FO138-WA_LR!FO136)*WA_LR!FO2 -> 410.5337436 | FQ10: =(WA_LR!FP138-WA_LR!FP136)*WA_LR!FP2 -> 309.2653953 | FR10: =(WA_LR!FQ138-WA_LR!FQ136)*WA_LR!FQ2 -> 256.6417996 | FS10: =(WA_LR!FR138-WA_LR!FR136)*WA_LR!FR2 -> 194.6368993 | FT10: =(WA_LR!FS138-WA_LR!FS136)*WA_LR!FS2 -> 79.30982353 | FU10: =(WA_LR!FT138-WA_LR!FT136)*WA_LR!FT2 -> 77.05928914 | FV10: =(WA_LR!FU138-WA_LR!FU136)*WA_LR!FU2 -> 115.7242032 | FW10: =(WA_LR!FV138-WA_LR!FV136)*WA_LR!FV2 -> 117.4509367 | FX10: =(WA_LR!FW138-WA_LR!FW136)*WA_LR!FW2 -> 106.7686523 | FY10: =(WA_LR!FX138-WA_LR!FX136)*WA_LR!FX2 -> 191.3566881 | FZ10: =(WA_LR!FY138-WA_LR!FY136)*WA_LR!FY2 -> 350.9530832 | GA10: =(WA_LR!FZ138-WA_LR!FZ136)*WA_LR!FZ2 -> 529.3586015 | GB10: =(WA_LR!GA138-WA_LR!GA136)*WA_LR!GA2 -> 409.597492 | GC10: =(WA_LR!GB138-WA_LR!GB136)*WA_LR!GB2 -> 308.7007135 | GD10: =(WA_LR!GC138-WA_LR!GC136)*WA_LR!GC2 -> 256.4081851 | GE10: =(WA_LR!GD138-WA_LR!GD136)*WA_LR!GD2 -> 194.6620563 | GF10: =(WA_LR!GE138-WA_LR!GE136)*WA_LR!GE2 -> 79.89411328 | GG10: =(WA_LR!GF138-WA_LR!GF136)*WA_LR!GF2 -> 77.63339432 | GH10: =(WA_LR!GG138-WA_LR!GG136)*WA_LR!GG2 -> 116.1644928 | GI10: =(WA_LR!GH138-WA_LR!GH136)*WA_LR!GH2 -> 117.882673 | GJ10: =(WA_LR!GI138-WA_LR!GI136)*WA_LR!GI2 -> 107.2071833 | GK10: =(WA_LR!GJ138-WA_LR!GJ136)*WA_LR!GJ2 -> 191.4314502 | GL10: =(WA_LR!GK138-WA_LR!GK136)*WA_LR!GK2 -> 350.2634924 | GM10: =(WA_LR!GL138-WA_LR!GL136)*WA_LR!GL2 -> 527.8887714 | GN10: =(WA_LR!GM138-WA_LR!GM136)*WA_LR!GM2 -> 409.2528753 | GO10: =(WA_LR!GN138-WA_LR!GN136)*WA_LR!GN2 -> 308.5594992 | GP10: =(WA_LR!GO138-WA_LR!GO136)*WA_LR!GO2 -> 256.488847 | GQ10: =(WA_LR!GP138-WA_LR!GP136)*WA_LR!GP2 -> 194.8935892 | GR10: =(WA_LR!GQ138-WA_LR!GQ136)*WA_LR!GQ2 -> 80.47178679 | GS10: =(WA_LR!GR138-WA_LR!GR136)*WA_LR!GR2 -> 78.20010079 | GT10: =(WA_LR!GS138-WA_LR!GS136)*WA_LR!GS2 -> 116.6603481 | GU10: =(WA_LR!GT138-WA_LR!GT136)*WA_LR!GT2 -> 118.3731866 | GV10: =(WA_LR!GU138-WA_LR!GU136)*WA_LR!GU2 -> 107.6918437 | GW10: =(WA_LR!GV138-WA_LR!GV136)*WA_LR!GV2 -> 191.7012193 | GX10: =(WA_LR!GW138-WA_LR!GW136)*WA_LR!GW2 -> 350.0621911 | GY10: =(WA_LR!GX138-WA_LR!GX136)*WA_LR!GX2 -> 527.2233736 | GZ10: =(WA_LR!GY138-WA_LR!GY136)*WA_LR!GY2 -> 409.5824388 | HA10: =(WA_LR!GZ138-WA_LR!GZ136)*WA_LR!GZ2 -> 319.9364937 | HB10: =(WA_LR!HA138-WA_LR!HA136)*WA_LR!HA2 -> 256.9360504 | HC10: =(WA_LR!HB138-WA_LR!HB136)*WA_LR!HB2 -> 195.3715173 | HD10: =(WA_LR!HC138-WA_LR!HC136)*WA_LR!HC2 -> 81.06023271 | HE10: =(WA_LR!HD138-WA_LR!HD136)*WA_LR!HD2 -> 78.7763149 | HF10: =(WA_LR!HE138-WA_LR!HE136)*WA_LR!HE2 -> 117.236363 | HG10: =(WA_LR!HF138-WA_LR!HF136)*WA_LR!HF2 -> 118.9474104 | HH10: =(WA_LR!HG138-WA_LR!HG136)*WA_LR!HG2 -> 108.245386 | HI10: =(WA_LR!HH138-WA_LR!HH136)*WA_LR!HH2 -> 192.205434 | HJ10: =(WA_LR!HI138-WA_LR!HI136)*WA_LR!HI2 -> 350.419953 | HK10: =(WA_LR!HJ138-WA_LR!HJ136)*WA_LR!HJ2 -> 527.4683488 | HL10: =(WA_LR!HK138-WA_LR!HK136)*WA_LR!HK2 -> 409.7451843 | HM10: =(WA_LR!HL138-WA_LR!HL136)*WA_LR!HL2 -> 309.1394063 | HN10: =(WA_LR!HM138-WA_LR!HM136)*WA_LR!HM2 -> 257.3194191 | HO10: =(WA_LR!HN138-WA_LR!HN136)*WA_LR!HN2 -> 195.8243115 | HP10: =(WA_LR!HO138-WA_LR!HO136)*WA_LR!HO2 -> 81.70447645 | HQ10: =(WA_LR!HP138-WA_LR!HP136)*WA_LR!HP2 -> 79.40751974 | HR10: =(WA_LR!HQ138-WA_LR!HQ136)*WA_LR!HQ2 -> 117.8464391 | HS10: =(WA_LR!HR138-WA_LR!HR136)*WA_LR!HR2 -> 119.5544572 | HT10: =(WA_LR!HS138-WA_LR!HS136)*WA_LR!HS2 -> 108.8340415 | HU10: =(WA_LR!HT138-WA_LR!HT136)*WA_LR!HT2 -> 192.6907093 | HV10: =(WA_LR!HU138-WA_LR!HU136)*WA_LR!HU2 -> 350.6478764 | HW10: =(WA_LR!HV138-WA_LR!HV136)*WA_LR!HV2 -> 527.4680727 | HX10: =(WA_LR!HW138-WA_LR!HW136)*WA_LR!HW2 -> 410.1893607 | HY10: =(WA_LR!HX138-WA_LR!HX136)*WA_LR!HX2 -> 309.5701259 | HZ10: =(WA_LR!HY138-WA_LR!HY136)*WA_LR!HY2 -> 257.8374727 | IA10: =(WA_LR!HZ138-WA_LR!HZ136)*WA_LR!HZ2 -> 196.3555216 | IB10: =(WA_LR!IA138-WA_LR!IA136)*WA_LR!IA2 -> 82.31334853 | IC10: =(WA_LR!IB138-WA_LR!IB136)*WA_LR!IB2 -> 80.00362804 | ID10: =(WA_LR!IC138-WA_LR!IC136)*WA_LR!IC2 -> 118.4532934 | IE10: =(WA_LR!ID138-WA_LR!ID136)*WA_LR!ID2 -> 120.1600038 | IF10: =(WA_LR!IE138-WA_LR!IE136)*WA_LR!IE2 -> 109.4159186 | IG10: =(WA_LR!IF138-WA_LR!IF136)*WA_LR!IF2 -> 193.2472189 | IH10: =(WA_LR!IG138-WA_LR!IG136)*WA_LR!IG2 -> 351.1034067 | II10: =(WA_LR!IH138-WA_LR!IH136)*WA_LR!IH2 -> 527.8615139 | IJ10: =(WA_LR!II138-WA_LR!II136)*WA_LR!II2 -> 410.637917 | IK10: =(WA_LR!IJ138-WA_LR!IJ136)*WA_LR!IJ2 -> 309.990314 | IL10: =(WA_LR!IK138-WA_LR!IK136)*WA_LR!IK2 -> 258.3236773 | IM10: =(WA_LR!IL138-WA_LR!IL136)*WA_LR!IL2 -> 196.842681 | IN10: =(WA_LR!IM138-WA_LR!IM136)*WA_LR!IM2 -> 82.8478203 | IO10: =(WA_LR!IN138-WA_LR!IN136)*WA_LR!IN2 -> 80.52683669 | IP10: =(WA_LR!IO138-WA_LR!IO136)*WA_LR!IO2 -> 118.9921626 | IQ10: =(WA_LR!IP138-WA_LR!IP136)*WA_LR!IP2 -> 120.6980349 | IR10: =(WA_LR!IQ138-WA_LR!IQ136)*WA_LR!IQ2 -> 109.9318805 | IS10: =(WA_LR!IR138-WA_LR!IR136)*WA_LR!IR2 -> 193.7555069 | IT10: =(WA_LR!IS138-WA_LR!IS136)*WA_LR!IS2 -> 351.551798 | IU10: =(WA_LR!IT138-WA_LR!IT136)*WA_LR!IT2 -> 528.2864532 | IV10: =(WA_LR!IU138-WA_LR!IU136)*WA_LR!IU2 -> 411.3232967 | IW10: =(WA_LR!IV138-WA_LR!IV136)*WA_LR!IV2 -> 321.6692857 | IX10: =(WA_LR!IW138-WA_LR!IW136)*WA_LR!IW2 -> 258.9287579 | IY10: =(WA_LR!IX138-WA_LR!IX136)*WA_LR!IX2 -> 197.4032154 | IZ10: =(WA_LR!IY138-WA_LR!IY136)*WA_LR!IY2 -> 83.36457995 | JA10: =(WA_LR!IZ138-WA_LR!IZ136)*WA_LR!IZ2 -> 81.03232719 | JB10: =(WA_LR!JA138-WA_LR!JA136)*WA_LR!JA2 -> 119.5394204 | JC10: =(WA_LR!JB138-WA_LR!JB136)*WA_LR!JB2 -> 121.2458304 | JD10: =(WA_LR!JC138-WA_LR!JC136)*WA_LR!JC2 -> 110.4528856 | JE10: =(WA_LR!JD138-WA_LR!JD136)*WA_LR!JD2 -> 194.3317919 | JF10: =(WA_LR!JE138-WA_LR!JE136)*WA_LR!JE2 -> 352.1934674 | JG10: =(WA_LR!JF138-WA_LR!JF136)*WA_LR!JF2 -> 529.0385735 | JH10: =(WA_LR!JG138-WA_LR!JG136)*WA_LR!JG2 -> 411.5208237 | JI10: =(WA_LR!JH138-WA_LR!JH136)*WA_LR!JH2 -> 310.7858055 | JJ10: =(WA_LR!JI138-WA_LR!JI136)*WA_LR!JI2 -> 259.2017214 | JK10: =(WA_LR!JJ138-WA_LR!JJ136)*WA_LR!JJ2 -> 197.6962561 | JL10: =(WA_LR!JK138-WA_LR!JK136)*WA_LR!JK2 -> 83.72803774 | JM10: =(WA_LR!JL138-WA_LR!JL136)*WA_LR!JL2 -> 81.38835959 | JN10: =(WA_LR!JM138-WA_LR!JM136)*WA_LR!JM2 -> 119.8947856 | JO10: =(WA_LR!JN138-WA_LR!JN136)*WA_LR!JN2 -> 121.6000395 | JP10: =(WA_LR!JO138-WA_LR!JO136)*WA_LR!JO2 -> 110.7943637 | JQ10: =(WA_LR!JP138-WA_LR!JP136)*WA_LR!JP2 -> 194.6412256 | JR10: =(WA_LR!JQ138-WA_LR!JQ136)*WA_LR!JQ2 -> 352.4095279 | JS10: =(WA_LR!JR138-WA_LR!JR136)*WA_LR!JR2 -> 529.1818845 | JV10: =SUM(D10:O10)/G_A!$Q$6 -> 0.02272101269 | JW10: =SUM(P10:AA10)/G_A!$R$6 -> 0.04945469233 | JX10: =SUM(AB10:AM10)/G_A!$S$6 -> 0.07988951452 | JY10: =SUM(AN10:AY10)/G_A!$T$6 -> 0.1126565223 | JZ10: =SUM(AZ10:BK10)/G_A!$U$6 -> 0.1467138285 | KA10: =SUM(BL10:BW10)/G_A!$V$6 -> 0.1826338877 | KB10: =SUM(BX10:CI10)/G_A!$W$6 -> 0.2164284577 | KC10: =SUM(CJ10:CU10)/G_A!$X$6 -> 0.2464585526 | KD10: =SUM(CV10:DG10)/G_A!$Y$6 -> 0.270654997 | KE10: =SUM(DH10:DS10)/G_A!$Z$6 -> 0.2890252019 | KF10: =SUM(DT10:EE10)/G_A!$AA$6 -> 0.3003986114 | KG10: =SUM(EF10:EQ10)/G_A!$AB$6 -> 0.3072089946 | KH10: =SUM(ER10:FC10)/G_A!$AC$6 -> 0.3106971925 | KI10: =SUM(FD10:FO10)/G_A!$AD$6 -> 0.3127847203 | KJ10: =SUM(FP10:GA10)/G_A!$AE$6 -> 0.3126779812 | KK10: =SUM(GB10:GM10)/G_A!$AF$6 -> 0.3125267143 | KL10: =SUM(GN10:GY10)/G_A!$AG$6 -> 0.3127373129 | KM10: =SUM(GZ10:HK10)/G_A!$AH$6 -> 0.3137734452 | KN10: =SUM(HL10:HW10)/G_A!$AI$6 -> 0.313947707 | KO10: =SUM(HX10:II10)/G_A!$AJ$6 -> 0.3146701841 | KP10: =SUM(IJ10:IU10)/G_A!$AK$6 -> 0.3153407628 | KQ10: =SUM(IV10:JG10)/G_A!$AL$6 -> 0.3165441066 | KR10: =SUM(JH10:JS10)/G_A!$AM$6 -> 0.3165345697
B11: PURPA | D11: 15784 | E11: 16452 | F11: 20071 | G11: 19803 | H11: 18292 | I11: 13805 | J11: 12349 | K11: 11180 | L11: 11527 | M11: 14344 | N11: 13786 | O11: 15897 | P11: 15784 | Q11: 16452 | R11: 20071 | S11: 19803 | T11: 18292 | U11: 13805 | V11: 12349 | W11: 11180 | X11: 11527 | Y11: 14344 | Z11: 13786 | AA11: 15897 | AB11: 15784 | AC11: 16452 | AD11: 20071 | AE11: 19803 | AF11: 18292 | AG11: 13805 | AH11: 12349 | AI11: 11180 | AJ11: 11527 | AK11: 14344 | AL11: 13786 | AM11: 15897 | AN11: 15784 | AO11: 16452 | AP11: 20071 | AQ11: 19803 | AR11: 18292 | AS11: 13805 | AT11: 12349 | AU11: 11180 | AV11: 11527 | AW11: 14344 | AX11: 13786 | AY11: 15897 | AZ11: 15784 | BA11: 16452 | BB11: 20071 | BC11: 19803 | BD11: 18292 | BE11: 13805 | BF11: 12349 | BG11: 11180 | BH11: 11527 | BI11: 14344 | BJ11: 13786 | BK11: 15897 | BL11: 15784 | BM11: 16452 | BN11: 20071 | BO11: 19803 | BP11: 18292 | BQ11: 13805 | BR11: 12349 | BS11: 11180 | BT11: 11527 | BU11: 14344 | BV11: 13786 | BW11: 15897 | BX11: 15784 | BY11: 16452 | BZ11: 20071 | CA11: 19803 | CB11: 18292 | CC11: 13805 | CD11: 12349 | CE11: 11180 | CF11: 11527 | CG11: 14344 | CH11: 13786 | CI11: 15897 | CJ11: 15784 | CK11: 16452 | CL11: 20071 | CM11: 19803 | CN11: 18292 | CO11: 13805 | CP11: 12349 | CQ11: 11180 | CR11: 11527 | CS11: 14344 | CT11: 13786 | CU11: 15897 | CV11: 15784 | CW11: 16452 | CX11: 20071 | CY11: 19803 | CZ11: 18292 | DA11: 13805 | DB11: 12349 | DC11: 11180 | DD11: 11527 | DE11: 14344 | DF11: 13786 | DG11: 15897 | DH11: 15784 | DI11: 16452 | DJ11: 20071 | DK11: 19803 | DL11: 18292 | DM11: 13805 | DN11: 12349 | DO11: 11180 | DP11: 11527 | DQ11: 14344 | DR11: 13786 | DS11: 15897 | DT11: 15784 | DU11: 16452 | DV11: 20071 | DW11: 19803 | DX11: 18292 | DY11: 13805 | DZ11: 12349 | EA11: 11180 | EB11: 11527 | EC11: 14344 | ED11: 13786 | EE11: 15897 | EF11: 15784 | EG11: 16452 | EH11: 20071 | EI11: 19803 | EJ11: 18292 | EK11: 13805 | EL11: 12349 | EM11: 11180 | EN11: 11527 | EO11: 14344 | EP11: 13786 | EQ11: 15897 | ER11: 15784 | ES11: 16452 | ET11: 20071 | EU11: 19803 | EV11: 18292 | EW11: 13805 | EX11: 12349 | EY11: 11180 | EZ11: 11527 | FA11: 14344 | FB11: 13786 | FC11: 15897 | FD11: 15784 | FE11: 16452 | FF11: 20071 | FG11: 19803 | FH11: 18292 | FI11: 13805 | FJ11: 12349 | FK11: 11180 | FL11: 11527 | FM11: 14344 | FN11: 13786 | FO11: 15897 | FP11: 15784 | FQ11: 16452 | FR11: 20071 | FS11: 19803 | FT11: 18292 | FU11: 13805 | FV11: 12349 | FW11: 11180 | FX11: 11527 | FY11: 14344 | FZ11: 13786 | GA11: 15897 | GB11: 15784 | GC11: 16452 | GD11: 20071 | GE11: 19803 | GF11: 18292 | GG11: 13805 | GH11: 12349 | GI11: 11180 | GJ11: 11527 | GK11: 14344 | GL11: 13786 | GM11: 15897 | GN11: 15784 | GO11: 16452 | GP11: 20071 | GQ11: 19803 | GR11: 18292 | GS11: 13805 | GT11: 12349 | GU11: 11180 | GV11: 11527 | GW11: 14344 | GX11: 13786 | GY11: 15897 | GZ11: 15784 | HA11: 16452 | HB11: 20071 | HC11: 19803 | HD11: 18292 | HE11: 13805 | HF11: 12349 | HG11: 11180 | HH11: 11527 | HI11: 14344 | HJ11: 13786 | HK11: 15897 | HL11: 15784 | HM11: 16452 | HN11: 20071 | HO11: 19803 | HP11: 18292 | HQ11: 13805 | HR11: 12349 | HS11: 11180 | HT11: 11527 | HU11: 14344 | HV11: 13786 | HW11: 15897 | HX11: 15784 | HY11: 16452 | HZ11: 20071 | IA11: 19803 | IB11: 18292 | IC11: 13805 | ID11: 12349 | IE11: 11180 | IF11: 11527 | IG11: 14344 | IH11: 13786 | II11: 15897 | IJ11: 15784 | IK11: 16452 | IL11: 20071 | IM11: 19803 | IN11: 18292 | IO11: 13805 | IP11: 12349 | IQ11: 11180 | IR11: 11527 | IS11: 14344 | IT11: 13786 | IU11: 15897 | IV11: 15784 | IW11: 16452 | IX11: 20071 | IY11: 19803 | IZ11: 18292 | JA11: 13805 | JB11: 12349 | JC11: 11180 | JD11: 11527 | JE11: 14344 | JF11: 13786 | JG11: 15897 | JH11: 15784 | JI11: 16452 | JJ11: 20071 | JK11: 19803 | JL11: 18292 | JM11: 13805 | JN11: 12349 | JO11: 11180 | JP11: 11527 | JQ11: 14344 | JR11: 13786 | JS11: 15897 | JV11: =SUM(D11:O11)/G_A!$Q$6 -> 20.92351598 | JW11: =SUM(P11:AA11)/G_A!$R$6 -> 20.86634791 | JX11: =SUM(AB11:AM11)/G_A!$S$6 -> 20.92351598 | JY11: =SUM(AN11:AY11)/G_A!$T$6 -> 20.92351598 | JZ11: =SUM(AZ11:BK11)/G_A!$U$6 -> 20.92351598 | KA11: =SUM(BL11:BW11)/G_A!$V$6 -> 20.86634791 | KB11: =SUM(BX11:CI11)/G_A!$W$6 -> 20.92351598 | KC11: =SUM(CJ11:CU11)/G_A!$X$6 -> 20.92351598 | KD11: =SUM(CV11:DG11)/G_A!$Y$6 -> 20.92351598 | KE11: =SUM(DH11:DS11)/G_A!$Z$6 -> 20.86634791 | KF11: =SUM(DT11:EE11)/G_A!$AA$6 -> 20.92351598 | KG11: =SUM(EF11:EQ11)/G_A!$AB$6 -> 20.92351598 | KH11: =SUM(ER11:FC11)/G_A!$AC$6 -> 20.92351598 | KI11: =SUM(FD11:FO11)/G_A!$AD$6 -> 20.86634791 | KJ11: =SUM(FP11:GA11)/G_A!$AE$6 -> 20.92351598 | KK11: =SUM(GB11:GM11)/G_A!$AF$6 -> 20.92351598 | KL11: =SUM(GN11:GY11)/G_A!$AG$6 -> 20.92351598 | KM11: =SUM(GZ11:HK11)/G_A!$AH$6 -> 20.86634791 | KN11: =SUM(HL11:HW11)/G_A!$AI$6 -> 20.92351598 | KO11: =SUM(HX11:II11)/G_A!$AJ$6 -> 20.92351598 | KP11: =SUM(IJ11:IU11)/G_A!$AK$6 -> 20.92351598 | KQ11: =SUM(IV11:JG11)/G_A!$AL$6 -> 20.86634791 | KR11: =SUM(JH11:JS11)/G_A!$AM$6 -> 20.92351598
B12: Solar Select | D12: 1298 | E12: 2547 | F12: 3882 | G12: 5169 | H12: 6132 | I12: 6494 | J12: 7154 | K12: 6404 | L12: 4969 | M12: 3365 | N12: 1527 | O12: 1143 | P12: 1285 | Q12: 2522 | R12: 3843 | S12: 5118 | T12: 6071 | U12: 6429 | V12: 7082 | W12: 6340 | X12: 4920 | Y12: 3332 | Z12: 1512 | AA12: 1131 | AB12: 1273 | AC12: 2497 | AD12: 3805 | AE12: 5067 | AF12: 6010 | AG12: 6365 | AH12: 7012 | AI12: 6277 | AJ12: 4870 | AK12: 3298 | AL12: 1497 | AM12: 1120 | AN12: 1260 | AO12: 2472 | AP12: 3767 | AQ12: 5016 | AR12: 5950 | AS12: 6301 | AT12: 6941 | AU12: 6214 | AV12: 4822 | AW12: 3265 | AX12: 1482 | AY12: 1109 | AZ12: 1247 | BA12: 2447 | BB12: 3729 | BC12: 4966 | BD12: 5891 | BE12: 6238 | BF12: 6872 | BG12: 6152 | BH12: 4774 | BI12: 3233 | BJ12: 1467 | BK12: 1098 | BL12: 0 | BM12: 0 | BN12: 0 | BO12: 0 | BP12: 0 | BQ12: 0 | BR12: 0 | BS12: 0 | BT12: 0 | BU12: 0 | BV12: 0 | BW12: 0 | BX12: 0 | BY12: 0 | BZ12: 0 | CA12: 0 | CB12: 0 | CC12: 0 | CD12: 0 | CE12: 0 | CF12: 0 | CG12: 0 | CH12: 0 | CI12: 0 | CJ12: 0 | CK12: 0 | CL12: 0 | CM12: 0 | CN12: 0 | CO12: 0 | CP12: 0 | CQ12: 0 | CR12: 0 | CS12: 0 | CT12: 0 | CU12: 0 | CV12: 0 | CW12: 0 | CX12: 0 | CY12: 0 | CZ12: 0 | DA12: 0 | DB12: 0 | DC12: 0 | DD12: 0 | DE12: 0 | DF12: 0 | DG12: 0 | DH12: 0 | DI12: 0 | DJ12: 0 | DK12: 0 | DL12: 0 | DM12: 0 | DN12: 0 | DO12: 0 | DP12: 0 | DQ12: 0 | DR12: 0 | DS12: 0 | DT12: 0 | DU12: 0 | DV12: 0 | DW12: 0 | DX12: 0 | DY12: 0 | DZ12: 0 | EA12: 0 | EB12: 0 | EC12: 0 | ED12: 0 | EE12: 0 | EF12: 0 | EG12: 0 | EH12: 0 | EI12: 0 | EJ12: 0 | EK12: 0 | EL12: 0 | EM12: 0 | EN12: 0 | EO12: 0 | EP12: 0 | EQ12: 0 | ER12: 0 | ES12: 0 | ET12: 0 | EU12: 0 | EV12: 0 | EW12: 0 | EX12: 0 | EY12: 0 | EZ12: 0 | FA12: 0 | FB12: 0 | FC12: 0 | FD12: 0 | FE12: 0 | FF12: 0 | FG12: 0 | FH12: 0 | FI12: 0 | FJ12: 0 | FK12: 0 | FL12: 0 | FM12: 0 | FN12: 0 | FO12: 0 | FP12: 0 | FQ12: 0 | FR12: 0 | FS12: 0 | FT12: 0 | FU12: 0 | FV12: 0 | FW12: 0 | FX12: 0 | FY12: 0 | FZ12: 0 | GA12: 0 | GB12: 0 | GC12: 0 | GD12: 0 | GE12: 0 | GF12: 0 | GG12: 0 | GH12: 0 | GI12: 0 | GJ12: 0 | GK12: 0 | GL12: 0 | GM12: 0 | GN12: 0 | GO12: 0 | GP12: 0 | GQ12: 0 | GR12: 0 | GS12: 0 | GT12: 0 | GU12: 0 | GV12: 0 | GW12: 0 | GX12: 0 | GY12: 0 | GZ12: 0 | HA12: 0 | HB12: 0 | HC12: 0 | HD12: 0 | HE12: 0 | HF12: 0 | HG12: 0 | HH12: 0 | HI12: 0 | HJ12: 0 | HK12: 0 | HL12: 0 | HM12: 0 | HN12: 0 | HO12: 0 | HP12: 0 | HQ12: 0 | HR12: 0 | HS12: 0 | HT12: 0 | HU12: 0 | HV12: 0 | HW12: 0 | HX12: 0 | HY12: 0 | HZ12: 0 | IA12: 0 | IB12: 0 | IC12: 0 | ID12: 0 | IE12: 0 | IF12: 0 | IG12: 0 | IH12: 0 | II12: 0 | IJ12: 0 | IK12: 0 | IL12: 0 | IM12: 0 | IN12: 0 | IO12: 0 | IP12: 0 | IQ12: 0 | IR12: 0 | IS12: 0 | IT12: 0 | IU12: 0 | IV12: 0 | IW12: 0 | IX12: 0 | IY12: 0 | IZ12: 0 | JA12: 0 | JB12: 0 | JC12: 0 | JD12: 0 | JE12: 0 | JF12: 0 | JG12: 0 | JH12: 0 | JI12: 0 | JJ12: 0 | JK12: 0 | JL12: 0 | JM12: 0 | JN12: 0 | JO12: 0 | JP12: 0 | JQ12: 0 | JR12: 0 | JS12: 0 | JV12: =SUM(D12:O12)/G_A!$Q$6 -> 5.717351598 | JW12: =SUM(P12:AA12)/G_A!$R$6 -> 5.644922587 | JX12: =SUM(AB12:AM12)/G_A!$S$6 -> 5.603995434 | JY12: =SUM(AN12:AY12)/G_A!$T$6 -> 5.54783105 | JZ12: =SUM(AZ12:BK12)/G_A!$U$6 -> 5.492465753 | KA12: =SUM(BL12:BW12)/G_A!$V$6 -> 0 | KB12: =SUM(BX12:CI12)/G_A!$W$6 -> 0 | KC12: =SUM(CJ12:CU12)/G_A!$X$6 -> 0 | KD12: =SUM(CV12:DG12)/G_A!$Y$6 -> 0 | KE12: =SUM(DH12:DS12)/G_A!$Z$6 -> 0 | KF12: =SUM(DT12:EE12)/G_A!$AA$6 -> 0 | KG12: =SUM(EF12:EQ12)/G_A!$AB$6 -> 0 | KH12: =SUM(ER12:FC12)/G_A!$AC$6 -> 0 | KI12: =SUM(FD12:FO12)/G_A!$AD$6 -> 0 | KJ12: =SUM(FP12:GA12)/G_A!$AE$6 -> 0 | KK12: =SUM(GB12:GM12)/G_A!$AF$6 -> 0 | KL12: =SUM(GN12:GY12)/G_A!$AG$6 -> 0 | KM12: =SUM(GZ12:HK12)/G_A!$AH$6 -> 0 | KN12: =SUM(HL12:HW12)/G_A!$AI$6 -> 0 | KO12: =SUM(HX12:II12)/G_A!$AJ$6 -> 0 | KP12: =SUM(IJ12:IU12)/G_A!$AK$6 -> 0 | KQ12: =SUM(IV12:JG12)/G_A!$AL$6 -> 0 | KR12: =SUM(JH12:JS12)/G_A!$AM$6 -> 0
B13: Net Retail Load | D13: =D9-D10-D11-D12 -> 546171.4266 | E13: =E9-E10-E11-E12 -> 510535.1684 | F13: 470749.9515 | G13: =G9-G10-G11-G12 -> 429479.668 | H13: 404090.5058 | I13: 410231.7818 | J13: 427146.1343 | K13: 470305.8962 | L13: 454003.1233 | M13: 413897.8717 | N13: 431322.2261 | O13: 514662.5244 | P13: 549175.8121 | Q13: 513480.1634 | R13: 473732.3439 | S13: 432583.3579 | T13: 407365.0148 | U13: 413533.5323 | V13: 430684.6626 | W13: 474239.9497 | X13: 457644.0389 | Y13: 417017.3157 | Z13: 434240.1914 | AA13: 517368.4431 | AB13: 550411.3556 | AC13: 514816.6649 | AD13: 475142.1958 | AE13: 434276.5747 | AF13: 409271.1083 | AG13: 415561.3179 | AH13: 432870.5069 | AI13: 476703.1336 | AJ13: 459937.4119 | AK13: 418882.901 | AL13: 435896.0168 | AM13: 518579.4912 | AN13: 551685.0352 | AO13: 516219.3929 | AP13: 476613.833 | AQ13: 436076.9956 | AR13: 411299.0483 | AS13: 417735.4344 | AT13: 435227.246 | AU13: 479355.4745 | AV13: 462452.2324 | AW13: 420987.2758 | AX13: 437818.4596 | AY13: 520088.9305 | AZ13: 556796.548 | BA13: 520421.594 | BB13: 478878.4663 | BC13: 437141.2247 | BD13: 411484.2482 | BE13: 418067.4465 | BF13: 435209.5408 | BG13: 479998.0872 | BH13: 463544.9451 | BI13: 423311.8794 | BJ13: 442070.5845 | BK13: 525642.6817 | BL13: 560173.6405 | BM13: 524943.4442 | BN13: 484391.0672 | BO13: 443940.9713 | BP13: =BP9-BP10-BP11-BP12 -> 419250.614 | BQ13: 426303.9985 | BR13: 444170.3178 | BS13: 488500.8531 | BT13: 470556.7268 | BU13: 428758.0777 | BV13: 445890.3422 | BW13: 528989.6005 | BX13: 562557.1633 | BY13: 527247.6419 | BZ13: 486362.5082 | CA13: 445947.4764 | CB13: 421302.9512 | CC13: 428503.1015 | CD13: 446463.0464 | CE13: 491053.5582 | CF13: 472962.8159 | CG13: 431159.8052 | CH13: 448434.2926 | CI13: 531497.4915 | CJ13: 564554.6816 | CK13: 529156.625 | CL13: 487958.1222 | CM13: 447614.6742 | CN13: 423051.4621 | CO13: 430422.3562 | CP13: 448458.1331 | CQ13: 493253.5442 | CR13: 474999.6538 | CS13: 433266.7585 | CT13: 450668.2795 | CU13: 533665.9678 | CV13: 567623.8956 | CW13: 532019.3917 | CX13: 490422.9134 | CY13: 450110.8844 | CZ13: 425650.0608 | DA13: 433270.4336 | DB13: 451409.5027 | DC13: 496411.4173 | DD13: 477861.5442 | DE13: 436238.7278 | DF13: 453753.6882 | DG13: 536911.5497 | DH13: 570863.8379 | DI13: 535010.5868 | DJ13: 493001.0649 | DK13: 452704.6061 | DL13: 428342.9292 | DM13: 436229.1575 | DN13: 454471.1955 | DO13: 499680.9494 | DP13: 480816.757 | DQ13: 439321.558 | DR13: 456961.6998 | DS13: 540334.4631 | DT13: 574280.3069 | DU13: 538164.8642 | DV13: 495693.9276 | DW13: 455396.2897 | DX13: 431130.4207 | DY13: 439300.043 | DZ13: 457643.9828 | EA13: 503061.9653 | EB13: =EB9-EB10-EB11-EB12 -> 483864.207 | EC13: 442518.2157 | ED13: 460297.0003 | EE13: 543942.0519 | EF13: 577877.0037 | EG13: 541453.2115 | EH13: 498503.3121 | EI13: 458189.4711 | EJ13: 434018.2306 | EK13: 442491.1052 | EL13: 460935.6055 | EM13: 506562.0555 | EN13: 487009.3711 | EO13: 445834.0057 | EP13: 463762.8934 | EQ13: 547738.5315 | ER13: 581686.0744 | ES13: 544914.5075 | ET13: 501453.0169 | EU13: 461104.7927 | EV13: 437026.1405 | EW13: 445823.6683 | EX13: 464367.1261 | EY13: 510203.1859 | EZ13: 490272.2973 | FA13: 449291.7097 | FB13: 467384.4002 | FC13: 551755.7873 | FD13: 585731.9128 | FE13: 548558.5622 | FF13: 504562.0203 | FG13: 464161.2888 | FH13: 440174.6366 | FI13: 449321.0448 | FJ13: 467962.0517 | FK13: 514010.0028 | FL13: 493674.5121 | FM13: 452912.0724 | FN13: 471180.9909 | FO13: 556017.921 | FP13: 590055.8229 | FQ13: 552455.0094 | FR13: 507860.5762 | FS13: 467384.9874 | FT13: 443488.2601 | FU13: 453009.7156 | FV13: 471746.7155 | FW13: 518009.7932 | FX13: 497240.7664 | FY13: 456723.8683 | FZ13: 475184.8854 | GA13: 560566.5146 | GB13: 594681.7821 | GC13: 556590.3743 | GD13: 511366.2468 | GE13: 470793.8114 | GF13: 446986.7279 | GG13: 456912.916 | GH13: 475744.4935 | GI13: 522226.5072 | GJ13: 500991.1712 | GK13: 460747.4911 | GL13: 479415.2483 | GM13: 565426.1441 | GN13: =GN9-GN10-GN11-GN12 -> 599665.6897 | GO13: 561025.147 | GP13: 515122.346 | GQ13: 474427.5141 | GR13: 450709.2756 | GS13: 461073.2939 | GT13: 479998.6234 | GU13: 526705.6176 | GV13: 504966.7489 | GW13: 465025.256 | GX13: 483916.1525 | GY13: 570652.3406 | GZ13: 605069.9408 | HA13: 565803.2657 | HB13: 519176.5388 | HC13: 478329.3526 | HD13: 454698.0989 | HE13: 465536.7448 | HF13: 484555.6384 | HG13: 531495.8261 | HH13: 509211.3089 | HI13: 469603.526 | HJ13: 488736.7958 | HK13: 576307.6733 | HL13: 610940.1875 | HM13: 570996.3582 | HN13: 523561.8403 | HO13: 482530.2353 | HP13: 458984.5576 | HQ13: 470339.0896 | HR13: 489451.7037 | HS13: 536633.9381 | HT13: 513756.3057 | HU13: 474517.0567 | HV13: 493913.3301 | HW13: 582439.4387 | HX13: 617355.4751 | HY13: 576641.0731 | HZ13: 528339.7398 | IA13: 487087.0496 | IB13: 463625.0613 | IC13: 475541.8136 | ID13: 494749.3968 | IE13: 542185.5878 | IF13: 518660.6459 | IG13: 479826.313 | IH13: 499508.3374 | II13: 589126.4775 | IJ13: 624380.3377 | IK13: 582803.9369 | IL13: 533557.8045 | IM13: 492043.5793 | IN13: 468663.4396 | IO13: 481194.064 | IP13: 500498.3188 | IQ13: 548201.5443 | IR13: 523968.4472 | IS13: 485579.8477 | IT13: 505572.747 | IU13: 596434.781 | IV13: 632119.3381 | IW13: 589566.4763 | IX13: 539297.7199 | IY13: 497475.0571 | IZ13: =IZ9-IZ10-IZ11-IZ12 -> 474173.6775 | JA13: 487376.0229 | JB13: 506780.2393 | JC13: 554768.0398 | JD13: 529757.6269 | JE13: 491857.1281 | JF13: 512189.3591 | JG13: 604468.4513 | JH13: 640659.4234 | JI13: 597037.3144 | JJ13: 545625.4415 | JK13: 503443.0079 | JL13: 480217.3509 | JM13: 494156.0602 | JN13: 513664.6576 | JO13: 561957.4985 | JP13: 536092.1615 | JQ13: 498724.8134 | JR13: 519427.1295 | JS13: 613315.4694 | JV13: =JV9-JV10-JV11-JV12 -> 625.867155 | JW13: 628.5365239 | JX13: 632.6882053 | JY13: 635.3378263 | JZ13: 638.4209185 | KA13: 645.0215908 | KB13: 649.9419923 | KC13: 652.6335911 | KD13: 656.5849326 | KE13: 658.8955835 | KF13: 664.9878168 | KG13: 669.4491777 | KH13: 674.1190305 | KI13: 677.170653 | KJ13: 684.2154013 | KK13: 689.7126614 | KL13: 695.5808225 | KM13: 699.9686601 | KN13: 708.6831098 | KO13: 716.0555903 | KP13: 724.075211 | KQ13: 730.8548652 | KR13: 742.5023206
A15: Goal | B15: Primary Compliance | D15: =D13*D6 -> 259431.4276 | E15: =E13*E6 -> 242504.205 | F15: 223606.227 | G15: 204002.8423 | H15: 191942.9902 | I15: 194860.0963 | J15: 202894.4138 | K15: 223395.3007 | L15: 215651.4836 | M15: 196601.4891 | N15: 204878.0574 | O15: 244464.6991 | P15: 302046.6966 | Q15: 282414.0899 | R15: 260552.7891 | S15: 237920.8468 | T15: 224050.7581 | U15: 227443.4427 | V15: 236876.5644 | W15: 260831.9723 | X15: 251704.2214 | Y15: 229359.5236 | Z15: 238832.1052 | AA15: 284552.6437 | AB15: 344007.0973 | AC15: 321760.4156 | AD15: 296963.8724 | AE15: 271422.8592 | AF15: 255794.4427 | AG15: 259725.8237 | AH15: 270544.0668 | AI15: 297939.4585 | AJ15: 287460.8824 | AK15: 261801.8131 | AL15: 272435.0105 | AM15: 324112.182 | AN15: 364112.1232 | AO15: 340704.7993 | AP15: 314565.1298 | AQ15: 287810.8171 | AR15: 271457.3719 | AS15: 275705.3867 | AT15: 287249.9824 | AU15: 316374.6132 | AV15: 305218.4734 | AW15: 277851.602 | AX15: 288960.1833 | AY15: 343258.6941 | AZ15: 386973.6009 | BA15: 361693.0078 | BB15: 332820.5341 | BC15: 303813.1511 | BD15: 285981.5525 | BE15: 290556.8753 | BF15: 302470.6309 | BG15: 333598.6706 | BH15: 322163.7368 | BI15: 294201.7562 | BJ15: 307239.0562 | BK15: 365321.6638 | BL15: 408926.7576 | BM15: 383208.7143 | BN15: 353605.4791 | BO15: 324076.9091 | BP15: =BP13*BP6 -> 306052.9482 | BQ15: 311201.9189 | BR15: 324244.332 | BS15: 356605.6228 | BT15: 343506.4106 | BU15: 312993.3967 | BV15: 325499.9498 | BW15: 386162.4084 | BX15: 430356.2299 | BY15: 403344.446 | BZ15: 372067.3188 | CA15: 341149.8194 | CB15: 322296.7577 | CC15: 327804.8727 | CD15: 341544.2305 | CE15: 375655.9721 | CF15: 361816.5541 | CG15: 329837.251 | CH15: 343052.2338 | CI15: 406595.581 | CJ15: 451643.7453 | CK15: 423325.3 | CL15: 390366.4978 | CM15: 358091.7394 | CN15: 338441.1697 | CO15: 344337.885 | CP15: 358766.5064 | CQ15: 394602.8354 | CR15: 379999.723 | CS15: 346613.4068 | CT15: 360534.6236 | CU15: 426932.7743 | CV15: 454099.1164 | CW15: 425615.5134 | CX15: 392338.3307 | CY15: 360088.7075 | CZ15: 340520.0486 | DA15: 346616.3469 | DB15: 361127.6021 | DC15: 397129.1339 | DD15: 382289.2353 | DE15: 348990.9823 | DF15: 363002.9506 | DG15: 429529.2397 | DH15: 456691.0703 | DI15: 428008.4695 | DJ15: 394400.852 | DK15: 362163.6848 | DL15: 342674.3433 | DM15: 348983.326 | DN15: 363576.9564 | DO15: 399744.7595 | DP15: 384653.4056 | DQ15: 351457.2464 | DR15: 365569.3598 | DS15: 432267.5705 | DT15: 459424.2455 | DU15: 430531.8914 | DV15: 396555.1421 | DW15: 364317.0318 | DX15: 344904.3366 | DY15: 351440.0344 | DZ15: 366115.1863 | EA15: 402449.5723 | EB15: =EB13*EB6 -> 387091.3656 | EC15: 354014.5726 | ED15: 368237.6002 | EE15: 435153.6415 | EF15: 491195.4531 | EG15: 460235.2297 | EH15: 423727.8153 | EI15: 389461.0504 | EJ15: 368915.496 | EK15: 376117.4395 | EL15: 391795.2646 | EM15: 430577.7472 | EN15: 413957.9655 | EO15: 378958.9049 | EP15: 394198.4594 | EQ15: 465577.7518 | ER15: 494433.1632 | ES15: 463177.3314 | ET15: 426235.0643 | EU15: 391939.0738 | EV15: 371472.2195 | EW15: 378950.1181 | EX15: 394712.0572 | EY15: 433672.708 | EZ15: 416731.4527 | FA15: 381897.9532 | FB15: 397276.7402 | FC15: 468992.4192 | FD15: 497872.1259 | FE15: 466274.7779 | FF15: 428877.7172 | FG15: 394537.0955 | FH15: 374148.4411 | FI15: 381922.888 | FJ15: 397767.744 | FK15: 436908.5023 | FL15: 419623.3353 | FM15: 384975.2615 | FN15: 400503.8422 | FO15: 472615.2329 | FP15: 501547.4494 | FQ15: 469586.758 | FR15: 431681.4898 | FS15: 397277.2393 | FT15: 376965.0211 | FU15: 385058.2583 | FV15: 400984.7082 | FW15: 440308.3242 | FX15: 422654.6515 | FY15: 388215.288 | FZ15: 403907.1526 | GA15: 476481.5374 | GB15: 535213.6039 | GC15: 500931.3369 | GD15: 460229.6222 | GE15: 423714.4303 | GF15: 402288.0551 | GG15: 411221.6244 | GH15: 428170.0442 | GI15: 470003.8565 | GJ15: 450892.054 | GK15: 414672.742 | GL15: 431473.7235 | GM15: 508883.5297 | GN15: =GN13*GN6 -> 539699.1208 | GO15: 504922.6323 | GP15: 463610.1114 | GQ15: 426984.7627 | GR15: 405638.348 | GS15: 414965.9645 | GT15: 431998.7611 | GU15: 474035.0559 | GV15: 454470.074 | GW15: 418522.7304 | GX15: 435524.5372 | GY15: 513587.1066 | GZ15: 544562.9468 | HA15: 509222.9391 | HB15: 467258.8849 | HC15: 430496.4174 | HD15: 409228.289 | HE15: 418983.0703 | HF15: 436100.0746 | HG15: 478346.2435 | HH15: 458290.1781 | HI15: 422643.1734 | HJ15: 439863.1163 | HK15: 518676.906 | HL15: 549846.1688 | HM15: 513896.7223 | HN15: 471205.6563 | HO15: 434277.2118 | HP15: 413086.1019 | HQ15: 423305.1806 | HR15: 440506.5333 | HS15: 482970.5443 | HT15: 462380.6751 | HU15: 427065.351 | HV15: 444521.9971 | HW15: 524195.4948 | HX15: 586487.7013 | HY15: 547809.0194 | HZ15: 501922.7528 | IA15: 462732.6971 | IB15: 440443.8083 | IC15: 451764.7229 | ID15: 470011.9269 | IE15: 515076.3084 | IF15: 492727.6136 | IG15: 455834.9974 | IH15: 474532.9205 | II15: 559670.1537 | IJ15: 593161.3209 | IK15: 553663.7401 | IL15: 506879.9143 | IM15: 467441.4003 | IN15: 445230.2676 | IO15: 457134.3608 | IP15: 475473.4029 | IQ15: 520791.4671 | IR15: 497770.0248 | IS15: 461300.8553 | IT15: 480294.1096 | IU15: 566613.042 | IV15: 600513.3712 | IW15: 560088.1525 | IX15: 512332.8339 | IY15: 472601.3042 | IZ15: =IZ13*IZ6 -> 450464.9936 | JA15: 463007.2218 | JB15: 481441.2274 | JC15: 527029.6378 | JD15: 503269.7456 | JE15: 467264.2717 | JF15: 486579.8912 | JG15: 574245.0287 | JH15: 640659.4234 | JI15: 597037.3144 | JJ15: 545625.4415 | JK15: 503443.0079 | JL15: 480217.3509 | JM15: 494156.0602 | JN15: 513664.6576 | JO15: 561957.4985 | JP15: 536092.1615 | JQ15: 498724.8134 | JR15: 519427.1295 | JS15: 613315.4694 | JV15: =SUM(D15:O15)/G_A!$Q$6 -> 297.2868986 | JW15: =SUM(P15:AA15)/G_A!$R$6 -> 345.6950881 | JX15: =SUM(AB15:AM15)/G_A!$S$6 -> 395.4301283 | JY15: =SUM(AN15:AY15)/G_A!$T$6 -> 419.3229653 | JZ15: =SUM(AZ15:BK15)/G_A!$U$6 -> 443.7025384 | KA15: =SUM(BL15:BW15)/G_A!$V$6 -> 470.8657613 | KB15: =SUM(BX15:CI15)/G_A!$W$6 -> 497.2056241 | KC15: =SUM(CJ15:CU15)/G_A!$X$6 -> 522.1068729 | KD15: =SUM(CV15:DG15)/G_A!$Y$6 -> 525.2679461 | KE15: =SUM(DH15:DS15)/G_A!$Z$6 -> 527.1164668 | KF15: =SUM(DT15:EE15)/G_A!$AA$6 -> 531.9902534 | KG15: =SUM(EF15:EQ15)/G_A!$AB$6 -> 569.0318011 | KH15: =SUM(ER15:FC15)/G_A!$AC$6 -> 573.0011759 | KI15: =SUM(FD15:FO15)/G_A!$AD$6 -> 575.5950551 | KJ15: =SUM(FP15:GA15)/G_A!$AE$6 -> 581.5830911 | KK15: =SUM(GB15:GM15)/G_A!$AF$6 -> 620.7413953 | KL15: =SUM(GN15:GY15)/G_A!$AG$6 -> 626.0227403 | KM15: =SUM(GZ15:HK15)/G_A!$AH$6 -> 629.9717941 | KN15: =SUM(HL15:HW15)/G_A!$AI$6 -> 637.8147988 | KO15: =SUM(HX15:II15)/G_A!$AJ$6 -> 680.2528108 | KP15: =SUM(IJ15:IU15)/G_A!$AK$6 -> 687.8714504 | KQ15: =SUM(IV15:JG15)/G_A!$AL$6 -> 694.312122 | KR15: =SUM(JH15:JS15)/G_A!$AM$6 -> 742.5023206
B16: Alternative Compliance | D16: =D13*D7 -> 0 | E16: 0 | F16: 0 | G16: 0 | H16: 0 | I16: 0 | J16: 0 | K16: 0 | L16: 0 | M16: 0 | N16: 0 | O16: 0 | P16: 0 | Q16: 0 | R16: 0 | S16: 0 | T16: 0 | U16: 0 | V16: 0 | W16: 0 | X16: 0 | Y16: 0 | Z16: 0 | AA16: 0 | AB16: 0 | AC16: 0 | AD16: 0 | AE16: 0 | AF16: 0 | AG16: 0 | AH16: 0 | AI16: 0 | AJ16: 0 | AK16: 0 | AL16: 0 | AM16: 0 | AN16: 0 | AO16: 0 | AP16: 0 | AQ16: 0 | AR16: 0 | AS16: 0 | AT16: 0 | AU16: 0 | AV16: 0 | AW16: 0 | AX16: 0 | AY16: 0 | AZ16: 0 | BA16: 0 | BB16: 0 | BC16: 0 | BD16: 0 | BE16: 0 | BF16: 0 | BG16: 0 | BH16: 0 | BI16: 0 | BJ16: 0 | BK16: 0 | BL16: 0 | BM16: 0 | BN16: 0 | BO16: 0 | BP16: =BP13*BP7 -> 0 | BQ16: 0 | BR16: 0 | BS16: 0 | BT16: 0 | BU16: 0 | BV16: 0 | BW16: 0 | BX16: 0 | BY16: 0 | BZ16: 0 | CA16: 0 | CB16: 0 | CC16: 0 | CD16: 0 | CE16: 0 | CF16: 0 | CG16: 0 | CH16: 0 | CI16: 0 | CJ16: 112910.9363 | CK16: 105831.325 | CL16: 97591.62445 | CM16: 89522.93484 | CN16: 84610.29242 | CO16: 86084.47124 | CP16: 89691.62661 | CQ16: 98650.70884 | CR16: 94999.93076 | CS16: 86653.3517 | CT16: 90133.65591 | CU16: 106733.1936 | CV16: 113524.7791 | CW16: 106403.8783 | CX16: 98084.58267 | CY16: 90022.17688 | CZ16: 85130.01216 | DA16: 86654.08671 | DB16: 90281.90054 | DC16: 99282.28347 | DD16: 95572.30883 | DE16: 87247.74557 | DF16: 90750.73764 | DG16: 107382.3099 | DH16: 114172.7676 | DI16: 107002.1174 | DJ16: 98600.21299 | DK16: 90540.92121 | DL16: 85668.58583 | DM16: 87245.83149 | DN16: 90894.2391 | DO16: 99936.18988 | DP16: 96163.35139 | DQ16: 87864.3116 | DR16: 91392.33996 | DS16: 108066.8926 | DT16: 114856.0614 | DU16: 107632.9728 | DV16: 99138.78551 | DW16: 91079.25795 | DX16: 86226.08414 | DY16: 87860.0086 | DZ16: 91528.79657 | EA16: 100612.3931 | EB16: =EB13*EB7 -> 96772.8414 | EC16: 88503.64315 | ED16: 92059.40005 | EE16: 108788.4104 | EF16: 86681.55056 | EG16: 81217.98172 | EH16: 74775.49681 | EI16: 68728.42066 | EJ16: 65102.73459 | EK16: 66373.66579 | EL16: 69140.34082 | EM16: 75984.30833 | EN16: 73051.40567 | EO16: 66875.10086 | EP16: 69564.43401 | EQ16: 82160.77973 | ER16: 87252.91115 | ES16: 81737.17613 | ET16: 75217.95253 | EU16: 69165.7189 | EV16: 65553.92108 | EW16: 66873.55025 | EX16: 69655.06891 | EY16: 76530.47789 | EZ16: 73540.8446 | FA16: 67393.75645 | FB16: 70107.66003 | FC16: 82763.3681 | FD16: 87859.78692 | FE16: 82283.78433 | FF16: 75684.30304 | FG16: 69624.19333 | FH16: 66026.19549 | FI16: 67398.15671 | FJ16: 70194.30776 | FK16: 77101.50041 | FL16: 74051.17681 | FM16: 67936.81086 | FN16: 70677.14863 | FO16: 83402.68815 | FP16: 88508.37343 | FQ16: 82868.25142 | FR16: 76179.08643 | FS16: 70107.74811 | FT16: 66523.23901 | FU16: 67951.45734 | FV16: 70762.00733 | FW16: 77701.46898 | FX16: 74586.11496 | FY16: 68508.58024 | FZ16: 71277.73281 | GA16: 84084.97718 | GB16: 59468.17821 | GC16: 55659.03743 | GD16: 51136.62468 | GE16: 47079.38114 | GF16: 44698.67279 | GG16: 45691.2916 | GH16: 47574.44935 | GI16: 52222.65072 | GJ16: 50099.11712 | GK16: 46074.74911 | GL16: 47941.52483 | GM16: 56542.61441 | GN16: =GN13*GN7 -> 59966.56897 | GO16: 56102.5147 | GP16: 51512.2346 | GQ16: 47442.75141 | GR16: 45070.92756 | GS16: 46107.32939 | GT16: 47999.86234 | GU16: 52670.56176 | GV16: 50496.67489 | GW16: 46502.5256 | GX16: 48391.61525 | GY16: 57065.23406 | GZ16: 60506.99408 | HA16: 56580.32657 | HB16: 51917.65388 | HC16: 47832.93526 | HD16: 45469.80989 | HE16: 46553.67448 | HF16: 48455.56384 | HG16: 53149.58261 | HH16: 50921.13089 | HI16: 46960.3526 | HJ16: 48873.67958 | HK16: 57630.76733 | HL16: 61094.01875 | HM16: 57099.63582 | HN16: 52356.18403 | HO16: 48253.02353 | HP16: 45898.45576 | HQ16: 47033.90896 | HR16: 48945.17037 | HS16: 53663.39381 | HT16: 51375.63057 | HU16: 47451.70567 | HV16: 49391.33301 | HW16: 58243.94387 | HX16: 30867.77375 | HY16: 28832.05365 | HZ16: 26416.98699 | IA16: 24354.35248 | IB16: 23181.25307 | IC16: 23777.09068 | ID16: 24737.46984 | IE16: 27109.27939 | IF16: 25933.0323 | IG16: 23991.31565 | IH16: 24975.41687 | II16: 29456.32388 | IJ16: 31219.01689 | IK16: 29140.19685 | IL16: 26677.89023 | IM16: 24602.17896 | IN16: 23433.17198 | IO16: 24059.7032 | IP16: 25024.91594 | IQ16: 27410.07722 | IR16: 26198.42236 | IS16: 24278.99239 | IT16: 25278.63735 | IU16: 29821.73905 | IV16: 31605.9669 | IW16: 29478.32382 | IX16: 26964.88599 | IY16: 24873.75285 | IZ16: =IZ13*IZ7 -> 23708.68387 | JA16: 24368.80115 | JB16: 25339.01197 | JC16: 27738.40199 | JD16: 26487.88135 | JE16: 24592.85641 | JF16: 25609.46796 | JG16: 30223.42256 | JH16: 0 | JI16: 0 | JJ16: 0 | JK16: 0 | JL16: 0 | JM16: 0 | JN16: 0 | JO16: 0 | JP16: 0 | JQ16: 0 | JR16: 0 | JS16: 0 | JV16: =SUM(D16:O16)/G_A!$Q$6 -> 0 | JW16: =SUM(P16:AA16)/G_A!$R$6 -> 0 | JX16: =SUM(AB16:AM16)/G_A!$S$6 -> 0 | JY16: =SUM(AN16:AY16)/G_A!$T$6 -> 0 | JZ16: =SUM(AZ16:BK16)/G_A!$U$6 -> 0 | KA16: =SUM(BL16:BW16)/G_A!$V$6 -> 0 | KB16: =SUM(BX16:CI16)/G_A!$W$6 -> 0 | KC16: =SUM(CJ16:CU16)/G_A!$X$6 -> 130.5267182 | KD16: =SUM(CV16:DG16)/G_A!$Y$6 -> 131.3169865 | KE16: =SUM(DH16:DS16)/G_A!$Z$6 -> 131.7791167 | KF16: =SUM(DT16:EE16)/G_A!$AA$6 -> 132.9975634 | KG16: =SUM(EF16:EQ16)/G_A!$AB$6 -> 100.4173767 | KH16: =SUM(ER16:FC16)/G_A!$AC$6 -> 101.1178546 | KI16: =SUM(FD16:FO16)/G_A!$AD$6 -> 101.575598 | KJ16: =SUM(FP16:GA16)/G_A!$AE$6 -> 102.6323102 | KK16: =SUM(GB16:GM16)/G_A!$AF$6 -> 68.97126614 | KL16: =SUM(GN16:GY16)/G_A!$AG$6 -> 69.55808225 | KM16: =SUM(GZ16:HK16)/G_A!$AH$6 -> 69.99686601 | KN16: =SUM(HL16:HW16)/G_A!$AI$6 -> 70.86831098 | KO16: =SUM(HX16:II16)/G_A!$AJ$6 -> 35.80277951 | KP16: =SUM(IJ16:IU16)/G_A!$AK$6 -> 36.20376055 | KQ16: =SUM(IV16:JG16)/G_A!$AL$6 -> 36.54274326 | KR16: =SUM(JH16:JS16)/G_A!$AM$6 -> 0
